Workbook

Sheet notes (hidden)
A1: FY21 Chapter 70
A3: Tabs | B3: What happens on this sheet | C3: Data source (if any) | D3: Notes
A4: Parameters | B4: Allows the user to adjust all of the policy levers in Chapter 70, except for changes to foundation. Foundation budget scenarios can be changed, but they must 1st be run separately and dropped into localcont (all the way to the right). Up to 11 alternatives can be included. | D4: Updated table for graph re: "additional increments toward target" to include 175%CEY increment
A5: Index | B5: Controls the district being viewed for all reports except regional dist members | C5: Dropdown box reads LEAs | D5: Changed LEA 603 label to "Hoosac Valley"
A6: Rates | B6: CY and PY foundation budget rates Used to calculate foundation budget report | C6: Copied in from found file | D6: Copied in FY21 rates
A7: Foundation Budget | B7: 1 district report showing build-up of foundation budget | C7: Rates, dist435 | D7: labels
A8: Municipal Contribution | B8: 1 city/town report showing build-up of required local contribution (municipal level) | C8: townwide contributions | D8: labels
A9: Regional Allocation | B9: 1 city/town report showing allocation of total municipal required local contribution based on proportion of foundation budget at each district to which it belongs | C9: localcont | D9: labels
A10: Summary | B10: 1 district report summarizing C70 calculation and comparison to PY | C10: aid436, disthist | D10: labels
A11: Regional Dist Members | B11: 1 regional district report summarizing enrollment and local contribution for each member town Changed in FY18 to vlookup on localcont | C11: localcont, leas | D11: Updated sheet to present foundation enrollment and local contribution for each town-to-regional-district combination
A12: LocalCont | B12: Results from distfrac get copied into the far right (up to 11 versions of foundation budget can be entered). Toggle is on parameters sheet. Data is organized in 5 row format for each city/town (municipality and its districts, blanks are 998 and total is 999). Used to calculate each municipal-district combination's RLC. | C12: found file, distfrac (allocate sheet) | D12: Copied in FY20 foundation budget, %s, RLCs and enro.
A14: Comparison to FY19 | B14: 2 year comparison for operating districts | C14: aid436, disthist, localcont
A15: Townwide Contributions | B15: Calculates municipal required local contributions | C15: DOR (EQV, Income, MRGFs), PY file (RLCs), parameters | D15: Copied FY20 RLCs into PY RLC column
A16: Aid436 | B16: Calculates district Ch 70 aid | C16: disthist, localcont, frac, parameters Starting w/ LEA 406, in col J (target aid %), formula changes to pull from frac tab. | D16: updated base aid for Belmont & Minuteman as Belmont will no longer be a member of Minuteman in FY21
A17: Frac | B17: Calculates target aid percentage for regional districts
A18: DistHist | B18: ***Don't forget to copy in target aid %s from PY Historical C70 data used in summary report, and other places | D18: Copied in FY20 FB, RLC and Aid Copied in target aid %s from FY20 updated FY20 aid values for Belmont & Minuteman to match base aid adjustments on aid436
A19: Dist435 | B19: Data source for foundation budget report, shows detailed enrollment and budget columns | C19: found20
A21: Data | B21: Source | C21: Year | D21: Notes
A22: Inflation | B22: BEA website | C22: Q3 2018 to Q3 2019 as of Dec 2018 (1.99%) | D22: Table 1.1.9. Implicit Price Deflators for Gross Domestic Product
A23: Wage Adjustment Factor Inputs | B23: EOLWD | C23: Calendar Year 2017 | D23: wagesense21
A24: EQV | B24: DOR | C24: 2018 EQV | D24: DOR file Dec. 2018
A25: Income | B25: DOR | C25: 2017 Income | D25: DOR file Dec. 2019
A26: Enrollment | B26: DESE | C26: FY21 | D26: found21
A27: Postgrad Enrollment | B27: DESE-CVTE office | C27: FY21 | D27: FY21
A28: MRGFs | B28: DOR/ANF | C28: FY21 | D28: DOR 1/8/2020

Sheet parameters (hidden)
A1: Cyr | B1: FY22 | C1: 22
A2: Pyr | B2: FY21 | C2: 21
A3: As of | B3: 2021-01-27
A5: Parameters | D5: Base | K5: Analysis of Aggregate Wealth Model Implementation
B6: Which version of foundation budget? | C6: 1 | D6: 1 | G6: FY21 C70 including Devens | H6: 5283651631
B7: Effort reduction | C7: 1 | D7: 0 | K7: Progress Towards Target Local Share
B8: Pct downpayment on target aid share | C8: 0 | D8: 0 | G8: FY21 foundation aid increase | H8: ='Aid436'!L448 -> 176740387.4
D9: 0 | L9: FY07 | M9: FY08 | N9: FY09 | O9: FY10 | P9: FY11 | Q9: FY12 | R9: FY13 | S9: FY14 | T9: FY15 | U9: FY16 | V9: FY17 | W9: FY18 | X9: FY19 | Y9: FY20 | Z9: FY21 | AA9: FY22
G10: Minimum per pupil aid increase | H10: ='Aid436'!Y448 -> 17246617 | K10: excess effort before effort reduction | L10: 621.084157 | M10: 494.058912 | N10: 372.382091 | O10: 228.110232 | P10: 366 | Q10: 293.3 | R10: 229.8 | S10: 234.5 | T10: 307.903014 | U10: 235.358789 | V10: 299.86437 | W10: 151.670894 | X10: 68.664221 | Y10: 21.435137 | Z10: 104.649236 | AA10: ='Townwide Contributions'!V361/1000000 -> 102.126903
G11: Min aid adjustment increase | H11: ='Aid436'!AJ448 -> 3697393 | K11: effort reduction | L11: 124.2168314 | M11: 123.514728 | N11: 122.88609 | O11: 34.216535 | P11: 109.8 | Q11: 58.7 | R11: 34.5 | S11: 35.2 | T11: 153.951507 | U11: 117.6793945 | V11: 254.8847145 | W11: 128.9202599 | X11: 68.664221 | Y11: 21.435137 | Z11: 104.649236 | AA11: ='Townwide Contributions'!V361/1000000 -> 102.126903
G12: Non-op reduction | H12: ='Aid436'!AL448 -> 31386.2 | K12: net excess after effort reduction | L12: 496.8673256 | M12: 370.544184 | N12: 249.496001 | O12: 193.893697 | P12: 256.2 | Q12: =Q10-Q11 -> 234.6 | R12: =R10-R11 -> 195.3 | S12: 199.3 | T12: 152.0806983 | U12: 117.4829132 | V12: 44.97879348 | W12: 22.74921402 | X12: 0 | Y12: 0 | Z12: 0 | AA12: ='Townwide Contributions'!AC361/1000000 -> 0
G13: FY22 Chapter 70 | H13: ='Aid436'!AM448 -> 5480996085 | K13: shortfall below target before increment | L13: -321.452322 | M13: -352.174875 | N13: -359.193563 | O13: -427.2 | P13: -228 | Q13: -211 | R13: -200 | S13: -180.2 | T13: -162.972215 | U13: -132.627218 | V13: -96.928091 | W13: -103.17317 | X13: -117.254713 | Y13: -207.485209 | Z13: -163.71 | AA13: ='Townwide Contributions'!AA361/1000000 -> -212.872356
B14: Per pupil guaranteed increase | C14: 30 | D14: 0 | G14: Devens | H14: =308558 -> 308558 | K14: additional increments toward target | L14: 0 | M14: -19.739149 | N14: -21.387588 | O14: -121.2 | P14: -10.6 | Q14: -10 | R14: -4.2 | S14: -3.9 | T14: -7.563093 | U14: -5.848739 | V14: -2.474215 | W14: -3.628178 | X14: -5.320349 | Y14: -19.253945 | Z14: -9.378217 | AA14: =('Townwide Contributions'!T361/1000000*-1)+('Townwide Contributions'!W361/1000000*-1) -> -11.780052
B15: Which version of mrgf? | C15: 1 | D15: 1 | K15: net shortfall below target after increment | L15: -321.452322 | M15: -332.435726 | N15: -337.805975 | O15: -306 | P15: -217.4 | Q15: -200.9 | R15: -195.7 | S15: -176.3 | T15: -155.409122 | U15: -126.778479 | V15: -94.453876 | W15: -99.544992 | X15: -111.934364 | Y15: -188.231264 | Z15: -154.331783 | AA15: ='Townwide Contributions'!AB361/1000000 -> -201.092304
B16: Below effort threshold 1 | C16: 2.5 | D16: 2.5 | G16: Change in C70 Appropriation | H16: =H13+H14-H6 -> 197653011.2 | K16: n of municipalities with effort too high | L16: 232 | M16: 218 | N16: 214 | O16: 193 | P16: 282 | Q16: 257 | R16: 249 | S16: 255 | T16: 279 | U16: 278 | V16: 303 | W16: 291 | X16: 0 | Y16: 0 | Z16: 0 | AA16: ='Townwide Contributions'!AC364 -> 0
B17: Below effort threshold 2 | C17: 7.5 | D17: 7.5 | G17: Percent Change | H17: =H16/H6 -> 0.03740841088
B18: Below effort contribution increment, 5-10% under | C18: 0.01 | D18: 0.01
B19: Below effort contribution increment, >10% under | C19: 0.02 | D19: 0.02 | G19: N of Foundation Aid Districts | H19: ='Aid436'!P448 -> 76
B20: Maximum local contribution pct of foundation | C20: 0.825 | D20: 0.825 | G20: N of Districts with an Aid Increase | H20: ='Comparison to FY21'!N331 -> 318
B21: Statewide target for local contribution % of foundation | C21: 0.59 | D21: 0.59 | G21: Total C70 Including Devens | H21: =H13+H14 -> 5481304643
B22: Cap contributions at fixed percentage of foundation | C22: 0.9 | D22: 0.9
B23: Percentage cut to base aid | C23: 0 | D23: 0
A24: Eqv/income percentages
B26: Target effort | C26: =C21*localcont!K1765 -> 7011299095
B27: Effort based upon following percentages | C27: ='Townwide Contributions'!K361 -> 7011299098
B28: Difference from target | C28: =IF(ABS(C27-C26)<10,0,C27-C26) -> 0
B29: Percentage of EQV | C29: 0.003310857094
B30: Percentage of INCOME | C30: =C29*1/C34 -> 0.01413479509
B32: Total EQV | C32: ='Townwide Contributions'!C361 -> 1420130860400
B33: Total Income | C33: ='Townwide Contributions'!E361 -> 3.326436855e+11
B34: State Average % of EQV | C34: =C33/C32 -> 0.2342345306
A37: See Progress Towards Targets
K42: Progress Towards Target Aid Share
L44: FY07 | M44: FY08 | N44: FY09 | O44: FY10 | P44: FY11 | Q44: FY12 | R44: FY13 | S44: FY14 | T44: FY15 | U44: FY16 | V44: FY17 | W44: FY18 | X44: FY19 | Y44: FY20 | Z44: FY21 | AA44: FY22
K45: aid above target | L45: 394.9 | M45: 421 | N45: 440.4 | O45: 413.5991456 | P45: 489.2905867 | Q45: 360.5802896 | R45: 372.9139726 | S45: 385.3 | T45: 404.6539336 | U45: 419.0730779 | V45: 488.1362137 | W45: 497.4038449 | X45: 487.8069694 | Y45: 518.4487954 | Z45: 516.4943275 | AA45: ='Aid436'!BI449/1000000 -> 608.7515694
K46: aid below target | L46: -176.3 | M46: -143 | N46: -105.5 | O46: -97.82363262 | P46: -75.73073977 | Q46: -110.4290612 | R46: -84.70629692 | S46: -66.9 | T46: -49.39921427 | U46: -44.48798888 | V46: -13.01302676 | W46: -7.202688836 | X46: -0.01809683687 | Y46: -0.001189981026 | Z46: -0.01283887927 | AA46: ='Aid436'!BI450/1000000 -> -0.005953754328
C50: =TEXT(effortred,"0%") -> 100%

Sheet Index
A1: Massachusetts Department of Elementary and Secondary Education | J1: 2021-01-27
A2: =parameters!B1& " Chapter 70 and Net School Spending Formula Spreadsheet" -> FY22 Chapter 70 and Net School Spending Formula Spreadsheet
B3: Select or type full district name below | C3: LEA code
A4: =C4 -> 999 | B4: Select a district | C4: =VLOOKUP(B4,leas!$E$4:$F$445,2,FALSE) -> 999
B6: Use the drop-down menu to select a municipal or regional district and then go to any of the first four links below.
B7: Only municipal district selections will activate the Municipal Contribution Requirement and Regional Allocation reports.
B8: A list of LEAs by code begins on row 26 of this sheet.
B10: We recommend that you save this workbook to your computer before proceeding, then leave this browser, and open the workbook using Excel or My Computer.
B12: Summary
B13: Foundation Budget
B14: Municipal Contribution Requirement
B15: Regional Allocation
B17: Regional District Detail | D17: (go to this sheet to see any particular regional district's comparison of enrollment and minimum contributions to the prior year)
B19: There are also a number of "hidden" sheets which contain the underlying spreadsheet calculations.
B20: They can be accessed by right-clicking on any of the tabs below and choosing a sheet to unhide.
B22: Questions or comments about Chapter 70 may be directed to:
B23: Rob Hanna | D23: Robert.Hanna@mass.gov | G23: 781-338-6525
B24: Rob O'Donnell | D24: Robert.F.O'Donnell@mass.gov | G24: 781-338-6512
B26: District | D26: LEA Number
B27: Abington | D27: 1
B28: Acton | D28: 2
B29: Acton Boxborough | D29: 600
B30: Acushnet | D30: 3
B31: Adams | D31: 4
B32: Agawam | D32: 5
B33: Alford | D33: 6
B34: Amesbury | D34: 7
B35: Amherst | D35: 8
B36: Amherst Pelham | D36: 605
B37: Andover | D37: 9
B38: Arlington | D38: 10
B39: Ashburnham | D39: 11
B40: Ashburnham Westminster | D40: 610
B41: Ashby | D41: 12
B42: Ashfield | D42: 13
B43: Ashland | D43: 14
B44: Assabet Valley | D44: 801
B45: Athol | D45: 15
B46: Athol Royalston | D46: 615
B47: Attleboro | D47: 16
B48: Auburn | D48: 17
B49: Avon | D49: 18
B50: Ayer | D50: 19
B51: Ayer Shirley | D51: 616
B52: Barnstable | D52: 20
B53: Barre | D53: 21
B54: Becket | D54: 22
B55: Bedford | D55: 23
B56: Belchertown | D56: 24
B57: Bellingham | D57: 25
B58: Belmont | D58: 26
B59: Berkley | D59: 27
B60: Berkshire Hills | D60: 618
B61: Berlin | D61: 28
B62: Berlin Boylston | D62: 620
B63: Bernardston | D63: 29
B64: Beverly | D64: 30
B65: Billerica | D65: 31
B66: Blackstone | D66: 32
B67: Blackstone Millville | D67: 622
B68: Blackstone Valley | D68: 805
B69: Blandford | D69: 33
B70: Blue Hills | D70: 806
B71: Bolton | D71: 34
B72: Boston | D72: 35
B73: Bourne | D73: 36
B74: Boxborough | D74: 37
B75: Boxford | D75: 38
B76: Boylston | D76: 39
B77: Braintree | D77: 40
B78: Brewster | D78: 41
B79: Bridgewater | D79: 42
B80: Bridgewater Raynham | D80: 625
B81: Brimfield | D81: 43
B82: Bristol County | D82: 910
B83: Bristol Plymouth | D83: 810
B84: Brockton | D84: 44
B85: Brookfield | D85: 45
B86: Brookline | D86: 46
B87: Buckland | D87: 47
B88: Burlington | D88: 48
B89: Cambridge | D89: 49
B90: Canton | D90: 50
B91: Cape Cod | D91: 815
B92: Carlisle | D92: 51
B93: Carver | D93: 52
B94: Central Berkshire | D94: 635
B95: Charlemont | D95: 53
B96: Charlton | D96: 54
B97: Chatham | D97: 55
B98: Chelmsford | D98: 56
B99: Chelsea | D99: 57
B100: Cheshire | D100: 58
B101: Chester | D101: 59
B102: Chesterfield | D102: 60
B103: Chesterfield Goshen | D103: 632
B104: Chicopee | D104: 61
B105: Chilmark | D105: 62
B106: Clarksburg | D106: 63
B107: Clinton | D107: 64
B108: Cohasset | D108: 65
B109: Colrain | D109: 66
B110: Concord | D110: 67
B111: Concord Carlisle | D111: 640
B112: Conway | D112: 68
B113: Cummington | D113: 69
B114: Dalton | D114: 70
B115: Danvers | D115: 71
B116: Dartmouth | D116: 72
B117: Dedham | D117: 73
B118: Deerfield | D118: 74
B119: Dennis | D119: 75
B120: Dennis Yarmouth | D120: 645
B121: Dighton | D121: 76
B122: Dighton Rehoboth | D122: 650
B123: Douglas | D123: 77
B124: Dover | D124: 78
B125: Dover Sherborn | D125: 655
B126: Dracut | D126: 79
B127: Dudley | D127: 80
B128: Dudley Charlton | D128: 658
B129: Dunstable | D129: 81
B130: Duxbury | D130: 82
B131: East Bridgewater | D131: 83
B132: East Brookfield | D132: 84
B133: East Longmeadow | D133: 87
B134: Eastham | D134: 85
B135: Easthampton | D135: 86
B136: Easton | D136: 88
B137: Edgartown | D137: 89
B138: Egremont | D138: 90
B139: Erving | D139: 91
B140: Essex | D140: 92
B141: Essex North Shore | D141: 817
B142: Everett | D142: 93
B143: Fairhaven | D143: 94
B144: Fall River | D144: 95
B145: Falmouth | D145: 96
B146: Farmington River | D146: 662
B147: Fitchburg | D147: 97
B148: Florida | D148: 98
B149: Foxborough | D149: 99
B150: Framingham | D150: 100
B151: Franklin | D151: 101
B152: Franklin County | D152: 818
B153: Freetown | D153: 102
B154: Freetown Lakeville | D154: 665
B155: Frontier | D155: 670
B156: Gardner | D156: 103
B157: Gateway | D157: 672
B158: Gay Head | D158: 104
B159: Georgetown | D159: 105
B160: Gill | D160: 106
B161: Gill Montague | D161: 674
B162: Gloucester | D162: 107
B163: Goshen | D163: 108
B164: Gosnold | D164: 109
B165: Grafton | D165: 110
B166: Granby | D166: 111
B167: Granville | D167: 112
B168: Great Barrington | D168: 113
B169: Greater Fall River | D169: 821
B170: Greater Lawrence | D170: 823
B171: Greater Lowell | D171: 828
B172: Greater New Bedford | D172: 825
B173: Greenfield | D173: 114
B174: Groton | D174: 115
B175: Groton Dunstable | D175: 673
B176: Groveland | D176: 116
B177: Hadley | D177: 117
B178: Halifax | D178: 118
B179: Hamilton | D179: 119
B180: Hamilton Wenham | D180: 675
B181: Hampden | D181: 120
B182: Hampden Wilbraham | D182: 680
B183: Hampshire | D183: 683
B184: Hancock | D184: 121
B185: Hanover | D185: 122
B186: Hanson | D186: 123
B187: Hardwick | D187: 124
B188: Harvard | D188: 125
B189: Harwich | D189: 126
B190: Hatfield | D190: 127
B191: Haverhill | D191: 128
B192: Hawlemont | D192: 685
B193: Hawley | D193: 129
B194: Heath | D194: 130
B195: Hingham | D195: 131
B196: Hinsdale | D196: 132
B197: Holbrook | D197: 133
B198: Holden | D198: 134
B199: Holland | D199: 135
B200: Holliston | D200: 136
B201: Holyoke | D201: 137
B202: Hoosac Valley | D202: 603
B203: Hopedale | D203: 138
B204: Hopkinton | D204: 139
B205: Hubbardston | D205: 140
B206: Hudson | D206: 141
B207: Hull | D207: 142
... 257 more rows

Sheet MoreAboutData
B1: =CYr&" Chapter 70 and Net School Spending Formula" -> FY22 Chapter 70 and Net School Spending Formula | C1: FY18 Chapter 70 and Net School Spending Formula Spreadsheet | D1: FY18 Chapter 70 and Net School Spending Formula Spreadsheet | E1: FY18 Chapter 70 and Net School Spending Formula Spreadsheet | F1: FY18 Chapter 70 and Net School Spending Formula Spreadsheet | G1: Return to Index
B2: More about the data
A3: TABLE OF CONTENTS
A4: Index | E4: Back to the top
A5: Select the district you're interested in from the dropdown list on this sheet.
A6: Foundation Budget | E6: Back to the top
A7: This report displays the foundation enrollment and foundation budget for a single district. A district’s foundation budget is updated each year and it is derived by multiplying the number of pupils in thirteen enrollment categories by cost rates in eleven functional areas.
A9: Key Terms
A10: Foundation Enrollment: A count of the students for whom a school district is financially responsible on October 1st of any given year. Inflation: Foundation budget rates are adjusted each year by a statutorily defined inflationary factor. It affects all districts in the same way. Wage Adjustment Factor (WAF): Gives a district credit for having higher school costs if it is located in a geographic area where average wages are higher than in other areas of the state. Calculated using the latest available average wage data supplied by the state’s Executive Office of Labor and Workforce Development (EOLWD). Low Income Group: Determined based on the relative concentration of low income students served in the district. Corresponds to a foundation budget rate for low income students.
A11: Municipal Contribution | E11: Back to the top
A12: This report displays the required local contribution for a single municipality. Each municipality has a target local share of its foundation budget, based on local ability to pay. The required local contribution for each municipality is based on the previous year's required contribution, and includes some transition factors so that the shift toward the target levels occurs over a period of several years.
A14: Key Terms
A15: Equalized Valuation (EQV): Calculated by DOR every two years. Full and fair cash value of all taxable property for each municipality. Income: Derived annually by DOR from state income tax returns. Includes all forms of wage, pension, interest, business, investment, and capital gains income. Combined Effort Yield (CEY): Sum of property and income effort. Based on DESE-calculated property and income percentages, which, when applied to all municipalities in the Commonwealth, yields 59% of statewide foundation coming from local revenue. Target Local Contribution/Share: Calculated for each municipality as an equitable share of its foundation budget based on property wealth and income. Municipal Revenue Growth Factor (MRGF): Calculated each year by DOR and quantifies the most recent annual percentage change in each community's local revenues (such as the annual increase in the Proposition 2½ levy limit) that should be available for schools.
A16: Regional Allocation | E16: Back to the top
A17: This report displays the allocation of a municipality's required local contribution across the districts to which it belongs. The municipality's required contribution is allocated in direct proportion to the district's share of the municipality's foundation budget.
A18: Summary | E18: Back to the top
A19: This report displays the Chapter 70 aid calculation for a single district. The aid calculation begins with each district's prior year Chapter 70 amount. The difference between each district's foundation budget and its required contribution equals foundation aid. On the right-hand side, there is a comparison to the prior year.
A20: Key Terms
A21: Foundation Aid: The amount of aid needed by a district to reach its foundation budget, after factoring in this year's required local contribution. Foundation budget - Required Local Contribution = Foundation Aid Minimum Aid: A guaranteed per pupil aid increase over the prior year. Required Net School Spending (NSS): The sum of this year's required local contribution and Chapter 70 aid. A district must spend this amount to be in compliance.
A22: Regional District Members | E22: Back to the top
A23: This report displays relevant data for municipal members of a single regional district.
A24: Key Terms
A25: Foundation Enrollment: Foundation enrollment for the selected district, in total and by member. Required Minimum Contribution: Total required minimum contribution for the selected district, in total and by member.
A26: ="Comparison to "&PYr -> Comparison to FY21 | E26: Back to the top
A27: This report displays prior year and current year foundation enrollment, foundation budget, required local contribution and Chapter 70 aid for all operating districts.
A29: Rates | E29: Back to the top
A30: This sheet displays the FY22 foundation budget rates.
A31: Townwide Contributions | E31: Back to the top
A32: This sheet calculates FY22 required local contributions for each municipality.
A33: Aid436 | E33: Back to the top
A34: This sheet calculates FY22 Chapter 70 aid for each district.

Sheet localcont (hidden)
I1: c70fy21 | J1: c70fy21 | O1: c70fy21 | R1: c70fy21 | Z1: 2021-01-14 | CM1: Lookup table for foundation budget scenarios | CN1: 1 | CO1: 2
CN2: 2 | CO2: 8
D3: 1 | E3: 2 | F3: 3 | G3: 4 | H3: 5 | I3: 6 | J3: 7 | K3: 8 | L3: 9 | M3: 10 | N3: 11 | O3: 12 | P3: 13 | Q3: 14 | R3: 15 | S3: 16 | T3: 17 | U3: 18 | V3: 19 | W3: 20 | X3: 21 | Y3: 1 | Z3: 2 | AA3: 3 | AB3: 4 | AC3: 5 | AD3: 6 | AE3: 7 | AF3: 8 | AG3: 9 | AH3: 10 | AI3: 11 | AJ3: 12 | AK3: 13 | AL3: 14 | AM3: 15 | AN3: 16 | AO3: 17 | AP3: 18 | AQ3: 19 | AR3: 20 | AS3: 21 | AT3: 22 | AU3: 23 | AV3: 24 | AW3: 25 | AX3: 26 | AY3: 27 | AZ3: 28 | BA3: 29 | BB3: 30 | BC3: 31 | BD3: 32 | BE3: 33 | BF3: 34 | BG3: 35 | BH3: 36 | BI3: 37 | BJ3: 38 | BK3: 39 | BL3: 40 | BM3: 41 | BN3: 42 | BO3: 43 | BP3: 44 | BQ3: 45 | BR3: 46 | BS3: 47 | BT3: 48 | BU3: 49 | BV3: 50 | BW3: 51 | BX3: 52 | BY3: 53 | BZ3: 54 | CA3: 55 | CB3: 56 | CC3: 57 | CD3: 58 | CE3: 59 | CF3: 60 | CG3: 61 | CH3: 62 | CI3: 63 | CJ3: 64 | CK3: 65 | CL3: 66 | CN3: 3 | CO3: 14 | CR3: 62 | CS3: 63 | CT3: 64 | CU3: 65 | CV3: 66
G4: lea1755 | K4: found1755 | N4: prelcont1755 | O4: pynetmin | R4: pyenro | W4: enro1755 | CN4: 4 | CO4: 20
I5: Updated 12/18/20 | J5: Updated 12/18/20 | O5: Updated 12/18/20 | R5: Updated 12/18/20 | Z5: 1 | AF5: 2 | AL5: 3 | AR5: 4 | AX5: 5 | BD5: 6 | BJ5: 7 | BP5: 8 | BV5: 9 | CB5: 10 | CH5: 11 | CN5: 5 | CO5: 26 | CR5: FY19
T6: =parameters!$C$6 -> 1 | Z6: FY22 - SOA Year One | CN6: 6 | CO6: 32 | CR6: FY19
I7: =PYr -> FY21 | J7: =PYr -> FY21 | K7: =CYr -> FY22 | L7: =CYr -> FY22 | M7: =CYr -> FY22 | N7: =CYr -> FY22 | O7: =PYr -> FY21 | CN7: 7 | CO7: 38 | CW7: FY19 | CX7: FY19
I8: Foundation | J8: Share of Total | K8: Foundation | L8: Share of Total | M8: Townwide | N8: Net Minimum | O8: Net Minimum | P8: =PYr&" to "&CYr -> FY21 to FY22 | Q8: Percent | R8: =PYr -> FY21 | S8: =CYr -> FY22 | W8: final | X8: foundation | AC8: final | AD8: foundation | AI8: final | AJ8: foundation | AO8: final | AP8: foundation | AU8: final | AV8: foundation | BA8: final | BB8: foundation | BG8: final | BH8: foundation | BM8: final | BN8: foundation | BS8: final | BT8: foundation | BY8: final | BZ8: foundation | CE8: final | CF8: foundation | CK8: final | CL8: foundation | CN8: 8 | CO8: 44 | CU8: final | CV8: foundation | CW8: Share of Total | CX8: Net Minimum
A9: TownLEA | B9: Town | C9: LEA | D9: Order | E9: Town | F9: City or Town | G9: LEA | H9: School District | I9: Budget | J9: Foundation | K9: Budget | L9: Foundation | M9: Contribution | N9: Contribution | O9: Contribution | P9: Change | Q9: Change | R9: Enrollment | S9: Enrollment | T9: Town | U9: LEA | V9: Order | W9: enrollment | X9: budget | Z9: Town | AA9: LEA | AB9: Order | AC9: enrollment | AD9: budget | AF9: Town | AG9: LEA | AH9: Order | AI9: enrollment | AJ9: budget | AL9: Town | AM9: LEA | AN9: Order | AO9: enrollment | AP9: budget | AR9: Town | AS9: LEA | AT9: Order | AU9: enrollment | AV9: budget | AX9: Town | AY9: LEA | AZ9: Order | BA9: enrollment | BB9: budget | BD9: Town | BE9: LEA | BF9: Order | BG9: enrollment | BH9: budget | BJ9: Town | BK9: LEA | BL9: Order | BM9: enrollment | BN9: budget | BP9: Town | BQ9: LEA | BR9: Order | BS9: enrollment | BT9: budget | BV9: Town | BW9: LEA | BX9: Order | BY9: enrollment | BZ9: budget | CB9: Town | CC9: LEA | CD9: Order | CE9: enrollment | CF9: budget | CH9: Town | CI9: LEA | CJ9: Order | CK9: enrollment | CL9: budget | CN9: 9 | CO9: 50 | CR9: Town | CS9: LEA | CT9: Order | CU9: enrollment | CV9: budget | CW9: Foundation | CX9: Contribution
A10: =B10&C10 -> 00010001 | B10: 0001 | C10: 0001 | D10: 1 | E10: 1 | F10: Abington | G10: 1 | H10: Abington | I10: 25332546.71 | J10: 0.9439033323 | K10: =X10 -> 26452103.93 | L10: =IF(K14>0, K10/K14, 0) -> 0.9423022214 | N10: =ROUND(M14*L10,0) -> 15764755 | O10: 15287069 | P10: =N10-O10 -> 477686 | Q10: =IF(O10>0,P10*100/O10,IF(P10>0,100,0)) -> 3.124771662 | R10: 2197 | S10: =W10 -> 2193 | T10: =VLOOKUP($D10, foundoptions, VLOOKUP($T$6, foundoptcell, 2, FALSE), FALSE) -> 1 | U10: =VLOOKUP($D10, foundoptions, VLOOKUP($T$6, foundoptcell, 2, FALSE)+1, FALSE) -> 1 | V10: =VLOOKUP($D10, foundoptions, VLOOKUP($T$6, foundoptcell, 2, FALSE)+2, FALSE) -> 1 | W10: =VLOOKUP($D10, foundoptions, VLOOKUP($T$6, foundoptcell, 2, FALSE)+3, FALSE) -> 2193 | X10: =VLOOKUP($D10, foundoptions, VLOOKUP($T$6, foundoptcell, 2, FALSE)+4, FALSE) -> 26452103.93 | Y10: =D10 -> 1 | Z10: 1 | AA10: 1 | AB10: 1 | AC10: 2193 | AD10: 26452103.93 | CN10: 10 | CO10: 56 | CR10: 1 | CS10: 1 | CT10: 1 | CU10: 2024 | CV10: 21515960.21 | CW10: 0.917737123 | CX10: 13701008
A11: 00010873 | B11: 0001 | C11: 0873 | D11: 2 | E11: 1 | F11: Abington | G11: 873 | H11: South Shore | I11: 1505526.474 | J11: 0.05609666772 | K11: =X11 -> 1619679.547 | L11: =IF(K14>0, K11/K14, 0) -> 0.05769777857 | N11: =ROUND(M14*L11,0) -> 965286 | O11: 908518 | P11: =N11-O11 -> 56768 | Q11: 6.248417753 | R11: 84.46580407 | S11: =W11 -> 88 | T11: 1 | U11: 873 | V11: 2 | W11: 88 | X11: 1619679.547 | Y11: =D11 -> 2 | Z11: 1 | AA11: 873 | AB11: 2 | AC11: 88 | AD11: 1619679.547 | CN11: 11 | CO11: 62 | CR11: 1 | CS11: 873 | CT11: 2 | CU11: 115 | CV11: 1928618.495 | CW11: 0.08226287702 | CX11: 1228112
A12: 00010998 | B12: 0001 | C12: 0998 | D12: 3 | E12: 1 | G12: 998 | I12: 0 | J12: 0 | K12: =X12 -> 0 | L12: =IF(K14>0, K12/K14, 0) -> 0 | N12: =ROUND(M14*L12,0) -> 0 | O12: 0 | P12: =N12-O12 -> 0 | Q12: 0 | R12: 0 | S12: 0 | T12: 1 | U12: 998 | V12: 3 | W12: 0 | X12: 0 | Y12: 3 | Z12: 1 | AA12: 998 | AB12: 3 | AC12: 0 | AD12: 0 | CR12: 1 | CS12: 998 | CT12: 3 | CU12: 0 | CV12: 0 | CW12: 0 | CX12: 0
A13: 00010998 | B13: 0001 | C13: 0998 | D13: 4 | E13: 1 | G13: 998 | I13: 0 | J13: 0 | K13: =X13 -> 0 | L13: =IF(K14>0, K13/K14, 0) -> 0 | N13: =ROUND(M14*L13,0) -> 0 | O13: 0 | P13: =N13-O13 -> 0 | Q13: 0 | R13: 0 | S13: 0 | T13: 1 | U13: 998 | V13: 4 | W13: 0 | X13: 0 | Y13: 4 | Z13: 1 | AA13: 998 | AB13: 4 | AC13: 0 | AD13: 0 | CR13: 1 | CS13: 998 | CT13: 4 | CU13: 0 | CV13: 0 | CW13: 0 | CX13: 0
A14: 00010999 | B14: 0001 | C14: 0999 | D14: 5 | E14: 1 | F14: Abington | G14: 999 | H14: Total | I14: 26838073.19 | J14: 1 | K14: =SUM(K10:K13) -> 28071783.47 | L14: =SUM(L10:L13) -> 1 | M14: =VLOOKUP(E14,town351,24) -> 16730041 | N14: =SUM(N10:N13) -> 16730041 | O14: 16195587 | P14: =SUM(P10:P13) -> 534454 | Q14: 3.299997709 | R14: 2281.465804 | S14: 2281 | T14: 1 | U14: 999 | V14: 5 | W14: 2281 | X14: 28071783.47 | Y14: 5 | Z14: 1 | AA14: 999 | AB14: 5 | AC14: 2281 | AD14: 28071783.47 | CR14: 1 | CS14: 999 | CT14: 5 | CU14: 2139 | CV14: 23444578.71 | CW14: 1 | CX14: 14929120
A15: 00020002 | B15: 0002 | C15: 0002 | D15: 6 | E15: 2 | F15: Acton | G15: 2 | H15: Acton | I15: 0 | J15: 0 | K15: =X15 -> 0 | L15: =IF(K19>0, K15/K19, 0) -> 0 | N15: =ROUND(M19*L15,0) -> 0 | O15: 0 | P15: =N15-O15 -> 0 | Q15: 0 | R15: 0 | S15: 0 | T15: 2 | U15: 2 | V15: 6 | W15: 0 | X15: 0 | Y15: 6 | Z15: 2 | AA15: 2 | AB15: 6 | AC15: 0 | AD15: 0 | CR15: 2 | CS15: 2 | CT15: 6 | CU15: 0 | CV15: 0 | CW15: 0 | CX15: 0
A16: 00020600 | B16: 0002 | C16: 0600 | D16: 7 | E16: 2 | F16: Acton | G16: 600 | H16: Acton Boxborough | I16: 48408644.57 | J16: 0.9844972316 | K16: 48349121.19 | L16: =IF(K19>0, K16/K19, 0) -> 0.9752431625 | N16: =ROUND(M19*L16,0) -> 38787229 | O16: 38561442 | P16: =N16-O16 -> 225787 | Q16: 0.5855253027 | R16: 4437.978144 | S16: 4287.104809 | T16: 2 | U16: 600 | V16: 7 | W16: 4287.104809 | X16: 48349121.19 | Y16: 7 | Z16: 2 | AA16: 600 | AB16: 7 | AC16: 4287.104809 | AD16: 48349121.19 | CR16: 2 | CS16: 600 | CT16: 7 | CU16: 4587.53929 | CV16: 46559239.31 | CW16: 0.9866805097 | CX16: 35990717
A17: 00020830 | B17: 0002 | C17: 0830 | D17: 8 | E17: 2 | F17: Acton | G17: 830 | H17: Minuteman | I17: 762285.54 | J17: 0.01550276837 | K17: 1227356.811 | L17: =IF(K19>0, K17/K19, 0) -> 0.02475683753 | N17: =ROUND(M19*L17,0) -> 984625 | O17: 607223 | P17: =N17-O17 -> 377402 | Q17: 62.15212533 | R17: 41 | S17: 61 | T17: 2 | U17: 830 | V17: 8 | W17: 61 | X17: 1227356.811 | Y17: 8 | Z17: 2 | AA17: 830 | AB17: 8 | AC17: 61 | AD17: 1227356.811 | CR17: 2 | CS17: 830 | CT17: 8 | CU17: 35.1026393 | CV17: 628516.8595 | CW17: 0.01331949028 | CX17: 485849
A18: 00020998 | B18: 0002 | C18: 0998 | D18: 9 | E18: 2 | G18: 998 | I18: 0 | J18: 0 | K18: 0 | L18: =IF(K19>0, K18/K19, 0) -> 0 | N18: =ROUND(M19*L18,0) -> 0 | O18: 0 | P18: =N18-O18 -> 0 | Q18: 0 | R18: 0 | S18: 0 | T18: 2 | U18: 998 | V18: 9 | W18: 0 | X18: 0 | Y18: 9 | Z18: 2 | AA18: 998 | AB18: 9 | AC18: 0 | AD18: 0 | CR18: 2 | CS18: 998 | CT18: 9 | CU18: 0 | CV18: 0 | CW18: 0 | CX18: 0
A19: 00020999 | B19: 0002 | C19: 0999 | D19: 10 | E19: 2 | F19: Acton | G19: 999 | H19: Total | I19: 49170930.11 | J19: 1 | K19: =SUM(K15:K18) -> 49576478 | L19: =SUM(L15:L18) -> 1 | M19: =VLOOKUP(E19,town351,24) -> 39771854 | N19: =SUM(N15:N18) -> 39771854 | O19: 39168665 | P19: =SUM(P15:P18) -> 603189 | Q19: =IF(O19>0,P19*100/O19,IF(P19>0,100,0)) -> 1.53997845 | R19: 4478.978144 | S19: 4348.104809 | T19: 2 | U19: 999 | V19: 10 | W19: 4348.104809 | X19: 49576478 | Y19: 10 | Z19: 2 | AA19: 999 | AB19: 10 | AC19: 4348.104809 | AD19: 49576478 | CR19: 2 | CS19: 999 | CT19: 10 | CU19: 4622.641929 | CV19: 47187756.17 | CW19: 1 | CX19: 36476566
A20: 00030003 | B20: 0003 | C20: 0003 | D20: 11 | E20: 3 | F20: Acushnet | G20: 3 | H20: Acushnet | I20: 13990412.9 | J20: 0.855919388 | K20: =X20 -> 13465052.85 | L20: =IF(K24>0, K20/K24, 0) -> 0.8323801998 | N20: =ROUND(M24*L20,0) -> 7845282 | O20: 7889510 | P20: =N20-O20 -> -44228 | Q20: -0.5605924829 | R20: 1292 | S20: 1207 | T20: 3 | U20: 3 | V20: 11 | W20: 1207 | X20: 13465052.85 | Y20: 11 | Z20: 3 | AA20: 3 | AB20: 11 | AC20: 1207 | AD20: 13465052.85 | CR20: 3 | CS20: 3 | CT20: 11 | CU20: 1227 | CV20: 12395984.84 | CW20: 0.8408793154 | CX20: 7125126
A21: 00030855 | B21: 0003 | C21: 0855 | D21: 12 | E21: 3 | F21: Acushnet | G21: 855 | H21: Old Colony | I21: 2180595.949 | J21: 0.1334066666 | K21: 2534453.031 | L21: =IF(K24>0, K21/K24, 0) -> 0.1566743587 | N21: =ROUND(M24*L21,0) -> 1476674 | O21: 1229687 | P21: =N21-O21 -> 246987 | Q21: 20.08535505 | R21: 128.5505376 | S21: 144 | T21: 3 | U21: 855 | V21: 12 | W21: 144 | X21: 2534453.031 | Y21: 12 | Z21: 3 | AA21: 855 | AB21: 12 | AC21: 144 | AD21: 2534453.031 | CR21: 3 | CS21: 855 | CT21: 12 | CU21: 133 | CV21: 2136088.548 | CW21: 0.1449011675 | CX21: 1227809
A22: 00030910 | B22: 0003 | C22: 0910 | D22: 13 | E22: 3 | F22: Acushnet | G22: 910 | H22: Bristol County | I22: 174470.7556 | J22: 0.01067394532 | K22: 177059.6518 | L22: =IF(K24>0, K22/K24, 0) -> 0.01094544151 | N22: =ROUND(M24*L22,0) -> 103162 | O22: 98388 | P22: =N22-O22 -> 4774 | Q22: 4.85221775 | R22: 10 | S22: 10 | T22: 3 | U22: 910 | V22: 13 | W22: 10 | X22: 177059.6518 | Y22: 13 | Z22: 3 | AA22: 910 | AB22: 13 | AC22: 10 | AD22: 177059.6518 | CR22: 3 | CS22: 910 | CT22: 13 | CU22: 13 | CV22: 209619.7569 | CW22: 0.01421951704 | CX22: 120488
A23: 00030998 | B23: 0003 | C23: 0998 | D23: 14 | E23: 3 | G23: 998 | I23: 0 | J23: 0 | K23: 0 | L23: =IF(K24>0, K23/K24, 0) -> 0 | N23: =ROUND(M24*L23,0) -> 0 | O23: 0 | P23: =N23-O23 -> 0 | Q23: 0 | R23: 0 | S23: 0 | T23: 3 | U23: 998 | V23: 14 | W23: 0 | X23: 0 | Y23: 14 | Z23: 3 | AA23: 998 | AB23: 14 | AC23: 0 | AD23: 0 | CR23: 3 | CS23: 998 | CT23: 14 | CU23: 0 | CV23: 0 | CW23: 0 | CX23: 0
A24: 00030999 | B24: 0003 | C24: 0999 | D24: 15 | E24: 3 | F24: Acushnet | G24: 999 | H24: Total | I24: 16345479.6 | J24: 1 | K24: =SUM(K20:K23) -> 16176565.53 | L24: =SUM(L20:L23) -> 1 | M24: =VLOOKUP(E24,town351,24) -> 9425119 | N24: =SUM(N20:N23) -> 9425118 | O24: 9217585 | P24: =SUM(P20:P23) -> 207533 | Q24: 2.251489951 | R24: 1430.550538 | S24: 1361 | T24: 3 | U24: 999 | V24: 15 | W24: 1361 | X24: 16176565.53 | Y24: 15 | Z24: 3 | AA24: 999 | AB24: 15 | AC24: 1361 | AD24: 16176565.53 | CR24: 3 | CS24: 999 | CT24: 15 | CU24: 1373 | CV24: 14741693.14 | CW24: 1 | CX24: 8473423
A25: 00040004 | B25: 0004 | C25: 0004 | D25: 16 | E25: 4 | F25: Adams | G25: 4 | H25: Adams | I25: 0 | J25: 0 | K25: =X25 -> 0 | L25: =IF(K29>0, K25/K29, 0) -> 0 | N25: =ROUND(M29*L25,0) -> 0 | O25: 0 | P25: =N25-O25 -> 0 | Q25: 0 | R25: 0 | S25: 0 | T25: 4 | U25: 4 | V25: 16 | W25: 0 | X25: 0 | Y25: 16 | Z25: 4 | AA25: 4 | AB25: 16 | AC25: 0 | AD25: 0 | CR25: 4 | CS25: 4 | CT25: 16 | CU25: 0 | CV25: 0 | CW25: 0 | CX25: 0
A26: 00040603 | B26: 0004 | C26: 0603 | D26: 17 | E26: 4 | F26: Adams | G26: 603 | H26: Hoosac Valley | I26: 11030366.69 | J26: 0.8139311601 | K26: 11078986.69 | L26: =IF(K29>0, K26/K29, 0) -> 0.8126503851 | N26: =ROUND(M29*L26,0) -> 3658276 | O26: 3790093 | P26: =N26-O26 -> -131817 | Q26: -3.477935766 | R26: 901.7089494 | S26: 862.4819479 | T26: 4 | U26: 603 | V26: 17 | W26: 862.4819479 | X26: 11078986.69 | Y26: 17 | Z26: 4 | AA26: 603 | AB26: 17 | AC26: 862.4819479 | AD26: 11078986.69 | CR26: 4 | CS26: 603 | CT26: 17 | CU26: 975.2043636 | CV26: 11011705.79 | CW26: 0.8352437046 | CX26: 3713168
A27: 00040851 | B27: 0004 | C27: 0851 | D27: 18 | E27: 4 | F27: Adams | G27: 851 | H27: Northern Berkshire | I27: 2521598.427 | J27: 0.1860688399 | K27: 2554165.885 | L27: =IF(K29>0, K27/K29, 0) -> 0.1873496149 | N27: =ROUND(M29*L27,0) -> 843384 | O27: 866435 | P27: =N27-O27 -> -23051 | Q27: -2.660441926 | R27: 141 | S27: 138 | T27: 4 | U27: 851 | V27: 18 | W27: 138 | X27: 2554165.885 | Y27: 18 | Z27: 4 | AA27: 851 | AB27: 18 | AC27: 138 | AD27: 2554165.885 | CR27: 4 | CS27: 851 | CT27: 18 | CU27: 129 | CV27: 2172117.959 | CW27: 0.1647562954 | CX27: 732442
A28: 00040998 | B28: 0004 | C28: 0998 | D28: 19 | E28: 4 | G28: 998 | I28: 0 | J28: 0 | K28: 0 | L28: =IF(K29>0, K28/K29, 0) -> 0 | N28: =ROUND(M29*L28,0) -> 0 | O28: 0 | P28: =N28-O28 -> 0 | Q28: 0 | R28: 0 | S28: 0 | T28: 4 | U28: 998 | V28: 19 | W28: 0 | X28: 0 | Y28: 19 | Z28: 4 | AA28: 998 | AB28: 19 | AC28: 0 | AD28: 0 | CR28: 4 | CS28: 998 | CT28: 19 | CU28: 0 | CV28: 0 | CW28: 0 | CX28: 0
A29: 00040999 | B29: 0004 | C29: 0999 | D29: 20 | E29: 4 | F29: Adams | G29: 999 | H29: Total | I29: 13551965.12 | J29: 1 | K29: =SUM(K25:K28) -> 13633152.58 | L29: =SUM(L25:L28) -> 1 | M29: =VLOOKUP(E29,town351,24) -> 4501660 | N29: =SUM(N25:N28) -> 4501660 | O29: 4656528 | P29: =SUM(P25:P28) -> -154868 | Q29: -3.325825594 | R29: 1042.708949 | S29: 1000.481948 | T29: 4 | U29: 999 | V29: 20 | W29: 1000.481948 | X29: 13633152.58 | Y29: 20 | Z29: 4 | AA29: 999 | AB29: 20 | AC29: 1000.481948 | AD29: 13633152.58 | CR29: 4 | CS29: 999 | CT29: 20 | CU29: 1104.204364 | CV29: 13183823.75 | CW29: 1 | CX29: 4445610
A30: 00050005 | B30: 0005 | C30: 0005 | D30: 21 | E30: 5 | F30: Agawam | G30: 5 | H30: Agawam | I30: 42427489.5 | J30: 1 | K30: =X30 -> 42757064.97 | L30: =IF(K34>0, K30/K34, 0) -> 1 | N30: =ROUND(M34*L30,0) -> 23315754 | O30: 23256462 | P30: =N30-O30 -> 59292 | Q30: 0.2549484956 | R30: 3623 | S30: 3516 | T30: 5 | U30: 5 | V30: 21 | W30: 3516 | X30: 42757064.97 | Y30: 21 | Z30: 5 | AA30: 5 | AB30: 21 | AC30: 3516 | AD30: 42757064.97 | CR30: 5 | CS30: 5 | CT30: 21 | CU30: 3773 | CV30: 41326070.32 | CW30: 1 | CX30: 22474431
A31: 00050998 | B31: 0005 | C31: 0998 | D31: 22 | E31: 5 | G31: 998 | I31: 0 | J31: 0 | K31: 0 | L31: =IF(K34>0, K31/K34, 0) -> 0 | N31: =ROUND(M34*L31,0) -> 0 | O31: 0 | P31: =N31-O31 -> 0 | Q31: 0 | R31: 0 | S31: 0 | T31: 5 | U31: 998 | V31: 22 | W31: 0 | X31: 0 | Y31: 22 | Z31: 5 | AA31: 998 | AB31: 22 | AC31: 0 | AD31: 0 | CR31: 5 | CS31: 998 | CT31: 22 | CU31: 0 | CV31: 0 | CW31: 0 | CX31: 0
A32: 00050998 | B32: 0005 | C32: 0998 | D32: 23 | E32: 5 | G32: 998 | I32: 0 | J32: 0 | K32: 0 | L32: =IF(K34>0, K32/K34, 0) -> 0 | N32: =ROUND(M34*L32,0) -> 0 | O32: 0 | P32: =N32-O32 -> 0 | Q32: 0 | R32: 0 | S32: 0 | T32: 5 | U32: 998 | V32: 23 | W32: 0 | X32: 0 | Y32: 23 | Z32: 5 | AA32: 998 | AB32: 23 | AC32: 0 | AD32: 0 | CR32: 5 | CS32: 998 | CT32: 23 | CU32: 0 | CV32: 0 | CW32: 0 | CX32: 0
A33: 00050998 | B33: 0005 | C33: 0998 | D33: 24 | E33: 5 | G33: 998 | I33: 0 | J33: 0 | K33: 0 | L33: =IF(K34>0, K33/K34, 0) -> 0 | N33: =ROUND(M34*L33,0) -> 0 | O33: 0 | P33: =N33-O33 -> 0 | Q33: 0 | R33: 0 | S33: 0 | T33: 5 | U33: 998 | V33: 24 | W33: 0 | X33: 0 | Y33: 24 | Z33: 5 | AA33: 998 | AB33: 24 | AC33: 0 | AD33: 0 | CR33: 5 | CS33: 998 | CT33: 24 | CU33: 0 | CV33: 0 | CW33: 0 | CX33: 0
A34: 00050999 | B34: 0005 | C34: 0999 | D34: 25 | E34: 5 | F34: Agawam | G34: 999 | H34: Total | I34: 42427489.5 | J34: 1 | K34: =SUM(K30:K33) -> 42757064.97 | L34: =SUM(L30:L33) -> 1 | M34: =VLOOKUP(E34,town351,24) -> 23315754 | N34: =SUM(N30:N33) -> 23315754 | O34: 23256462 | P34: =SUM(P30:P33) -> 59292 | Q34: 0.2549484956 | R34: 3623 | S34: 3516 | T34: 5 | U34: 999 | V34: 25 | W34: 3516 | X34: 42757064.97 | Y34: 25 | Z34: 5 | AA34: 999 | AB34: 25 | AC34: 3516 | AD34: 42757064.97 | CR34: 5 | CS34: 999 | CT34: 25 | CU34: 3773 | CV34: 41326070.32 | CW34: 1 | CX34: 22474431
A35: 00060006 | B35: 0006 | C35: 0006 | D35: 26 | E35: 6 | F35: Alford | G35: 6 | H35: Alford | I35: 0 | J35: 0 | K35: =X35 -> 0 | L35: =IF(K39>0, K35/K39, 0) -> 0 | N35: =ROUND(M39*L35,0) -> 0 | O35: 0 | P35: =N35-O35 -> 0 | Q35: 0 | R35: 0 | S35: 0 | T35: 6 | U35: 6 | V35: 26 | W35: 0 | X35: 0 | Y35: 26 | Z35: 6 | AA35: 6 | AB35: 26 | AC35: 0 | AD35: 0 | CR35: 6 | CS35: 6 | CT35: 26 | CU35: 0 | CV35: 0 | CW35: 0 | CX35: 0
A36: 00060765 | B36: 0006 | C36: 0765 | D36: 27 | E36: 6 | F36: Alford | G36: 765 | H36: Southern Berkshire | I36: 249430.3231 | J36: 1 | K36: 242763.6847 | L36: =IF(K39>0, K36/K39, 0) -> 1 | N36: =ROUND(M39*L36,0) -> 200280 | O36: 205780 | P36: =N36-O36 -> -5500 | Q36: -2.672757314 | R36: 21.27089337 | S36: 20.45058139 | T36: 6 | U36: 765 | V36: 27 | W36: 20.45058139 | X36: 242763.6847 | Y36: 27 | Z36: 6 | AA36: 765 | AB36: 27 | AC36: 20.45058139 | AD36: 242763.6847 | CR36: 6 | CS36: 765 | CT36: 27 | CU36: 25.33131619 | CV36: 275789.3386 | CW36: 1 | CX36: 185505
A37: 00060998 | B37: 0006 | C37: 0998 | D37: 28 | E37: 6 | G37: 998 | I37: 0 | J37: 0 | K37: 0 | L37: =IF(K39>0, K37/K39, 0) -> 0 | N37: =ROUND(M39*L37,0) -> 0 | O37: 0 | P37: =N37-O37 -> 0 | Q37: 0 | R37: 0 | S37: 0 | T37: 6 | U37: 998 | V37: 28 | W37: 0 | X37: 0 | Y37: 28 | Z37: 6 | AA37: 998 | AB37: 28 | AC37: 0 | AD37: 0 | CR37: 6 | CS37: 998 | CT37: 28 | CU37: 0 | CV37: 0 | CW37: 0 | CX37: 0
A38: 00060998 | B38: 0006 | C38: 0998 | D38: 29 | E38: 6 | G38: 998 | I38: 0 | J38: 0 | K38: 0 | L38: =IF(K39>0, K38/K39, 0) -> 0 | N38: =ROUND(M39*L38,0) -> 0 | O38: 0 | P38: =N38-O38 -> 0 | Q38: 0 | R38: 0 | S38: 0 | T38: 6 | U38: 998 | V38: 29 | W38: 0 | X38: 0 | Y38: 29 | Z38: 6 | AA38: 998 | AB38: 29 | AC38: 0 | AD38: 0 | CR38: 6 | CS38: 998 | CT38: 29 | CU38: 0 | CV38: 0 | CW38: 0 | CX38: 0
A39: 00060999 | B39: 0006 | C39: 0999 | D39: 30 | E39: 6 | F39: Alford | G39: 999 | H39: Total | I39: 249430.3231 | J39: 1 | K39: =SUM(K35:K38) -> 242763.6847 | L39: =SUM(L35:L38) -> 1 | M39: =VLOOKUP(E39,town351,24) -> 200280 | N39: =SUM(N35:N38) -> 200280 | O39: 205780 | P39: =SUM(P35:P38) -> -5500 | Q39: -2.672757314 | R39: 21.27089337 | S39: 20.45058139 | T39: 6 | U39: 999 | V39: 30 | W39: 20.45058139 | X39: 242763.6847 | Y39: 30 | Z39: 6 | AA39: 999 | AB39: 30 | AC39: 20.45058139 | AD39: 242763.6847 | CR39: 6 | CS39: 999 | CT39: 30 | CU39: 25.33131619 | CV39: 275789.3386 | CW39: 1 | CX39: 185505
A40: 00070007 | B40: 0007 | C40: 0007 | D40: 31 | E40: 7 | F40: Amesbury | G40: 7 | H40: Amesbury | I40: 22553274.58 | J40: 0.9306505241 | K40: =X40 -> 22433070.58 | L40: =IF(K44>0, K40/K44, 0) -> 0.9198076042 | N40: =ROUND(M44*L40,0) -> 16512446 | O40: 16118764 | P40: =N40-O40 -> 393682 | Q40: 2.442383299 | R40: 2036 | S40: 1930 | T40: 7 | U40: 7 | V40: 31 | W40: 1930 | X40: 22433070.58 | Y40: 31 | Z40: 7 | AA40: 7 | AB40: 31 | AC40: 1930 | AD40: 22433070.58 | CR40: 7 | CS40: 7 | CT40: 31 | CU40: 2198 | CV40: 22830750.46 | CW40: 0.9490965242 | CX40: 15155898
A41: 00070885 | B41: 0007 | C41: 0885 | D41: 32 | E41: 7 | F41: Amesbury | G41: 885 | H41: Whittier | I41: 1680606.986 | J41: 0.06934947591 | K41: 1955802.132 | L41: =IF(K44>0, K41/K44, 0) -> 0.08019239575 | N41: =ROUND(M44*L41,0) -> 1439619 | O41: 1201125 | P41: =N41-O41 -> 238494 | Q41: 19.85588511 | R41: 95.00000001 | S41: 106 | T41: 7 | U41: 885 | V41: 32 | W41: 106 | X41: 1955802.132 | Y41: 32 | Z41: 7 | AA41: 885 | AB41: 32 | AC41: 106 | AD41: 1955802.132 | CR41: 7 | CS41: 885 | CT41: 32 | CU41: 74 | CV41: 1224495.637 | CW41: 0.05090347576 | CX41: 812866
A42: 00070998 | B42: 0007 | C42: 0998 | D42: 33 | E42: 7 | G42: 998 | I42: 0 | J42: 0 | K42: 0 | L42: =IF(K44>0, K42/K44, 0) -> 0 | N42: =ROUND(M44*L42,0) -> 0 | O42: 0 | P42: =N42-O42 -> 0 | Q42: 0 | R42: 0 | S42: 0 | T42: 7 | U42: 998 | V42: 33 | W42: 0 | X42: 0 | Y42: 33 | Z42: 7 | AA42: 998 | AB42: 33 | AC42: 0 | AD42: 0 | CR42: 7 | CS42: 998 | CT42: 33 | CU42: 0 | CV42: 0 | CW42: 0 | CX42: 0
A43: 00070998 | B43: 0007 | C43: 0998 | D43: 34 | E43: 7 | G43: 998 | I43: 0 | J43: 0 | K43: 0 | L43: =IF(K44>0, K43/K44, 0) -> 0 | N43: =ROUND(M44*L43,0) -> 0 | O43: 0 | P43: =N43-O43 -> 0 | Q43: 0 | R43: 0 | S43: 0 | T43: 7 | U43: 998 | V43: 34 | W43: 0 | X43: 0 | Y43: 34 | Z43: 7 | AA43: 998 | AB43: 34 | AC43: 0 | AD43: 0 | CR43: 7 | CS43: 998 | CT43: 34 | CU43: 0 | CV43: 0 | CW43: 0 | CX43: 0
A44: 00070999 | B44: 0007 | C44: 0999 | D44: 35 | E44: 7 | F44: Amesbury | G44: 999 | H44: Total | I44: 24233881.57 | J44: 1 | K44: =SUM(K40:K43) -> 24388872.71 | L44: =SUM(L40:L43) -> 1 | M44: =VLOOKUP(E44,town351,24) -> 17952065 | N44: =SUM(N40:N43) -> 17952065 | O44: 17319889 | P44: =SUM(P40:P43) -> 632176 | Q44: 3.650000297 | R44: 2131 | S44: 2036 | T44: 7 | U44: 999 | V44: 35 | W44: 2036 | X44: 24388872.71 | Y44: 35 | Z44: 7 | AA44: 999 | AB44: 35 | AC44: 2036 | AD44: 24388872.71 | CR44: 7 | CS44: 999 | CT44: 35 | CU44: 2272 | CV44: 24055246.1 | CW44: 1 | CX44: 15968764
A45: 00080008 | B45: 0008 | C45: 0008 | D45: 36 | E45: 8 | F45: Amherst | G45: 8 | H45: Amherst | I45: 12512134.57 | J45: 0.4777109969 | K45: =X45 -> 12729208.74 | L45: =IF(K49>0, K45/K49, 0) -> 0.4853655799 | N45: =ROUND(M49*L45,0) -> 9839703 | O45: 9645618 | P45: =N45-O45 -> 194085 | Q45: 2.01215723 | R45: 1097 | S45: 1045 | T45: 8 | U45: 8 | V45: 36 | W45: 1045 | X45: 12729208.74 | Y45: 36 | Z45: 8 | AA45: 8 | AB45: 36 | AC45: 1045 | AD45: 12729208.74 | CR45: 8 | CS45: 8 | CT45: 36 | CU45: 1106 | CV45: 11969353.38 | CW45: 0.4813199267 | CX45: 8946746
A46: 00080605 | B46: 0008 | C46: 0605 | D46: 37 | E46: 8 | F46: Amherst | G46: 605 | H46: Amherst Pelham | I46: 13679715 | J46: 0.5222890031 | K46: 13496814.01 | L46: =IF(K49>0, K46/K49, 0) -> 0.5146344201 | N46: =ROUND(M49*L46,0) -> 10433063 | O46: 10545708 | P46: =N46-O46 -> -112645 | Q46: -1.068159672 | R46: 1131 | S46: 1078.811136 | T46: 8 | U46: 605 | V46: 37 | W46: 1078.811136 | X46: 13496814.01 | Y46: 37 | Z46: 8 | AA46: 605 | AB46: 37 | AC46: 1078.811136 | AD46: 13496814.01 | CR46: 8 | CS46: 605 | CT46: 37 | CU46: 1152 | CV46: 12898416.93 | CW46: 0.5186800733 | CX46: 9641195
A47: 00080998 | B47: 0008 | C47: 0998 | D47: 38 | E47: 8 | G47: 998 | I47: 0 | J47: 0 | K47: 0 | L47: =IF(K49>0, K47/K49, 0) -> 0 | N47: =ROUND(M49*L47,0) -> 0 | O47: 0 | P47: =N47-O47 -> 0 | Q47: 0 | R47: 0 | S47: 0 | T47: 8 | U47: 998 | V47: 38 | W47: 0 | X47: 0 | Y47: 38 | Z47: 8 | AA47: 998 | AB47: 38 | AC47: 0 | AD47: 0 | CR47: 8 | CS47: 998 | CT47: 38 | CU47: 0 | CV47: 0 | CW47: 0 | CX47: 0
A48: 00080998 | B48: 0008 | C48: 0998 | D48: 39 | E48: 8 | G48: 998 | I48: 0 | J48: 0 | K48: 0 | L48: =IF(K49>0, K48/K49, 0) -> 0 | N48: =ROUND(M49*L48,0) -> 0 | O48: 0 | P48: =N48-O48 -> 0 | Q48: 0 | R48: 0 | S48: 0 | T48: 8 | U48: 998 | V48: 39 | W48: 0 | X48: 0 | Y48: 39 | Z48: 8 | AA48: 998 | AB48: 39 | AC48: 0 | AD48: 0 | CR48: 8 | CS48: 998 | CT48: 39 | CU48: 0 | CV48: 0 | CW48: 0 | CX48: 0
A49: 00080999 | B49: 0008 | C49: 0999 | D49: 40 | E49: 8 | F49: Amherst | G49: 999 | H49: Total | I49: 26191849.57 | J49: 1 | K49: =SUM(K45:K48) -> 26226022.75 | L49: =SUM(L45:L48) -> 1 | M49: =VLOOKUP(E49,town351,24) -> 20272766 | N49: =SUM(N45:N48) -> 20272766 | O49: 20191326 | P49: =SUM(P45:P48) -> 81440 | Q49: 0.4033415141 | R49: 2228 | S49: 2123.811136 | T49: 8 | U49: 999 | V49: 40 | W49: 2123.811136 | X49: 26226022.75 | Y49: 40 | Z49: 8 | AA49: 999 | AB49: 40 | AC49: 2123.811136 | AD49: 26226022.75 | CR49: 8 | CS49: 999 | CT49: 40 | CU49: 2258 | CV49: 24867770.31 | CW49: 1 | CX49: 18587941
A50: 00090009 | B50: 0009 | C50: 0009 | D50: 41 | E50: 9 | F50: Andover | G50: 9 | H50: Andover | I50: 64237434.88 | J50: 0.9898346414 | K50: =X50 -> 64651081.73 | L50: =IF(K54>0, K50/K54, 0) -> 0.9847756538 | N50: =ROUND(M54*L50,0) -> 53337142 | O50: 52995883 | P50: =N50-O50 -> 341259 | Q50: 0.643934926 | R50: 5740 | S50: 5628 | T50: 9 | U50: 9 | V50: 41 | W50: 5628 | X50: 64651081.73 | Y50: 41 | Z50: 9 | AA50: 9 | AB50: 41 | AC50: 5628 | AD50: 64651081.73 | CR50: 9 | CS50: 9 | CT50: 41 | CU50: 5805 | CV50: 60546641.05 | CW50: 0.9910091393 | CX50: 49950979
A51: 00090823 | B51: 0009 | C51: 0823 | D51: 42 | E51: 9 | F51: Andover | G51: 823 | H51: Greater Lawrence | I51: 659702.6749 | J51: 0.01016535859 | K51: 999486.9846 | L51: =IF(K54>0, K51/K54, 0) -> 0.01522434617 | N51: =ROUND(M54*L51,0) -> 824577 | O51: 544255 | P51: =N51-O51 -> 280322 | Q51: 51.50563614 | R51: 32 | S51: 46.00000001 | T51: 9 | U51: 823 | V51: 42 | W51: 46.00000001 | X51: 999486.9846 | Y51: 42 | Z51: 9 | AA51: 823 | AB51: 42 | AC51: 46.00000001 | AD51: 999486.9846 | CR51: 9 | CS51: 823 | CT51: 42 | CU51: 29 | CV51: 549305.1397 | CW51: 0.00899086067 | CX51: 453177
A52: 00090998 | B52: 0009 | C52: 0998 | D52: 43 | E52: 9 | G52: 998 | I52: 0 | J52: 0 | K52: 0 | L52: =IF(K54>0, K52/K54, 0) -> 0 | N52: =ROUND(M54*L52,0) -> 0 | O52: 0 | P52: =N52-O52 -> 0 | Q52: 0 | R52: 0 | S52: 0 | T52: 9 | U52: 998 | V52: 43 | W52: 0 | X52: 0 | Y52: 43 | Z52: 9 | AA52: 998 | AB52: 43 | AC52: 0 | AD52: 0 | CR52: 9 | CS52: 998 | CT52: 43 | CU52: 0 | CV52: 0 | CW52: 0 | CX52: 0
A53: 00090998 | B53: 0009 | C53: 0998 | D53: 44 | E53: 9 | G53: 998 | I53: 0 | J53: 0 | K53: 0 | L53: =IF(K54>0, K53/K54, 0) -> 0 | N53: =ROUND(M54*L53,0) -> 0 | O53: 0 | P53: =N53-O53 -> 0 | Q53: 0 | R53: 0 | S53: 0 | T53: 9 | U53: 998 | V53: 44 | W53: 0 | X53: 0 | Y53: 44 | Z53: 9 | AA53: 998 | AB53: 44 | AC53: 0 | AD53: 0 | CR53: 9 | CS53: 998 | CT53: 44 | CU53: 0 | CV53: 0 | CW53: 0 | CX53: 0
A54: 00090999 | B54: 0009 | C54: 0999 | D54: 45 | E54: 9 | F54: Andover | G54: 999 | H54: Total | I54: 64897137.55 | J54: 1 | K54: =SUM(K50:K53) -> 65650568.71 | L54: =SUM(L50:L53) -> 1 | M54: =VLOOKUP(E54,town351,24) -> 54161719 | N54: =SUM(N50:N53) -> 54161719 | O54: 53540138 | P54: =SUM(P50:P53) -> 621581 | Q54: 1.160962641 | R54: 5772 | S54: 5674 | T54: 9 | U54: 999 | V54: 45 | W54: 5674 | X54: 65650568.71 | Y54: 45 | Z54: 9 | AA54: 999 | AB54: 45 | AC54: 5674 | AD54: 65650568.71 | CR54: 9 | CS54: 999 | CT54: 45 | CU54: 5834 | CV54: 61095946.19 | CW54: 1 | CX54: 50404156
A55: 00100010 | B55: 0010 | C55: 0010 | D55: 46 | E55: 10 | F55: Arlington | G55: 10 | H55: Arlington | I55: 64895656.34 | J55: 0.9601150127 | K55: =X55 -> 64290460.96 | L55: =IF(K59>0, K55/K59, 0) -> 0.9483565374 | N55: =ROUND(M59*L55,0) -> 51218702 | O55: 50343449 | P55: =N55-O55 -> 875253 | Q55: 1.73856384 | R55: 6092 | S55: 5836 | T55: 10 | U55: 10 | V55: 46 | W55: 5836 | X55: 64290460.96 | Y55: 46 | Z55: 10 | AA55: 10 | AB55: 46 | AC55: 5836 | AD55: 64290460.96 | CR55: 10 | CS55: 10 | CT55: 46 | CU55: 5785 | CV55: 58002940.65 | CW55: 0.965620222 | CX55: 46237018
A56: 00100830 | B56: 0010 | C56: 0830 | D56: 47 | E56: 10 | F56: Arlington | G56: 830 | H56: Minuteman | I56: 2695887.885 | J56: 0.03988498733 | K56: 3500985.003 | L56: =IF(K59>0, K56/K59, 0) -> 0.05164346258 | N56: =ROUND(M59*L56,0) -> 2789153 | O56: 2091362 | P56: =N56-O56 -> 697791 | Q56: 33.36538581 | R56: 145 | S56: 174 | T56: 10 | U56: 830 | V56: 47 | W56: 174 | X56: 3500985.003 | Y56: 47 | Z56: 10 | AA56: 830 | AB56: 47 | AC56: 174 | AD56: 3500985.003 | CR56: 10 | CS56: 830 | CT56: 47 | CU56: 115.3372434 | CV56: 2065126.824 | CW56: 0.03437977799 | CX56: 1646215
A57: 00100998 | B57: 0010 | C57: 0998 | D57: 48 | E57: 10 | G57: 998 | I57: 0 | J57: 0 | K57: 0 | L57: =IF(K59>0, K57/K59, 0) -> 0 | N57: =ROUND(M59*L57,0) -> 0 | O57: 0 | P57: =N57-O57 -> 0 | Q57: 0 | R57: 0 | S57: 0 | T57: 10 | U57: 998 | V57: 48 | W57: 0 | X57: 0 | Y57: 48 | Z57: 10 | AA57: 998 | AB57: 48 | AC57: 0 | AD57: 0 | CR57: 10 | CS57: 998 | CT57: 48 | CU57: 0 | CV57: 0 | CW57: 0 | CX57: 0
A58: 00100998 | B58: 0010 | C58: 0998 | D58: 49 | E58: 10 | G58: 998 | I58: 0 | J58: 0 | K58: 0 | L58: =IF(K59>0, K58/K59, 0) -> 0 | N58: =ROUND(M59*L58,0) -> 0 | O58: 0 | P58: =N58-O58 -> 0 | Q58: 0 | R58: 0 | S58: 0 | T58: 10 | U58: 998 | V58: 49 | W58: 0 | X58: 0 | Y58: 49 | Z58: 10 | AA58: 998 | AB58: 49 | AC58: 0 | AD58: 0 | CR58: 10 | CS58: 998 | CT58: 49 | CU58: 0 | CV58: 0 | CW58: 0 | CX58: 0
A59: 00100999 | B59: 0010 | C59: 0999 | D59: 50 | E59: 10 | F59: Arlington | G59: 999 | H59: Total | I59: 67591544.23 | J59: 1 | K59: =SUM(K55:K58) -> 67791445.97 | L59: =SUM(L55:L58) -> 1 | M59: =VLOOKUP(E59,town351,24) -> 54007855 | N59: =SUM(N55:N58) -> 54007855 | O59: 52434811 | P59: =SUM(P55:P58) -> 1573044 | Q59: 2.999999371 | R59: 6237 | S59: 6010 | T59: 10 | U59: 999 | V59: 50 | W59: 6010 | X59: 67791445.97 | Y59: 50 | Z59: 10 | AA59: 999 | AB59: 50 | AC59: 6010 | AD59: 67791445.97 | CR59: 10 | CS59: 999 | CT59: 50 | CU59: 5900.337243 | CV59: 60068067.47 | CW59: 1 | CX59: 47883233
A60: 00110011 | B60: 0011 | C60: 0011 | D60: 51 | E60: 11 | F60: Ashburnham | G60: 11 | H60: Ashburnham | I60: 0 | J60: 0 | K60: =X60 -> 0 | L60: =IF(K64>0, K60/K64, 0) -> 0 | N60: =ROUND(M64*L60,0) -> 0 | O60: 0 | P60: =N60-O60 -> 0 | Q60: 0 | R60: 0 | S60: 0 | T60: 11 | U60: 11 | V60: 51 | W60: 0 | X60: 0 | Y60: 51 | Z60: 11 | AA60: 11 | AB60: 51 | AC60: 0 | AD60: 0 | CR60: 11 | CS60: 11 | CT60: 51 | CU60: 0 | CV60: 0 | CW60: 0 | CX60: 0
A61: 00110610 | B61: 0011 | C61: 0610 | D61: 52 | E61: 11 | F61: Ashburnham | G61: 610 | H61: Ashburnham Westminster | I61: 11216451.87 | J61: 0.9065010139 | K61: 11214469.57 | L61: =IF(K64>0, K61/K64, 0) -> 0.9005703183 | N61: =ROUND(M64*L61,0) -> 5100543 | O61: 5065245 | P61: =N61-O61 -> 35298 | Q61: 0.6968665879 | R61: 1040.34715 | S61: 1003.110505 | T61: 11 | U61: 610 | V61: 52 | W61: 1003.110505 | X61: 11214469.57 | Y61: 52 | Z61: 11 | AA61: 610 | AB61: 52 | AC61: 1003.110505 | AD61: 11214469.57 | CR61: 11 | CS61: 610 | CT61: 52 | CU61: 1076.284344 | CV61: 10862999.7 | CW61: 0.9127346045 | CX61: 4717731
A62: 00110832 | B62: 0011 | C62: 0832 | D62: 53 | E62: 11 | F62: Ashburnham | G62: 832 | H62: Montachusett | I62: 1156895.427 | J62: 0.09349898613 | K62: 1238161.105 | L62: =IF(K64>0, K62/K64, 0) -> 0.09942968175 | N62: =ROUND(M64*L62,0) -> 563138 | O62: 522443 | P62: =N62-O62 -> 40695 | Q62: 7.789366495 | R62: 67 | S62: 69.99999999 | T62: 11 | U62: 832 | V62: 53 | W62: 69.99999999 | X62: 1238161.105 | Y62: 53 | Z62: 11 | AA62: 832 | AB62: 53 | AC62: 69.99999999 | AD62: 1238161.105 | CR62: 11 | CS62: 832 | CT62: 53 | CU62: 64.04306865 | CV62: 1038597.594 | CW62: 0.08726539548 | CX62: 451056
A63: 00110998 | B63: 0011 | C63: 0998 | D63: 54 | E63: 11 | G63: 998 | I63: 0 | J63: 0 | K63: 0 | L63: =IF(K64>0, K63/K64, 0) -> 0 | N63: =ROUND(M64*L63,0) -> 0 | O63: 0 | P63: =N63-O63 -> 0 | Q63: 0 | R63: 0 | S63: 0 | T63: 11 | U63: 998 | V63: 54 | W63: 0 | X63: 0 | Y63: 54 | Z63: 11 | AA63: 998 | AB63: 54 | AC63: 0 | AD63: 0 | CR63: 11 | CS63: 998 | CT63: 54 | CU63: 0 | CV63: 0 | CW63: 0 | CX63: 0
A64: 00110999 | B64: 0011 | C64: 0999 | D64: 55 | E64: 11 | F64: Ashburnham | G64: 999 | H64: Total | I64: 12373347.3 | J64: 1 | K64: =SUM(K60:K63) -> 12452630.68 | L64: =SUM(L60:L63) -> 1 | M64: =VLOOKUP(E64,town351,24) -> 5663681 | N64: =SUM(N60:N63) -> 5663681 | O64: 5587688 | P64: =SUM(P60:P63) -> 75993 | Q64: 1.360007932 | R64: 1107.34715 | S64: 1073.110505 | T64: 11 | U64: 999 | V64: 55 | W64: 1073.110505 | X64: 12452630.68 | Y64: 55 | Z64: 11 | AA64: 999 | AB64: 55 | AC64: 1073.110505 | AD64: 12452630.68 | CR64: 11 | CS64: 999 | CT64: 55 | CU64: 1140.327412 | CV64: 11901597.29 | CW64: 1 | CX64: 5168787
A65: 00120012 | B65: 0012 | C65: 0012 | D65: 56 | E65: 12 | F65: Ashby | G65: 12 | H65: Ashby | I65: 0 | J65: 0 | K65: =X65 -> 0 | L65: =IF(K69>0, K65/K69, 0) -> 0 | N65: =ROUND(M69*L65,0) -> 0 | O65: 0 | P65: =N65-O65 -> 0 | Q65: 0 | R65: 0 | S65: 0 | T65: 12 | U65: 12 | V65: 56 | W65: 0 | X65: 0 | Y65: 56 | Z65: 12 | AA65: 12 | AB65: 56 | AC65: 0 | AD65: 0 | CR65: 12 | CS65: 12 | CT65: 56 | CU65: 0 | CV65: 0 | CW65: 0 | CX65: 0
A66: 00120735 | B66: 0012 | C66: 0735 | D66: 57 | E66: 12 | F66: Ashby | G66: 735 | H66: North Middlesex | I66: 3861597.255 | J66: 0.8646762836 | K66: 3900073.249 | L66: =IF(K69>0, K66/K69, 0) -> 0.8563064447 | N66: =ROUND(M69*L66,0) -> 2310581 | O66: 2247102 | P66: =N66-O66 -> 63479 | Q66: 2.824927395 | R66: 357.1371446 | S66: 349.0162899 | T66: 12 | U66: 735 | V66: 57 | W66: 349.0162899 | X66: 3900073.249 | Y66: 57 | Z66: 12 | AA66: 735 | AB66: 57 | AC66: 349.0162899 | AD66: 3900073.249 | CR66: 12 | CS66: 735 | CT66: 57 | CU66: 370.7240412 | CV66: 3774894.734 | CW66: 0.8891500395 | CX66: 2175126
A67: 00120832 | B67: 0012 | C67: 0832 | D67: 58 | E67: 12 | F67: Ashby | G67: 832 | H67: Montachusett | I67: 604348.3576 | J67: 0.1353237164 | K67: 654456.5842 | L67: =IF(K69>0, K67/K69, 0) -> 0.1436935553 | N67: =ROUND(M69*L67,0) -> 387730 | O67: 351676 | P67: =N67-O67 -> 36054 | Q67: 10.25205018 | R67: 35 | S67: 37 | T67: 12 | U67: 832 | V67: 58 | W67: 37 | X67: 654456.5842 | Y67: 58 | Z67: 12 | AA67: 832 | AB67: 58 | AC67: 37 | AD67: 654456.5842 | CR67: 12 | CS67: 832 | CT67: 58 | CU67: 29.01951547 | CV67: 470614.5348 | CW67: 0.1108499605 | CX67: 271172
A68: 00120998 | B68: 0012 | C68: 0998 | D68: 59 | E68: 12 | G68: 998 | I68: 0 | J68: 0 | K68: 0 | L68: =IF(K69>0, K68/K69, 0) -> 0 | N68: =ROUND(M69*L68,0) -> 0 | O68: 0 | P68: =N68-O68 -> 0 | Q68: 0 | R68: 0 | S68: 0 | T68: 12 | U68: 998 | V68: 59 | W68: 0 | X68: 0 | Y68: 59 | Z68: 12 | AA68: 998 | AB68: 59 | AC68: 0 | AD68: 0 | CR68: 12 | CS68: 998 | CT68: 59 | CU68: 0 | CV68: 0 | CW68: 0 | CX68: 0
A69: 00120999 | B69: 0012 | C69: 0999 | D69: 60 | E69: 12 | F69: Ashby | G69: 999 | H69: Total | I69: 4465945.613 | J69: 1 | K69: =SUM(K65:K68) -> 4554529.833 | L69: =SUM(L65:L68) -> 1 | M69: =VLOOKUP(E69,town351,24) -> 2698311 | N69: =SUM(N65:N68) -> 2698311 | O69: 2598778 | P69: =SUM(P65:P68) -> 99533 | Q69: 3.829992404 | R69: 392.1371446 | S69: 386.0162899 | T69: 12 | U69: 999 | V69: 60 | W69: 386.0162899 | X69: 4554529.833 | Y69: 60 | Z69: 12 | AA69: 999 | AB69: 60 | AC69: 386.0162899 | AD69: 4554529.833 | CR69: 12 | CS69: 999 | CT69: 60 | CU69: 399.7435566 | CV69: 4245509.269 | CW69: 1 | CX69: 2446298
A70: 00130013 | B70: 0013 | C70: 0013 | D70: 61 | E70: 13 | F70: Ashfield | G70: 13 | H70: Ashfield | I70: 117262.4 | J70: 0.06320717214 | K70: =X70 -> 134486.55 | L70: =IF(K74>0, K70/K74, 0) -> 0.07671976834 | N70: =ROUND(M74*L70,0) -> 110951 | O70: 96741 | P70: =N70-O70 -> 14210 | Q70: 14.68870489 | R70: 8 | S70: 9 | T70: 13 | U70: 13 | V70: 61 | W70: 9 | X70: 134486.55 | Y70: 61 | Z70: 13 | AA70: 13 | AB70: 61 | AC70: 9 | AD70: 134486.55 | CR70: 13 | CS70: 13 | CT70: 61 | CU70: 15 | CV70: 233861.83 | CW70: 0.1066373907 | CX70: 163542
A71: 00130717 | B71: 0013 | C71: 0717 | D71: 62 | E71: 13 | F71: Ashfield | G71: 717 | H71: Mohawk Trail | I71: 1737944.787 | J71: 0.9367928279 | K71: 1618471.689 | L71: =IF(K74>0, K71/K74, 0) -> 0.9232802317 | N71: =ROUND(M74*L71,0) -> 1335240 | O71: 1433805 | P71: =N71-O71 -> -98565 | Q71: -6.874365761 | R71: 150.1666667 | S71: 136.8085612 | T71: 13 | U71: 717 | V71: 62 | W71: 136.8085612 | X71: 1618471.689 | Y71: 62 | Z71: 13 | AA71: 717 | AB71: 62 | AC71: 136.8085612 | AD71: 1618471.689 | CR71: 13 | CS71: 717 | CT71: 62 | CU71: 179.693617 | CV71: 1959194.738 | CW71: 0.8933626093 | CX71: 1370082
A72: 00130998 | B72: 0013 | C72: 0998 | D72: 63 | E72: 13 | G72: 998 | I72: 0 | J72: 0 | K72: 0 | L72: =IF(K74>0, K72/K74, 0) -> 0 | N72: =ROUND(M74*L72,0) -> 0 | O72: 0 | P72: =N72-O72 -> 0 | Q72: 0 | R72: 0 | S72: 0 | T72: 13 | U72: 998 | V72: 63 | W72: 0 | X72: 0 | Y72: 63 | Z72: 13 | AA72: 998 | AB72: 63 | AC72: 0 | AD72: 0 | CR72: 13 | CS72: 998 | CT72: 63 | CU72: 0 | CV72: 0 | CW72: 0 | CX72: 0
A73: 00130998 | B73: 0013 | C73: 0998 | D73: 64 | E73: 13 | G73: 998 | I73: 0 | J73: 0 | K73: 0 | L73: =IF(K74>0, K73/K74, 0) -> 0 | N73: =ROUND(M74*L73,0) -> 0 | O73: 0 | P73: =N73-O73 -> 0 | Q73: 0 | R73: 0 | S73: 0 | T73: 13 | U73: 998 | V73: 64 | W73: 0 | X73: 0 | Y73: 64 | Z73: 13 | AA73: 998 | AB73: 64 | AC73: 0 | AD73: 0 | CR73: 13 | CS73: 998 | CT73: 64 | CU73: 0 | CV73: 0 | CW73: 0 | CX73: 0
A74: =B74&C74 -> 00130999 | B74: 0013 | C74: 0999 | D74: 65 | E74: 13 | F74: Ashfield | G74: 999 | H74: Total | I74: 1855207.187 | J74: 1 | K74: =SUM(K70:K73) -> 1752958.239 | L74: =SUM(L70:L73) -> 1 | M74: =VLOOKUP(E74,town351,24) -> 1446191 | N74: =SUM(N70:N73) -> 1446191 | O74: 1530546 | P74: =SUM(P70:P73) -> -84355 | Q74: -5.511431868 | R74: 158.1666667 | S74: 145.8085612 | T74: =VLOOKUP($D74, foundoptions, VLOOKUP($T$6, foundoptcell, 2, FALSE), FALSE) -> 13 | U74: =VLOOKUP($D74, foundoptions, VLOOKUP($T$6, foundoptcell, 2, FALSE)+1, FALSE) -> 999 | V74: =VLOOKUP($D74, foundoptions, VLOOKUP($T$6, foundoptcell, 2, FALSE)+2, FALSE) -> 65 | W74: =VLOOKUP($D74, foundoptions, VLOOKUP($T$6, foundoptcell, 2, FALSE)+3, FALSE) -> 145.8085612 | X74: =VLOOKUP($D74, foundoptions, VLOOKUP($T$6, foundoptcell, 2, FALSE)+4, FALSE) -> 1752958.239 | Y74: 65 | Z74: 13 | AA74: 999 | AB74: 65 | AC74: 145.8085612 | AD74: 1752958.239 | CR74: 13 | CS74: 999 | CT74: 65 | CU74: 194.693617 | CV74: 2193056.568 | CW74: 1 | CX74: 1533624
A75: 00140014 | B75: 0014 | C75: 0014 | D75: 66 | E75: 14 | F75: Ashland | G75: 14 | H75: Ashland | I75: 30232498.72 | J75: 0.9673029453 | K75: =X75 -> 30071220.67 | L75: =IF(K79>0, K75/K79, 0) -> 0.9593425516 | N75: =ROUND(M79*L75,0) -> 22834444 | O75: 22294876 | P75: =N75-O75 -> 539568 | Q75: 2.420143534 | R75: 2786 | S75: =W75 -> 2694 | T75: 14 | U75: 14 | V75: 66 | W75: 2694 | X75: 30071220.67 | Y75: =D75 -> 66 | Z75: 14 | AA75: 14 | AB75: 66 | AC75: 2694 | AD75: 30071220.67 | CR75: 14 | CS75: 14 | CT75: 66 | CU75: 2581 | CV75: 26344731.8 | CW75: 0.9575405389 | CX75: 20247938
A76: 00140829 | B76: 0014 | C76: 0829 | D76: 67 | E76: 14 | F76: Ashland | G76: 829 | H76: South Middlesex | I76: 1021927.69 | J76: 0.0326970547 | K76: 1274434.353 | L76: =IF(K79>0, K76/K79, 0) -> 0.04065744844 | N76: =ROUND(M79*L76,0) -> 967736 | O76: 753618 | P76: =N76-O76 -> 214118 | Q76: 28.41200714 | R76: 53.06649937 | S76: 63.07720588 | T76: 14 | U76: 829 | V76: 67 | W76: 63.07720588 | X76: 1274434.353 | Y76: 67 | Z76: 14 | AA76: 829 | AB76: 67 | AC76: 63.07720588 | AD76: 1274434.353 | CR76: 14 | CS76: 829 | CT76: 67 | CU76: 66 | CV76: 1168183.558 | CW76: 0.04245946106 | CX76: 897838
A77: 00140998 | B77: 0014 | C77: 0998 | D77: 68 | E77: 14 | G77: 998 | I77: 0 | J77: 0 | K77: 0 | L77: =IF(K79>0, K77/K79, 0) -> 0 | N77: =ROUND(M79*L77,0) -> 0 | O77: 0 | P77: =N77-O77 -> 0 | Q77: 0 | R77: 0 | S77: 0 | T77: 14 | U77: 998 | V77: 68 | W77: 0 | X77: 0 | Y77: 68 | Z77: 14 | AA77: 998 | AB77: 68 | AC77: 0 | AD77: 0 | CR77: 14 | CS77: 998 | CT77: 68 | CU77: 0 | CV77: 0 | CW77: 0 | CX77: 0
A78: 00140998 | B78: 0014 | C78: 0998 | D78: 69 | E78: 14 | G78: 998 | I78: 0 | J78: 0 | K78: 0 | L78: =IF(K79>0, K78/K79, 0) -> 0 | N78: =ROUND(M79*L78,0) -> 0 | O78: 0 | P78: =N78-O78 -> 0 | Q78: 0 | R78: 0 | S78: 0 | T78: 14 | U78: 998 | V78: 69 | W78: 0 | X78: 0 | Y78: 69 | Z78: 14 | AA78: 998 | AB78: 69 | AC78: 0 | AD78: 0 | CR78: 14 | CS78: 998 | CT78: 69 | CU78: 0 | CV78: 0 | CW78: 0 | CX78: 0
A79: 00140999 | B79: 0014 | C79: 0999 | D79: 70 | E79: 14 | F79: Ashland | G79: 999 | H79: Total | I79: 31254426.41 | J79: 1 | K79: =SUM(K75:K78) -> 31345655.02 | L79: =SUM(L75:L78) -> 1 | M79: =VLOOKUP(E79,town351,24) -> 23802180 | N79: =SUM(N75:N78) -> 23802180 | O79: 23048494 | P79: =SUM(P75:P78) -> 753686 | Q79: 3.270001068 | R79: 2839.066499 | S79: 2757.077206 | T79: 14 | U79: 999 | V79: 70 | W79: 2757.077206 | X79: 31345655.02 | Y79: 70 | Z79: 14 | AA79: 999 | AB79: 70 | AC79: 2757.077206 | AD79: 31345655.02 | CR79: 14 | CS79: 999 | CT79: 70 | CU79: 2647 | CV79: 27512915.35 | CW79: 1 | CX79: 21145776
A80: 00150015 | B80: 0015 | C80: 0015 | D80: 71 | E80: 15 | F80: Athol | G80: 15 | H80: Athol | I80: 0 | J80: 0 | K80: =X80 -> 0 | L80: =IF(K84>0, K80/K84, 0) -> 0 | N80: =ROUND(M84*L80,0) -> 0 | O80: 0 | P80: =N80-O80 -> 0 | Q80: =IF(O80>0,P80*100/O80,IF(P80>0,100,0)) -> 0 | R80: 0 | S80: 0 | T80: 15 | U80: 15 | V80: 71 | W80: 0 | X80: 0 | Y80: 71 | Z80: 15 | AA80: 15 | AB80: 71 | AC80: 0 | AD80: 0 | CR80: 15 | CS80: 15 | CT80: 71 | CU80: 1 | CV80: 13837.16 | CW80: 0.0007016448517 | CX80: 2099
A81: 00150615 | B81: 0015 | C81: 0615 | D81: 72 | E81: 15 | F81: Athol | G81: 615 | H81: Athol Royalston | I81: 20152139.44 | J81: 0.9152996519 | K81: 19913335.04 | L81: =IF(K84>0, K81/K84, 0) -> 0.9087833875 | N81: =ROUND(M84*L81,0) -> 3257637 | O81: 3085382 | P81: =N81-O81 -> 172255 | Q81: =IF(O81>0,P81*100/O81,IF(P81>0,100,0)) -> 5.582939163 | R81: 1641.540166 | S81: 1547.563981 | T81: 15 | U81: 615 | V81: 72 | W81: 1547.563981 | X81: 19913335.04 | Y81: 72 | Z81: 15 | AA81: 615 | AB81: 72 | AC81: 1547.563981 | AD81: 19913335.04 | CR81: 15 | CS81: 615 | CT81: 72 | CU81: 1628.887892 | CV81: 18262894.24 | CW81: 0.9260618308 | CX81: 2770441
A82: 00150832 | B82: 0015 | C82: 0832 | D82: 73 | E82: 15 | F82: Athol | G82: 832 | H82: Montachusett | I82: 1864846.361 | J82: 0.08470034805 | K82: 1998745.784 | L82: =IF(K84>0, K82/K84, 0) -> 0.09121661245 | N82: =ROUND(M84*L82,0) -> 326976 | O82: 285516 | P82: =N82-O82 -> 41460 | Q82: =IF(O82>0,P82*100/O82,IF(P82>0,100,0)) -> 14.52107763 | R82: 108 | S82: 113 | T82: 15 | U82: 832 | V82: 73 | W82: 113 | X82: 1998745.784 | Y82: 73 | Z82: 15 | AA82: 832 | AB82: 73 | AC82: 113 | AD82: 1998745.784 | CR82: 15 | CS82: 832 | CT82: 73 | CU82: 89.05989233 | CV82: 1444299.779 | CW82: 0.0732365243 | CX82: 219097
A83: 00150998 | B83: 0015 | C83: 0998 | D83: 74 | E83: 15 | G83: 998 | I83: 0 | J83: 0 | K83: 0 | L83: =IF(K84>0, K83/K84, 0) -> 0 | N83: =ROUND(M84*L83,0) -> 0 | O83: 0 | P83: =N83-O83 -> 0 | Q83: =IF(O83>0,P83*100/O83,IF(P83>0,100,0)) -> 0 | R83: 0 | S83: 0 | T83: 15 | U83: 998 | V83: 74 | W83: 0 | X83: 0 | Y83: 74 | Z83: 15 | AA83: 998 | AB83: 74 | AC83: 0 | AD83: 0 | CR83: 15 | CS83: 998 | CT83: 74 | CU83: 0 | CV83: 0 | CW83: 0 | CX83: 0
A84: 00150999 | B84: 0015 | C84: 0999 | D84: 75 | E84: 15 | F84: Athol | G84: 999 | H84: Total | I84: 22016985.81 | J84: 1 | K84: =SUM(K80:K83) -> 21912080.82 | L84: =SUM(L80:L83) -> 1 | M84: =VLOOKUP(E84,town351,24) -> 3584613 | N84: =SUM(N80:N83) -> 3584613 | O84: 3370898 | P84: =SUM(P80:P83) -> 213715 | Q84: =IF(O84>0,P84*100/O84,IF(P84>0,100,0)) -> 6.340001982 | R84: 1749.540166 | S84: 1660.563981 | T84: 15 | U84: 999 | V84: 75 | W84: 1660.563981 | X84: 21912080.82 | Y84: 75 | Z84: 15 | AA84: 999 | AB84: 75 | AC84: 1660.563981 | AD84: 21912080.82 | CR84: 15 | CS84: 999 | CT84: 75 | CU84: 1718.947785 | CV84: 19721031.18 | CW84: 1 | CX84: 2991637
A85: 00160016 | B85: 0016 | C85: 0016 | D85: 76 | E85: 16 | F85: Attleboro | G85: 16 | H85: Attleboro | I85: 79207276.43 | J85: 0.9947412933 | K85: =X85 -> 80551906.58 | L85: =IF(K89>0, K85/K89, 0) -> 0.9956230788 | N85: =ROUND(M89*L85,0) -> 39217192 | O85: 38037529 | P85: =N85-O85 -> 1179663 | Q85: 3.101313442 | R85: 6383 | S85: 6188 | T85: 16 | U85: 16 | V85: 76 | W85: 6188 | X85: 80551906.58 | Y85: 76 | Z85: 16 | AA85: 16 | AB85: 76 | AC85: 6188 | AD85: 80551906.58 | CR85: 16 | CS85: 16 | CT85: 76 | CU85: 6311 | CV85: 72980818.83 | CW85: 0.9927616586 | CX85: 35206834
A86: 00160910 | B86: 0016 | C86: 0910 | D86: 77 | E86: 16 | F86: Attleboro | G86: 910 | H86: Bristol County | I86: 418729.8133 | J86: 0.00525870671 | K86: 354119.3036 | L86: =IF(K89>0, K86/K89, 0) -> 0.004376921246 | N86: =ROUND(M89*L86,0) -> 172405 | O86: 201086 | P86: =N86-O86 -> -28681 | Q86: -14.26305163 | R86: 24 | S86: 20 | T86: 16 | U86: 910 | V86: 77 | W86: 20 | X86: 354119.3036 | Y86: 77 | Z86: 16 | AA86: 910 | AB86: 77 | AC86: 20 | AD86: 354119.3036 | CR86: 16 | CS86: 910 | CT86: 77 | CU86: 33 | CV86: 532111.6905 | CW86: 0.007238341429 | CX86: 256697
A87: 00160998 | B87: 0016 | C87: 0998 | D87: 78 | E87: 16 | G87: 998 | I87: 0 | J87: 0 | K87: 0 | L87: =IF(K89>0, K87/K89, 0) -> 0 | N87: =ROUND(M89*L87,0) -> 0 | O87: 0 | P87: =N87-O87 -> 0 | Q87: 0 | R87: 0 | S87: 0 | T87: 16 | U87: 998 | V87: 78 | W87: 0 | X87: 0 | Y87: 78 | Z87: 16 | AA87: 998 | AB87: 78 | AC87: 0 | AD87: 0 | CR87: 16 | CS87: 998 | CT87: 78 | CU87: 0 | CV87: 0 | CW87: 0 | CX87: 0
A88: 00160998 | B88: 0016 | C88: 0998 | D88: 79 | E88: 16 | G88: 998 | I88: 0 | J88: 0 | K88: 0 | L88: =IF(K89>0, K88/K89, 0) -> 0 | N88: =ROUND(M89*L88,0) -> 0 | O88: 0 | P88: =N88-O88 -> 0 | Q88: 0 | R88: 0 | S88: 0 | T88: 16 | U88: 998 | V88: 79 | W88: 0 | X88: 0 | Y88: 79 | Z88: 16 | AA88: 998 | AB88: 79 | AC88: 0 | AD88: 0 | CR88: 16 | CS88: 998 | CT88: 79 | CU88: 0 | CV88: 0 | CW88: 0 | CX88: 0
A89: 00160999 | B89: 0016 | C89: 0999 | D89: 80 | E89: 16 | F89: Attleboro | G89: 999 | H89: Total | I89: 79626006.24 | J89: 1 | K89: =SUM(K85:K88) -> 80906025.88 | L89: =SUM(L85:L88) -> 1 | M89: =VLOOKUP(E89,town351,24) -> 39389597 | N89: =SUM(N85:N88) -> 39389597 | O89: 38238615 | P89: =SUM(P85:P88) -> 1150982 | Q89: 3.009999185 | R89: 6407 | S89: 6208 | T89: 16 | U89: 999 | V89: 80 | W89: 6208 | X89: 80906025.88 | Y89: 80 | Z89: 16 | AA89: 999 | AB89: 80 | AC89: 6208 | AD89: 80906025.88 | CR89: 16 | CS89: 999 | CT89: 80 | CU89: 6344 | CV89: 73512930.52 | CW89: 1 | CX89: 35463531
A90: 00170017 | B90: 0017 | C90: 0017 | D90: 81 | E90: 17 | F90: Auburn | G90: 17 | H90: Auburn | I90: 27521289.79 | J90: 0.946950121 | K90: =X90 -> 27321855.58 | L90: =IF(K94>0, K90/K94, 0) -> 0.9393084217 | N90: =ROUND(M94*L90,0) -> 15497480 | O90: 15309359 | P90: =N90-O90 -> 188121 | Q90: 1.228797365 | R90: 2511 | S90: 2421 | T90: 17 | U90: 17 | V90: 81 | W90: 2421 | X90: 27321855.58 | Y90: 81 | Z90: 17 | AA90: 17 | AB90: 81 | AC90: 2421 | AD90: 27321855.58 | CR90: 17 | CS90: 17 | CT90: 81 | CU90: 2495 | CV90: 25672129.78 | CW90: 0.9495990138 | CX90: 14624535
A91: 00170876 | B91: 0017 | C91: 0876 | D91: 82 | E91: 17 | F91: Auburn | G91: 876 | H91: Southern Worcester | I91: 1541793.028 | J91: 0.05304987904 | K91: 1765348.314 | L91: =IF(K94>0, K91/K94, 0) -> 0.06069157834 | N91: =ROUND(M94*L91,0) -> 1001339 | O91: 857658 | P91: =N91-O91 -> 143681 | Q91: 16.75271495 | R91: 89.99999999 | S91: 99 | T91: 17 | U91: 876 | V91: 82 | W91: 99 | X91: 1765348.314 | Y91: 82 | Z91: 17 | AA91: 876 | AB91: 82 | AC91: 99 | AD91: 1765348.314 | CR91: 17 | CS91: 876 | CT91: 82 | CU91: 84 | CV91: 1362575.824 | CW91: 0.05040098621 | CX91: 776213
A92: 00170998 | B92: 0017 | C92: 0998 | D92: 83 | E92: 17 | G92: 998 | I92: 0 | J92: 0 | K92: 0 | L92: =IF(K94>0, K92/K94, 0) -> 0 | N92: =ROUND(M94*L92,0) -> 0 | O92: 0 | P92: =N92-O92 -> 0 | Q92: 0 | R92: 0 | S92: 0 | T92: 17 | U92: 998 | V92: 83 | W92: 0 | X92: 0 | Y92: 83 | Z92: 17 | AA92: 998 | AB92: 83 | AC92: 0 | AD92: 0 | CR92: 17 | CS92: 998 | CT92: 83 | CU92: 0 | CV92: 0 | CW92: 0 | CX92: 0
A93: 00170998 | B93: 0017 | C93: 0998 | D93: 84 | E93: 17 | G93: 998 | I93: 0 | J93: 0 | K93: 0 | L93: =IF(K94>0, K93/K94, 0) -> 0 | N93: =ROUND(M94*L93,0) -> 0 | O93: 0 | P93: =N93-O93 -> 0 | Q93: 0 | R93: 0 | S93: 0 | T93: 17 | U93: 998 | V93: 84 | W93: 0 | X93: 0 | Y93: 84 | Z93: 17 | AA93: 998 | AB93: 84 | AC93: 0 | AD93: 0 | CR93: 17 | CS93: 998 | CT93: 84 | CU93: 0 | CV93: 0 | CW93: 0 | CX93: 0
A94: 00170999 | B94: 0017 | C94: 0999 | D94: 85 | E94: 17 | F94: Auburn | G94: 999 | H94: Total | I94: 29063082.82 | J94: 1 | K94: =SUM(K90:K93) -> 29087203.89 | L94: =SUM(L90:L93) -> 1 | M94: =VLOOKUP(E94,town351,24) -> 16498819 | N94: =SUM(N90:N93) -> 16498819 | O94: 16167017 | P94: =SUM(P90:P93) -> 331802 | Q94: 2.052339031 | R94: 2601 | S94: 2520 | T94: 17 | U94: 999 | V94: 85 | W94: 2520 | X94: 29087203.89 | Y94: 85 | Z94: 17 | AA94: 999 | AB94: 85 | AC94: 2520 | AD94: 29087203.89 | CR94: 17 | CS94: 999 | CT94: 85 | CU94: 2579 | CV94: 27034705.6 | CW94: 1 | CX94: 15400748
A95: 00180018 | B95: 0018 | C95: 0018 | D95: 86 | E95: 18 | F95: Avon | G95: 18 | H95: Avon | I95: 7045846.11 | J95: 0.8522800851 | K95: =X95 -> 6999174.9 | L95: =IF(K99>0, K95/K99, 0) -> 0.8526155752 | N95: =ROUND(M99*L95,0) -> 4667923 | O95: 4598969 | P95: =N95-O95 -> 68954 | Q95: 1.499336047 | R95: 586 | S95: 560 | T95: 18 | U95: 18 | V95: 86 | W95: 560 | X95: 6999174.9 | Y95: 86 | Z95: 18 | AA95: 18 | AB95: 86 | AC95: 560 | AD95: 6999174.9 | CR95: 18 | CS95: 18 | CT95: 86 | CU95: 561 | CV95: 6193899.03 | CW95: 0.8546657806 | CX95: 4386495
A96: 00180806 | B96: 0018 | C96: 0806 | D96: 87 | E96: 18 | F96: Avon | G96: 806 | H96: Blue Hills | I96: 1149360.157 | J96: 0.1390289764 | K96: 1117189.833 | L96: =IF(K99>0, K96/K99, 0) -> 0.1360922488 | N96: =ROUND(M99*L96,0) -> 745082 | O96: 750211 | P96: =N96-O96 -> -5129 | Q96: -0.6836743263 | R96: 63 | S96: 59 | T96: 18 | U96: 806 | V96: 87 | W96: 59 | X96: 1117189.833 | Y96: 87 | Z96: 18 | AA96: 806 | AB96: 87 | AC96: 59 | AD96: 1117189.833 | CR96: 18 | CS96: 806 | CT96: 87 | CU96: 58 | CV96: 984907.1615 | CW96: 0.1359025137 | CX96: 697507
A97: 00180915 | B97: 0018 | C97: 0915 | D97: 88 | E97: 18 | F97: Avon | G97: 915 | H97: Norfolk County | I97: 71848.46428 | J97: 0.008690938505 | K97: 92698.1832 | L97: =IF(K99>0, K97/K99, 0) -> 0.01129217599 | N97: =ROUND(M99*L97,0) -> 61823 | O97: 46897 | P97: =N97-O97 -> 14926 | Q97: 31.82719577 | R97: 4.000000001 | S97: 4.999999999 | T97: 18 | U97: 915 | V97: 88 | W97: 4.999999999 | X97: 92698.1832 | Y97: 88 | Z97: 18 | AA97: 915 | AB97: 88 | AC97: 4.999999999 | AD97: 92698.1832 | CR97: 18 | CS97: 915 | CT97: 88 | CU97: 3.999999999 | CV97: 68353.07351 | CW97: 0.009431705722 | CX97: 48407
A98: 00180998 | B98: 0018 | C98: 0998 | D98: 89 | E98: 18 | G98: 998 | I98: 0 | J98: 0 | K98: 0 | L98: =IF(K99>0, K98/K99, 0) -> 0 | N98: =ROUND(M99*L98,0) -> 0 | O98: 0 | P98: =N98-O98 -> 0 | Q98: 0 | R98: 0 | S98: 0 | T98: 18 | U98: 998 | V98: 89 | W98: 0 | X98: 0 | Y98: 89 | Z98: 18 | AA98: 998 | AB98: 89 | AC98: 0 | AD98: 0 | CR98: 18 | CS98: 998 | CT98: 89 | CU98: 0 | CV98: 0 | CW98: 0 | CX98: 0
A99: 00180999 | B99: 0018 | C99: 0999 | D99: 90 | E99: 18 | F99: Avon | G99: 999 | H99: Total | I99: 8267054.731 | J99: 1 | K99: =SUM(K95:K98) -> 8209062.916 | L99: =SUM(L95:L98) -> 1 | M99: =VLOOKUP(E99,town351,24) -> 5474827 | N99: =SUM(N95:N98) -> 5474828 | O99: 5396077 | P99: =SUM(P95:P98) -> 78751 | Q99: 1.459412088 | R99: 653 | S99: 624 | T99: 18 | U99: 999 | V99: 90 | W99: 624 | X99: 8209062.916 | Y99: 90 | Z99: 18 | AA99: 999 | AB99: 90 | AC99: 624 | AD99: 8209062.916 | CR99: 18 | CS99: 999 | CT99: 90 | CU99: 623 | CV99: 7247159.265 | CW99: 1 | CX99: 5132409
A100: 00190019 | B100: 0019 | C100: 0019 | D100: 91 | E100: 19 | F100: Ayer | G100: 19 | H100: Ayer | I100: 0 | J100: 0 | K100: =X100 -> 0 | L100: =IF(K104>0, K100/K104, 0) -> 0 | N100: =ROUND(M104*L100,0) -> 0 | O100: 0 | P100: =N100-O100 -> 0 | Q100: 0 | R100: 0 | S100: 0 | T100: 19 | U100: 19 | V100: 91 | W100: 0 | X100: 0 | Y100: 91 | Z100: 19 | AA100: 19 | AB100: 91 | AC100: 0 | AD100: 0 | CR100: 19 | CS100: 19 | CT100: 91 | CU100: 0 | CV100: 0 | CW100: 0 | CX100: 0
A101: 00190616 | B101: 0019 | C101: 0616 | D101: 92 | E101: 19 | F101: Ayer | G101: 616 | H101: Ayer Shirley | I101: 10850922.74 | J101: 0.9192623296 | K101: 10909506.05 | L101: =IF(K104>0, K101/K104, 0) -> 0.9124487756 | N101: =ROUND(M104*L101,0) -> 8150767 | O101: 7768754 | P101: =N101-O101 -> 382013 | Q101: 4.917300767 | R101: 961.138115 | S101: 928.6067961 | T101: 19 | U101: 616 | V101: 92 | W101: 928.6067961 | X101: 10909506.05 | Y101: 92 | Z101: 19 | AA101: 616 | AB101: 92 | AC101: 928.6067961 | AD101: 10909506.05 | CR101: 19 | CS101: 616 | CT101: 92 | CU101: 953.354394 | CV101: 9988703.748 | CW101: 0.9274031692 | CX101: 7215157
A102: 00190852 | B102: 0019 | C102: 0852 | D102: 93 | E102: 19 | F102: Ayer | G102: 852 | H102: Nashoba Valley | I102: 953023.0879 | J102: 0.08073767045 | K102: 1046788.201 | L102: =IF(K104>0, K102/K104, 0) -> 0.08755122438 | N102: =ROUND(M104*L102,0) -> 782082 | O102: 682320 | P102: =N102-O102 -> 99762 | Q102: 14.62099894 | R102: 55 | S102: 59 | T102: 19 | U102: 852 | V102: 93 | W102: 59 | X102: 1046788.201 | Y102: 93 | Z102: 19 | AA102: 852 | AB102: 93 | AC102: 59 | AD102: 1046788.201 | CR102: 19 | CS102: 852 | CT102: 93 | CU102: 48 | CV102: 781912.613 | CW102: 0.07259683075 | CX102: 564800
A103: 00190998 | B103: 0019 | C103: 0998 | D103: 94 | E103: 19 | G103: 998 | I103: 0 | J103: 0 | K103: 0 | L103: =IF(K104>0, K103/K104, 0) -> 0 | N103: =ROUND(M104*L103,0) -> 0 | O103: 0 | P103: =N103-O103 -> 0 | Q103: 0 | R103: 0 | S103: 0 | T103: 19 | U103: 998 | V103: 94 | W103: 0 | X103: 0 | Y103: 94 | Z103: 19 | AA103: 998 | AB103: 94 | AC103: 0 | AD103: 0 | CR103: 19 | CS103: 998 | CT103: 94 | CU103: 0 | CV103: 0 | CW103: 0 | CX103: 0
A104: 00190999 | B104: 0019 | C104: 0999 | D104: 95 | E104: 19 | F104: Ayer | G104: 999 | H104: Total | I104: 11803945.82 | J104: 1 | K104: =SUM(K100:K103) -> 11956294.25 | L104: =SUM(L100:L103) -> 1 | M104: =VLOOKUP(E104,town351,24) -> 8932849 | N104: =SUM(N100:N103) -> 8932849 | O104: 8451074 | P104: =SUM(P100:P103) -> 481775 | Q104: 5.700754721 | R104: 1016.138115 | S104: 987.6067961 | T104: 19 | U104: 999 | V104: 95 | W104: 987.6067961 | X104: 11956294.25 | Y104: 95 | Z104: 19 | AA104: 999 | AB104: 95 | AC104: 987.6067961 | AD104: 11956294.25 | CR104: 19 | CS104: 999 | CT104: 95 | CU104: 1001.354394 | CV104: 10770616.36 | CW104: 1 | CX104: 7779957
A105: 00200020 | B105: 0020 | C105: 0020 | D105: 96 | E105: 20 | F105: Barnstable | G105: 20 | H105: Barnstable | I105: 65773443.14 | J105: 0.9483805832 | K105: =X105 -> 65035356.48 | L105: =IF(K109>0, K105/K109, 0) -> 0.9531805267 | N105: =ROUND(M109*L105,0) -> 53654169 | O105: 52762387 | P105: =N105-O105 -> 891782 | Q105: 1.690185093 | R105: 5405 | S105: 5147 | T105: 20 | U105: 20 | V105: 96 | W105: 5147 | X105: 65035356.48 | Y105: 96 | Z105: 20 | AA105: 20 | AB105: 96 | AC105: 5147 | AD105: 65035356.48 | CR105: 20 | CS105: 20 | CT105: 96 | CU105: 5480 | CV105: 60393953.44 | CW105: 0.952336101 | CX105: 49825012
A106: 00200815 | B106: 0020 | C106: 0815 | D106: 97 | E106: 20 | F106: Barnstable | G106: 815 | H106: Cape Cod | I106: 3579983.431 | J106: 0.05161941677 | K106: 3194485.252 | L106: =IF(K109>0, K106/K109, 0) -> 0.04681947328 | N106: =ROUND(M109*L106,0) -> 2635450 | O106: 2871805 | P106: =N106-O106 -> -236355 | Q106: -8.230189724 | R106: 195 | S106: 170 | T106: 20 | U106: 815 | V106: 97 | W106: 170 | X106: 3194485.252 | Y106: 97 | Z106: 20 | AA106: 815 | AB106: 97 | AC106: 170 | AD106: 3194485.252 | CR106: 20 | CS106: 815 | CT106: 97 | CU106: 179 | CV106: 3022684.212 | CW106: 0.047663899 | CX106: 2493714
A107: 00200998 | B107: 0020 | C107: 0998 | D107: 98 | E107: 20 | G107: 998 | I107: 0 | J107: 0 | K107: 0 | L107: =IF(K109>0, K107/K109, 0) -> 0 | N107: =ROUND(M109*L107,0) -> 0 | O107: 0 | P107: =N107-O107 -> 0 | Q107: 0 | R107: 0 | S107: 0 | T107: 20 | U107: 998 | V107: 98 | W107: 0 | X107: 0 | Y107: 98 | Z107: 20 | AA107: 998 | AB107: 98 | AC107: 0 | AD107: 0 | CR107: 20 | CS107: 998 | CT107: 98 | CU107: 0 | CV107: 0 | CW107: 0 | CX107: 0
A108: 00200998 | B108: 0020 | C108: 0998 | D108: 99 | E108: 20 | G108: 998 | I108: 0 | J108: 0 | K108: 0 | L108: =IF(K109>0, K108/K109, 0) -> 0 | N108: =ROUND(M109*L108,0) -> 0 | O108: 0 | P108: =N108-O108 -> 0 | Q108: 0 | R108: 0 | S108: 0 | T108: 20 | U108: 998 | V108: 99 | W108: 0 | X108: 0 | Y108: 99 | Z108: 20 | AA108: 998 | AB108: 99 | AC108: 0 | AD108: 0 | CR108: 20 | CS108: 998 | CT108: 99 | CU108: 0 | CV108: 0 | CW108: 0 | CX108: 0
A109: 00200999 | B109: 0020 | C109: 0999 | D109: 100 | E109: 20 | F109: Barnstable | G109: 999 | H109: Total | I109: 69353426.57 | J109: 1 | K109: =SUM(K105:K108) -> 68229841.73 | L109: =SUM(L105:L108) -> 1 | M109: =VLOOKUP(E109,town351,24) -> 56289619 | N109: =SUM(N105:N108) -> 56289619 | O109: 55634192 | P109: =SUM(P105:P108) -> 655427 | Q109: 1.17810105 | R109: 5600 | S109: 5317 | T109: 20 | U109: 999 | V109: 100 | W109: 5317 | X109: 68229841.73 | Y109: 100 | Z109: 20 | AA109: 999 | AB109: 100 | AC109: 5317 | AD109: 68229841.73 | CR109: 20 | CS109: 999 | CT109: 100 | CU109: 5659 | CV109: 63416637.65 | CW109: 1 | CX109: 52318726
A110: 00210021 | B110: 0021 | C110: 0021 | D110: 101 | E110: 21 | F110: Barre | G110: 21 | H110: Barre | I110: 0 | J110: 0 | K110: =X110 -> 0 | L110: =IF(K114>0, K110/K114, 0) -> 0 | N110: =ROUND(M114*L110,0) -> 0 | O110: 0 | P110: =N110-O110 -> 0 | Q110: 0 | R110: 0 | S110: 0 | T110: 21 | U110: 21 | V110: 101 | W110: 0 | X110: 0 | Y110: 101 | Z110: 21 | AA110: 21 | AB110: 101 | AC110: 0 | AD110: 0 | CR110: 21 | CS110: 21 | CT110: 101 | CU110: 0 | CV110: 0 | CW110: 0 | CX110: 0
A111: 00210753 | B111: 0021 | C111: 0753 | D111: 102 | E111: 21 | F111: Barre | G111: 753 | H111: Quabbin | I111: 8321416.382 | J111: 0.8992393185 | K111: 8465059.306 | L111: =IF(K114>0, K111/K114, 0) -> 0.9088450617 | N111: =ROUND(M114*L111,0) -> 3433540 | O111: 3314067 | P111: =N111-O111 -> 119473 | Q111: 3.605026694 | R111: 734.5938462 | S111: 719.1044776 | T111: 21 | U111: 753 | V111: 102 | W111: 719.1044776 | X111: 8465059.306 | Y111: 102 | Z111: 21 | AA111: 753 | AB111: 102 | AC111: 719.1044776 | AD111: 8465059.306 | CR111: 21 | CS111: 753 | CT111: 102 | CU111: 790.1778412 | CV111: 8357183.38 | CW111: 0.9212855705 | CX111: 3282113
A112: 00210832 | B112: 0021 | C112: 0832 | D112: 103 | E112: 21 | F112: Barre | G112: 832 | H112: Montachusett | I112: 932423.1804 | J112: 0.1007606815 | K112: 849024.7581 | L112: =IF(K114>0, K112/K114, 0) -> 0.09115493829 | N112: =ROUND(M114*L112,0) -> 344376 | O112: 371345 | P112: =N112-O112 -> -26969 | Q112: -7.262518682 | R112: 54 | S112: 48.00000001 | T112: 21 | U112: 832 | V112: 103 | W112: 48.00000001 | X112: 849024.7581 | Y112: 103 | Z112: 21 | AA112: 832 | AB112: 103 | AC112: 48.00000001 | AD112: 849024.7581 | CR112: 21 | CS112: 832 | CT112: 103 | CU112: 44.02960968 | CV112: 714035.8459 | CW112: 0.07871442946 | CX112: 280423
A113: 00210998 | B113: 0021 | C113: 0998 | D113: 104 | E113: 21 | G113: 998 | I113: 0 | J113: 0 | K113: 0 | L113: =IF(K114>0, K113/K114, 0) -> 0 | N113: =ROUND(M114*L113,0) -> 0 | O113: 0 | P113: =N113-O113 -> 0 | Q113: 0 | R113: 0 | S113: 0 | T113: 21 | U113: 998 | V113: 104 | W113: 0 | X113: 0 | Y113: 104 | Z113: 21 | AA113: 998 | AB113: 104 | AC113: 0 | AD113: 0 | CR113: 21 | CS113: 998 | CT113: 104 | CU113: 0 | CV113: 0 | CW113: 0 | CX113: 0
A114: 00210999 | B114: 0021 | C114: 0999 | D114: 105 | E114: 21 | F114: Barre | G114: 999 | H114: Total | I114: 9253839.562 | J114: 1 | K114: =SUM(K110:K113) -> 9314084.064 | L114: =SUM(L110:L113) -> 1 | M114: =VLOOKUP(E114,town351,24) -> 3777916 | N114: =SUM(N110:N113) -> 3777916 | O114: 3685412 | P114: =SUM(P110:P113) -> 92504 | Q114: 2.510004309 | R114: 788.5938462 | S114: 767.1044776 | T114: 21 | U114: 999 | V114: 105 | W114: 767.1044776 | X114: 9314084.064 | Y114: 105 | Z114: 21 | AA114: 999 | AB114: 105 | AC114: 767.1044776 | AD114: 9314084.064 | CR114: 21 | CS114: 999 | CT114: 105 | CU114: 834.2074509 | CV114: 9071219.226 | CW114: 1 | CX114: 3562536
A115: 00220022 | B115: 0022 | C115: 0022 | D115: 106 | E115: 22 | F115: Becket | G115: 22 | H115: Becket | I115: 188943.82 | J115: 0.08011418385 | K115: =X115 -> 207463.95 | L115: =IF(K119>0, K115/K119, 0) -> 0.08095855609 | N115: =ROUND(M119*L115,0) -> 164090 | O115: 155879 | P115: =N115-O115 -> 8211 | Q115: 5.267547264 | R115: 11 | S115: 12 | T115: 22 | U115: 22 | V115: 106 | W115: 12 | X115: 207463.95 | Y115: 106 | Z115: 22 | AA115: 22 | AB115: 106 | AC115: 12 | AD115: 207463.95 | CR115: 22 | CS115: 22 | CT115: 106 | CU115: 13 | CV115: 206187.51 | CW115: 0.08517180085 | CX115: 157270
A116: 00220635 | B116: 0022 | C116: 0635 | D116: 107 | E116: 22 | F116: Becket | G116: 635 | H116: Central Berkshire | I116: 2169487.745 | J116: 0.9198858161 | K116: 2355130.543 | L116: =IF(K119>0, K116/K119, 0) -> 0.9190414439 | N116: =ROUND(M119*L116,0) -> 1862752 | O116: 1789827 | P116: =N116-O116 -> 72925 | Q116: 4.074416131 | R116: 187.0465116 | S116: 194.4348958 | T116: 22 | U116: 635 | V116: 107 | W116: 194.4348958 | X116: 2355130.543 | Y116: 107 | Z116: 22 | AA116: 635 | AB116: 107 | AC116: 194.4348958 | AD116: 2355130.543 | CR116: 22 | CS116: 635 | CT116: 107 | CU116: 205.0704225 | CV116: 2214654.928 | CW116: 0.9148281992 | CX116: 1689234
A117: 00220998 | B117: 0022 | C117: 0998 | D117: 108 | E117: 22 | G117: 998 | I117: 0 | J117: 0 | K117: 0 | L117: =IF(K119>0, K117/K119, 0) -> 0 | N117: =ROUND(M119*L117,0) -> 0 | O117: 0 | P117: =N117-O117 -> 0 | Q117: 0 | R117: 0 | S117: 0 | T117: 22 | U117: 998 | V117: 108 | W117: 0 | X117: 0 | Y117: 108 | Z117: 22 | AA117: 998 | AB117: 108 | AC117: 0 | AD117: 0 | CR117: 22 | CS117: 998 | CT117: 108 | CU117: 0 | CV117: 0 | CW117: 0 | CX117: 0
A118: 00220998 | B118: 0022 | C118: 0998 | D118: 109 | E118: 22 | G118: 998 | I118: 0 | J118: 0 | K118: 0 | L118: =IF(K119>0, K118/K119, 0) -> 0 | N118: =ROUND(M119*L118,0) -> 0 | O118: 0 | P118: =N118-O118 -> 0 | Q118: 0 | R118: 0 | S118: 0 | T118: 22 | U118: 998 | V118: 109 | W118: 0 | X118: 0 | Y118: 109 | Z118: 22 | AA118: 998 | AB118: 109 | AC118: 0 | AD118: 0 | CR118: 22 | CS118: 998 | CT118: 109 | CU118: 0 | CV118: 0 | CW118: 0 | CX118: 0
A119: 00220999 | B119: 0022 | C119: 0999 | D119: 110 | E119: 22 | F119: Becket | G119: 999 | H119: Total | I119: 2358431.565 | J119: 1 | K119: =SUM(K115:K118) -> 2562594.493 | L119: =SUM(L115:L118) -> 1 | M119: =VLOOKUP(E119,town351,24) -> 2026842 | N119: =SUM(N115:N118) -> 2026842 | O119: 1945706 | P119: =SUM(P115:P118) -> 81136 | Q119: 4.170003073 | R119: 198.0465116 | S119: 206.4348958 | T119: 22 | U119: 999 | V119: 110 | W119: 206.4348958 | X119: 2562594.493 | Y119: 110 | Z119: 22 | AA119: 999 | AB119: 110 | AC119: 206.4348958 | AD119: 2562594.493 | CR119: 22 | CS119: 999 | CT119: 110 | CU119: 218.0704225 | CV119: 2420842.438 | CW119: 1 | CX119: 1846504
A120: 00230023 | B120: 0023 | C120: 0023 | D120: 111 | E120: 23 | F120: Bedford | G120: 23 | H120: Bedford | I120: 30502691.57 | J120: 0.9815981544 | K120: =X120 -> 30686041.44 | L120: =IF(K124>0, K120/K124, 0) -> 0.9776865494 | N120: =ROUND(M124*L120,0) -> 25315984 | O120: 25097492 | P120: =N120-O120 -> 218492 | Q120: 0.8705730437 | R120: 2707 | S120: 2649 | T120: 23 | U120: 23 | V120: 111 | W120: 2649 | X120: 30686041.44 | Y120: 111 | Z120: 23 | AA120: 23 | AB120: 111 | AC120: 2649 | AD120: 30686041.44 | CR120: 23 | CS120: 23 | CT120: 111 | CU120: 2661 | CV120: 27912085.89 | CW120: 0.9892623389 | CX120: 23027471
A121: 00230871 | B121: 0023 | C121: 0871 | D121: 112 | E121: 23 | F121: Bedford | G121: 871 | H121: Shawsheen Valley | I121: 571828.522 | J121: 0.01840184564 | K121: 700338.4386 | L121: =IF(K124>0, K121/K124, 0) -> 0.02231345065 | N121: =ROUND(M124*L121,0) -> 577779 | O121: 470498 | P121: =N121-O121 -> 107281 | Q121: 22.8015847 | R121: 34 | S121: 40.99999999 | T121: 23 | U121: 871 | V121: 112 | W121: 40.99999999 | X121: 700338.4386 | Y121: 112 | Z121: 23 | AA121: 871 | AB121: 112 | AC121: 40.99999999 | AD121: 700338.4386 | CR121: 23 | CS121: 871 | CT121: 112 | CU121: 19 | CV121: 302963.6389 | CW121: 0.01073766107 | CX121: 249945
A122: 00230998 | B122: 0023 | C122: 0998 | D122: 113 | E122: 23 | G122: 998 | I122: 0 | J122: 0 | K122: 0 | L122: =IF(K124>0, K122/K124, 0) -> 0 | N122: =ROUND(M124*L122,0) -> 0 | O122: 0 | P122: =N122-O122 -> 0 | Q122: 0 | R122: 0 | S122: 0 | T122: 23 | U122: 998 | V122: 113 | W122: 0 | X122: 0 | Y122: 113 | Z122: 23 | AA122: 998 | AB122: 113 | AC122: 0 | AD122: 0 | CR122: 23 | CS122: 998 | CT122: 113 | CU122: 0 | CV122: 0 | CW122: 0 | CX122: 0
A123: 00230998 | B123: 0023 | C123: 0998 | D123: 114 | E123: 23 | G123: 998 | I123: 0 | J123: 0 | K123: 0 | L123: =IF(K124>0, K123/K124, 0) -> 0 | N123: =ROUND(M124*L123,0) -> 0 | O123: 0 | P123: =N123-O123 -> 0 | Q123: 0 | R123: 0 | S123: 0 | T123: 23 | U123: 998 | V123: 114 | W123: 0 | X123: 0 | Y123: 114 | Z123: 23 | AA123: 998 | AB123: 114 | AC123: 0 | AD123: 0 | CR123: 23 | CS123: 998 | CT123: 114 | CU123: 0 | CV123: 0 | CW123: 0 | CX123: 0
A124: 00230999 | B124: 0023 | C124: 0999 | D124: 115 | E124: 23 | F124: Bedford | G124: 999 | H124: Total | I124: 31074520.1 | J124: 1 | K124: =SUM(K120:K123) -> 31386379.88 | L124: =SUM(L120:L123) -> 1 | M124: =VLOOKUP(E124,town351,24) -> 25893763 | N124: =SUM(N120:N123) -> 25893763 | O124: 25567990 | P124: =SUM(P120:P123) -> 325773 | Q124: 1.274143959 | R124: 2741 | S124: 2690 | T124: 23 | U124: 999 | V124: 115 | W124: 2690 | X124: 31386379.88 | Y124: 115 | Z124: 23 | AA124: 999 | AB124: 115 | AC124: 2690 | AD124: 31386379.88 | CR124: 23 | CS124: 999 | CT124: 115 | CU124: 2680 | CV124: 28215049.53 | CW124: 1 | CX124: 23277416
A125: 00240024 | B125: 0024 | C125: 0024 | D125: 116 | E125: 24 | F125: Belchertown | G125: 24 | H125: Belchertown | I125: 24726417.46 | J125: 0.9419551847 | K125: =X125 -> 24762062.59 | L125: =IF(K129>0, K125/K129, 0) -> 0.9402740591 | N125: =ROUND(M129*L125,0) -> 12813563 | O125: 12418125 | P125: =N125-O125 -> 395438 | Q125: 3.184361568 | R125: 2278 | S125: 2204 | T125: 24 | U125: 24 | V125: 116 | W125: 2204 | X125: 24762062.59 | Y125: 116 | Z125: 24 | AA125: 24 | AB125: 116 | AC125: 2204 | AD125: 24762062.59 | CR125: 24 | CS125: 24 | CT125: 116 | CU125: 2344 | CV125: 23863029.98 | CW125: 0.9302301329 | CX125: 11563925
A126: 00240860 | B126: 0024 | C126: 0860 | D126: 117 | E126: 24 | F126: Belchertown | G126: 860 | H126: Pathfinder | I126: 1523682.185 | J126: 0.05804481529 | K126: 1572879.175 | L126: =IF(K129>0, K126/K129, 0) -> 0.05972594089 | N126: =ROUND(M129*L126,0) -> 813914 | O126: 765225 | P126: =N126-O126 -> 48689 | Q126: 6.36270378 | R126: 84 | S126: 84 | T126: 24 | U126: 860 | V126: 117 | W126: 84 | X126: 1572879.175 | Y126: 117 | Z126: 24 | AA126: 860 | AB126: 117 | AC126: 84 | AD126: 1572879.175 | CR126: 24 | CS126: 860 | CT126: 117 | CU126: 106 | CV126: 1789794.128 | CW126: 0.06976986706 | CX126: 867327
A127: 00240998 | B127: 0024 | C127: 0998 | D127: 118 | E127: 24 | G127: 998 | I127: 0 | J127: 0 | K127: 0 | L127: =IF(K129>0, K127/K129, 0) -> 0 | N127: =ROUND(M129*L127,0) -> 0 | O127: 0 | P127: =N127-O127 -> 0 | Q127: 0 | R127: 0 | S127: 0 | T127: 24 | U127: 998 | V127: 118 | W127: 0 | X127: 0 | Y127: 118 | Z127: 24 | AA127: 998 | AB127: 118 | AC127: 0 | AD127: 0 | CR127: 24 | CS127: 998 | CT127: 118 | CU127: 0 | CV127: 0 | CW127: 0 | CX127: 0
A128: 00240998 | B128: 0024 | C128: 0998 | D128: 119 | E128: 24 | G128: 998 | I128: 0 | J128: 0 | K128: 0 | L128: =IF(K129>0, K128/K129, 0) -> 0 | N128: =ROUND(M129*L128,0) -> 0 | O128: 0 | P128: =N128-O128 -> 0 | Q128: 0 | R128: 0 | S128: 0 | T128: 24 | U128: 998 | V128: 119 | W128: 0 | X128: 0 | Y128: 119 | Z128: 24 | AA128: 998 | AB128: 119 | AC128: 0 | AD128: 0 | CR128: 24 | CS128: 998 | CT128: 119 | CU128: 0 | CV128: 0 | CW128: 0 | CX128: 0
A129: 00240999 | B129: 0024 | C129: 0999 | D129: 120 | E129: 24 | F129: Belchertown | G129: 999 | H129: Total | I129: 26250099.65 | J129: 1 | K129: =SUM(K125:K128) -> 26334941.77 | L129: =SUM(L125:L128) -> 1 | M129: =VLOOKUP(E129,town351,24) -> 13627477 | N129: =SUM(N125:N128) -> 13627477 | O129: 13183350 | P129: =SUM(P125:P128) -> 444127 | Q129: 3.368847827 | R129: 2362 | S129: 2288 | T129: 24 | U129: 999 | V129: 120 | W129: 2288 | X129: 26334941.77 | Y129: 120 | Z129: 24 | AA129: 999 | AB129: 120 | AC129: 2288 | AD129: 26334941.77 | CR129: 24 | CS129: 999 | CT129: 120 | CU129: 2450 | CV129: 25652824.11 | CW129: 1 | CX129: 12431252
A130: 00250025 | B130: 0025 | C130: 0025 | D130: 121 | E130: 25 | F130: Bellingham | G130: 25 | H130: Bellingham | I130: 24676853.43 | J130: 0.9395915074 | K130: =X130 -> 24764847.16 | L130: =IF(K134>0, K130/K134, 0) -> 0.9390725076 | N130: =ROUND(M134*L130,0) -> 17317798 | O130: 16772086 | P130: =N130-O130 -> 545712 | Q130: 3.253691878 | R130: 2247 | S130: 2184 | T130: 25 | U130: 25 | V130: 121 | W130: 2184 | X130: 24764847.16 | Y130: 121 | Z130: 25 | AA130: 25 | AB130: 121 | AC130: 2184 | AD130: 24764847.16 | CR130: 25 | CS130: 25 | CT130: 121 | CU130: 2330 | CV130: 23842628.52 | CW130: 0.9440503857 | CX130: 15794941
A131: 00250805 | B131: 0025 | C131: 0805 | D131: 122 | E131: 25 | F131: Bellingham | G131: 805 | H131: Blackstone Valley | I131: 1119516.477 | J131: 0.0426265114 | K131: 1180343.987 | L131: =IF(K134>0, K131/K134, 0) -> 0.04475814367 | N131: =ROUND(M134*L131,0) -> 825402 | O131: 760900 | P131: =N131-O131 -> 64502 | Q131: 8.477066632 | R131: 68 | S131: 70 | T131: 25 | U131: 805 | V131: 122 | W131: 70 | X131: 1180343.987 | Y131: 122 | Z131: 25 | AA131: 805 | AB131: 122 | AC131: 70 | AD131: 1180343.987 | CR131: 25 | CS131: 805 | CT131: 122 | CU131: 71 | CV131: 1105456.372 | CW131: 0.04377061504 | CX131: 732328
A132: 00250915 | B132: 0025 | C132: 0915 | D132: 123 | E132: 25 | F132: Bellingham | G132: 915 | H132: Norfolk County | I132: 467015.0177 | J132: 0.01778198123 | K132: 426411.6428 | L132: =IF(K134>0, K132/K134, 0) -> 0.01616934876 | N132: =ROUND(M134*L132,0) -> 298185 | O132: 317416 | P132: =N132-O132 -> -19231 | Q132: -6.058610782 | R132: 26 | S132: 23 | T132: 25 | U132: 915 | V132: 123 | W132: 23 | X132: 426411.6428 | Y132: 123 | Z132: 25 | AA132: 915 | AB132: 123 | AC132: 23 | AD132: 426411.6428 | CR132: 25 | CS132: 915 | CT132: 123 | CU132: 18 | CV132: 307588.8309 | CW132: 0.01217899923 | CX132: 203767
A133: 00250998 | B133: 0025 | C133: 0998 | D133: 124 | E133: 25 | G133: 998 | I133: 0 | J133: 0 | K133: 0 | L133: =IF(K134>0, K133/K134, 0) -> 0 | N133: =ROUND(M134*L133,0) -> 0 | O133: 0 | P133: =N133-O133 -> 0 | Q133: 0 | R133: 0 | S133: 0 | T133: 25 | U133: 998 | V133: 124 | W133: 0 | X133: 0 | Y133: 124 | Z133: 25 | AA133: 998 | AB133: 124 | AC133: 0 | AD133: 0 | CR133: 25 | CS133: 998 | CT133: 124 | CU133: 0 | CV133: 0 | CW133: 0 | CX133: 0
A134: 00250999 | B134: 0025 | C134: 0999 | D134: 125 | E134: 25 | F134: Bellingham | G134: 999 | H134: Total | I134: 26263384.92 | J134: 1 | K134: =SUM(K130:K133) -> 26371602.79 | L134: =SUM(L130:L133) -> 1 | M134: =VLOOKUP(E134,town351,24) -> 18441385 | N134: =SUM(N130:N133) -> 18441385 | O134: 17850402 | P134: =SUM(P130:P133) -> 590983 | Q134: 3.31075457 | R134: 2341 | S134: 2277 | T134: 25 | U134: 999 | V134: 125 | W134: 2277 | X134: 26371602.79 | Y134: 125 | Z134: 25 | AA134: 999 | AB134: 125 | AC134: 2277 | AD134: 26371602.79 | CR134: 25 | CS134: 999 | CT134: 125 | CU134: 2419 | CV134: 25255673.72 | CW134: 1 | CX134: 16731036
A135: 00260026 | B135: 0026 | C135: 0026 | D135: 126 | E135: 26 | F135: Belmont | G135: 26 | H135: Belmont | I135: 50418107.66 | J135: 1 | K135: =X135 -> 50621827.42 | L135: =IF(K139>0, K135/K139, 0) -> 1 | N135: =ROUND(M139*L135,0) -> 40824828 | O135: 40662179 | P135: =N135-O135 -> 162649 | Q135: 0.4000006984 | R135: 4638 | S135: 4534 | T135: 26 | U135: 26 | V135: 126 | W135: 4534 | X135: 50621827.42 | Y135: 126 | Z135: 26 | AA135: 26 | AB135: 126 | AC135: 4534 | AD135: 50621827.42 | CR135: 26 | CS135: 26 | CT135: 126 | CU135: 4488 | CV135: 45512607.46 | CW135: 0.9913942987 | CX135: 36735671
A136: 00260830 | B136: 0026 | C136: 0830 | D136: 127 | E136: 26 | G136: 998 | I136: 0 | J136: 0 | K136: 0 | L136: =IF(K139>0, K136/K139, 0) -> 0 | N136: =ROUND(M139*L136,0) -> 0 | O136: 0 | P136: =N136-O136 -> 0 | Q136: 0 | R136: 0 | S136: 0 | T136: 26 | U136: 830 | V136: 127 | W136: 0 | X136: 0 | Y136: 127 | Z136: 26 | AA136: 830 | AB136: 127 | AC136: 0 | AD136: 0 | CR136: 26 | CS136: 830 | CT136: 127 | CU136: 22.06451613 | CV136: 395067.7402 | CW136: 0.008605701301 | CX136: 318880
A137: 00260998 | B137: 0026 | C137: 0998 | D137: 128 | E137: 26 | G137: 998 | I137: 0 | J137: 0 | K137: 0 | L137: =IF(K139>0, K137/K139, 0) -> 0 | N137: =ROUND(M139*L137,0) -> 0 | O137: 0 | P137: =N137-O137 -> 0 | Q137: 0 | R137: 0 | S137: 0 | T137: 26 | U137: 998 | V137: 128 | W137: 0 | X137: 0 | Y137: 128 | Z137: 26 | AA137: 998 | AB137: 128 | AC137: 0 | AD137: 0 | CR137: 26 | CS137: 998 | CT137: 128 | CU137: 0 | CV137: 0 | CW137: 0 | CX137: 0
A138: =B138&C138 -> 00260998 | B138: 0026 | C138: 0998 | D138: 129 | E138: 26 | G138: 998 | I138: 0 | J138: 0 | K138: 0 | L138: =IF(K139>0, K138/K139, 0) -> 0 | N138: =ROUND(M139*L138,0) -> 0 | O138: 0 | P138: =N138-O138 -> 0 | Q138: 0 | R138: 0 | S138: 0 | T138: =VLOOKUP($D138, foundoptions, VLOOKUP($T$6, foundoptcell, 2, FALSE), FALSE) -> 26 | U138: =VLOOKUP($D138, foundoptions, VLOOKUP($T$6, foundoptcell, 2, FALSE)+1, FALSE) -> 998 | V138: =VLOOKUP($D138, foundoptions, VLOOKUP($T$6, foundoptcell, 2, FALSE)+2, FALSE) -> 129 | W138: =VLOOKUP($D138, foundoptions, VLOOKUP($T$6, foundoptcell, 2, FALSE)+3, FALSE) -> 0 | X138: =VLOOKUP($D138, foundoptions, VLOOKUP($T$6, foundoptcell, 2, FALSE)+4, FALSE) -> 0 | Y138: 129 | Z138: 26 | AA138: 998 | AB138: 129 | AC138: 0 | AD138: 0 | CR138: 26 | CS138: 998 | CT138: 129 | CU138: 0 | CV138: 0 | CW138: 0 | CX138: 0
A139: 00260999 | B139: 0026 | C139: 0999 | D139: 130 | E139: 26 | F139: Belmont | G139: 999 | H139: Total | I139: 50418107.66 | J139: 1 | K139: =SUM(K135:K138) -> 50621827.42 | L139: =SUM(L135:L138) -> 1 | M139: =VLOOKUP(E139,town351,24) -> 40824828 | N139: =SUM(N135:N138) -> 40824828 | O139: 40662179 | P139: =SUM(P135:P138) -> 162649 | Q139: 0.4000006984 | R139: 4638 | S139: =W139 -> 4534 | T139: 26 | U139: 999 | V139: 130 | W139: 4534 | X139: 50621827.42 | Y139: =D139 -> 130 | Z139: 26 | AA139: 999 | AB139: 130 | AC139: 4534 | AD139: 50621827.42 | CR139: 26 | CS139: 999 | CT139: 130 | CU139: 4510.064516 | CV139: 45907675.2 | CW139: 1 | CX139: 37054551
A140: 00270027 | B140: 0027 | C140: 0027 | D140: 131 | E140: 27 | F140: Berkley | G140: 27 | H140: Berkley | I140: 8014902.18 | J140: 0.6150031131 | K140: =X140 -> 7936943.77 | L140: =IF(K144>0, K140/K144, 0) -> 0.6015043026 | N140: =ROUND(M144*L140,0) -> 4234022 | O140: 4170576 | P140: =N140-O140 -> 63446 | Q140: 1.521276677 | R140: 764 | S140: 733 | T140: 27 | U140: 27 | V140: 131 | W140: 733 | X140: 7936943.77 | Y140: 131 | Z140: 27 | AA140: 27 | AB140: 131 | AC140: 733 | AD140: 7936943.77 | CR140: 27 | CS140: 27 | CT140: 131 | CU140: 774 | CV140: 7541762.29 | CW140: 0.6173477677 | CX140: 3837447
A141: 00270763 | B141: 0027 | C141: 0763 | D141: 132 | E141: 27 | F141: Berkley | G141: 763 | H141: Somerset Berkley | I141: 3435010.976 | J141: 0.2635768218 | K141: 3384731.308 | L141: =IF(K144>0, K141/K144, 0) -> 0.2565131497 | N141: =ROUND(M144*L141,0) -> 1805610 | O141: 1787417 | P141: =N141-O141 -> 18193 | Q141: 1.017837472 | R141: 286 | S141: 274.5362035 | T141: 27 | U141: 763 | V141: 132 | W141: 274.5362035 | X141: 3384731.308 | Y141: 132 | Z141: 27 | AA141: 763 | AB141: 132 | AC141: 274.5362035 | AD141: 3384731.308 | CR141: 27 | CS141: 763 | CT141: 132 | CU141: 265 | CV141: 2968320.139 | CW141: 0.2429784633 | CX141: 1510359
A142: 00270810 | B142: 0027 | C142: 0810 | D142: 133 | E142: 27 | F142: Berkley | G142: 810 | H142: Bristol Plymouth | I142: 1390464.314 | J142: 0.106693739 | K142: 1714128.336 | L142: =IF(K144>0, K142/K144, 0) -> 0.129905868 | N142: =ROUND(M144*L142,0) -> 914415 | O142: 723532 | P142: =N142-O142 -> 190883 | Q142: 26.38210888 | R142: 80.29917727 | S142: 95.28127313 | T142: 27 | U142: 810 | V142: 133 | W142: 95.28127313 | X142: 1714128.336 | Y142: 133 | Z142: 27 | AA142: 810 | AB142: 133 | AC142: 95.28127313 | AD142: 1714128.336 | CR142: 27 | CS142: 810 | CT142: 133 | CU142: 93.21104387 | CV142: 1512814.346 | CW142: 0.1238347913 | CX142: 769760
A143: 00270910 | B143: 0027 | C143: 0910 | D143: 134 | E143: 27 | F143: Berkley | G143: 910 | H143: Bristol County | I143: 191917.8311 | J143: 0.01472632615 | K143: 159353.6866 | L143: =IF(K144>0, K143/K144, 0) -> 0.01207667975 | N143: =ROUND(M144*L143,0) -> 85008 | O143: 99865 | P143: =N143-O143 -> -14857 | Q143: -14.87708406 | R143: 11 | S143: 8.999999998 | T143: 27 | U143: 910 | V143: 134 | W143: 8.999999998 | X143: 159353.6866 | Y143: 134 | Z143: 27 | AA143: 910 | AB143: 134 | AC143: 8.999999998 | AD143: 159353.6866 | CR143: 27 | CS143: 910 | CT143: 134 | CU143: 12 | CV143: 193495.1602 | CW143: 0.01583897776 | CX143: 98455
A144: 00270999 | B144: 0027 | C144: 0999 | D144: 135 | E144: 27 | F144: Berkley | G144: 999 | H144: Total | I144: 13032295.3 | J144: 1 | K144: =SUM(K140:K143) -> 13195157.1 | L144: =SUM(L140:L143) -> 1 | M144: =VLOOKUP(E144,town351,24) -> 7039055 | N144: =SUM(N140:N143) -> 7039055 | O144: 6781390 | P144: =SUM(P140:P143) -> 257665 | Q144: =IF(O144>0,P144*100/O144,IF(P144>0,100,0)) -> 3.79958976 | R144: 1141.299177 | S144: 1111.817477 | T144: 27 | U144: 999 | V144: 135 | W144: 1111.817477 | X144: 13195157.1 | Y144: 135 | Z144: 27 | AA144: 999 | AB144: 135 | AC144: 1111.817477 | AD144: 13195157.1 | CR144: 27 | CS144: 999 | CT144: 135 | CU144: 1144.211044 | CV144: 12216391.94 | CW144: 1 | CX144: 6216021
A145: 00280028 | B145: 0028 | C145: 0028 | D145: 136 | E145: 28 | F145: Berlin | G145: 28 | H145: Berlin | I145: 0 | J145: 0 | K145: =X145 -> 0 | L145: =IF(K149>0, K145/K149, 0) -> 0 | N145: =ROUND(M149*L145,0) -> 0 | O145: 0 | P145: =N145-O145 -> 0 | Q145: 0 | R145: 0 | S145: 0 | T145: 28 | U145: 28 | V145: 136 | W145: 0 | X145: 0 | Y145: 136 | Z145: 28 | AA145: 28 | AB145: 136 | AC145: 0 | AD145: 0 | CR145: 28 | CS145: 28 | CT145: 136 | CU145: 159 | CV145: 1639651.663 | CW145: 0.409965727 | CX145: 1352713
A146: 00280620 | B146: 0028 | C146: 0620 | D146: 137 | E146: 28 | F146: Berlin | G146: 620 | H146: Berlin Boylston | I146: 3478424.116 | J146: 0.8657588246 | K146: 3802966.43 | L146: =IF(K149>0, K146/K149, 0) -> 0.867283746 | N146: =ROUND(M149*L146,0) -> 3018493 | O146: 2869700 | P146: =N146-O146 -> 148793 | Q146: 5.18496707 | R146: 326.9351464 | S146: 347.8636826 | T146: 28 | U146: 620 | V146: 137 | W146: 347.8636826 | X146: 3802966.43 | Y146: 137 | Z146: 28 | AA146: 620 | AB146: 137 | AC146: 347.8636826 | AD146: 3802966.43 | CR146: 28 | CS146: 620 | CT146: 137 | CU146: 189.6860254 | CV146: 1939567.246 | CW146: 0.4849542828 | CX146: 1600143
A147: 00280801 | B147: 0028 | C147: 0801 | D147: 138 | E147: 28 | F147: Berlin | G147: 801 | H147: Assabet Valley | I147: 539350.8312 | J147: 0.1342411754 | K147: 581949.6341 | L147: =IF(K149>0, K147/K149, 0) -> 0.132716254 | N147: =ROUND(M149*L147,0) -> 461905 | O147: 444964 | P147: =N147-O147 -> 16941 | Q147: 3.807274296 | R147: 29 | S147: 30 | T147: 28 | U147: 801 | V147: 138 | W147: 30 | X147: 581949.6341 | Y147: 138 | Z147: 28 | AA147: 801 | AB147: 138 | AC147: 30 | AD147: 581949.6341 | CR147: 28 | CS147: 801 | CT147: 138 | CU147: 24 | CV147: 420265.8159 | CW147: 0.1050799902 | CX147: 346719
A148: 00280998 | B148: 0028 | C148: 0998 | D148: 139 | E148: 28 | G148: 998 | I148: 0 | J148: 0 | K148: 0 | L148: =IF(K149>0, K148/K149, 0) -> 0 | N148: =ROUND(M149*L148,0) -> 0 | O148: 0 | P148: =N148-O148 -> 0 | Q148: 0 | R148: 0 | S148: 0 | T148: 28 | U148: 998 | V148: 139 | W148: 0 | X148: 0 | Y148: 139 | Z148: 28 | AA148: 998 | AB148: 139 | AC148: 0 | AD148: 0 | CR148: 28 | CS148: 998 | CT148: 139 | CU148: 0 | CV148: 0 | CW148: 0 | CX148: 0
A149: 00280999 | B149: 0028 | C149: 0999 | D149: 140 | E149: 28 | F149: Berlin | G149: 999 | H149: Total | I149: 4017774.947 | J149: 1 | K149: =SUM(K145:K148) -> 4384916.064 | L149: =SUM(L145:L148) -> 1 | M149: =VLOOKUP(E149,town351,24) -> 3480398 | N149: =SUM(N145:N148) -> 3480398 | O149: 3314664 | P149: =SUM(P145:P148) -> 165734 | Q149: 5.000024135 | R149: 355.9351464 | S149: 377.8636826 | T149: 28 | U149: 999 | V149: 140 | W149: 377.8636826 | X149: 4384916.064 | Y149: 140 | Z149: 28 | AA149: 999 | AB149: 140 | AC149: 377.8636826 | AD149: 4384916.064 | CR149: 28 | CS149: 999 | CT149: 140 | CU149: 372.6860254 | CV149: 3999484.725 | CW149: 1 | CX149: 3299575
A150: 00290029 | B150: 0029 | C150: 0029 | D150: 141 | E150: 29 | F150: Bernardston | G150: 29 | H150: Bernardston | I150: 0 | J150: 0 | K150: =X150 -> 0 | L150: =IF(K154>0, K150/K154, 0) -> 0 | N150: =ROUND(M154*L150,0) -> 0 | O150: 0 | P150: =N150-O150 -> 0 | Q150: 0 | R150: 0 | S150: 0 | T150: 29 | U150: 29 | V150: 141 | W150: 0 | X150: 0 | Y150: 141 | Z150: 29 | AA150: 29 | AB150: 141 | AC150: 0 | AD150: 0 | CR150: 29 | CS150: 29 | CT150: 141 | CU150: 0 | CV150: 0 | CW150: 0 | CX150: 0
A151: 00290750 | B151: 0029 | C151: 0750 | D151: 142 | E151: 29 | F151: Bernardston | G151: 750 | H151: Pioneer | I151: 2656656.363 | J151: 0.8396139443 | K151: 2714047.356 | L151: =IF(K154>0, K151/K154, 0) -> 0.813703739 | N151: =ROUND(M154*L151,0) -> 1419867 | O151: 1426701 | P151: =N151-O151 -> -6834 | Q151: -0.4790071641 | R151: 235.8038633 | S151: 231.5016077 | T151: 29 | U151: 750 | V151: 142 | W151: 231.5016077 | X151: 2714047.356 | Y151: 142 | Z151: 29 | AA151: 750 | AB151: 142 | AC151: 231.5016077 | AD151: 2714047.356 | CR151: 29 | CS151: 750 | CT151: 142 | CU151: 239.6345609 | CV151: 2510445.984 | CW151: 0.8462046523 | CX151: 1412356
A152: 00290818 | B152: 0029 | C152: 0818 | D152: 143 | E152: 29 | F152: Bernardston | G152: 818 | H152: Franklin County | I152: 507483.9909 | J152: 0.1603860557 | K152: 621377.1061 | L152: =IF(K154>0, K152/K154, 0) -> 0.186296261 | N152: =ROUND(M154*L152,0) -> 325076 | O152: 272533 | P152: =N152-O152 -> 52543 | Q152: 19.2795001 | R152: 28 | S152: 36 | T152: 29 | U152: 818 | V152: 143 | W152: 36 | X152: 621377.1061 | Y152: 143 | Z152: 29 | AA152: 818 | AB152: 143 | AC152: 36 | AD152: 621377.1061 | CR152: 29 | CS152: 818 | CT152: 143 | CU152: 27 | CV152: 456266.592 | CW152: 0.1537953477 | CX152: 256692
A153: 00290998 | B153: 0029 | C153: 0998 | D153: 144 | E153: 29 | G153: 998 | I153: 0 | J153: 0 | K153: 0 | L153: =IF(K154>0, K153/K154, 0) -> 0 | N153: =ROUND(M154*L153,0) -> 0 | O153: 0 | P153: =N153-O153 -> 0 | Q153: 0 | R153: 0 | S153: 0 | T153: 29 | U153: 998 | V153: 144 | W153: 0 | X153: 0 | Y153: 144 | Z153: 29 | AA153: 998 | AB153: 144 | AC153: 0 | AD153: 0 | CR153: 29 | CS153: 998 | CT153: 144 | CU153: 0 | CV153: 0 | CW153: 0 | CX153: 0
A154: 00290999 | B154: 0029 | C154: 0999 | D154: 145 | E154: 29 | F154: Bernardston | G154: 999 | H154: Total | I154: 3164140.354 | J154: 1 | K154: =SUM(K150:K153) -> 3335424.462 | L154: =SUM(L150:L153) -> 1 | M154: =VLOOKUP(E154,town351,24) -> 1744943 | N154: =SUM(N150:N153) -> 1744943 | O154: 1699234 | P154: =SUM(P150:P153) -> 45709 | Q154: 2.689976778 | R154: 263.8038633 | S154: 267.5016077 | T154: 29 | U154: 999 | V154: 145 | W154: 267.5016077 | X154: 3335424.462 | Y154: 145 | Z154: 29 | AA154: 999 | AB154: 145 | AC154: 267.5016077 | AD154: 3335424.462 | CR154: 29 | CS154: 999 | CT154: 145 | CU154: 266.6345609 | CV154: 2966712.576 | CW154: 1 | CX154: 1669048
A155: 00300030 | B155: 0030 | C155: 0030 | D155: 146 | E155: 30 | F155: Beverly | G155: 30 | H155: Beverly | I155: 51866271.12 | J155: 0.9616445719 | K155: =X155 -> 53826076.49 | L155: =IF(K159>0, K155/K159, 0) -> 0.9624302704 | N155: =ROUND(M159*L155,0) -> 43333361 | O155: 41749093 | P155: =N155-O155 -> 1584268 | Q155: 3.794736331 | R155: 4570 | S155: 4613 | T155: 30 | U155: 30 | V155: 146 | W155: 4613 | X155: 53826076.49 | Y155: 146 | Z155: 30 | AA155: 30 | AB155: 146 | AC155: 4613 | AD155: 53826076.49 | CR155: 30 | CS155: 30 | CT155: 146 | CU155: 4398 | CV155: 46490353.89 | CW155: 0.9572881994 | CX155: 38354542
A156: 00300817 | B156: 0030 | C156: 0817 | D156: 147 | E156: 30 | F156: Beverly | G156: 817 | H156: Essex North Shore | I156: 2068698.866 | J156: 0.03835542814 | K156: 2101171.585 | L156: =IF(K159>0, K156/K159, 0) -> 0.03756972956 | N156: =ROUND(M159*L156,0) -> 1691575 | O156: 1665173 | P156: =N156-O156 -> 26402 | Q156: 1.585540962 | R156: 121 | S156: 116 | T156: 30 | U156: 817 | V156: 147 | W156: 116 | X156: 2101171.585 | Y156: 147 | Z156: 30 | AA156: 817 | AB156: 147 | AC156: 116 | AD156: 2101171.585 | CR156: 30 | CS156: 817 | CT156: 147 | CU156: 128 | CV156: 2074283.092 | CW156: 0.04271180062 | CX156: 1711284
A157: 00300998 | B157: 0030 | C157: 0998 | D157: 148 | E157: 30 | G157: 998 | I157: 0 | J157: 0 | K157: 0 | L157: =IF(K159>0, K157/K159, 0) -> 0 | N157: =ROUND(M159*L157,0) -> 0 | O157: 0 | P157: =N157-O157 -> 0 | Q157: 0 | R157: 0 | S157: 0 | T157: 30 | U157: 998 | V157: 148 | W157: 0 | X157: 0 | Y157: 148 | Z157: 30 | AA157: 998 | AB157: 148 | AC157: 0 | AD157: 0 | CR157: 30 | CS157: 998 | CT157: 148 | CU157: 0 | CV157: 0 | CW157: 0 | CX157: 0
A158: 00300998 | B158: 0030 | C158: 0998 | D158: 149 | E158: 30 | G158: 998 | I158: 0 | J158: 0 | K158: 0 | L158: =IF(K159>0, K158/K159, 0) -> 0 | N158: =ROUND(M159*L158,0) -> 0 | O158: 0 | P158: =N158-O158 -> 0 | Q158: 0 | R158: 0 | S158: 0 | T158: 30 | U158: 998 | V158: 149 | W158: 0 | X158: 0 | Y158: 149 | Z158: 30 | AA158: 998 | AB158: 149 | AC158: 0 | AD158: 0 | CR158: 30 | CS158: 998 | CT158: 149 | CU158: 0 | CV158: 0 | CW158: 0 | CX158: 0
A159: 00300999 | B159: 0030 | C159: 0999 | D159: 150 | E159: 30 | F159: Beverly | G159: 999 | H159: Total | I159: 53934969.99 | J159: 1 | K159: =SUM(K155:K158) -> 55927248.08 | L159: =SUM(L155:L158) -> 1 | M159: =VLOOKUP(E159,town351,24) -> 45024936 | N159: =SUM(N155:N158) -> 45024936 | O159: 43414266 | P159: =SUM(P155:P158) -> 1610670 | Q159: 3.710001685 | R159: 4691 | S159: 4729 | T159: 30 | U159: 999 | V159: 150 | W159: 4729 | X159: 55927248.08 | Y159: 150 | Z159: 30 | AA159: 999 | AB159: 150 | AC159: 4729 | AD159: 55927248.08 | CR159: 30 | CS159: 999 | CT159: 150 | CU159: 4526 | CV159: 48564636.98 | CW159: 1 | CX159: 40065826
A160: 00310031 | B160: 0031 | C160: 0031 | D160: 151 | E160: 31 | F160: Billerica | G160: 31 | H160: Billerica | I160: 52647471.61 | J160: 0.8582526149 | K160: =X160 -> 52163794.35 | L160: =IF(K164>0, K160/K164, 0) -> 0.8576175246 | N160: =ROUND(M164*L160,0) -> 43035131 | O160: 41417136 | P160: =N160-O160 -> 1617995 | Q160: 3.906583497 | R160: 4866 | S160: 4694 | T160: 31 | U160: 31 | V160: 151 | W160: 4694 | X160: 52163794.35 | Y160: 151 | Z160: 31 | AA160: 31 | AB160: 151 | AC160: 4694 | AD160: 52163794.35 | CR160: 31 | CS160: 31 | CT160: 151 | CU160: 4912 | CV160: 50010476.06 | CW160: 0.832729159 | CX160: 37025362
A161: 00310871 | B161: 0031 | C161: 0871 | D161: 152 | E161: 31 | F161: Billerica | G161: 871 | H161: Shawsheen Valley | I161: 8695157.231 | J161: 0.1417473851 | K161: 8660282.645 | L161: =IF(K164>0, K161/K164, 0) -> 0.1423824754 | N161: =ROUND(M164*L161,0) -> 7144733 | O161: 6840376 | P161: =N161-O161 -> 304357 | Q161: 4.449419155 | R161: 517 | S161: 507 | T161: 31 | U161: 871 | V161: 152 | W161: 507 | X161: 8660282.645 | Y161: 152 | Z161: 31 | AA161: 871 | AB161: 152 | AC161: 507 | AD161: 8660282.645 | CR161: 31 | CS161: 871 | CT161: 152 | CU161: 630 | CV161: 10045636.45 | CW161: 0.167270841 | CX161: 7437308
A162: 00310998 | B162: 0031 | C162: 0998 | D162: 153 | E162: 31 | G162: 998 | I162: 0 | J162: 0 | K162: 0 | L162: =IF(K164>0, K162/K164, 0) -> 0 | N162: =ROUND(M164*L162,0) -> 0 | O162: 0 | P162: =N162-O162 -> 0 | Q162: 0 | R162: 0 | S162: 0 | T162: 31 | U162: 998 | V162: 153 | W162: 0 | X162: 0 | Y162: 153 | Z162: 31 | AA162: 998 | AB162: 153 | AC162: 0 | AD162: 0 | CR162: 31 | CS162: 998 | CT162: 153 | CU162: 0 | CV162: 0 | CW162: 0 | CX162: 0
A163: 00310998 | B163: 0031 | C163: 0998 | D163: 154 | E163: 31 | G163: 998 | I163: 0 | J163: 0 | K163: 0 | L163: =IF(K164>0, K163/K164, 0) -> 0 | N163: =ROUND(M164*L163,0) -> 0 | O163: 0 | P163: =N163-O163 -> 0 | Q163: 0 | R163: 0 | S163: 0 | T163: 31 | U163: 998 | V163: 154 | W163: 0 | X163: 0 | Y163: 154 | Z163: 31 | AA163: 998 | AB163: 154 | AC163: 0 | AD163: 0 | CR163: 31 | CS163: 998 | CT163: 154 | CU163: 0 | CV163: 0 | CW163: 0 | CX163: 0
A164: 00310999 | B164: 0031 | C164: 0999 | D164: 155 | E164: 31 | F164: Billerica | G164: 999 | H164: Total | I164: 61342628.84 | J164: 1 | K164: =SUM(K160:K163) -> 60824077 | L164: =SUM(L160:L163) -> 1 | M164: =VLOOKUP(E164,town351,24) -> 50179864 | N164: =SUM(N160:N163) -> 50179864 | O164: 48257512 | P164: =SUM(P160:P163) -> 1922352 | Q164: 3.983529031 | R164: 5383 | S164: 5201 | T164: 31 | U164: 999 | V164: 155 | W164: 5201 | X164: 60824077 | Y164: 155 | Z164: 31 | AA164: 999 | AB164: 155 | AC164: 5201 | AD164: 60824077 | CR164: 31 | CS164: 999 | CT164: 155 | CU164: 5542 | CV164: 60056112.51 | CW164: 1 | CX164: 44462670
A165: 00320032 | B165: 0032 | C165: 0032 | D165: 156 | E165: 32 | F165: Blackstone | G165: 32 | H165: Blackstone | I165: 408810.82 | J165: 0.02544576243 | K165: =X165 -> 446551.15 | L165: =IF(K169>0, K165/K169, 0) -> 0.02761744027 | N165: =ROUND(M169*L165,0) -> 217842 | O165: 197411 | P165: =N165-O165 -> 20431 | Q165: 10.34947394 | R165: 26 | S165: 28 | T165: 32 | U165: 32 | V165: 156 | W165: 28 | X165: 446551.15 | Y165: 156 | Z165: 32 | AA165: 32 | AB165: 156 | AC165: 28 | AD165: 446551.15 | CR165: 32 | CS165: 32 | CT165: 156 | CU165: 20 | CV165: 303047.63 | CW165: 0.02048401944 | CX165: 146874
A166: 00320622 | B166: 0032 | C166: 0622 | D166: 157 | E166: 32 | F166: Blackstone | G166: 622 | H166: Blackstone Millville | I166: 14224835.22 | J166: 0.8854016575 | K166: 14441104.82 | L166: =IF(K169>0, K166/K169, 0) -> 0.8931257923 | N166: =ROUND(M169*L166,0) -> 7044849 | O166: 6869052 | P166: =N166-O166 -> 175797 | Q166: 2.559261453 | R166: 1279.894737 | S166: 1254.770318 | T166: 32 | U166: 622 | V166: 157 | W166: 1254.770318 | X166: 14441104.82 | Y166: 157 | Z166: 32 | AA166: 622 | AB166: 157 | AC166: 1254.770318 | AD166: 14441104.82 | CR166: 32 | CS166: 622 | CT166: 157 | CU166: 1279.134454 | CV166: 13152292.87 | CW166: 0.8890081829 | CX166: 6374329
A167: 00320805 | B167: 0032 | C167: 0805 | D167: 158 | E167: 32 | F167: Blackstone | G167: 805 | H167: Blackstone Valley | I167: 1432322.551 | J167: 0.08915258008 | K167: 1281516.328 | L167: =IF(K169>0, K167/K169, 0) -> 0.07925676745 | N167: =ROUND(M169*L167,0) -> 625166 | O167: 691656 | P167: =N167-O167 -> -66490 | Q167: -9.613160299 | R167: 87 | S167: 76.00000001 | T167: 32 | U167: 805 | V167: 158 | W167: 76.00000001 | X167: 1281516.328 | Y167: 158 | Z167: 32 | AA167: 805 | AB167: 158 | AC167: 76.00000001 | AD167: 1281516.328 | CR167: 32 | CS167: 805 | CT167: 158 | CU167: 86 | CV167: 1339003.493 | CW167: 0.09050779768 | CX167: 648955
A168: 00320998 | B168: 0032 | C168: 0998 | D168: 159 | E168: 32 | G168: 998 | I168: 0 | J168: 0 | K168: 0 | L168: =IF(K169>0, K168/K169, 0) -> 0 | N168: =ROUND(M169*L168,0) -> 0 | O168: 0 | P168: =N168-O168 -> 0 | Q168: 0 | R168: 0 | S168: 0 | T168: 32 | U168: 998 | V168: 159 | W168: 0 | X168: 0 | Y168: 159 | Z168: 32 | AA168: 998 | AB168: 159 | AC168: 0 | AD168: 0 | CR168: 32 | CS168: 998 | CT168: 159 | CU168: 0 | CV168: 0 | CW168: 0 | CX168: 0
A169: 00320999 | B169: 0032 | C169: 0999 | D169: 160 | E169: 32 | F169: Blackstone | G169: 999 | H169: Total | I169: 16065968.59 | J169: 1 | K169: =SUM(K165:K168) -> 16169172.29 | L169: =SUM(L165:L168) -> 1 | M169: =VLOOKUP(E169,town351,24) -> 7887857 | N169: =SUM(N165:N168) -> 7887857 | O169: 7758119 | P169: =SUM(P165:P168) -> 129738 | Q169: 1.6722868 | R169: 1392.894737 | S169: 1358.770318 | T169: 32 | U169: 999 | V169: 160 | W169: 1358.770318 | X169: 16169172.29 | Y169: 160 | Z169: 32 | AA169: 999 | AB169: 160 | AC169: 1358.770318 | AD169: 16169172.29 | CR169: 32 | CS169: 999 | CT169: 160 | CU169: 1385.134454 | CV169: 14794343.99 | CW169: 1 | CX169: 7170158
A170: 00330033 | B170: 0033 | C170: 0033 | D170: 161 | E170: 33 | F170: Blandford | G170: 33 | H170: Blandford | I170: 102604.6 | J170: 0.07295490693 | K170: =X170 -> 149429.5 | L170: =IF(K174>0, K170/K174, 0) -> 0.1131821334 | N170: =ROUND(M174*L170,0) -> 123279 | O170: 84649 | P170: =N170-O170 -> 38630 | Q170: 45.63550662 | R170: 7 | S170: 10 | T170: 33 | U170: 33 | V170: 161 | W170: 10 | X170: 149429.5 | Y170: 161 | Z170: 33 | AA170: 33 | AB170: 161 | AC170: 10 | AD170: 149429.5 | CR170: 33 | CS170: 33 | CT170: 161 | CU170: 8 | CV170: 110697.28 | CW170: 0.08659184341 | CX170: 91325
A171: 00330672 | B171: 0033 | C171: 0672 | D171: 162 | E171: 33 | F171: Blandford | G171: 672 | H171: Gateway | I171: 1303806.625 | J171: 0.9270450931 | K171: 1170827.466 | L171: =IF(K174>0, K171/K174, 0) -> 0.8868178666 | N171: =ROUND(M174*L171,0) -> 965933 | O171: 1075640 | P171: =N171-O171 -> -109707 | Q171: -10.19923023 | R171: 110.3686007 | S171: 95.40983607 | T171: 33 | U171: 672 | V171: 162 | W171: 95.40983607 | X171: 1170827.466 | Y171: 162 | Z171: 33 | AA171: 672 | AB171: 162 | AC171: 95.40983607 | AD171: 1170827.466 | CR171: 33 | CS171: 672 | CT171: 162 | CU171: 108.006795 | CV171: 1167682.711 | CW171: 0.9134081566 | CX171: 963338
A172: 00330998 | B172: 0033 | C172: 0998 | D172: 163 | E172: 33 | G172: 998 | I172: 0 | J172: 0 | K172: 0 | L172: =IF(K174>0, K172/K174, 0) -> 0 | N172: =ROUND(M174*L172,0) -> 0 | O172: 0 | P172: =N172-O172 -> 0 | Q172: 0 | R172: 0 | S172: 0 | T172: 33 | U172: 998 | V172: 163 | W172: 0 | X172: 0 | Y172: 163 | Z172: 33 | AA172: 998 | AB172: 163 | AC172: 0 | AD172: 0 | CR172: 33 | CS172: 998 | CT172: 163 | CU172: 0 | CV172: 0 | CW172: 0 | CX172: 0
A173: 00330998 | B173: 0033 | C173: 0998 | D173: 164 | E173: 33 | G173: 998 | I173: 0 | J173: 0 | K173: 0 | L173: =IF(K174>0, K173/K174, 0) -> 0 | N173: =ROUND(M174*L173,0) -> 0 | O173: 0 | P173: =N173-O173 -> 0 | Q173: 0 | R173: 0 | S173: 0 | T173: 33 | U173: 998 | V173: 164 | W173: 0 | X173: 0 | Y173: 164 | Z173: 33 | AA173: 998 | AB173: 164 | AC173: 0 | AD173: 0 | CR173: 33 | CS173: 998 | CT173: 164 | CU173: 0 | CV173: 0 | CW173: 0 | CX173: 0
A174: 00330999 | B174: 0033 | C174: 0999 | D174: 165 | E174: 33 | F174: Blandford | G174: 999 | H174: Total | I174: 1406411.225 | J174: 1 | K174: =SUM(K170:K173) -> 1320256.966 | L174: =SUM(L170:L173) -> 1 | M174: =VLOOKUP(E174,town351,24) -> 1089212 | N174: =SUM(N170:N173) -> 1089212 | O174: 1160289 | P174: =SUM(P170:P173) -> -71077 | Q174: -6.125801417 | R174: 117.3686007 | S174: 105.4098361 | T174: 33 | U174: 999 | V174: 165 | W174: 105.4098361 | X174: 1320256.966 | Y174: 165 | Z174: 33 | AA174: 999 | AB174: 165 | AC174: 105.4098361 | AD174: 1320256.966 | CR174: 33 | CS174: 999 | CT174: 165 | CU174: 116.006795 | CV174: 1278379.991 | CW174: 1 | CX174: 1054663
A175: 00340034 | B175: 0034 | C175: 0034 | D175: 166 | E175: 34 | F175: Bolton | G175: 34 | H175: Bolton | I175: 15157.29088 | J175: 0.001364653637 | K175: =X175 -> 15449.48386 | L175: =IF(K179>0, K175/K179, 0) -> 0.001284919247 | N175: =ROUND(M179*L175,0) -> 12379 | O175: 12505 | P175: =N175-O175 -> -126 | Q175: -1.007596961 | R175: 1 | S175: 1 | T175: 34 | U175: 34 | V175: 166 | W175: 1 | X175: 15449.48386 | Y175: 166 | Z175: 34 | AA175: 34 | AB175: 166 | AC175: 1 | AD175: 15449.48386 | CR175: 34 | CS175: 34 | CT175: 166 | CU175: 1 | CV175: 14264.24656 | CW175: 0.001335325678 | CX175: 11464
A176: 00340725 | B176: 0034 | C176: 0725 | D176: 167 | E176: 34 | F176: Bolton | G176: 725 | H176: Nashoba | I176: 10831610.86 | J176: 0.9752004675 | K176: 11666200.5 | L176: =IF(K179>0, K176/K179, 0) -> 0.9702670779 | N176: =ROUND(M179*L176,0) -> 9347864 | O176: 8936079 | P176: =N176-O176 -> 411785 | Q176: 4.608117274 | R176: 1004.171625 | S176: 1054.280557 | T176: 34 | U176: 725 | V176: 167 | W176: 1054.280557 | X176: 11666200.5 | Y176: 167 | Z176: 34 | AA176: 725 | AB176: 167 | AC176: 1054.280557 | AD176: 11666200.5 | CR176: 34 | CS176: 725 | CT176: 167 | CU176: 1037.266117 | CV176: 10452467.17 | CW176: 0.9784917668 | CX176: 8400729
A177: 00340830 | B177: 0034 | C177: 0830 | D177: 168 | E177: 34 | F177: Bolton | G177: 830 | H177: Minuteman | I177: 260292.6234 | J177: 0.02343487883 | K177: 342050.2589 | L177: =IF(K179>0, K177/K179, 0) -> 0.02844800287 | N177: =ROUND(M179*L177,0) -> 274077 | O177: 214741 | P177: =N177-O177 -> 59336 | Q177: 27.63142576 | R177: 14 | S177: 17 | T177: 34 | U177: 830 | V177: 168 | W177: 17 | X177: 342050.2589 | Y177: 168 | Z177: 34 | AA177: 830 | AB177: 168 | AC177: 17 | AD177: 342050.2589 | CR177: 34 | CS177: 830 | CT177: 168 | CU177: 12.03519062 | CV177: 215491.4947 | CW177: 0.02017290749 | CX177: 173192
A178: 00340998 | B178: 0034 | C178: 0998 | D178: 169 | E178: 34 | G178: 998 | I178: 0 | J178: 0 | K178: 0 | L178: =IF(K179>0, K178/K179, 0) -> 0 | N178: =ROUND(M179*L178,0) -> 0 | O178: 0 | P178: =N178-O178 -> 0 | Q178: 0 | R178: 0 | S178: 0 | T178: 34 | U178: 998 | V178: 169 | W178: 0 | X178: 0 | Y178: 169 | Z178: 34 | AA178: 998 | AB178: 169 | AC178: 0 | AD178: 0 | CR178: 34 | CS178: 998 | CT178: 169 | CU178: 0 | CV178: 0 | CW178: 0 | CX178: 0
A179: 00340999 | B179: 0034 | C179: 0999 | D179: 170 | E179: 34 | F179: Bolton | G179: 999 | H179: Total | I179: 11107060.77 | J179: 1 | K179: =SUM(K175:K178) -> 12023700.24 | L179: =SUM(L175:L178) -> 1 | M179: =VLOOKUP(E179,town351,24) -> 9634320 | N179: =SUM(N175:N178) -> 9634320 | O179: 9163325 | P179: =SUM(P175:P178) -> 470995 | Q179: 5.140001037 | R179: 1019.171625 | S179: 1072.280557 | T179: 34 | U179: 999 | V179: 170 | W179: 1072.280557 | X179: 12023700.24 | Y179: 170 | Z179: 34 | AA179: 999 | AB179: 170 | AC179: 1072.280557 | AD179: 12023700.24 | CR179: 34 | CS179: 999 | CT179: 170 | CU179: 1050.301307 | CV179: 10682222.92 | CW179: 1 | CX179: 8585385
A180: 00350035 | B180: 0035 | C180: 0035 | D180: 171 | E180: 35 | F180: Boston | G180: 35 | H180: Boston | I180: 924506066 | J180: 1 | K180: =X180 -> 973396859.4 | L180: =IF(K184>0, K180/K184, 0) -> 1 | N180: =ROUND(M184*L180,0) -> 780870181 | O180: 762717504 | P180: =N180-O180 -> 18152677 | Q180: 2.380000053 | R180: 62890 | S180: 60704 | T180: 35 | U180: 35 | V180: 171 | W180: 60704 | X180: 973396859.4 | Y180: 171 | Z180: 35 | AA180: 35 | AB180: 171 | AC180: 60704 | AD180: 973396859.4 | CR180: 35 | CS180: 35 | CT180: 171 | CU180: 64508 | CV180: 861999611.9 | CW180: 1 | CX180: 711149680
A181: 00350998 | B181: 0035 | C181: 0998 | D181: 172 | E181: 35 | G181: 998 | I181: 0 | J181: 0 | K181: 0 | L181: =IF(K184>0, K181/K184, 0) -> 0 | N181: =ROUND(M184*L181,0) -> 0 | O181: 0 | P181: =N181-O181 -> 0 | Q181: 0 | R181: 0 | S181: 0 | T181: 35 | U181: 998 | V181: 172 | W181: 0 | X181: 0 | Y181: 172 | Z181: 35 | AA181: 998 | AB181: 172 | AC181: 0 | AD181: 0 | CR181: 35 | CS181: 998 | CT181: 172 | CU181: 0 | CV181: 0 | CW181: 0 | CX181: 0
A182: 00350998 | B182: 0035 | C182: 0998 | D182: 173 | E182: 35 | G182: 998 | I182: 0 | J182: 0 | K182: 0 | L182: =IF(K184>0, K182/K184, 0) -> 0 | N182: =ROUND(M184*L182,0) -> 0 | O182: 0 | P182: =N182-O182 -> 0 | Q182: 0 | R182: 0 | S182: 0 | T182: 35 | U182: 998 | V182: 173 | W182: 0 | X182: 0 | Y182: 173 | Z182: 35 | AA182: 998 | AB182: 173 | AC182: 0 | AD182: 0 | CR182: 35 | CS182: 998 | CT182: 173 | CU182: 0 | CV182: 0 | CW182: 0 | CX182: 0
A183: 00350998 | B183: 0035 | C183: 0998 | D183: 174 | E183: 35 | G183: 998 | I183: 0 | J183: 0 | K183: 0 | L183: =IF(K184>0, K183/K184, 0) -> 0 | N183: =ROUND(M184*L183,0) -> 0 | O183: 0 | P183: =N183-O183 -> 0 | Q183: 0 | R183: 0 | S183: 0 | T183: 35 | U183: 998 | V183: 174 | W183: 0 | X183: 0 | Y183: 174 | Z183: 35 | AA183: 998 | AB183: 174 | AC183: 0 | AD183: 0 | CR183: 35 | CS183: 998 | CT183: 174 | CU183: 0 | CV183: 0 | CW183: 0 | CX183: 0
A184: 00350999 | B184: 0035 | C184: 0999 | D184: 175 | E184: 35 | F184: Boston | G184: 999 | H184: Total | I184: 924506066 | J184: 1 | K184: =SUM(K180:K183) -> 973396859.4 | L184: =SUM(L180:L183) -> 1 | M184: =VLOOKUP(E184,town351,24) -> 780870181 | N184: =SUM(N180:N183) -> 780870181 | O184: 762717504 | P184: =SUM(P180:P183) -> 18152677 | Q184: 2.380000053 | R184: 62890 | S184: 60704 | T184: 35 | U184: 999 | V184: 175 | W184: 60704 | X184: 973396859.4 | Y184: 175 | Z184: 35 | AA184: 999 | AB184: 175 | AC184: 60704 | AD184: 973396859.4 | CR184: 35 | CS184: 999 | CT184: 175 | CU184: 64508 | CV184: 861999611.9 | CW184: 1 | CX184: 711149680
A185: 00360036 | B185: 0036 | C185: 0036 | D185: 176 | E185: 36 | F185: Bourne | G185: 36 | H185: Bourne | I185: 22664002.02 | J185: 0.8760903726 | K185: =X185 -> 20913172.69 | L185: =IF(K189>0, K185/K189, 0) -> 0.8672201431 | N185: =ROUND(M189*L185,0) -> 17253367 | O185: 18697802 | P185: =N185-O185 -> -1444435 | Q185: -7.725159353 | R185: 2012 | S185: 1789 | T185: 36 | U185: 36 | V185: 176 | W185: 1789 | X185: 20913172.69 | Y185: 176 | Z185: 36 | AA185: 36 | AB185: 176 | AC185: 1789 | AD185: 20913172.69 | CR185: 36 | CS185: 36 | CT185: 176 | CU185: 2038 | CV185: 21368782.29 | CW185: 0.8829556615 | CX185: 17629245
A186: 00360879 | B186: 0036 | C186: 0879 | D186: 177 | E186: 36 | F186: Bourne | G186: 879 | H186: Upper Cape Cod | I186: 3205477.577 | J186: 0.1239096274 | K186: 3202010.584 | L186: =IF(K189>0, K186/K189, 0) -> 0.1327798569 | N186: =ROUND(M189*L186,0) -> 2641659 | O186: 2644519 | P186: =N186-O186 -> -2860 | Q186: -0.1081482115 | R186: 185 | S186: 179.7084433 | T186: 36 | U186: 879 | V186: 177 | W186: 179.7084433 | X186: 3202010.584 | Y186: 177 | Z186: 36 | AA186: 879 | AB186: 177 | AC186: 179.7084433 | AD186: 3202010.584 | CR186: 36 | CS186: 879 | CT186: 177 | CU186: 175 | CV186: 2832639.392 | CW186: 0.1170443385 | CX186: 2336928
A187: 00360998 | B187: 0036 | C187: 0998 | D187: 178 | E187: 36 | G187: 998 | I187: 0 | J187: 0 | K187: 0 | L187: =IF(K189>0, K187/K189, 0) -> 0 | N187: =ROUND(M189*L187,0) -> 0 | O187: 0 | P187: =N187-O187 -> 0 | Q187: 0 | R187: 0 | S187: 0 | T187: 36 | U187: 998 | V187: 178 | W187: 0 | X187: 0 | Y187: 178 | Z187: 36 | AA187: 998 | AB187: 178 | AC187: 0 | AD187: 0 | CR187: 36 | CS187: 998 | CT187: 178 | CU187: 0 | CV187: 0 | CW187: 0 | CX187: 0
A188: 00360998 | B188: 0036 | C188: 0998 | D188: 179 | E188: 36 | G188: 998 | I188: 0 | J188: 0 | K188: 0 | L188: =IF(K189>0, K188/K189, 0) -> 0 | N188: =ROUND(M189*L188,0) -> 0 | O188: 0 | P188: =N188-O188 -> 0 | Q188: 0 | R188: 0 | S188: 0 | T188: 36 | U188: 998 | V188: 179 | W188: 0 | X188: 0 | Y188: 179 | Z188: 36 | AA188: 998 | AB188: 179 | AC188: 0 | AD188: 0 | CR188: 36 | CS188: 998 | CT188: 179 | CU188: 0 | CV188: 0 | CW188: 0 | CX188: 0
A189: 00360999 | B189: 0036 | C189: 0999 | D189: 180 | E189: 36 | F189: Bourne | G189: 999 | H189: Total | I189: 25869479.6 | J189: 1 | K189: =SUM(K185:K188) -> 24115183.27 | L189: =SUM(L185:L188) -> 1 | M189: =VLOOKUP(E189,town351,24) -> 19895026 | N189: =SUM(N185:N188) -> 19895026 | O189: 21342321 | P189: =SUM(P185:P188) -> -1447295 | Q189: -6.781338356 | R189: 2197 | S189: 1968.708443 | T189: 36 | U189: 999 | V189: 180 | W189: 1968.708443 | X189: 24115183.27 | Y189: 180 | Z189: 36 | AA189: 999 | AB189: 180 | AC189: 1968.708443 | AD189: 24115183.27 | CR189: 36 | CS189: 999 | CT189: 180 | CU189: 2213 | CV189: 24201421.68 | CW189: 1 | CX189: 19966173
A190: 00370037 | B190: 0037 | C190: 0037 | D190: 181 | E190: 37 | F190: Boxborough | G190: 37 | H190: Boxborough | I190: 143372.8123 | J190: 0.01512259637 | K190: =X190 -> 144906.6751 | L190: =IF(K194>0, K190/K194, 0) -> 0.01519235035 | N190: =ROUND(M194*L190,0) -> 119548 | O190: 117755 | P190: =N190-O190 -> 1793 | Q190: 1.522652966 | R190: 9 | S190: 9 | T190: 37 | U190: 37 | V190: 181 | W190: 9 | X190: 144906.6751 | Y190: 181 | Z190: 37 | AA190: 37 | AB190: 181 | AC190: 9 | AD190: 144906.6751 | CR190: 37 | CS190: 37 | CT190: 181 | CU190: 7 | CV190: 106694.35 | CW190: 0.01223870901 | CX190: 87553
A191: 00370600 | B191: 0037 | C191: 0600 | D191: 182 | E191: 37 | F191: Boxborough | G191: 600 | H191: Acton Boxborough | I191: 9337328.04 | J191: 0.9848774036 | K191: 9393227.435 | L191: =IF(K194>0, K191/K194, 0) -> 0.9848076496 | N191: =ROUND(M194*L191,0) -> 7749413 | O191: 7668914 | P191: =N191-O191 -> 80499 | Q191: 1.049679264 | R191: 856.0218559 | S191: 832.8951906 | T191: 37 | U191: 600 | V191: 182 | W191: 832.8951906 | X191: 9393227.435 | Y191: 182 | Z191: 37 | AA191: 600 | AB191: 182 | AC191: 832.8951906 | AD191: 9393227.435 | CR191: 37 | CS191: 600 | CT191: 182 | CU191: 848.4607105 | CV191: 8611083.801 | CW191: 0.987761291 | CX191: 7066196
A192: 00370830 | B192: 0037 | C192: 0830 | D192: 183 | E192: 37 | G192: 998 | I192: 0 | J192: 0 | K192: 0 | L192: =IF(K194>0, K192/K194, 0) -> 0 | N192: =ROUND(M194*L192,0) -> 0 | O192: 0 | P192: =N192-O192 -> 0 | Q192: 0 | R192: 0 | S192: 0 | T192: 37 | U192: 998 | V192: 183 | W192: 0 | X192: 0 | Y192: 183 | Z192: 37 | AA192: 998 | AB192: 183 | AC192: 0 | AD192: 0 | CR192: 37 | CS192: 830 | CT192: 183 | CU192: 0 | CV192: 0 | CW192: 0 | CX192: 0
A193: 00370998 | B193: 0037 | C193: 0998 | D193: 184 | E193: 37 | G193: 998 | I193: 0 | J193: 0 | K193: 0 | L193: =IF(K194>0, K193/K194, 0) -> 0 | N193: =ROUND(M194*L193,0) -> 0 | O193: 0 | P193: =N193-O193 -> 0 | Q193: 0 | R193: 0 | S193: 0 | T193: 37 | U193: 998 | V193: 184 | W193: 0 | X193: 0 | Y193: 184 | Z193: 37 | AA193: 998 | AB193: 184 | AC193: 0 | AD193: 0 | CR193: 37 | CS193: 998 | CT193: 184 | CU193: 0 | CV193: 0 | CW193: 0 | CX193: 0
A194: 00370999 | B194: 0037 | C194: 0999 | D194: 185 | E194: 37 | F194: Boxborough | G194: 999 | H194: Total | I194: 9480700.853 | J194: 1 | K194: =SUM(K190:K193) -> 9538134.11 | L194: =SUM(L190:L193) -> 1 | M194: =VLOOKUP(E194,town351,24) -> 7868961 | N194: =SUM(N190:N193) -> 7868961 | O194: 7786669 | P194: =SUM(P190:P193) -> 82292 | Q194: 1.056831875 | R194: 865.0218559 | S194: 841.8951906 | T194: 37 | U194: 999 | V194: 185 | W194: 841.8951906 | X194: 9538134.11 | Y194: 185 | Z194: 37 | AA194: 999 | AB194: 185 | AC194: 841.8951906 | AD194: 9538134.11 | CR194: 37 | CS194: 999 | CT194: 185 | CU194: 855.4607105 | CV194: 8717778.151 | CW194: 1 | CX194: 7153749
A195: 00380038 | B195: 0038 | C195: 0038 | D195: 186 | E195: 38 | F195: Boxford | G195: 38 | H195: Boxford | I195: 7419452.155 | J195: 0.4904939192 | K195: =X195 -> 7066465.098 | L195: =IF(K199>0, K195/K199, 0) -> 0.4793123791 | N195: =ROUND(M199*L195,0) -> 5829834 | O195: 6121048 | P195: =N195-O195 -> -291214 | Q195: -4.757583995 | R195: 729 | S195: 673 | T195: 38 | U195: 38 | V195: 186 | W195: 673 | X195: 7066465.098 | Y195: 186 | Z195: 38 | AA195: 38 | AB195: 186 | AC195: 673 | AD195: 7066465.098 | CR195: 38 | CS195: 38 | CT195: 186 | CU195: 704 | CV195: 6655216.908 | CW195: 0.4677186164 | CX195: 5490554
A196: 00380705 | B196: 0038 | C196: 0705 | D196: 187 | E196: 38 | F196: Boxford | G196: 705 | H196: Masconomet | I196: 7433492.502 | J196: 0.491422115 | K196: 7241731.913 | L196: =IF(K199>0, K196/K199, 0) -> 0.4912005796 | N196: =ROUND(M199*L196,0) -> 5974429 | O196: 6132632 | P196: =N196-O196 -> -158203 | Q196: -2.579691721 | R196: 669.5079007 | S196: 630.0907514 | T196: 38 | U196: 705 | V196: 187 | W196: 630.0907514 | X196: 7241731.913 | Y196: 187 | Z196: 38 | AA196: 705 | AB196: 187 | AC196: 630.0907514 | AD196: 7241731.913 | CR196: 38 | CS196: 705 | CT196: 187 | CU196: 700.7592191 | CV196: 7282191.189 | CW196: 0.5117814241 | CX196: 6007808
A197: 00380817 | B197: 0038 | C197: 0817 | D197: 188 | E197: 38 | F197: Boxford | G197: 817 | H197: Essex North Shore | I197: 273546.9575 | J197: 0.01808396583 | K197: 434725.1554 | L197: =IF(K199>0, K197/K199, 0) -> 0.02948704134 | N197: =ROUND(M199*L197,0) -> 358648 | O197: 225676 | P197: =N197-O197 -> 132972 | Q197: 58.92163987 | R197: 16 | S197: 23.99999999 | T197: 38 | U197: 817 | V197: 188 | W197: 23.99999999 | X197: 434725.1554 | Y197: 188 | Z197: 38 | AA197: 817 | AB197: 188 | AC197: 23.99999999 | AD197: 434725.1554 | CR197: 38 | CS197: 817 | CT197: 188 | CU197: 18 | CV197: 291696.0598 | CW197: 0.02049995956 | CX197: 240649
A198: 00380998 | B198: 0038 | C198: 0998 | D198: 189 | E198: 38 | G198: 998 | I198: 0 | J198: 0 | K198: 0 | L198: =IF(K199>0, K198/K199, 0) -> 0 | N198: =ROUND(M199*L198,0) -> 0 | O198: 0 | P198: =N198-O198 -> 0 | Q198: 0 | R198: 0 | S198: 0 | T198: 38 | U198: 998 | V198: 189 | W198: 0 | X198: 0 | Y198: 189 | Z198: 38 | AA198: 998 | AB198: 189 | AC198: 0 | AD198: 0 | CR198: 38 | CS198: 998 | CT198: 189 | CU198: 0 | CV198: 0 | CW198: 0 | CX198: 0
A199: 00380999 | B199: 0038 | C199: 0999 | D199: 190 | E199: 38 | F199: Boxford | G199: 999 | H199: Total | I199: 15126491.61 | J199: 1 | K199: =SUM(K195:K198) -> 14742922.17 | L199: =SUM(L195:L198) -> 1 | M199: =VLOOKUP(E199,town351,24) -> 12162911 | N199: =SUM(N195:N198) -> 12162911 | O199: 12479356 | P199: =SUM(P195:P198) -> -316445 | Q199: -2.535747838 | R199: 1414.507901 | S199: 1327.090751 | T199: 38 | U199: 999 | V199: 190 | W199: 1327.090751 | X199: 14742922.17 | Y199: 190 | Z199: 38 | AA199: 999 | AB199: 190 | AC199: 1327.090751 | AD199: 14742922.17 | CR199: 38 | CS199: 999 | CT199: 190 | CU199: 1422.759219 | CV199: 14229104.16 | CW199: 1 | CX199: 11739011
A200: 00390039 | B200: 0039 | C200: 0039 | D200: 191 | E200: 39 | F200: Boylston | G200: 39 | H200: Boylston | I200: 438126.42 | J200: 0.06199416389 | K200: =X200 -> 579300.35 | L200: =IF(K204>0, K200/K204, 0) -> 0.07768297657 | N200: =ROUND(M204*L200,0) -> 466561 | O200: 353125 | P200: =N200-O200 -> 113436 | Q200: 32.12346903 | R200: 28 | S200: 35 | T200: 39 | U200: 39 | V200: 191 | W200: 35 | X200: 579300.35 | Y200: 191 | Z200: 39 | AA200: 39 | AB200: 191 | AC200: 35 | AD200: 579300.35 | CR200: 39 | CS200: 39 | CT200: 191 | CU200: 286 | CV200: 2856144.64 | CW200: 0.4346535656 | CX200: 2256220
... 362 more rows

Sheet Foundation Budget
A1: Return to Index | U1: More about the data
A2: Massachusetts Department of Elementary and Secondary Education
A3: Office of School Finance
A4: =parameters!B1&" Chapter 70 Foundation Budget" -> FY22 Chapter 70 Foundation Budget
A5: =lea -> 999 | B5: =IF(lea=999,"State total cannot be computed on this page; Please enter an lea code on the index sheet",VLOOKUP(A5,dist915,2)) -> State total cannot be computed on this page; Please enter an lea code on the index sheet | H5: 6 | I5: 8 | K5: 9 | L5: 10 | M5: 11 | N5: 12 | O5: 13 | P5: 14
C6: Base Foundation Components | K6: Incremental Costs Above the Base
C7: 1 | D7: 2 | E7: 3 | F7: 4 | G7: 5 | H7: 6 | I7: 7 | K7: 8 | L7: 9 | M7: 10 | N7: 11 | O7: 12 | P7: 13 | Q7: 14
D8: ------ Kindergarten ------ | G8: Junior/ | H8: High | K8: Special Ed | L8: Special Ed | M8: English learners | N8: English learners | O8: English learners
C9: Pre-school | D9: Half-Day | E9: Full-Day | F9: Elementary | G9: Middle | H9: School | I9: Vocational | K9: In-District | L9: Tuitioned-Out | M9: PK-5 | N9: 6-8 | O9: High School/Voc | P9: Low income | Q9: TOTAL
B10: Foundation Enrollment | C10: =IF($A$5<>999,VLOOKUP(lea,dist915,VALUE(C$7)+2),0) -> 0 | D10: 0 | E10: 0 | F10: 0 | G10: 0 | H10: 0 | I10: =IF($A$5<>999,VLOOKUP(lea,dist915,VALUE(I$7)+2),0) -> 0 | K10: =IF($A$5<>999,VLOOKUP(lea,dist915,VALUE(K$7)+2),0) -> 0 | L10: 0 | M10: 0 | N10: 0 | O10: 0 | P10: 0 | Q10: 0
A12: 1 | B12: Administration | C12: =(VLOOKUP(VALUE(C$7),newrates,$A12+2)*C$10*waf) -> 0 | D12: 0 | E12: 0 | F12: 0 | G12: 0 | H12: 0 | I12: 0 | K12: =(VLOOKUP(VALUE(K$7),newrates,$A12+2)*K$10*waf) -> 0 | L12: 0 | M12: 0 | N12: 0 | O12: 0 | P12: =(VLOOKUP(VALUE(P$7)+$C$29-1, newrates, $A12+2, FALSE))*P$10*waf -> 0 | Q12: =SUM(C12:P12) -> 0
A13: 2 | B13: Instructional Leadership | C13: 0 | D13: 0 | E13: 0 | F13: 0 | G13: 0 | H13: 0 | I13: 0 | K13: 0 | L13: 0 | M13: 0 | N13: 0 | O13: 0 | P13: =(VLOOKUP(VALUE(P$7)+$C$29-1, newrates, $A13+2, FALSE))*P$10*waf -> 0 | Q13: 0
A14: 3 | B14: Classroom & Specialist Teachers | C14: 0 | D14: 0 | E14: 0 | F14: 0 | G14: 0 | H14: 0 | I14: 0 | K14: 0 | L14: 0 | M14: 0 | N14: 0 | O14: 0 | P14: =(VLOOKUP(VALUE(P$7)+$C$29-1, newrates, $A14+2, FALSE))*P$10*waf -> 0 | Q14: 0
A15: 4 | B15: Other Teaching Services | C15: 0 | D15: 0 | E15: 0 | F15: 0 | G15: 0 | H15: 0 | I15: 0 | K15: 0 | L15: 0 | M15: 0 | N15: 0 | O15: 0 | P15: =(VLOOKUP(VALUE(P$7)+$C$29-1, newrates, $A15+2, FALSE))*P$10*waf -> 0 | Q15: 0
A16: 5 | B16: Professional Development | C16: 0 | D16: 0 | E16: 0 | F16: 0 | G16: 0 | H16: 0 | I16: 0 | K16: 0 | L16: 0 | M16: 0 | N16: 0 | O16: 0 | P16: =(VLOOKUP(VALUE(P$7)+$C$29-1, newrates, $A16+2, FALSE))*P$10*waf -> 0 | Q16: 0
A17: 6 | B17: Instructional Materials, Equipment & Technology* | C17: =(VLOOKUP(VALUE(C$7),newrates,$A17+2)*C$10) -> 0 | D17: 0 | E17: 0 | F17: 0 | G17: 0 | H17: 0 | I17: 0 | K17: =(VLOOKUP(VALUE(K$7),newrates,$A17+2)*K$10) -> 0 | L17: =(VLOOKUP(VALUE(L$7),newrates,$A17+2)*L$10) -> 0 | M17: =(VLOOKUP(VALUE(M$7),newrates,$A17+2)*M$10) -> 0 | N17: =(VLOOKUP(VALUE(N$7),newrates,$A17+2)*N$10) -> 0 | O17: =(VLOOKUP(VALUE(O$7),newrates,$A17+2)*O$10) -> 0 | P17: =(VLOOKUP(VALUE(P$7)+$C$29-1, newrates, $A17+2, FALSE))*P$10 -> 0 | Q17: 0
A18: 7 | B18: Guidance & Psychological Services | C18: =(VLOOKUP(VALUE(C$7),newrates,$A18+2)*C$10*waf) -> 0 | D18: 0 | E18: 0 | F18: 0 | G18: 0 | H18: 0 | I18: 0 | K18: =(VLOOKUP(VALUE(K$7),newrates,$A18+2)*K$10*waf) -> 0 | L18: 0 | M18: 0 | N18: 0 | O18: 0 | P18: =(VLOOKUP(VALUE(P$7)+$C$29-1, newrates, $A18+2, FALSE))*P$10*waf -> 0 | Q18: 0
A19: 8 | B19: Pupil Services | C19: 0 | D19: 0 | E19: 0 | F19: 0 | G19: 0 | H19: 0 | I19: 0 | K19: 0 | L19: 0 | M19: 0 | N19: 0 | O19: 0 | P19: =(VLOOKUP(VALUE(P$7)+$C$29-1, newrates, $A19+2, FALSE))*P$10*waf -> 0 | Q19: 0
A20: 9 | B20: Operations & Maintenance | C20: 0 | D20: 0 | E20: 0 | F20: 0 | G20: 0 | H20: 0 | I20: 0 | K20: 0 | L20: 0 | M20: 0 | N20: 0 | O20: 0 | P20: =(VLOOKUP(VALUE(P$7)+$C$29-1, newrates, $A20+2, FALSE))*P$10*waf -> 0 | Q20: 0
A21: 10 | B21: Employee Benefits/Fixed Charges* | C21: =(VLOOKUP(VALUE(C$7),newrates,$A21+2)*C$10) -> 0 | D21: 0 | E21: 0 | F21: 0 | G21: 0 | H21: 0 | I21: 0 | K21: =(VLOOKUP(VALUE(K$7),newrates,$A21+2)*K$10) -> 0 | L21: =(VLOOKUP(VALUE(L$7),newrates,$A21+2)*L$10) -> 0 | M21: =(VLOOKUP(VALUE(M$7),newrates,$A21+2)*M$10) -> 0 | N21: =(VLOOKUP(VALUE(N$7),newrates,$A21+2)*N$10) -> 0 | O21: =(VLOOKUP(VALUE(O$7),newrates,$A21+2)*O$10) -> 0 | P21: =(VLOOKUP(VALUE(P$7)+$C$29-1, newrates, $A21+2, FALSE))*P$10 -> 0 | Q21: 0
A22: 11 | B22: Special Education Tuition* | C22: 0 | D22: 0 | E22: 0 | F22: 0 | G22: 0 | H22: 0 | I22: 0 | K22: =(VLOOKUP(VALUE(K$7)-2,newrates,$A22+2)*K$10) -> 0 | L22: =(VLOOKUP(VALUE(L$7),newrates,$A22+2)*L$10) -> 0 | M22: =(VLOOKUP(VALUE(M$7),newrates,$A22+2)*M$10) -> 0 | N22: =(VLOOKUP(VALUE(N$7),newrates,$A22+2)*N$10) -> 0 | O22: =(VLOOKUP(VALUE(O$7)-2,newrates,$A22+2)*O$10) -> 0 | P22: =(VLOOKUP(VALUE(P$7)+$C$29-1, newrates, $A22+2, FALSE))*P$10 -> 0 | Q22: 0
A24: 12 | B24: Total | C24: =SUM(C12:C22) -> 0 | D24: =SUM(D12:D22) -> 0 | E24: =SUM(E12:E22) -> 0 | F24: 0 | G24: 0 | H24: 0 | I24: =SUM(I12:I22) -> 0 | K24: 0 | L24: 0 | M24: 0 | N24: 0 | O24: 0 | P24: 0 | Q24: =SUM(Q12:Q23) -> 0
A26: 13 | B26: Wage Adjustment Factor | C26: =VLOOKUP(lea,dist915,17) -> 0 | N26: Foundation Budget per Pupil | Q26: =IFERROR(IF(A5<>999,Q24/Q10," "),"") -> 
B27: *The wage adjustment factor is applied to underlying rates in all functions except instructional equipment, benefits and special education tuition.
A28: 14 | B28: Low income percentage | C28: =VLOOKUP(lea,dist915,19) -> 0 | L28: English learner foundation budget as % total foundation budget | Q28: =IFERROR(IF(A5=999,"",SUM(M24:O24)/Q24),"") -> 
A29: 15 | B29: Low income group | C29: =VLOOKUP(lea,dist915,18) -> 0 | L29: Low-income foundation budget as % total foundation budget | Q29: =IFERROR(IF(A5=999,"",P24/Q24),"") -> 
L31: Low income enrollment determination
B32: Total foundation enrollment (column 14) does not include incremental costs above the base. The pupils are already counted in columns 1 to 7. | L32: Estimated low income enrollment based on FY16 Ch.70 | P32: =IF($A$5<>999,VLOOKUP(lea,dist915,44,0),"") -> 
B33: Total foundation enrollment assigns pupils in pre-kindergarten and half-time kindergarten an enrollment count of .5. | L33: FY22 low income enrollment from direct certification | P33: =IF($A$5<>999,VLOOKUP(lea,dist915,45,0),"") -> 
B34: Special education in-district enrollment is an assumed percentage, representing 3.82 percent of K-12 non-vocational enrollment and | L34: greater number used for FY22 Chapter 70 | P34: =IF($A$5<>999,VLOOKUP(lea,dist915,46,0),"") -> 
B35: 4.82 percent of vocational enrollment.
B36: Special education tuitioned-out enrollment is also an assumed percentage, representing 1 percent of non-vocational K-12 enrollment.
B37: Direct certification includes the Supplemental Nutrition Assistance Program (SNAP);
B38: the Transitional Assistance for Families with Dependent Children (TAFDC); MassHealth (Medicaid); and students in foster care.
B39: Low income and English learner foundation budget increments are based on:
B40: the number of students attending school in the district or district residents who attend charter schools.
B41: The low income percentage is the ratio of the low-income enrollment to:
B42: the total students attending school in the district and the total resident students attending charter schools.
B44: Each component of the foundation budget represents the enrollment in row 10 multiplied by the appropriate statewide foundation allotment.
B45: The foundation budget shown on this page may differ from the final number used in the formula, due to rounding error.
B48: Return to Index

Sheet Municipal Contribution
M1: =IF(VLOOKUP(A6,town351,18)>0,"lo","hi") -> hi
A2: Return to Index | G2: More about the data
A3: Massachusetts Department of Elementary and Secondary Education
A4: Office of School Finance
A5: =parameters!B1&" Chapter 70 Determination of City and Town Total Required Contribution" -> FY22 Chapter 70 Determination of City and Town Total Required Contribution
A6: =lea -> 999 | B6: =IF(lea>351, "This lea code does not refer to a city or a town - this table shows municipal data only.",VLOOKUP(A6,aidcalc,2)) -> This lea code does not refer to a city or a town - this table shows municipal data only.
A8: Effort Goal | E8: =parameters!B1&" Increments Toward Goal" -> FY22 Increments Toward Goal
A10: 1) | B10: 2020 equalized valuation | C10: =IF(A6<352,VLOOKUP($A$6,town351,3)," ") ->  | E10: 13) | F10: =PYr&" required local contribution" -> FY21 required local contribution | G10: =IF(A6<352,VLOOKUP($A$6,town351,14)," ") -> 
A11: 2) | B11: Uniform property percentage | C11: =IF(A6<352,'Townwide Contributions'!D5," ") ->  | E11: 14) | F11: Municipal revenue growth factor (DOR) | G11: =IF(A$6<352,VLOOKUP($A$6,town351,15)," ") -> 
A12: 3) | B12: Local effort from property wealth | C12: =IF(A6<352,VLOOKUP($A$6,town351,4)," ") ->  | E12: 15) | F12: =parameters!B1&" preliminary contribution (13 raised by 14)" -> FY22 preliminary contribution (13 raised by 14) | G12: =IF(A$6<352,VLOOKUP($A$6,town351,16)," ") -> 
E13: 16) | F13: Preliminary contribution pct of foundation (15 / 8) | G13: =IF(A$6<352,VLOOKUP($A$6,town351,17)/100," ") -> 
A14: 4) | B14: 2018 income | C14: =IF(A6<352,VLOOKUP($A$6,town351,5)," ") -> 
A15: 5) | B15: Uniform income percentage | C15: =IF(A6<352,'Townwide Contributions'!F5," ") ->  | E15: If preliminary contribution is above the target share:
A16: 6) | B16: Local effort from income | C16: =IF(A6<352,VLOOKUP($A$6,town351,6)," ") ->  | E16: 17) | F16: Excess local effort (15 - 10) | G16: =IF(AND(A$6<352,M$1="hi"),VLOOKUP($A$6,town351,21)," ") -> 
E17: 18) | F17: =parameters!$C$50&" reduction toward target (17 x "&parameters!$C$50&")" -> 100% reduction toward target (17 x 100%) | G17: =IF(AND(A$6<352,M$1="hi"),VLOOKUP($A$6,town351,22)," ") -> 
A18: 7) | B18: Combined effort yield (3 + 6) | C18: =IF(A6<352,VLOOKUP($A$6,town351,7)," ") ->  | E18: 19) | F18: =parameters!B1&" required local contribution (15 - 18), capped at 90% of foundation" -> FY22 required local contribution (15 - 18), capped at 90% of foundation | G18: =IF(AND(A$6<352,M$1="hi"),VLOOKUP($A$6,town351,24)," ") -> 
E19: 20) | F19: Contribution as percentage of foundation (19 / 8) | G19: =IF(AND(A$6<352,M$1="hi"),VLOOKUP($A$6,town351,25)/100," ") -> 
A20: 8) | B20: =parameters!B1&" Foundation budget" -> FY22 Foundation budget | C20: =IF(A6<352,VLOOKUP($A$6,town351,8)," ") -> 
A21: 9) | B21: Maximum local contribution (82.5% * 8) | C21: =IF(A6<352,VLOOKUP($A$6,town351,10)," ") ->  | E21: If preliminary contribution is below the target share:
E22: 21) | F22: Shortfall from target local share (10 - 15) | G22: =IF(AND(A$6<352,M1="lo"),-1*VLOOKUP($A$6,town351,27)," ") -> 
A23: 10) | B23: Target local contribution (lesser of 7 or 9) | C23: =IF(A6<352,VLOOKUP($A$6,town351,11)," ") ->  | E23: 22) | F23: Shortfall percentage (11 - 16) | G23: =IF(AND(A$6<352,M1="lo"),VLOOKUP($A$6,town351,18)/100," ") -> 
E24: 23) | F24: Added increment toward target (13 x 1% or 2%)* | G24: =IF(AND(A$6<352,M1="lo"),VLOOKUP($A$6,town351,20)," ") -> 
A25: 11) | B25: Target local share (10 as % of 8) | C25: =IF(A6<352,VLOOKUP(lea,town351,12)/100," ") ->  | F25: *1% if shortfall is between 2.5% and 7.5%; 2% if shortfall > 7.5%
A26: 12) | B26: Target aid share (100% minus 11) | C26: =IF(A6<352,VLOOKUP(lea,aidcalc,13)/100," ") ->  | E26: 24) | F26: Special increment toward 82.5% target** | G26: =IF(AND(A$6<352,M1="lo"),VLOOKUP($A$6,town351,23)," ") -> 
F27: **if combined effort yield > 175% foundation
F28: Combined effort yield as % of foundation | G28: =IF(AND(A$6<352,M1="lo"),IF(VLOOKUP($A$6,town351,9)>175%,VLOOKUP($A$6,town351,9)," "),"") -> 
B29: See a listing of all 351 communities | E29: 25) | F29: Shortfall from target after adding increments (10 - 15 - 23 - 24) | G29: =IF(AND(A$6<352,M1="lo"),-1*VLOOKUP($A$6,town351,28)," ") -> 
E30: 26) | F30: =parameters!B1&" required local contribution (15 + 23 + 24)" -> FY22 required local contribution (15 + 23 + 24) | G30: =IF(AND(A$6<352,M1="lo"),VLOOKUP($A$6,town351,24)," ") -> 
E31: 27) | F31: Contribution as percentage of foundation (26 / 8) | G31: =IF(AND(A$6<352,M1="lo"),VLOOKUP($A$6,town351,25)/100," ") -> 

Sheet Regional Allocation
J1: More about the data
D2: Return to Index
D3: Massachusetts Department of Elementary and Secondary Education
D4: Office of School Finance
D5: =CYr& " Chapter 70 Apportionment of Local Contribution Across School Districts" -> FY22 Chapter 70 Apportionment of Local Contribution Across School Districts
E6: In FY22, a municipality may deem an amount up to 75% of its local school district’s ESSER II allocation to fund any increase in its local contribution requirement, but not more than the increase in required local contribution from FY21 to FY22. In the case of a municipality's increased required contribution as a member of a regional school district, a municipality may deem a proportional share of 75% of the regional district's ESSER II allocation, equal to the municipality's share of the district's total required contribution, to satisfy the increase in its required contribution. For more information on how these amounts are determined, see the Summary tab for municipal districts and the Regional District Members tab for regional districts.
E7: 4 | F7: 4 | G7: 3 | H7: 2 | I7: 1
A9: 5 | D9: =lea -> 999 | E9: =IF($D$9>351, "", IF(AND($D$9>0, VLOOKUP($D$9*5-E$7, order1755, $A9)<>0), VLOOKUP($D$9*5-E$7, order1755, $A9), "")) ->  | F9: =IF(OR($D$9="", $D$9>351), "", IF(AND($D$9>0, VLOOKUP($D$9*5-F$7, order1755, $A9)<>0), VLOOKUP($D$9*5-F$7, order1755, $A9), "")) ->  | G9: =IF(OR($D$9="", $D$9>351), "", IF(AND($D$9>0, VLOOKUP($D$9*5-G$7, order1755, $A9)<>0), VLOOKUP($D$9*5-G$7, order1755, $A9), "")) ->  | H9: =IF(OR($D$9="", $D$9>351), "", IF(AND($D$9>0, VLOOKUP($D$9*5-H$7, order1755, $A9)<>0), VLOOKUP($D$9*5-H$7, order1755, $A9), "")) ->  | I9: =IF(OR($D$9="", $D$9>351), "", IF(AND($D$9>0, VLOOKUP($D$9*5-I$7, order1755, $A9)<>0), VLOOKUP($D$9*5-I$7, order1755, $A9), "")) ->  | J9: Combined Total for All Districts
A10: 6
E11: Prior Year Data (for comparison purposes)
A13: 15 | D13: 1 | E13: =parameters!B2&" foundation enrollment" -> FY21 foundation enrollment | F13: =IF(OR($D$9="", $D$9>351), "", IF(AND($D$9>0, VLOOKUP($D$9*5-F$7, order1755, $A13)<>0), VLOOKUP($D$9*5-F$7, order1755, $A13), "")) ->  | J13: =IF(OR($D$9="", $D$9>351), "", VLOOKUP($D$9*5, order1755, $A13)) -> 
A14: 6 | D14: 2 | E14: =parameters!B2&" foundation budget" -> FY21 foundation budget | J14: =IF(OR($D$9="", $D$9>351), "", VLOOKUP($D$9*5, order1755, $A14)) -> 
A15: 7 | D15: 3 | E15: ="Each district's share of municipality's combined "& parameters!B2&" foundation" -> Each district's share of municipality's combined FY21 foundation | J15: =IF(OR($D$9="", $D$9>351), "", VLOOKUP($D$9*5, order1755, $A15)) -> 
A16: 12 | D16: 4 | E16: =parameters!B2&" required contribution" -> FY21 required contribution | J16: =IF(OR($D$9="", $D$9>351), "", VLOOKUP($D$9*5, order1755, $A16)) -> 
E17: =parameters!B1& " apportionment of contribution among community's districts" -> FY22 apportionment of contribution among community's districts
D18: 5 | E18: =parameters!B1&" total unapportioned required contribution ('municipal contribution' tab row 19 or 25)" -> FY22 total unapportioned required contribution ('municipal contribution' tab row 19 or 25) | J18: =IF(OR($D$9="", $D$9>351), "", VLOOKUP($D$9,town351,24)) -> 
A19: 20 | D19: 6 | E19: =parameters!B1&" foundation enrollment" -> FY22 foundation enrollment | F19: =IF(OR($D$9="", $D$9>351), "", IF(AND($D$9>0, VLOOKUP($D$9*5-F$7, order1755, $A19)<>0), VLOOKUP($D$9*5-F$7, order1755, $A19), "")) ->  | J19: =IF(OR($D$9="", $D$9>351), "", VLOOKUP($D$9*5, order1755, $A19)) -> 
A20: 8 | D20: 7 | E20: =parameters!B1&" foundation budget" -> FY22 foundation budget | J20: =IF(OR($D$9="", $D$9>351), "", VLOOKUP($D$9*5, order1755, $A20)) -> 
A21: 9 | D21: 8 | E21: ="Each district's share of municipality's total "& parameters!B1&" foundation " -> Each district's share of municipality's total FY22 foundation | J21: =IF(OR($D$9="", $D$9>351), "", VLOOKUP($D$9*5, order1755, $A21)) -> 
A22: 11 | D22: 9 | E22: =parameters!B1&" Required Contribution" -> FY22 Required Contribution | J22: =VLOOKUP($D$9*5, order1755, $A22) -> 6810206787
A24: 13 | D24: 10 | E24: ="Change "&parameters!B1&" to "&parameters!B2& " (9 - 4)" -> Change FY22 to FY21 (9 - 4) | F24: =IF(OR($D$9="", $D$9>351), "", IF(AND($D$9>0, VLOOKUP($D$9*5-F$7, order1755, $A24)<>0), VLOOKUP($D$9*5-F$7, order1755, $A24), "")) ->  | G24: =IF(OR($D$9="", $D$9>351), "", IF(AND($D$9>0, VLOOKUP($D$9*5-G$7, order1755, $A24)<>0), VLOOKUP($D$9*5-G$7, order1755, $A24), "")) ->  | H24: =IF(OR($D$9="", $D$9>351), "", IF(AND($D$9>0, VLOOKUP($D$9*5-H$7, order1755, $A24)<>0), VLOOKUP($D$9*5-H$7, order1755, $A24), "")) ->  | I24: =IF(OR($D$9="", $D$9>351), "", IF(AND($D$9>0, VLOOKUP($D$9*5-I$7, order1755, $A24)<>0), VLOOKUP($D$9*5-I$7, order1755, $A24), "")) ->  | J24: =IF(OR($D$9="", $D$9>351), "", VLOOKUP($D$9*5, order1755, $A24)) -> 
E26: The combined totals on lines 5 and 9 may differ due to rounding.

Sheet Summary
A1: Return to Index | J1: More about the data
A3: Massachusetts Department of Elementary and Secondary Education
A4: =parameters!B1&" Chapter 70 Summary" -> FY22 Chapter 70 Summary
A6: =lea -> 999 | B6: =PROPER(VLOOKUP(A6,dist915,2)) -> State Total
A8: Aid Calculation FY22 | E8: ="Comparison to "&PYr -> Comparison to FY21
F10: =PYr -> FY21 | G10: =CYr -> FY22 | H10: Change | I10: Pct Chg | U10: FY06 | V10: FY07 | W10: FY08 | X10: FY09 | Y10: FY10 | Z10: FY11 | AA10: FY12 | AB10: FY13 | AC10: FY14 | AD10: FY15 | AE10: FY16 | AF10: FY17 | AG10: FY18 | AH10: FY19 | AI10: FY20 | AJ10: FY21 | AK10: FY22
A11: Prior Year Aid | E11: Enrollment | F11: =VLOOKUP(A6,aidcalc,14) -> 938085 | G11: =VLOOKUP(A6,aidcalc,15) -> 907506 | H11: =G11-F11 -> -30579 | I11: =IF(F11>0, H11/F11, 0) -> -0.03259725931 | T11: Required District Contribution | U11: =VLOOKUP($A$6,disthist,5) -> 4743946672 | V11: =VLOOKUP($A$6,disthist,8) -> 4876428772 | W11: =VLOOKUP($A$6,disthist,11) -> 4997705374 | X11: =VLOOKUP($A$6,disthist,14) -> 5110365426 | Y11: =VLOOKUP($A$6,disthist,18) -> 5250106061 | Z11: =VLOOKUP($A$6,disthist,22) -> 5302200670 | AA11: =VLOOKUP($A$6,disthist,27) -> 5413602268 | AB11: =VLOOKUP($A$6,disthist,30) -> 5582113529 | AC11: =VLOOKUP($A$6,disthist, 33) -> 5748475145 | AD11: =VLOOKUP($A$6,disthist, 36) -> 5817618237 | AE11: =VLOOKUP($A$6,disthist, 39) -> 5943909029 | AF11: =VLOOKUP($A$6,disthist, 42) -> 5926185567 | AG11: =VLOOKUP($A$6,disthist, 45) -> 6046916786 | AH11: =VLOOKUP($A$6,disthist, 48) -> 6246842886 | AI11: =VLOOKUP($A$6,disthist, 51) -> 6513607368 | AJ11: =VLOOKUP($A$6,disthist, 54) -> 6705321561 | AK11: =VLOOKUP($A$6,aidcalc,10 ) -> 6810206787
A12: 1 | B12: ="Chapter 70 "&PYr -> Chapter 70 FY21 | C12: =VLOOKUP(A6,aidcalc,6) -> 5283343073 | E12: Foundation budget | F12: =VLOOKUP(A6,disthist,53) -> 1.16265311e+10 | G12: =VLOOKUP(A6,aidcalc,9) -> 1.188355779e+10 | H12: =G12-F12 -> 257026693.2 | I12: =IF(F12>0, H12/F12, 0) -> 0.02210691144 | T12: C70 Aid | U12: =VLOOKUP($A$6,disthist,6) -> 3288603062 | V12: =VLOOKUP($A$6,disthist,9) -> 3505192039 | W12: =VLOOKUP($A$6,disthist,12) -> 3725343327 | X12: =VLOOKUP($A$6,disthist,15)+VLOOKUP($A$6,disthist,16) -> 3948496062 | Y12: =VLOOKUP($A$6,disthist,19)+VLOOKUP($A$6,disthist,20) -> 4043156700 | Z12: =VLOOKUP($A$6,disthist,23)+VLOOKUP($A$6,disthist,24)+VLOOKUP($A$6,disthist,25) -> 4072032853 | AA12: =VLOOKUP($A$6,disthist,28) -> 3990504093 | AB12: =VLOOKUP($A$6,disthist,31) -> 4173223954 | AC12: =VLOOKUP($A$6,disthist,34) -> 4300854366 | AD12: =VLOOKUP($A$6,disthist,37) -> 4400335962 | AE12: =VLOOKUP($A$6,disthist,40) -> 4511521974 | AF12: =VLOOKUP($A$6,disthist,43) -> 4627705061 | AG12: =VLOOKUP($A$6,disthist,46) -> 4745645156 | AH12: =VLOOKUP($A$6,disthist,49) -> 4906614766 | AI12: =VLOOKUP($A$6,disthist,52) -> 5175694094 | AJ12: =VLOOKUP($A$6,disthist,55) -> 5283343073 | AK12: =VLOOKUP($A$6,aidcalc,39 ) -> 5480996085
E13: Required district contribution | F13: =VLOOKUP(A6,disthist,54) -> 6705321561 | G13: =VLOOKUP($A$6, aidcalc, 10) -> 6810206787 | H13: =G13-F13 -> 104885226 | I13: =IF(F13>0, H13/F13, 0) -> 0.01564208741 | T13: Foundation Budget | U13: =VLOOKUP($A$6,disthist,4) -> 7551933454 | V13: =VLOOKUP($A$6,disthist,7) -> 8014672861 | W13: =VLOOKUP($A$6,disthist,10) -> 8406096436 | X13: =VLOOKUP($A$6,disthist,13) -> 8811314229 | Y13: =VLOOKUP($A$6,disthist,17) -> 9088557473 | Z13: =VLOOKUP($A$6,disthist,21) -> 8921047970 | AA13: =VLOOKUP($A$6,disthist,26) -> 9119340580 | AB13: =VLOOKUP($A$6,disthist,29) -> 9467117141 | AC13: =VLOOKUP($A$6,disthist, 32) -> 9711217585 | AD13: =VLOOKUP($A$6,disthist, 35) -> 9866011313 | AE13: =VLOOKUP($A$6,disthist, 38) -> 1.009017727e+10 | AF13: =VLOOKUP($A$6,disthist, 41) -> 1.012823838e+10 | AG13: =VLOOKUP($A$6,disthist, 44) -> 1.037917384e+10 | AH13: =VLOOKUP($A$6,disthist, 47) -> 1.077758855e+10 | AI13: =VLOOKUP($A$6,disthist, 50) -> 1.135904851e+10 | AJ13: =VLOOKUP($A$6,disthist, 53) -> 1.16265311e+10 | AK13: =VLOOKUP($A$6,aidcalc,9 ) -> 1.188355779e+10
A14: Foundation Aid | E14: Chapter 70 aid | F14: =IF(A6=999,VLOOKUP(A6,disthist,55,0)+308558,VLOOKUP(A6,disthist,55,0)) -> 5283651631 | G14: =IF(A6=999,VLOOKUP($A$6,aidcalc,39,0)+308558,VLOOKUP($A$6,aidcalc,39,0)) -> 5481304643 | H14: =G14-F14 -> 197653011.2 | I14: =IF(F14>0, H14/F14, 0) -> 0.03740841088
A15: 2 | B15: Foundation budget FY22 | C15: =VLOOKUP($A$6, aidcalc, 9) -> 1.188355779e+10 | E15: Required net school spending (NSS) | F15: =F13+F14 -> 1.198897319e+10 | G15: =G13+G14 -> 1.229151143e+10 | H15: =G15-F15 -> 302538237.2 | I15: =IF(F15>0, H15/F15, 0) -> 0.02523470796
A16: 3 | B16: ="Required district contribution "& CYr -> Required district contribution FY22 | C16: =VLOOKUP($A$6, aidcalc, 10) -> 6810206787
A17: 4 | B17: Foundation aid (2 -3) | C17: =VLOOKUP($A$6, aidcalc, 11) -> 5073351019 | E17: Target aid share | F17: =VLOOKUP(A$6,disthist,3)/100 -> 0.41 | G17: =VLOOKUP(A6,aidcalc,13)/100 -> 0.41
A18: 5 | B18: ="Increase over " & PYr&" (4 - 1)" -> Increase over FY21 (4 - 1) | C18: =VLOOKUP($A$6, aidcalc, 12) -> 176740387.4 | E18: C70 % of foundation | F18: =IF(F12>0,F14/F12,IF(F14>0,1,0)) -> 0.4544478132 | G18: =IF(G12>0,G14/G12,IF(G14>0,1,0)) -> 0.4612511455
A20: Minimum Aid | E20: Required NSS % of foundation | F20: =IF(F12>0,F15/F12,IF(F15>0,1,0)) -> 1.031173709 | G20: =IF(G12>0,G15/G12,IF(G15>0,1,0)) -> 1.034329251
A21: 6 | B21: Minimum $30 per pupil increase | C21: =IF(A6=999,"",VLOOKUP($A$6,aidcalc,24,0)) -> 
A22: 7 | B22: Minimum aid amount | E22: ESSER II Allocation Available to Fund Increase in Required District Contribution
B23: (if line 6 - line 5 > 0, then line 6 - line 5, otherwise 0) | C23: =VLOOKUP($A$6, aidcalc, 25,0) -> 17246617 | E23: (A) ESSER II allocation | G23: =IF(A6=999,"",IF(A6<406,VLOOKUP($A$6,aidcalc,41,0),"")) -> 
E24: (B) 75% of ESSER II allocation | G24: =IF(A6=999,"",IF(A6<406,VLOOKUP($A$6,aidcalc,42,0),"")) ->  | H24: =IF(A6=999,"",IF(A6>=406,"refer to Regional District Members tab"&CHAR(10)&"for more info","")) -> 
A25: Subtotal | E25: (C) Change in required district contribution over FY21 | G25: =IF(A6=999,"",IF(A6<406,H13,"")) -> 
A26: 8 | B26: Sum of 1,5,7 | C26: =C12+C18+C23 -> 5477330078 | E26: (D) ESSER II allocation available to fund district contribution increase
E27: (if C > 0, then lesser of B or C, otherwise 0) | G27: =IF(A6=999,"",IF(A6<406,IF(G25>0,MIN(G24,G25),0),"")) -> 
A28: Minimum Aid Adjustment
A29: 9 | B29: Minimum aid adjustment | C29: =IF(A6=999,"",VLOOKUP($A$6, aidcalc, 35)) -> 
A30: 10 | B30: Aid adjustment increment
B31: (if line 9 - line 8 > 0, then line 9 - line 8, otherwise 0) | C31: =VLOOKUP($A$6, aidcalc, 36, FALSE) -> 3697393
A33: Non-Operating District Reduction to Foundation
A34: 11 | B34: Reduction to foundation | C34: =VLOOKUP($A$6, aidcalc, 38) -> 31386.2
A36: =CYr&" Chapter 70 Aid" -> FY22 Chapter 70 Aid
A37: 12 | B37: Sum of 1,5,7,10 minus 11 | C37: =VLOOKUP($A$6, aidcalc, 39) -> 5480996085
C38: =IF(A6=999,C37+308558,"") -> 5481304643
C39: =IF(A6=999,"with Devens aid","") -> with Devens aid
A40: Note on Minimum Aid Adjustment on lines 9 and 10:
A41: The minimum aid adjustment is the sum of (a) the greater of foundation aid or base aid determined based on the FY21 base and incremental rates, inflated to FY22, and (b) foundation enrollment multiplied by $30. The aid adjustment increment (line 9) is the line 8 amount less the line 7 amount if the difference is positive. Otherwise, the increment is zero.

Sheet Regional District Members
E2: Return to Index
F3: Select or type full regional district name below
E4: =VLOOKUP(reg_order, regdistricts, 3, FALSE) -> 600 | F4: Acton Boxborough | G4: =VLOOKUP(F4,leas!$E$450:$H$536,4,FALSE) -> 1
E6: Massachusetts Department of Elementary and Secondary Education
E7: Office of School Finance
E8: =CYr&" Chapter 70" -> FY22 Chapter 70
E9: Regional District Enrollment and Contributions by Member City or Town
E10: The table below presents the minimum required local contribution for each member to the selected regional district.
E11: Note: A city or town might belong to more than one regional district (e.g., a regional district and a vocational district) and therefore be required to contribute to multiple districts. See the regional allocation tab for a full list of minimum required contributions for each city or town. Foundation enrollments are presented as whole numbers. Changes reflect differences in enrollment prior to rounding.
B12: =VLOOKUP(E4, leas!D6:G445, 4, FALSE) -> 0600 | D12: 2 | E12: =VLOOKUP(reg_order, regdistricts, 2, FALSE) -> 600 Acton Boxborough | N12: Regional ESSER II allocation | O12: =IF(VALUE(B12)>=406,VLOOKUP(VALUE(B12),'Aid436'!$A$8:$AP$448,41,0)) -> 408600
N13: 75% allocation | O13: =IF(VALUE(B12)>=406,VLOOKUP(VALUE(B12),'Aid436'!$A$8:$AP$448,42,0)) -> 306450
G14: Foundation Enrollment in Regional District | J14: Required Minimum Contribution to Regional District | M14: ESSER II Allocation Available to Fund Increase in Required Minimum Contribution
B16: =VLOOKUP($E$4, regcount, 2, FALSE) -> 2 | E16: LEA | F16: Member | G16: =PYr -> FY21 | H16: =CYr -> FY22 | I16: Change | J16: =PYr -> FY21 | K16: =CYr -> FY22 | L16: Change | M16: Increase/Decrease | N16: Percentage of Regional Required Minimum Contribution | O16: Proportional Share of 75% of Regional ESSER II Allocation | P16: ESSER II Allocation Available to Fund Required Contribution Increases
F18: Total | G18: =SUM(G20:G67) -> 5294 | H18: =SUM(H20:H67) -> 5120 | I18: =SUM(I20:I67) -> -174 | J18: =SUM(J20:J67) -> 46230356 | K18: =SUM(K20:K67) -> 46536642 | L18: =SUM(L20:L62) -> 306286 | O18: If increase, then 75% of regional ESSER II allocation, otherwise zero | P18: If increase, then lesser of column L and column O, otherwise zero
A20: =IF($C20<=$B$16,VLOOKUP(E20,leas!D6:G445,4,FALSE),"") -> 0002 | B20: =$E$4*100+C20 -> 60001 | C20: 1 | E20: =IF($C20<=$B$16, VLOOKUP($B20, regdetail, 5), " ") -> 2 | F20: =IF($C20<=$B$16, VLOOKUP($B20, regdetail, 6), " ") -> Acton | G20: =IF($C20<=$B$16,VLOOKUP(A20&$B$12, localcont!A10:X1764, 18, FALSE), "") -> 4437.978144 | H20: =IF($C20<=$B$16,VLOOKUP(A20&$B$12, localcont!$A$10:$X$1764, 23, FALSE), "") -> 4287.104809 | I20: =IF($C20<=$B$16, H20-G20, " ") -> -150.8733347 | J20: =IF($C20<=$B$16,VLOOKUP(A20&$B$12, localcont!$A$10:$X$1764, 15, FALSE), "") -> 38561442 | K20: =IF($C20<=$B$16,VLOOKUP(A20&$B$12, localcont!$A$10:$X$1764, 14, FALSE),"") -> 38787229 | L20: =IF($C20<=$B$16, K20-J20, " ") -> 225787 | M20: =IF($C20>$B$16,"",IF(L20>0,"increase",IF(L20<0,"decrease",""))) -> increase | N20: =IF($C20>$B$16,"",K20/$K$18) -> 0.833477177 | O20: =IF($C20>$B$16,"",IF(L20>0,N20*$O$13,0)) -> 255419.0809 | P20: =IF($C20>$B$16,"",MAX(MIN(L20,O20),0)) -> 225787
A21: =IF($C21<=$B$16,VLOOKUP(E21,leas!D7:G446,4,FALSE),"") -> 0037 | B21: =$E$4*100+C21 -> 60002 | C21: 2 | E21: 37 | F21: Boxborough | G21: =IF($C21<=$B$16,VLOOKUP(A21&$B$12, localcont!A11:X1765, 18, FALSE), "") -> 856.0218559 | H21: =IF($C21<=$B$16,VLOOKUP(A21&$B$12, localcont!$A$10:$X$1764, 23, FALSE), "") -> 832.8951906 | I21: =IF($C21<=$B$16, H21-G21, " ") -> -23.12666525 | J21: =IF($C21<=$B$16,VLOOKUP(A21&$B$12, localcont!$A$10:$X$1764, 15, FALSE), "") -> 7668914 | K21: =IF($C21<=$B$16,VLOOKUP(A21&$B$12, localcont!$A$10:$X$1764, 14, FALSE),"") -> 7749413 | L21: =IF($C21<=$B$16, K21-J21, " ") -> 80499 | M21: =IF($C21>$B$16,"",IF(L21>0,"increase",IF(L21<0,"decrease",""))) -> increase | N21: =IF($C21>$B$16,"",K21/$K$18) -> 0.166522823 | O21: =IF($C21>$B$16,"",IF(L21>0,N21*$O$13,0)) -> 51030.91912 | P21: =IF($C21>$B$16,"",MAX(MIN(L21,O21),0)) -> 51030.91912
A22: =IF($C22<=$B$16,VLOOKUP(E22,leas!D8:G447,4,FALSE),"") ->  | B22: 60003 | C22: 3 | G22: =IF($C22<=$B$16,VLOOKUP(A22&$B$12, localcont!A12:X1766, 18, FALSE), "") ->  | H22: =IF($C22<=$B$16,VLOOKUP(A22&$B$12, localcont!$A$10:$X$1764, 23, FALSE), "") ->  | J22: =IF($C22<=$B$16,VLOOKUP(A22&$B$12, localcont!$A$10:$X$1764, 15, FALSE), "") ->  | K22: =IF($C22<=$B$16,VLOOKUP(A22&$B$12, localcont!$A$10:$X$1764, 14, FALSE),"") -> 
A23: =IF($C23<=$B$16,VLOOKUP(E23,leas!D9:G448,4,FALSE),"") ->  | B23: 60004 | C23: 4 | G23: =IF($C23<=$B$16,VLOOKUP(A23&$B$12, localcont!A13:X1767, 18, FALSE), "") ->  | H23: =IF($C23<=$B$16,VLOOKUP(A23&$B$12, localcont!$A$10:$X$1764, 23, FALSE), "") ->  | J23: =IF($C23<=$B$16,VLOOKUP(A23&$B$12, localcont!$A$10:$X$1764, 15, FALSE), "") ->  | K23: =IF($C23<=$B$16,VLOOKUP(A23&$B$12, localcont!$A$10:$X$1764, 14, FALSE),"") -> 
A24: =IF($C24<=$B$16,VLOOKUP(E24,leas!D10:G449,4,FALSE),"") ->  | B24: 60005 | C24: 5 | G24: =IF($C24<=$B$16,VLOOKUP(A24&$B$12, localcont!A14:X1768, 18, FALSE), "") ->  | H24: =IF($C24<=$B$16,VLOOKUP(A24&$B$12, localcont!$A$10:$X$1764, 23, FALSE), "") ->  | J24: =IF($C24<=$B$16,VLOOKUP(A24&$B$12, localcont!$A$10:$X$1764, 15, FALSE), "") ->  | K24: =IF($C24<=$B$16,VLOOKUP(A24&$B$12, localcont!$A$10:$X$1764, 14, FALSE),"") -> 
A25: =IF($C25<=$B$16,VLOOKUP(E25,leas!D11:G450,4,FALSE),"") ->  | B25: 60006 | C25: 6 | G25: =IF($C25<=$B$16,VLOOKUP(A25&$B$12, localcont!A15:X1769, 18, FALSE), "") ->  | H25: =IF($C25<=$B$16,VLOOKUP(A25&$B$12, localcont!$A$10:$X$1764, 23, FALSE), "") ->  | J25: =IF($C25<=$B$16,VLOOKUP(A25&$B$12, localcont!$A$10:$X$1764, 15, FALSE), "") ->  | K25: =IF($C25<=$B$16,VLOOKUP(A25&$B$12, localcont!$A$10:$X$1764, 14, FALSE),"") -> 
A26: =IF($C26<=$B$16,VLOOKUP(E26,leas!D12:G451,4,FALSE),"") ->  | B26: 60007 | C26: 7 | G26: =IF($C26<=$B$16,VLOOKUP(A26&$B$12, localcont!A16:X1770, 18, FALSE), "") ->  | H26: =IF($C26<=$B$16,VLOOKUP(A26&$B$12, localcont!$A$10:$X$1764, 23, FALSE), "") ->  | J26: =IF($C26<=$B$16,VLOOKUP(A26&$B$12, localcont!$A$10:$X$1764, 15, FALSE), "") ->  | K26: =IF($C26<=$B$16,VLOOKUP(A26&$B$12, localcont!$A$10:$X$1764, 14, FALSE),"") -> 
A27: =IF($C27<=$B$16,VLOOKUP(E27,leas!D13:G452,4,FALSE),"") ->  | B27: 60008 | C27: 8 | G27: =IF($C27<=$B$16,VLOOKUP(A27&$B$12, localcont!A17:X1771, 18, FALSE), "") ->  | H27: =IF($C27<=$B$16,VLOOKUP(A27&$B$12, localcont!$A$10:$X$1764, 23, FALSE), "") ->  | J27: =IF($C27<=$B$16,VLOOKUP(A27&$B$12, localcont!$A$10:$X$1764, 15, FALSE), "") ->  | K27: =IF($C27<=$B$16,VLOOKUP(A27&$B$12, localcont!$A$10:$X$1764, 14, FALSE),"") -> 
A28: =IF($C28<=$B$16,VLOOKUP(E28,leas!D14:G453,4,FALSE),"") ->  | B28: 60009 | C28: 9 | G28: =IF($C28<=$B$16,VLOOKUP(A28&$B$12, localcont!A18:X1772, 18, FALSE), "") ->  | H28: =IF($C28<=$B$16,VLOOKUP(A28&$B$12, localcont!$A$10:$X$1764, 23, FALSE), "") ->  | J28: =IF($C28<=$B$16,VLOOKUP(A28&$B$12, localcont!$A$10:$X$1764, 15, FALSE), "") ->  | K28: =IF($C28<=$B$16,VLOOKUP(A28&$B$12, localcont!$A$10:$X$1764, 14, FALSE),"") -> 
A29: =IF($C29<=$B$16,VLOOKUP(E29,leas!D15:G454,4,FALSE),"") ->  | B29: 60010 | C29: 10 | G29: =IF($C29<=$B$16,VLOOKUP(A29&$B$12, localcont!A19:X1773, 18, FALSE), "") ->  | H29: =IF($C29<=$B$16,VLOOKUP(A29&$B$12, localcont!$A$10:$X$1764, 23, FALSE), "") ->  | J29: =IF($C29<=$B$16,VLOOKUP(A29&$B$12, localcont!$A$10:$X$1764, 15, FALSE), "") ->  | K29: =IF($C29<=$B$16,VLOOKUP(A29&$B$12, localcont!$A$10:$X$1764, 14, FALSE),"") -> 
A30: =IF($C30<=$B$16,VLOOKUP(E30,leas!D16:G455,4,FALSE),"") ->  | B30: 60011 | C30: 11 | G30: =IF($C30<=$B$16,VLOOKUP(A30&$B$12, localcont!A20:X1774, 18, FALSE), "") ->  | H30: =IF($C30<=$B$16,VLOOKUP(A30&$B$12, localcont!$A$10:$X$1764, 23, FALSE), "") ->  | J30: =IF($C30<=$B$16,VLOOKUP(A30&$B$12, localcont!$A$10:$X$1764, 15, FALSE), "") ->  | K30: =IF($C30<=$B$16,VLOOKUP(A30&$B$12, localcont!$A$10:$X$1764, 14, FALSE),"") -> 
A31: =IF($C31<=$B$16,VLOOKUP(E31,leas!D17:G456,4,FALSE),"") ->  | B31: 60012 | C31: 12 | G31: =IF($C31<=$B$16,VLOOKUP(A31&$B$12, localcont!A21:X1775, 18, FALSE), "") ->  | H31: =IF($C31<=$B$16,VLOOKUP(A31&$B$12, localcont!$A$10:$X$1764, 23, FALSE), "") ->  | J31: =IF($C31<=$B$16,VLOOKUP(A31&$B$12, localcont!$A$10:$X$1764, 15, FALSE), "") ->  | K31: =IF($C31<=$B$16,VLOOKUP(A31&$B$12, localcont!$A$10:$X$1764, 14, FALSE),"") -> 
A32: =IF($C32<=$B$16,VLOOKUP(E32,leas!D18:G457,4,FALSE),"") ->  | B32: 60013 | C32: 13 | G32: =IF($C32<=$B$16,VLOOKUP(A32&$B$12, localcont!A22:X1776, 18, FALSE), "") ->  | H32: =IF($C32<=$B$16,VLOOKUP(A32&$B$12, localcont!$A$10:$X$1764, 23, FALSE), "") ->  | J32: =IF($C32<=$B$16,VLOOKUP(A32&$B$12, localcont!$A$10:$X$1764, 15, FALSE), "") ->  | K32: =IF($C32<=$B$16,VLOOKUP(A32&$B$12, localcont!$A$10:$X$1764, 14, FALSE),"") -> 
A33: =IF($C33<=$B$16,VLOOKUP(E33,leas!D19:G458,4,FALSE),"") ->  | B33: 60014 | C33: 14 | G33: =IF($C33<=$B$16,VLOOKUP(A33&$B$12, localcont!A23:X1777, 18, FALSE), "") ->  | H33: =IF($C33<=$B$16,VLOOKUP(A33&$B$12, localcont!$A$10:$X$1764, 23, FALSE), "") ->  | J33: =IF($C33<=$B$16,VLOOKUP(A33&$B$12, localcont!$A$10:$X$1764, 15, FALSE), "") ->  | K33: =IF($C33<=$B$16,VLOOKUP(A33&$B$12, localcont!$A$10:$X$1764, 14, FALSE),"") -> 
A34: =IF($C34<=$B$16,VLOOKUP(E34,leas!D20:G459,4,FALSE),"") ->  | B34: 60015 | C34: 15 | G34: =IF($C34<=$B$16,VLOOKUP(A34&$B$12, localcont!A24:X1778, 18, FALSE), "") ->  | H34: =IF($C34<=$B$16,VLOOKUP(A34&$B$12, localcont!$A$10:$X$1764, 23, FALSE), "") ->  | J34: =IF($C34<=$B$16,VLOOKUP(A34&$B$12, localcont!$A$10:$X$1764, 15, FALSE), "") ->  | K34: =IF($C34<=$B$16,VLOOKUP(A34&$B$12, localcont!$A$10:$X$1764, 14, FALSE),"") -> 
A35: =IF($C35<=$B$16,VLOOKUP(E35,leas!D21:G460,4,FALSE),"") ->  | B35: 60016 | C35: 16 | G35: =IF($C35<=$B$16,VLOOKUP(A35&$B$12, localcont!A25:X1779, 18, FALSE), "") ->  | H35: =IF($C35<=$B$16,VLOOKUP(A35&$B$12, localcont!$A$10:$X$1764, 23, FALSE), "") ->  | J35: =IF($C35<=$B$16,VLOOKUP(A35&$B$12, localcont!$A$10:$X$1764, 15, FALSE), "") ->  | K35: =IF($C35<=$B$16,VLOOKUP(A35&$B$12, localcont!$A$10:$X$1764, 14, FALSE),"") -> 
A36: =IF($C36<=$B$16,VLOOKUP(E36,leas!D22:G461,4,FALSE),"") ->  | B36: 60017 | C36: 17 | G36: =IF($C36<=$B$16,VLOOKUP(A36&$B$12, localcont!A26:X1780, 18, FALSE), "") ->  | H36: =IF($C36<=$B$16,VLOOKUP(A36&$B$12, localcont!$A$10:$X$1764, 23, FALSE), "") ->  | J36: =IF($C36<=$B$16,VLOOKUP(A36&$B$12, localcont!$A$10:$X$1764, 15, FALSE), "") ->  | K36: =IF($C36<=$B$16,VLOOKUP(A36&$B$12, localcont!$A$10:$X$1764, 14, FALSE),"") -> 
A37: =IF($C37<=$B$16,VLOOKUP(E37,leas!D23:G462,4,FALSE),"") ->  | B37: 60018 | C37: 18 | G37: =IF($C37<=$B$16,VLOOKUP(A37&$B$12, localcont!A27:X1781, 18, FALSE), "") ->  | H37: =IF($C37<=$B$16,VLOOKUP(A37&$B$12, localcont!$A$10:$X$1764, 23, FALSE), "") ->  | J37: =IF($C37<=$B$16,VLOOKUP(A37&$B$12, localcont!$A$10:$X$1764, 15, FALSE), "") ->  | K37: =IF($C37<=$B$16,VLOOKUP(A37&$B$12, localcont!$A$10:$X$1764, 14, FALSE),"") -> 
A38: =IF($C38<=$B$16,VLOOKUP(E38,leas!D24:G463,4,FALSE),"") ->  | B38: 60019 | C38: 19 | G38: =IF($C38<=$B$16,VLOOKUP(A38&$B$12, localcont!A28:X1782, 18, FALSE), "") ->  | H38: =IF($C38<=$B$16,VLOOKUP(A38&$B$12, localcont!$A$10:$X$1764, 23, FALSE), "") ->  | J38: =IF($C38<=$B$16,VLOOKUP(A38&$B$12, localcont!$A$10:$X$1764, 15, FALSE), "") ->  | K38: =IF($C38<=$B$16,VLOOKUP(A38&$B$12, localcont!$A$10:$X$1764, 14, FALSE),"") -> 
A39: =IF($C39<=$B$16,VLOOKUP(E39,leas!D25:G464,4,FALSE),"") ->  | B39: 60020 | C39: 20 | G39: =IF($C39<=$B$16,VLOOKUP(A39&$B$12, localcont!A29:X1783, 18, FALSE), "") ->  | H39: =IF($C39<=$B$16,VLOOKUP(A39&$B$12, localcont!$A$10:$X$1764, 23, FALSE), "") ->  | J39: =IF($C39<=$B$16,VLOOKUP(A39&$B$12, localcont!$A$10:$X$1764, 15, FALSE), "") ->  | K39: =IF($C39<=$B$16,VLOOKUP(A39&$B$12, localcont!$A$10:$X$1764, 14, FALSE),"") -> 
A40: =IF($C40<=$B$16,VLOOKUP(E40,leas!D26:G465,4,FALSE),"") ->  | B40: 60021 | C40: 21 | G40: =IF($C40<=$B$16,VLOOKUP(A40&$B$12, localcont!A30:X1784, 18, FALSE), "") ->  | H40: =IF($C40<=$B$16,VLOOKUP(A40&$B$12, localcont!$A$10:$X$1764, 23, FALSE), "") ->  | J40: =IF($C40<=$B$16,VLOOKUP(A40&$B$12, localcont!$A$10:$X$1764, 15, FALSE), "") ->  | K40: =IF($C40<=$B$16,VLOOKUP(A40&$B$12, localcont!$A$10:$X$1764, 14, FALSE),"") -> 
A41: =IF($C41<=$B$16,VLOOKUP(E41,leas!D27:G466,4,FALSE),"") ->  | B41: 60022 | C41: 22 | G41: =IF($C41<=$B$16,VLOOKUP(A41&$B$12, localcont!A31:X1785, 18, FALSE), "") ->  | H41: =IF($C41<=$B$16,VLOOKUP(A41&$B$12, localcont!$A$10:$X$1764, 23, FALSE), "") ->  | J41: =IF($C41<=$B$16,VLOOKUP(A41&$B$12, localcont!$A$10:$X$1764, 15, FALSE), "") ->  | K41: =IF($C41<=$B$16,VLOOKUP(A41&$B$12, localcont!$A$10:$X$1764, 14, FALSE),"") -> 
A42: =IF($C42<=$B$16,VLOOKUP(E42,leas!D28:G467,4,FALSE),"") ->  | B42: 60023 | C42: 23 | G42: =IF($C42<=$B$16,VLOOKUP(A42&$B$12, localcont!A32:X1786, 18, FALSE), "") ->  | H42: =IF($C42<=$B$16,VLOOKUP(A42&$B$12, localcont!$A$10:$X$1764, 23, FALSE), "") ->  | J42: =IF($C42<=$B$16,VLOOKUP(A42&$B$12, localcont!$A$10:$X$1764, 15, FALSE), "") ->  | K42: =IF($C42<=$B$16,VLOOKUP(A42&$B$12, localcont!$A$10:$X$1764, 14, FALSE),"") -> 
A43: =IF($C43<=$B$16,VLOOKUP(E43,leas!D29:G468,4,FALSE),"") ->  | B43: 60024 | C43: 24 | G43: =IF($C43<=$B$16,VLOOKUP(A43&$B$12, localcont!A33:X1787, 18, FALSE), "") ->  | H43: =IF($C43<=$B$16,VLOOKUP(A43&$B$12, localcont!$A$10:$X$1764, 23, FALSE), "") ->  | J43: =IF($C43<=$B$16,VLOOKUP(A43&$B$12, localcont!$A$10:$X$1764, 15, FALSE), "") ->  | K43: =IF($C43<=$B$16,VLOOKUP(A43&$B$12, localcont!$A$10:$X$1764, 14, FALSE),"") -> 
A44: =IF($C44<=$B$16,VLOOKUP(E44,leas!D30:G469,4,FALSE),"") ->  | B44: 60025 | C44: 25 | G44: =IF($C44<=$B$16,VLOOKUP(A44&$B$12, localcont!A34:X1788, 18, FALSE), "") ->  | H44: =IF($C44<=$B$16,VLOOKUP(A44&$B$12, localcont!$A$10:$X$1764, 23, FALSE), "") ->  | J44: =IF($C44<=$B$16,VLOOKUP(A44&$B$12, localcont!$A$10:$X$1764, 15, FALSE), "") ->  | K44: =IF($C44<=$B$16,VLOOKUP(A44&$B$12, localcont!$A$10:$X$1764, 14, FALSE),"") -> 
A45: =IF($C45<=$B$16,VLOOKUP(E45,leas!D31:G470,4,FALSE),"") ->  | B45: 60026 | C45: 26 | G45: =IF($C45<=$B$16,VLOOKUP(A45&$B$12, localcont!A35:X1789, 18, FALSE), "") ->  | H45: =IF($C45<=$B$16,VLOOKUP(A45&$B$12, localcont!$A$10:$X$1764, 23, FALSE), "") ->  | J45: =IF($C45<=$B$16,VLOOKUP(A45&$B$12, localcont!$A$10:$X$1764, 15, FALSE), "") ->  | K45: =IF($C45<=$B$16,VLOOKUP(A45&$B$12, localcont!$A$10:$X$1764, 14, FALSE),"") -> 
A46: =IF($C46<=$B$16,VLOOKUP(E46,leas!D32:G471,4,FALSE),"") ->  | B46: 60027 | C46: 27 | G46: =IF($C46<=$B$16,VLOOKUP(A46&$B$12, localcont!A36:X1790, 18, FALSE), "") ->  | H46: =IF($C46<=$B$16,VLOOKUP(A46&$B$12, localcont!$A$10:$X$1764, 23, FALSE), "") ->  | J46: =IF($C46<=$B$16,VLOOKUP(A46&$B$12, localcont!$A$10:$X$1764, 15, FALSE), "") ->  | K46: =IF($C46<=$B$16,VLOOKUP(A46&$B$12, localcont!$A$10:$X$1764, 14, FALSE),"") -> 
A47: =IF($C47<=$B$16,VLOOKUP(E47,leas!D33:G472,4,FALSE),"") ->  | B47: 60028 | C47: 28 | G47: =IF($C47<=$B$16,VLOOKUP(A47&$B$12, localcont!A37:X1791, 18, FALSE), "") ->  | H47: =IF($C47<=$B$16,VLOOKUP(A47&$B$12, localcont!$A$10:$X$1764, 23, FALSE), "") ->  | J47: =IF($C47<=$B$16,VLOOKUP(A47&$B$12, localcont!$A$10:$X$1764, 15, FALSE), "") ->  | K47: =IF($C47<=$B$16,VLOOKUP(A47&$B$12, localcont!$A$10:$X$1764, 14, FALSE),"") -> 
A48: =IF($C48<=$B$16,VLOOKUP(E48,leas!D34:G473,4,FALSE),"") ->  | B48: 60029 | C48: 29 | G48: =IF($C48<=$B$16,VLOOKUP(A48&$B$12, localcont!A38:X1792, 18, FALSE), "") ->  | H48: =IF($C48<=$B$16,VLOOKUP(A48&$B$12, localcont!$A$10:$X$1764, 23, FALSE), "") ->  | J48: =IF($C48<=$B$16,VLOOKUP(A48&$B$12, localcont!$A$10:$X$1764, 15, FALSE), "") ->  | K48: =IF($C48<=$B$16,VLOOKUP(A48&$B$12, localcont!$A$10:$X$1764, 14, FALSE),"") -> 
A49: =IF($C49<=$B$16,VLOOKUP(E49,leas!D35:G474,4,FALSE),"") ->  | B49: 60030 | C49: 30 | G49: =IF($C49<=$B$16,VLOOKUP(A49&$B$12, localcont!A39:X1793, 18, FALSE), "") ->  | H49: =IF($C49<=$B$16,VLOOKUP(A49&$B$12, localcont!$A$10:$X$1764, 23, FALSE), "") ->  | J49: =IF($C49<=$B$16,VLOOKUP(A49&$B$12, localcont!$A$10:$X$1764, 15, FALSE), "") ->  | K49: =IF($C49<=$B$16,VLOOKUP(A49&$B$12, localcont!$A$10:$X$1764, 14, FALSE),"") -> 
A50: =IF($C50<=$B$16,VLOOKUP(E50,leas!D36:G475,4,FALSE),"") ->  | B50: 60031 | C50: 31 | G50: =IF($C50<=$B$16,VLOOKUP(A50&$B$12, localcont!A40:X1794, 18, FALSE), "") ->  | H50: =IF($C50<=$B$16,VLOOKUP(A50&$B$12, localcont!$A$10:$X$1764, 23, FALSE), "") ->  | J50: =IF($C50<=$B$16,VLOOKUP(A50&$B$12, localcont!$A$10:$X$1764, 15, FALSE), "") ->  | K50: =IF($C50<=$B$16,VLOOKUP(A50&$B$12, localcont!$A$10:$X$1764, 14, FALSE),"") -> 
A51: =IF($C51<=$B$16,VLOOKUP(E51,leas!D37:G476,4,FALSE),"") ->  | B51: 60032 | C51: 32 | G51: =IF($C51<=$B$16,VLOOKUP(A51&$B$12, localcont!A41:X1795, 18, FALSE), "") ->  | H51: =IF($C51<=$B$16,VLOOKUP(A51&$B$12, localcont!$A$10:$X$1764, 23, FALSE), "") ->  | J51: =IF($C51<=$B$16,VLOOKUP(A51&$B$12, localcont!$A$10:$X$1764, 15, FALSE), "") ->  | K51: =IF($C51<=$B$16,VLOOKUP(A51&$B$12, localcont!$A$10:$X$1764, 14, FALSE),"") -> 
A52: =IF($C52<=$B$16,VLOOKUP(E52,leas!D38:G477,4,FALSE),"") ->  | B52: 60033 | C52: 33 | F52: =IF($C52<=$B$16, VLOOKUP($B52, regdetail, 6), " ") ->  | G52: =IF($C52<=$B$16,VLOOKUP(A52&$B$12, localcont!A42:X1796, 18, FALSE), "") ->  | H52: =IF($C52<=$B$16,VLOOKUP(A52&$B$12, localcont!$A$10:$X$1764, 23, FALSE), "") ->  | J52: =IF($C52<=$B$16,VLOOKUP(A52&$B$12, localcont!$A$10:$X$1764, 15, FALSE), "") ->  | K52: =IF($C52<=$B$16,VLOOKUP(A52&$B$12, localcont!$A$10:$X$1764, 14, FALSE),"") -> 
A53: =IF($C53<=$B$16,VLOOKUP(E53,leas!D39:G478,4,FALSE),"") ->  | B53: 60034 | C53: 34 | G53: =IF($C53<=$B$16,VLOOKUP(A53&$B$12, localcont!A43:X1797, 18, FALSE), "") ->  | H53: =IF($C53<=$B$16,VLOOKUP(A53&$B$12, localcont!$A$10:$X$1764, 23, FALSE), "") ->  | J53: =IF($C53<=$B$16,VLOOKUP(A53&$B$12, localcont!$A$10:$X$1764, 15, FALSE), "") ->  | K53: =IF($C53<=$B$16,VLOOKUP(A53&$B$12, localcont!$A$10:$X$1764, 14, FALSE),"") -> 
A54: =IF($C54<=$B$16,VLOOKUP(E54,leas!D40:G479,4,FALSE),"") ->  | B54: 60035 | C54: 35 | G54: =IF($C54<=$B$16,VLOOKUP(A54&$B$12, localcont!A44:X1798, 18, FALSE), "") ->  | H54: =IF($C54<=$B$16,VLOOKUP(A54&$B$12, localcont!$A$10:$X$1764, 23, FALSE), "") ->  | J54: =IF($C54<=$B$16,VLOOKUP(A54&$B$12, localcont!$A$10:$X$1764, 15, FALSE), "") ->  | K54: =IF($C54<=$B$16,VLOOKUP(A54&$B$12, localcont!$A$10:$X$1764, 14, FALSE),"") -> 
A55: =IF($C55<=$B$16,VLOOKUP(E55,leas!D41:G480,4,FALSE),"") ->  | B55: 60036 | C55: 36 | G55: =IF($C55<=$B$16,VLOOKUP(A55&$B$12, localcont!A45:X1799, 18, FALSE), "") ->  | H55: =IF($C55<=$B$16,VLOOKUP(A55&$B$12, localcont!$A$10:$X$1764, 23, FALSE), "") ->  | J55: =IF($C55<=$B$16,VLOOKUP(A55&$B$12, localcont!$A$10:$X$1764, 15, FALSE), "") ->  | K55: =IF($C55<=$B$16,VLOOKUP(A55&$B$12, localcont!$A$10:$X$1764, 14, FALSE),"") -> 
A56: =IF($C56<=$B$16,VLOOKUP(E56,leas!D42:G481,4,FALSE),"") ->  | B56: 60037 | C56: 37 | G56: =IF($C56<=$B$16,VLOOKUP(A56&$B$12, localcont!A46:X1800, 18, FALSE), "") ->  | H56: =IF($C56<=$B$16,VLOOKUP(A56&$B$12, localcont!$A$10:$X$1764, 23, FALSE), "") ->  | J56: =IF($C56<=$B$16,VLOOKUP(A56&$B$12, localcont!$A$10:$X$1764, 15, FALSE), "") ->  | K56: =IF($C56<=$B$16,VLOOKUP(A56&$B$12, localcont!$A$10:$X$1764, 14, FALSE),"") -> 
A57: =IF($C57<=$B$16,VLOOKUP(E57,leas!D43:G482,4,FALSE),"") ->  | B57: 60038 | C57: 38 | G57: =IF($C57<=$B$16,VLOOKUP(A57&$B$12, localcont!A47:X1801, 18, FALSE), "") ->  | H57: =IF($C57<=$B$16,VLOOKUP(A57&$B$12, localcont!$A$10:$X$1764, 23, FALSE), "") ->  | J57: =IF($C57<=$B$16,VLOOKUP(A57&$B$12, localcont!$A$10:$X$1764, 15, FALSE), "") ->  | K57: =IF($C57<=$B$16,VLOOKUP(A57&$B$12, localcont!$A$10:$X$1764, 14, FALSE),"") -> 
A58: =IF($C58<=$B$16,VLOOKUP(E58,leas!D44:G483,4,FALSE),"") ->  | B58: 60039 | C58: 39 | G58: =IF($C58<=$B$16,VLOOKUP(A58&$B$12, localcont!A48:X1802, 18, FALSE), "") ->  | H58: =IF($C58<=$B$16,VLOOKUP(A58&$B$12, localcont!$A$10:$X$1764, 23, FALSE), "") ->  | J58: =IF($C58<=$B$16,VLOOKUP(A58&$B$12, localcont!$A$10:$X$1764, 15, FALSE), "") ->  | K58: =IF($C58<=$B$16,VLOOKUP(A58&$B$12, localcont!$A$10:$X$1764, 14, FALSE),"") -> 
A59: =IF($C59<=$B$16,VLOOKUP(E59,leas!D45:G484,4,FALSE),"") ->  | B59: 60040 | C59: 40 | G59: =IF($C59<=$B$16,VLOOKUP(A59&$B$12, localcont!A49:X1803, 18, FALSE), "") ->  | H59: =IF($C59<=$B$16,VLOOKUP(A59&$B$12, localcont!$A$10:$X$1764, 23, FALSE), "") ->  | J59: =IF($C59<=$B$16,VLOOKUP(A59&$B$12, localcont!$A$10:$X$1764, 15, FALSE), "") ->  | K59: =IF($C59<=$B$16,VLOOKUP(A59&$B$12, localcont!$A$10:$X$1764, 14, FALSE),"") -> 
A60: =IF($C60<=$B$16,VLOOKUP(E60,leas!D46:G485,4,FALSE),"") ->  | B60: 60041 | C60: 41 | G60: =IF($C60<=$B$16,VLOOKUP(A60&$B$12, localcont!A50:X1804, 18, FALSE), "") ->  | H60: =IF($C60<=$B$16,VLOOKUP(A60&$B$12, localcont!$A$10:$X$1764, 23, FALSE), "") ->  | J60: =IF($C60<=$B$16,VLOOKUP(A60&$B$12, localcont!$A$10:$X$1764, 15, FALSE), "") ->  | K60: =IF($C60<=$B$16,VLOOKUP(A60&$B$12, localcont!$A$10:$X$1764, 14, FALSE),"") -> 
A61: =IF($C61<=$B$16,VLOOKUP(E61,leas!D47:G486,4,FALSE),"") ->  | B61: 60042 | C61: 42 | G61: =IF($C61<=$B$16,VLOOKUP(A61&$B$12, localcont!A51:X1805, 18, FALSE), "") ->  | H61: =IF($C61<=$B$16,VLOOKUP(A61&$B$12, localcont!$A$10:$X$1764, 23, FALSE), "") ->  | J61: =IF($C61<=$B$16,VLOOKUP(A61&$B$12, localcont!$A$10:$X$1764, 15, FALSE), "") ->  | K61: =IF($C61<=$B$16,VLOOKUP(A61&$B$12, localcont!$A$10:$X$1764, 14, FALSE),"") -> 
A62: =IF($C62<=$B$16,VLOOKUP(E62,leas!D48:G487,4,FALSE),"") ->  | B62: 60043 | C62: 43 | G62: =IF($C62<=$B$16,VLOOKUP(A62&$B$12, localcont!A52:X1806, 18, FALSE), "") ->  | H62: =IF($C62<=$B$16,VLOOKUP(A62&$B$12, localcont!$A$10:$X$1764, 23, FALSE), "") ->  | J62: =IF($C62<=$B$16,VLOOKUP(A62&$B$12, localcont!$A$10:$X$1764, 15, FALSE), "") ->  | K62: =IF($C62<=$B$16,VLOOKUP(A62&$B$12, localcont!$A$10:$X$1764, 14, FALSE),"") -> 
A63: =IF($C63<=$B$16,VLOOKUP(E63,leas!D49:G488,4,FALSE),"") ->  | B63: 60044 | C63: 44 | G63: =IF($C63<=$B$16,VLOOKUP(A63&$B$12, localcont!A53:X1807, 18, FALSE), "") ->  | H63: =IF($C63<=$B$16,VLOOKUP(A63&$B$12, localcont!$A$10:$X$1764, 23, FALSE), "") ->  | J63: =IF($C63<=$B$16,VLOOKUP(A63&$B$12, localcont!$A$10:$X$1764, 15, FALSE), "") ->  | K63: =IF($C63<=$B$16,VLOOKUP(A63&$B$12, localcont!$A$10:$X$1764, 14, FALSE),"") -> 
A64: =IF($C64<=$B$16,VLOOKUP(E64,leas!D50:G489,4,FALSE),"") ->  | B64: 60045 | C64: 45 | G64: =IF($C64<=$B$16,VLOOKUP(A64&$B$12, localcont!A54:X1808, 18, FALSE), "") ->  | H64: =IF($C64<=$B$16,VLOOKUP(A64&$B$12, localcont!$A$10:$X$1764, 23, FALSE), "") ->  | J64: =IF($C64<=$B$16,VLOOKUP(A64&$B$12, localcont!$A$10:$X$1764, 15, FALSE), "") ->  | K64: =IF($C64<=$B$16,VLOOKUP(A64&$B$12, localcont!$A$10:$X$1764, 14, FALSE),"") -> 
A65: =IF($C65<=$B$16,VLOOKUP(E65,leas!D51:G490,4,FALSE),"") ->  | B65: 60046 | C65: 46 | G65: =IF($C65<=$B$16,VLOOKUP(A65&$B$12, localcont!A55:X1809, 18, FALSE), "") ->  | H65: =IF($C65<=$B$16,VLOOKUP(A65&$B$12, localcont!$A$10:$X$1764, 23, FALSE), "") ->  | J65: =IF($C65<=$B$16,VLOOKUP(A65&$B$12, localcont!$A$10:$X$1764, 15, FALSE), "") ->  | K65: =IF($C65<=$B$16,VLOOKUP(A65&$B$12, localcont!$A$10:$X$1764, 14, FALSE),"") -> 
A66: =IF($C66<=$B$16,VLOOKUP(E66,leas!D52:G491,4,FALSE),"") ->  | B66: 60047 | C66: 47 | G66: =IF($C66<=$B$16,VLOOKUP(A66&$B$12, localcont!A56:X1810, 18, FALSE), "") ->  | H66: =IF($C66<=$B$16,VLOOKUP(A66&$B$12, localcont!$A$10:$X$1764, 23, FALSE), "") ->  | J66: =IF($C66<=$B$16,VLOOKUP(A66&$B$12, localcont!$A$10:$X$1764, 15, FALSE), "") ->  | K66: =IF($C66<=$B$16,VLOOKUP(A66&$B$12, localcont!$A$10:$X$1764, 14, FALSE),"") -> 
A67: =IF($C67<=$B$16,VLOOKUP(E67,leas!D53:G492,4,FALSE),"") ->  | B67: 60048 | C67: 48 | G67: =IF($C67<=$B$16,VLOOKUP(A67&$B$12, localcont!A57:X1811, 18, FALSE), "") ->  | H67: =IF($C67<=$B$16,VLOOKUP(A67&$B$12, localcont!$A$10:$X$1764, 23, FALSE), "") ->  | J67: =IF($C67<=$B$16,VLOOKUP(A67&$B$12, localcont!$A$10:$X$1764, 15, FALSE), "") ->  | K67: =IF($C67<=$B$16,VLOOKUP(A67&$B$12, localcont!$A$10:$X$1764, 14, FALSE),"") -> 
A68: =IF($C68<=$B$16,VLOOKUP(E68,leas!D54:G493,4,FALSE),"") ->  | B68: 60049 | C68: 49 | G68: =IF($C68<=$B$16,VLOOKUP(A68&$B$12, localcont!A58:X1812, 18, FALSE), "") ->  | H68: =IF($C68<=$B$16,VLOOKUP(A68&$B$12, localcont!$A$10:$X$1764, 23, FALSE), "") ->  | J68: =IF($C68<=$B$16,VLOOKUP(A68&$B$12, localcont!$A$10:$X$1764, 15, FALSE), "") ->  | K68: =IF($C68<=$B$16,VLOOKUP(A68&$B$12, localcont!$A$10:$X$1764, 14, FALSE),"") -> 

Sheet Comparison to FY21
B1: Return to Index | P1: More about the data
A2: Massachusetts Department of Elementary and Secondary Education
A3: =CYr&" Chapter 70 Comparison to "&PYr -> FY22 Chapter 70 Comparison to FY21
C7: =PYr -> FY21 | D7: FY22 | F7: =PYr -> FY21 | G7: =CYr -> FY22 | I7: =PYr -> FY21 | J7: =CYr -> FY22 | L7: =PYr -> FY21 | M7: =CYr -> FY22
B8: Operating | C8: Foundation | D8: Foundation | F8: Foundation | G8: Foundation | I8: Minimum | J8: Minimum | L8: Chapter 70 | M8: Chapter 70
A9: LEA | B9: District name | C9: Enrollment | D9: Enrollment | E9: change | F9: Budget | G9: Budget | H9: change per pupil | I9: Contribution | J9: Contribution | K9: change per pupil | L9: aid | M9: aid | N9: change in aid | O9: change in aid per pupil | P9: % change in aid
A10: 1 | B10: Abington | C10: =VLOOKUP(A10,aidcalc,14,FALSE) -> 2197 | D10: =VLOOKUP(A10,aidcalc,15,FALSE) -> 2193 | E10: =D10-C10 -> -4 | F10: =VLOOKUP(A10,aidcalc,4,FALSE) -> 25332546.71 | G10: =VLOOKUP(A10,aidcalc,9,FALSE) -> 26452103.93 | H10: =(G10-F10)/$D10 -> 510.5140045 | I10: =VLOOKUP(A10,aidcalc,5,FALSE) -> 15287069 | J10: =VLOOKUP(A10,aidcalc,10,FALSE) -> 15764755 | K10: =(J10-I10)/$D10 -> 217.8230734 | L10: =VLOOKUP(A10,aidcalc,6,FALSE) -> 10045478 | M10: =VLOOKUP(A10,aidcalc,39,FALSE) -> 10858340 | N10: =M10-L10 -> 812862 | O10: =(M10-L10)/$D10 -> 370.6621067 | P10: =ROUND(IF(F10>0,(M10-L10)/L10,100),2) -> 0.08
A11: 3 | B11: Acushnet | C11: 1292 | D11: 1207 | E11: =D11-C11 -> -85 | F11: 13990412.9 | G11: 13465052.85 | H11: -435.2610191 | I11: 7889510 | J11: 7845282 | K11: =(J11-I11)/$D11 -> -36.64291632 | L11: 6361492 | M11: 6397702 | N11: =M11-L11 -> 36210 | O11: =(M11-L11)/$D11 -> 30 | P11: 0.01
A12: 5 | B12: Agawam | C12: 3623 | D12: 3516 | E12: -107 | F12: 42427489.5 | G12: 42757064.97 | H12: 93.73591297 | I12: 23256462 | J12: 23315754 | K12: 16.86348123 | L12: 19477412 | M12: 19949538 | N12: 472126 | O12: 134.2792947 | P12: 0.02
A13: 7 | B13: Amesbury | C13: 2036 | D13: 1930 | E13: -106 | F13: 22553274.58 | G13: 22433070.58 | H13: -62.28186528 | I13: 16118764 | J13: 16512446 | K13: 203.9803109 | L13: 9190887 | M13: 9248787 | N13: 57900 | O13: 30 | P13: 0.01
A14: 8 | B14: Amherst | C14: 1097 | D14: 1045 | E14: -52 | F14: 12512134.57 | G14: 12729208.74 | H14: 207.7264785 | I14: 9645618 | J14: 9839703 | K14: 185.7272727 | L14: 6122223 | M14: 6153573 | N14: 31350 | O14: 30 | P14: 0.01
A15: 9 | B15: Andover | C15: 5740 | D15: 5628 | E15: -112 | F15: 64237434.88 | G15: 64651081.73 | H15: 73.49801912 | I15: 52995883 | J15: 53337142 | K15: 60.63592751 | L15: 11668291 | M15: 11837131 | N15: 168840 | O15: 30 | P15: 0.01
A16: 10 | B16: Arlington | C16: 6092 | D16: 5836 | E16: -256 | F16: 64895656.34 | G16: 64290460.96 | H16: -103.700373 | I16: 50343449 | J16: 51218702 | K16: 149.9748115 | L16: 14566028 | M16: 14741108 | N16: 175080 | O16: 30 | P16: 0.01
A17: 14 | B17: Ashland | C17: 2786 | D17: 2694 | E17: -92 | F17: 30232498.72 | G17: 30071220.67 | H17: -59.86564588 | I17: 22294876 | J17: 22834444 | K17: 200.285078 | L17: 7937623 | M17: 8018443 | N17: 80820 | O17: 30 | P17: 0.01
A18: 16 | B18: Attleboro | C18: 6383 | D18: 6188 | E18: -195 | F18: 79207276.43 | G18: 80551906.58 | H18: 217.2964043 | I18: 38037529 | J18: 39217192 | K18: 190.637201 | L18: 41169747 | M18: 41355387 | N18: 185640 | O18: 30 | P18: 0
A19: 17 | B19: Auburn | C19: 2511 | D19: 2421 | E19: -90 | F19: 27521289.79 | G19: 27321855.58 | H19: -82.37679058 | I19: 15309359 | J19: 15497480 | K19: 77.70384139 | L19: 12211931 | M19: 12284561 | N19: 72630 | O19: 30 | P19: 0.01
A20: 18 | B20: Avon | C20: 586 | D20: 560 | E20: -26 | F20: 7045846.11 | G20: 6999174.9 | H20: -83.34144643 | I20: 4598969 | J20: 4667923 | K20: 123.1321429 | L20: 2448769 | M20: 2465569 | N20: 16800 | O20: =(M20-L20)/$D20 -> 30 | P20: 0.01
A21: 20 | B21: Barnstable | C21: 5405 | D21: 5147 | E21: -258 | F21: 65773443.14 | G21: 65035356.48 | H21: -143.4013328 | I21: 52762387 | J21: 53654169 | K21: 173.262483 | L21: 13011056 | M21: 13165466 | N21: 154410 | O21: 30 | P21: 0.01
A22: 23 | B22: Bedford | C22: 2707 | D22: 2649 | E22: -58 | F22: 30502691.57 | G22: 30686041.44 | H22: 69.21474959 | I22: 25097492 | J22: 25315984 | K22: 82.4809362 | L22: 5595167 | M22: 5674637 | N22: 79470 | O22: 30 | P22: 0.01
A23: 24 | B23: Belchertown | C23: 2278 | D23: 2204 | E23: -74 | F23: 24726417.46 | G23: 24762062.59 | H23: 16.1729265 | I23: 12418125 | J23: 12813563 | K23: 179.4183303 | L23: 13884146 | M23: 13950266 | N23: 66120 | O23: 30 | P23: 0
A24: 25 | B24: Bellingham | C24: 2247 | D24: 2184 | E24: -63 | F24: 24676853.43 | G24: 24764847.16 | H24: 40.29016941 | I24: 16772086 | J24: 17317798 | K24: 249.8681319 | L24: 8642425 | M24: 8707945 | N24: 65520 | O24: 30 | P24: 0.01
A25: 26 | B25: Belmont | C25: 4638 | D25: 4534 | E25: -104 | F25: 50418107.66 | G25: 50621827.42 | H25: 44.93157499 | I25: 40662179 | J25: 40824828 | K25: 35.87318041 | L25: 9755929 | M25: 9891949 | N25: 136020 | O25: 30 | P25: 0.01
A26: 27 | B26: Berkley | C26: 764 | D26: 733 | E26: -31 | F26: 8014902.18 | G26: 7936943.77 | H26: -106.355266 | I26: 4170576 | J26: 4234022 | K26: 86.55661664 | L26: 4003448 | M26: 4025438 | N26: 21990 | O26: 30 | P26: 0.01
A27: 30 | B27: Beverly | C27: 4570 | D27: 4613 | E27: 43 | F27: 51866271.12 | G27: 53826076.49 | H27: 424.8439996 | I27: 41749093 | J27: 43333361 | K27: 343.4355083 | L27: 10125430 | M27: 10492715 | N27: 367285 | O27: 79.61955344 | P27: 0.04
A28: 31 | B28: Billerica | C28: 4866 | D28: 4694 | E28: -172 | F28: 52647471.61 | G28: 52163794.35 | H28: -103.0415975 | I28: 41417136 | J28: 43035131 | K28: 344.6942906 | L28: 19348854 | M28: 19489674 | N28: 140820 | O28: 30 | P28: 0.01
A29: 35 | B29: Boston | C29: 62890 | D29: 60704 | E29: -2186 | F29: 924506066 | G29: 973396859.4 | H29: 805.3965705 | I29: 762717504 | J29: 780870181 | K29: 299.0359284 | L29: 221915045 | M29: 223736165 | N29: 1821120 | O29: 30 | P29: 0.01
A30: 36 | B30: Bourne | C30: 2012 | D30: 1789 | E30: -223 | F30: 22664002.02 | G30: 20913172.69 | H30: -978.6636836 | I30: 18697802 | J30: 17253367 | K30: -807.3979877 | L30: 5215213 | M30: 5268883 | N30: 53670 | O30: 30 | P30: 0.01
A31: 38 | B31: Boxford | C31: 729 | D31: 673 | E31: -56 | F31: 7419452.155 | G31: 7066465.098 | H31: -524.497856 | I31: 6121048 | J31: 5829834 | K31: -432.7102526 | L31: 1747903 | M31: 1768093 | N31: 20190 | O31: 30 | P31: 0.01
A32: 40 | B32: Braintree | C32: 5666 | D32: 5383 | E32: -283 | F32: 64248920.53 | G32: 63220937.94 | H32: -190.968343 | I32: 46089277 | J32: 47031091 | K32: 174.9608025 | L32: 18297651 | M32: 18459141 | N32: 161490 | O32: 30 | P32: 0.01
A33: 41 | B33: Brewster | C33: 468 | D33: 431 | E33: -37 | F33: 5175998.03 | G33: 4885534.85 | H33: -673.9284919 | I33: 4206025 | J33: 4030566 | K33: -407.0974478 | L33: 1011979 | M33: 1024909 | N33: 12930 | O33: 30 | P33: 0.01
A34: 43 | B34: Brimfield | C34: 283 | D34: 269 | E34: -14 | F34: 3081860.73 | G34: 2951690.97 | H34: -483.9024535 | I34: 1716855 | J34: 1753602 | K34: 136.605948 | L34: 1365006 | M34: 1373076 | N34: 8070 | O34: 30 | P34: 0.01
A35: 44 | B35: Brockton | C35: 17491 | D35: 17092 | E35: -399 | F35: 237304379 | G35: 260127523.1 | H35: 1335.311499 | I35: 48074759 | J35: 49543381 | K35: 85.92452609 | L35: 189236745 | M35: 210584142 | N35: 21347397 | O35: 1248.970103 | P35: 0.11
A36: 45 | B36: Brookfield | C36: 253 | D36: 230 | E36: -23 | F36: 2871199.05 | G36: 2733160.09 | H36: -600.1693913 | I36: 1170696 | J36: 1148919 | K36: -94.6826087 | L36: 1700503 | M36: 1707403 | N36: 6900 | O36: 30 | P36: 0
A37: 46 | B37: Brookline | C37: 7648 | D37: 6858 | E37: -790 | F37: 83874467.61 | G37: 77282551.57 | H37: -961.2009393 | I37: 69196436 | J37: 63758105 | K37: -792.9908136 | L37: 15006787 | M37: 15212527 | N37: 205740 | O37: 30 | P37: 0.01
A38: 48 | B38: Burlington | C38: 3518 | D38: 3420 | E38: -98 | F38: 40012176.14 | G38: 40035800.6 | H38: 6.907737409 | I38: 33010045 | J38: 33029535 | K38: 5.698830409 | L38: 7002131 | M38: 7104731 | N38: 102600 | O38: 30 | P38: 0.01
A39: 49 | B39: Cambridge | C39: 7519 | D39: 7160 | E39: -359 | F39: 97837766.09 | G39: 100589415.8 | H39: 384.3086184 | I39: 80716157 | J39: 82986268 | K39: 317.0546089 | L39: 17121609 | M39: 17603148 | N39: 481539 | O39: 67.25405028 | P39: 0.03
A40: 50 | B40: Canton | C40: 3325 | D40: 3234 | E40: -91 | F40: 37234938.64 | G40: 37357431.4 | H40: 37.87654955 | I40: 30718825 | J40: 30819881 | K40: 31.24799011 | L40: 6516115 | M40: 6613135 | N40: 97020 | O40: 30 | P40: 0.01
A41: 51 | B41: Carlisle | C41: 570 | D41: 556 | E41: -14 | F41: 5783671.18 | G41: 5768217.87 | H41: -27.79372158 | I41: 4771528 | J41: 4758779 | K41: -22.92985612 | L41: 1012143 | M41: 1028823 | N41: 16680 | O41: 30 | P41: 0.02
A42: 52 | B42: Carver | C42: 1591 | D42: 1501 | E42: -90 | F42: 18039221.23 | G42: 17542923.77 | H42: -330.6445449 | I42: 9418559 | J42: 9589569 | K42: 113.9307129 | L42: 10008599 | M42: 10053629 | N42: 45030 | O42: 30 | P42: 0
A43: 56 | B43: Chelmsford | C43: 5112 | D43: 4956 | E43: -156 | F43: 54223728 | G43: 54283919.01 | H43: 12.14507869 | I43: 43879883 | J43: 44784233 | K43: 182.4757869 | L43: 11199428 | M43: 11348108 | N43: 148680 | O43: 30 | P43: 0.01
A44: 57 | B44: Chelsea | C44: 7289 | D44: 7097 | E44: -192 | F44: 105670798.9 | G44: 113321986.8 | H44: 1078.087626 | I44: 19903086 | J44: 19010458 | K44: -125.7753981 | L44: 85769782 | M44: 94311529 | N44: 8541747 | O44: 1203.571509 | P44: 0.1
A45: 61 | B45: Chicopee | C45: 7571 | D45: 7269 | E45: -302 | F45: 99981143.99 | G45: 103392554 | H45: 469.3093906 | I45: 30903112 | J45: 31166929 | K45: 36.29343789 | L45: 69078032 | M45: 72225625 | N45: 3147593 | O45: 433.0159582 | P45: 0.05
A46: 63 | B46: Clarksburg | C46: 171 | D46: 180 | E46: 9 | F46: 2005332.37 | G46: 2134267.35 | H46: 716.3054444 | I46: 683465 | J46: 735748 | K46: 290.4611111 | L46: 1799935 | M46: 1805335 | N46: 5400 | O46: 30 | P46: 0
A47: 64 | B47: Clinton | C47: 2086 | D47: 2050 | E47: -36 | F47: 25739349.56 | G47: 26782472.62 | H47: 508.8405171 | I47: 11372125 | J47: 11925947 | K47: 270.1570732 | L47: 14367225 | M47: 14856526 | N47: 489301 | O47: 238.6834146 | P47: 0.03
A48: 65 | B48: Cohasset | C48: 1468 | D48: 1419 | E48: -49 | F48: 15514224.73 | G48: 15363435.33 | H48: -106.2645495 | I48: 12799236 | J48: 12674835 | K48: -87.66807611 | L48: 2748292 | M48: 2790862 | N48: 42570 | O48: 30 | P48: 0.02
A49: 67 | B49: Concord | C49: 2081 | D49: 1998 | E49: -83 | F49: 21359034.91 | G49: 21203260.51 | H49: -77.96516388 | I49: 17621204 | J49: 17492690 | K49: -64.32132132 | L49: 3737831 | M49: 3797771 | N49: 59940 | O49: 30 | P49: 0.02
A50: 68 | B50: Conway | C50: 79 | D50: 78 | E50: -1 | F50: 894594.82 | G50: 924302.48 | H50: 380.8674359 | I50: 738041 | J50: 762549 | K50: 314.2051282 | L50: 626464 | M50: 628804 | N50: 2340 | O50: 30 | P50: 0
A51: 71 | B51: Danvers | C51: 3483 | D51: 3384 | E51: -99 | F51: 37325532.02 | G51: 37498229.94 | H51: 51.0336643 | I51: 30589946 | J51: 30909877 | K51: 94.54225768 | L51: 7108192 | M51: 7209712 | N51: 101520 | O51: 30 | P51: 0.01
A52: 72 | B52: Dartmouth | C52: 3517 | D52: 3369 | E52: -148 | F52: 38785092.38 | G52: 38349025.25 | H52: -129.4351825 | I52: 31997701 | J52: 31637946 | K52: -106.7839121 | L52: 9948121 | M52: 10049191 | N52: 101070 | O52: 30 | P52: 0.01
A53: 73 | B53: Dedham | C53: 2700 | D53: 2586 | E53: -114 | F53: 31069861.76 | G53: 30586429.12 | H53: -186.9422439 | I53: 25205198 | J53: 25233804 | K53: 11.06187162 | L53: 6066360 | M53: 6143940 | N53: 77580 | O53: 30 | P53: 0.01
A54: 74 | B54: Deerfield | C54: 315 | D54: 293 | E54: -22 | F54: 3368724.27 | G54: 3189923.09 | H54: -610.2429352 | I54: 2732273 | J54: 2631686 | K54: -343.3003413 | L54: 1114363 | M54: 1123153 | N54: 8790 | O54: 30 | P54: 0.01
A55: 77 | B55: Douglas | C55: 1213 | D55: 1106 | E55: -107 | F55: 13102757.23 | G55: 12300521.19 | H55: -725.3490416 | I55: 7355911 | J55: 7457277 | K55: 91.65099458 | L55: 8759585 | M55: 8792765 | N55: 33180 | O55: 30 | P55: 0
A56: 78 | B56: Dover | C56: 492 | D56: 476 | E56: -16 | F56: 4983216.45 | G56: 4975074.863 | H56: -17.1041758 | I56: 4111154 | J56: 4104437 | K56: -14.11134454 | L56: 872062 | M56: 886342 | N56: 14280 | O56: 30 | P56: 0.02
A57: 79 | B57: Dracut | C57: 3964 | D57: 3982 | E57: 18 | F57: 44096709.13 | G57: 45944951.04 | H57: 464.1491487 | I57: 23979412 | J57: 25066936 | K57: 273.109995 | L57: 20128364 | M57: 20947045 | N57: 818681 | O57: 205.5954294 | P57: 0.04
A58: 82 | B58: Duxbury | C58: 2888 | D58: 2730 | E58: -158 | F58: 30754555.55 | G58: 29831320.22 | H58: -338.1814422 | I58: 25372508 | J58: 24610839 | K58: -278.9996337 | L58: 5382048 | M58: 5463948 | N58: 81900 | O58: 30 | P58: 0.02
A59: 83 | B59: East Bridgewater | C59: 2153 | D59: 2067 | E59: -86 | F59: 23574021.35 | G59: 23328359.86 | H59: -118.8492937 | I59: 12580578 | J59: 12898247 | K59: 153.6860184 | L59: 10995125 | M59: 11057135 | N59: 62010 | O59: 30 | P59: 0.01
A60: 85 | B60: Eastham | C60: 191 | D60: 196 | E60: 5 | F60: 2151871.93 | G60: 2314050.34 | H60: 827.4408673 | I60: 1775294 | J60: 1909092 | K60: 682.6428571 | L60: 376578 | M60: 404958 | N60: 28380 | O60: 144.7959184 | P60: 0.08
A61: 86 | B61: Easthampton | C61: 1719 | D61: 1630 | E61: -89 | F61: 20082994.25 | G61: 19775625.25 | H61: -188.5699387 | I61: 12651233 | J61: 12917558 | K61: 163.3895706 | L61: 8029692 | M61: 8078592 | N61: 48900 | O61: 30 | P61: 0.01
A62: 87 | B62: East Longmeadow | C62: 2643 | D62: 2457 | E62: -186 | F62: 29030299.67 | G62: 27947960.88 | H62: -440.512328 | I62: 17494208 | J62: 17112651 | K62: -155.2938543 | L62: 12102248 | M62: 12175958 | N62: 73710 | O62: 30 | P62: 0.01
A63: 88 | B63: Easton | C63: 3516 | D63: 3373 | E63: -143 | F63: 37563612.82 | G63: 37252962.9 | H63: -92.09899792 | I63: 29384825 | J63: 30157371 | K63: 229.0382449 | L63: 10148451 | M63: 10249641 | N63: 101190 | O63: 30 | P63: 0.01
A64: 89 | B64: Edgartown | C64: 441 | D64: 428 | E64: -13 | F64: 5167542.74 | G64: 5229039.66 | H64: 143.6843925 | I64: 4263223 | J64: 4313958 | K64: 118.5397196 | L64: 904320 | M64: 917160 | N64: 12840 | O64: 30 | P64: 0.01
A65: 91 | B65: Erving | C65: 219 | D65: 207 | E65: -12 | F65: 2326189.63 | G65: 2350503.55 | H65: 117.4585507 | I65: 1919106 | J65: 1939166 | K65: 96.90821256 | L65: 471505 | M65: 477715 | N65: 6210 | O65: 30 | P65: 0.01
A66: 93 | B66: Everett | C66: 7652 | D66: 7505 | E66: -147 | F66: 109071464.2 | G66: 120182572.7 | H66: 1480.494146 | I66: 35431511 | J66: 36483827 | K66: 140.2153231 | L66: 75001709 | M66: 83698746 | N66: 8697037 | O66: 1158.832378 | P66: 0.12
A67: 94 | B67: Fairhaven | C67: 1816 | D67: 1727 | E67: -89 | F67: 20977288.11 | G67: 20670528.07 | H67: -177.6259641 | I67: 12688884 | J67: 12627969 | K67: -35.27214823 | L67: 8291230 | M67: 8343040 | N67: 51810 | O67: 30 | P67: 0.01
A68: 95 | B68: Fall River | C68: 12095 | D68: 11894 | E68: -201 | F68: 169915017.7 | G68: 178475557.1 | H68: 719.7359543 | I68: 32906432 | J68: 34270397 | K68: 114.6767278 | L68: 137016364 | M68: 144205160 | N68: 7188796 | O68: 604.4052463 | P68: 0.05
A69: 96 | B69: Falmouth | C69: 3221 | D69: 3037 | E69: -184 | F69: 38101629.06 | G69: 36927457.06 | H69: -386.6223247 | I69: 31433844 | J69: 30465152 | K69: =(J69-I69)/$D69 -> -318.9634508 | L69: 6780099 | M69: 6871209 | N69: =M69-L69 -> 91110 | O69: =(M69-L69)/$D69 -> 30 | P69: 0.01
A70: 97 | B70: Fitchburg | C70: 5815 | D70: 5644 | E70: -171 | F70: 77039272.93 | G70: 80520654.39 | H70: 616.8287491 | I70: 19328344 | J70: 19692057 | K70: 64.44241673 | L70: 57710929 | M70: 60828597 | N70: 3117668 | O70: 552.3862509 | P70: 0.05
A71: 98 | B71: Florida | C71: 66 | D71: 58 | E71: -8 | F71: 747149.5 | G71: 708717.74 | H71: -662.6165517 | I71: 475424 | J71: 430461 | K71: -775.2241379 | L71: 550717 | M71: 552457 | N71: 1740 | O71: 30 | P71: 0
A72: 99 | B72: Foxborough | C72: 2639 | D72: 2543 | E72: -96 | F72: 29781054.53 | G72: 29611209.11 | H72: -66.78939152 | I72: 24569370 | J72: 24429248 | K72: -55.10106174 | L72: 9046950 | M72: 9123240 | N72: 76290 | O72: 30 | P72: 0.01
A73: 100 | B73: Framingham | C73: 9572 | D73: 9303 | E73: -269 | F73: 121857618.3 | G73: 123683938.4 | H73: 196.315177 | I73: 65102393 | J73: 67093799 | K73: 214.0606256 | L73: 56755225 | M73: 57034315 | N73: 279090 | O73: 30 | P73: 0
A74: 101 | B74: Franklin | C74: =VLOOKUP(A74,aidcalc,14,FALSE) -> 5511 | D74: =VLOOKUP(A74,aidcalc,15,FALSE) -> 5292 | E74: -219 | F74: =VLOOKUP(A74,aidcalc,4,FALSE) -> 60169866.39 | G74: =VLOOKUP(A74,aidcalc,9,FALSE) -> 59684329.71 | H74: =(G74-F74)/$D74 -> -91.74918485 | I74: =VLOOKUP(A74,aidcalc,5,FALSE) -> 41152523 | J74: =VLOOKUP(A74,aidcalc,10,FALSE) -> 42438004 | K74: 242.9102419 | L74: =VLOOKUP(A74,aidcalc,6,FALSE) -> 28416161 | M74: =VLOOKUP(A74,aidcalc,39,FALSE) -> 28574921 | N74: 158760 | O74: 30 | P74: =ROUND(IF(F74>0,(M74-L74)/L74,100),2) -> 0.01
A75: 103 | B75: Gardner | C75: 2418 | D75: 2285 | E75: =D75-C75 -> -133 | F75: 30692122.61 | G75: 30592804.66 | H75: -43.465186 | I75: 9927325 | J75: 10329492 | K75: 176.0030635 | L75: 21003460 | M75: 21072010 | N75: 68550 | O75: 30 | P75: 0
A76: 105 | B76: Georgetown | C76: 1303 | D76: 1239 | E76: -64 | F76: 13521537.54 | G76: 13248901.3 | H76: -220.0453914 | I76: 10617926 | J76: 10632392 | K76: 11.67554479 | L76: 5527768 | M76: 5564938 | N76: 37170 | O76: 30 | P76: 0.01
A77: 107 | B77: Gloucester | C77: 3094 | D77: 3017 | E77: -77 | F77: 38460242.65 | G77: 39241885.88 | H77: 259.0796246 | I77: 31729700 | J77: 32374556 | K77: 213.7408021 | L77: 6730543 | M77: 6867330 | N77: 136787 | O77: 45.3387471 | P77: 0.02
A78: 110 | B78: Grafton | C78: 3079 | D78: 3021 | E78: -58 | F78: 32659858.43 | G78: 33036291.83 | H78: 124.6055611 | I78: 22211911 | J78: 22278742 | K78: 22.12214499 | L78: 11108735 | M78: 11350399 | N78: 241664 | O78: 79.99470374 | P78: 0.02
A79: 111 | B79: Granby | C79: 710 | D79: 685 | E79: -25 | F79: 8181734.87 | G79: 8277575.3 | H79: 139.9130365 | I79: 5150983 | J79: 5125029 | K79: -37.88905109 | L79: 4664780 | M79: 4685330 | N79: 20550 | O79: 30 | P79: 0
A80: 114 | B80: Greenfield | C80: 1965 | D80: 1859 | E80: -106 | F80: 24159291.55 | G80: 23765270.25 | H80: -211.953362 | I80: 10256971 | J80: 10213255 | K80: -23.51586875 | L80: 13902321 | M80: 13958091 | N80: 55770 | O80: 30 | P80: 0
A81: 117 | B81: Hadley | C81: 520 | D81: 498 | E81: -22 | F81: 5921818.32 | G81: 5848652.03 | H81: -146.920261 | I81: 4885500 | J81: 4825138 | K81: -121.2088353 | L81: 1279420 | M81: 1294360 | N81: 14940 | O81: 30 | P81: 0.01
A82: 118 | B82: Halifax | C82: 630 | D82: 615 | E82: -15 | F82: 6764091.258 | G82: 6869417.375 | H82: 171.2619788 | I82: 3795461 | J82: 3815571 | K82: 32.69918699 | L82: 3063392 | M82: 3081842 | N82: 18450 | O82: 30 | P82: 0.01
A83: 121 | B83: Hancock | C83: 77 | D83: 81 | E83: 4 | F83: 883632.04 | G83: 935475.98 | H83: 640.048642 | I83: 673593 | J83: 689759 | K83: 199.5802469 | L83: 211450 | M83: 245717 | N83: 34267 | O83: 423.0493827 | P83: 0.16
A84: 122 | B84: Hanover | C84: 2558 | D84: 2548 | E84: -10 | F84: 27226298.17 | G84: 27947138.81 | H84: 282.9044906 | I84: 21124278 | J84: 21495854 | K84: 145.8304553 | L84: 7023879 | M84: 7100319 | N84: 76440 | O84: 30 | P84: 0.01
A85: 125 | B85: Harvard | C85: 911 | D85: 876 | E85: -35 | F85: 9458347.19 | G85: 9381972.86 | H85: -87.18530822 | I85: 7803137 | J85: 7740128 | K85: -71.92808219 | L85: 1982671 | M85: 2008951 | N85: 26280 | O85: 30 | P85: 0.01
A86: 127 | B86: Hatfield | C86: 353 | D86: 334 | E86: -19 | F86: 3943217.63 | G86: 3871585.55 | H86: -214.4673054 | I86: 3167592 | J86: 3194058 | K86: 79.23952096 | L86: 846256 | M86: 856276 | N86: 10020 | O86: 30 | P86: 0.01
A87: 128 | B87: Haverhill | C87: 8540 | D87: 8276 | E87: -264 | F87: 107173075.3 | G87: 109426886.4 | H87: 272.3309751 | I87: 43835110 | J87: 44844043 | K87: 121.9107057 | L87: 63349956 | M87: 64582843 | N87: 1232887 | O87: 148.971363 | P87: 0.02
A88: 131 | B88: Hingham | C88: 4289 | D88: 3947 | E88: -342 | F88: 45460703.84 | G88: 43173159.77 | H88: -579.5652564 | I88: 37505081 | J88: 35617857 | K88: -478.1413732 | L88: 7955623 | M88: 8074033 | N88: 118410 | O88: 30 | P88: 0.01
A89: 133 | B89: Holbrook | C89: 1346 | D89: 1315 | E89: -31 | F89: 16096140.68 | G89: 17208016.09 | H89: 845.5326297 | I89: 8273118 | J89: 8484015 | K89: 160.3779468 | L89: 7826400 | M89: 8724001 | N89: 897601 | O89: 682.5863118 | P89: 0.11
A90: 135 | B90: Holland | C90: 156 | D90: 152 | E90: -4 | F90: 1899540.24 | G90: 1809744.82 | H90: -590.7593421 | I90: 1117998 | J90: 1163162 | K90: 297.1315789 | L90: 933678 | M90: 938238 | N90: 4560 | O90: 30 | P90: 0
A91: 136 | B91: Holliston | C91: 2706 | D91: 2604 | E91: -102 | F91: 28673820.52 | G91: 28287128.61 | H91: -148.4991959 | I91: 21202129 | J91: 21347747 | K91: 55.92089094 | L91: 7936216 | M91: 8014336 | N91: 78120 | O91: 30 | P91: 0.01
A92: 137 | B92: Holyoke | C92: 6357 | D92: 6159 | E92: -198 | F92: 90161028.66 | G92: 93693634.54 | H92: 573.5680922 | I92: 11207668 | J92: 11380266 | K92: 28.02370515 | L92: 78953361 | M92: 82313369 | N92: 3360008 | O92: 545.5444066 | P92: 0.04
A93: 138 | B93: Hopedale | C93: 924 | D93: 914 | E93: -10 | F93: 9927021.495 | G93: 10296038.87 | H93: 403.7389169 | I93: 5864081 | J93: 6071421 | K93: 226.8490153 | L93: 6087390 | M93: 6114810 | N93: 27420 | O93: 30 | P93: 0
A94: 139 | B94: Hopkinton | C94: 3867 | D94: 3935 | E94: 68 | F94: 41585309.19 | G94: 43490670.82 | H94: 484.2087998 | I94: 34279876 | J94: 35879803 | K94: 406.5888183 | L94: 7305433 | M94: 8050421 | N94: 744988 | O94: 189.323507 | P94: 0.1
A95: 141 | B95: Hudson | C95: 2658 | D95: 2512 | E95: -146 | F95: 30603552.29 | G95: 30097729.25 | H95: -201.3626765 | I95: 18666759 | J95: 18926218 | K95: 103.2878185 | L95: 12020446 | M95: 12095806 | N95: 75360 | O95: 30 | P95: 0.01
A96: 142 | B96: Hull | C96: 896 | D96: 837 | E96: -59 | F96: 10567859.95 | G96: 10290637.23 | H96: -331.209946 | I96: 8718484 | J96: 8489776 | K96: -273.2473118 | L96: 3874466 | M96: 3899576 | N96: 25110 | O96: 30 | P96: 0.01
A97: 144 | B97: Ipswich | C97: 1654 | D97: 1585 | E97: -69 | F97: 18495911.75 | G97: 18333059.4 | H97: -102.7459617 | I97: 15259127 | J97: 15124774 | K97: -84.76529968 | L97: 3332340 | M97: 3379890 | N97: 47550 | O97: 30 | P97: 0.01
A98: 145 | B98: Kingston | C98: 1105 | D98: 1076 | E98: -29 | F98: 11789935.42 | G98: 11872229.51 | H98: 76.4814934 | I98: 7692593 | J98: 7844484 | K98: 141.1626394 | L98: 4372585 | M98: 4404865 | N98: 32280 | O98: 30 | P98: 0.01
A99: 149 | B99: Lawrence | C99: 15367 | D99: 14746 | E99: -621 | F99: 218786376.4 | G99: 232840932.9 | H99: 953.1097572 | I99: 11530073 | J99: 12043723 | K99: 34.8331751 | L99: 207256303 | M99: 220797210 | N99: 13540907 | O99: 918.2766174 | P99: 0.07
A100: 150 | B100: Lee | C100: 616 | D100: 579 | E100: -37 | F100: 7515008.59 | G100: 7346478.37 | H100: -291.0711917 | I100: 6036549 | J100: 6060845 | K100: 41.96200345 | L100: 2085069 | M100: 2102439 | N100: 17370 | O100: 30 | P100: 0.01
A101: 151 | B101: Leicester | C101: 1539 | D101: 1458 | E101: -81 | F101: 18032789.12 | G101: 17880645.89 | H101: -104.3506379 | I101: 8592877 | J101: 8835023 | K101: 166.0809328 | L101: 9802497 | M101: 9846237 | N101: 43740 | O101: 30 | P101: 0
A102: 152 | B102: Lenox | C102: 507 | D102: 496 | E102: -11 | F102: 5736170.58 | G102: 5870128.34 | H102: 270.076129 | I102: 4728371 | J102: 4784639 | K102: 113.4435484 | L102: 1272525 | M102: 1287405 | N102: 14880 | O102: 30 | P102: 0.01
A103: 153 | B103: Leominster | C103: 6177 | D103: 5990 | E103: -187 | F103: 79655609.19 | G103: 81156930.92 | H103: 250.6380184 | I103: 30886014 | J103: 32013354 | K103: 188.2036728 | L103: 48769595 | M103: 49143577 | N103: 373982 | O103: 62.43439065 | P103: 0.01
A104: 154 | B104: Leverett | C104: 116 | D104: 105 | E104: -11 | F104: 1203602.15 | G104: 1140383.85 | H104: -602.0790476 | I104: 992972 | J104: 940817 | K104: -496.7142857 | L104: 295511 | M104: 298661 | N104: 3150 | O104: 30 | P104: 0.01
A105: 155 | B105: Lexington | C105: 7282 | D105: 6982 | E105: -300 | F105: 81400953.56 | G105: 80473764.46 | H105: -132.7970646 | I105: 67155786 | J105: 66390856 | K105: -109.5574334 | L105: 14438034 | M105: 14647494 | N105: 209460 | O105: 30 | P105: 0.01
A106: 157 | B106: Lincoln | C106: 595 | D106: 578 | E106: -17 | F106: 6274212.113 | G106: 6318769.361 | H106: 77.08866505 | I106: 5176225 | J106: 5212985 | K106: 63.59861592 | L106: 1174169 | M106: 1191509 | N106: 17340 | O106: 30 | P106: 0.01
A107: 158 | B107: Littleton | C107: 1611 | D107: 1515 | E107: -96 | F107: 16791308.8 | G107: 16203700.73 | H107: -387.8601127 | I107: 13852830 | J107: 13368053 | K107: -319.9848185 | L107: 4039908 | M107: 4085358 | N107: 45450 | O107: 30 | P107: 0.01
A108: 159 | B108: Longmeadow | C108: 2808 | D108: 2705 | E108: -103 | F108: 29237892.87 | G108: 29088744.44 | H108: -55.13805176 | I108: 24121262 | J108: 23998214 | K108: -45.48909427 | L108: 5669282 | M108: 5750432 | N108: 81150 | O108: 30 | P108: 0.01
A109: 160 | B109: Lowell | C109: 16352 | D109: 16047 | E109: -305 | F109: 218744159.7 | G109: 231415706.9 | H109: 789.6520945 | I109: 51808768 | J109: 54090653 | K109: 142.2000997 | L109: 166954483 | M109: 177325054 | N109: 10370571 | O109: 646.262292 | P109: 0.06
A110: 161 | B110: Ludlow | C110: 2509 | D110: 2381 | E110: -128 | F110: 29294399.16 | G110: 28762531.39 | H110: -223.3799958 | I110: 16443714 | J110: 16602458 | K110: 66.67114658 | L110: 13795983 | M110: 13867413 | N110: 71430 | O110: 30 | P110: 0.01
A111: 162 | B111: Lunenburg | C111: 1705 | D111: 1656 | E111: -49 | F111: 18301715.41 | G111: 18380186.04 | H111: 47.38564614 | I111: 10527777 | J111: 10907685 | K111: 229.4130435 | L111: 7773938 | M111: 7823618 | N111: 49680 | O111: 30 | P111: 0.01
A112: 163 | B112: Lynn | C112: 18087 | D112: 17156 | E112: -931 | F112: 252551048.5 | G112: 266558842.6 | H112: 816.4953433 | I112: 53396054 | J112: 55110068 | K112: 99.90755421 | L112: 199154994 | M112: 211448775 | N112: 12293781 | O112: 716.587841 | P112: 0.06
A113: 164 | B113: Lynnfield | C113: 2205 | D113: 2175 | E113: -30 | F113: 23513323.47 | G113: 23894429.73 | H113: 175.2212691 | I113: 19317442 | J113: 19712904 | K113: 181.8216092 | L113: 4404631 | M113: 4469881 | N113: 65250 | O113: 30 | P113: 0.01
A114: 165 | B114: Malden | C114: 7268 | D114: 6921 | E114: -347 | F114: 94879629.91 | G114: 97406250.09 | H114: 365.0657682 | I114: 45560692 | J114: 47779006 | K114: 320.5192891 | L114: 51206223 | M114: 51413853 | N114: 207630 | O114: 30 | P114: 0
A115: 167 | B115: Mansfield | C115: 3730 | D115: 3599 | E115: -131 | F115: 41671720.92 | G115: 41523845.58 | H115: -41.08789603 | I115: 29709526 | J115: 29788892 | K115: 22.05223673 | L115: 18962339 | M115: 19070309 | N115: 107970 | O115: 30 | P115: 0.01
A116: 168 | B116: Marblehead | C116: 3023 | D116: 2772 | E116: -251 | F116: 31915735.24 | G116: 30162422.01 | H116: -632.5083802 | I116: 26330482 | J116: 24883999 | K116: -521.8192641 | L116: 5952147 | M116: 6035307 | N116: 83160 | O116: 30 | P116: 0.01
A117: 169 | B117: Marion | C117: 432 | D117: 403 | E117: -29 | F117: 4522671.78 | G117: 4366552.48 | H117: -387.392804 | I117: 3731204 | J117: 3602406 | K117: -319.5980149 | L117: 860344 | M117: 872434 | N117: 12090 | O117: 30 | P117: 0.01
A118: 170 | B118: Marlborough | C118: 5336 | D118: 5207 | E118: -129 | F118: 67959735.83 | G118: 68564199.29 | H118: 116.0867023 | I118: 36937156 | J118: 38131682 | K118: 229.4077204 | L118: 31032674 | M118: 31188884 | N118: 156210 | O118: 30 | P118: 0.01
A119: 171 | B119: Marshfield | C119: 3941 | D119: 3791 | E119: -150 | F119: 43514601.6 | G119: 43215478.69 | H119: -78.90343025 | I119: 35899546 | J119: 35652770 | K119: -65.09522553 | L119: 14664853 | M119: 14778583 | N119: 113730 | O119: 30 | P119: 0.01
A120: 172 | B120: Mashpee | C120: 1585 | D120: 1510 | E120: -75 | F120: 18424932.77 | G120: 18191214.66 | H120: -154.7802053 | I120: 15200570 | J120: 15007753 | K120: -127.6933775 | L120: 4640166 | M120: 4685466 | N120: 45300 | O120: 30 | P120: 0.01
A121: 173 | B121: Mattapoisett | C121: 437 | D121: 396 | E121: -41 | F121: 4546818.59 | G121: 4245573.87 | H121: -760.7189899 | I121: 3751126 | J121: 3502598 | K121: -627.5959596 | L121: 839485 | M121: 851365 | N121: 11880 | O121: 30 | P121: 0.01
A122: 174 | B122: Maynard | C122: 1305 | D122: 1256 | E122: -49 | F122: 14950228.73 | G122: 14846690.6 | H122: -82.43481644 | I122: 10176959 | J122: 10602983 | K122: 339.1910828 | L122: 5442941 | M122: 5480621 | N122: 37680 | O122: 30 | P122: 0.01
A123: 175 | B123: Medfield | C123: 2513 | D123: 2433 | E123: -80 | F123: 26552098.79 | G123: 26386600.92 | H123: -68.0221408 | I123: 21905481 | J123: 21768946 | K123: -56.11796136 | L123: 6288744 | M123: 6361734 | N123: 72990 | O123: 30 | P123: 0.01
A124: 176 | B124: Medford | C124: 4622 | D124: 4414 | E124: -208 | F124: 59524340.66 | G124: 59041525.51 | H124: -109.3826801 | I124: 49107581 | J124: 48709259 | K124: -90.2405981 | L124: 12143306 | M124: 12275726 | N124: 132420 | O124: 30 | P124: 0.01
A125: 177 | B125: Medway | C125: 2186 | D125: 2089 | E125: -97 | F125: 23623580.68 | G125: 23100506.07 | H125: -250.3947388 | I125: 16885292 | J125: 17420950 | K125: 256.418382 | L125: 10501419 | M125: 10564089 | N125: 62670 | O125: 30 | P125: 0.01
A126: 178 | B126: Melrose | C126: 4013 | D126: 3914 | E126: -99 | F126: 43519030.45 | G126: 44275634.77 | H126: 193.307185 | I126: 35108451 | J126: 36147954 | K126: 265.5858457 | L126: 8514496 | M126: 8631916 | N126: 117420 | O126: 30 | P126: 0.01
A127: 181 | B127: Methuen | C127: 7124 | D127: 6767 | E127: -357 | F127: 88769466.08 | G127: 89081373.36 | H127: 46.09240136 | I127: 40325303 | J127: 40893567 | K127: 83.97576474 | L127: 48444163 | M127: 48647173 | N127: 203010 | O127: 30 | P127: 0
A128: 182 | B128: Middleborough | C128: 3073 | D128: 3021 | E128: -52 | F128: 35057530.5 | G128: 35701074.94 | H128: 213.0236478 | I128: 18220402 | J128: 19002353 | K128: =(J128-I128)/$D128 -> 258.8384641 | L128: 17978609 | M128: 18069239 | N128: =M128-L128 -> 90630 | O128: =(M128-L128)/$D128 -> 30 | P128: 0.01
A129: 184 | B129: Middleton | C129: 686 | D129: 658 | E129: -28 | F129: 7013290.126 | G129: 6916385.816 | H129: -147.2709884 | I129: 5785964 | J129: 5706018 | K129: -121.4984802 | L129: 1666151 | M129: 1685891 | N129: 19740 | O129: 30 | P129: 0.01
A130: 185 | B130: Milford | C130: 4482 | D130: 4422 | E130: -60 | F130: 56604613.88 | G130: 58311889.74 | H130: 386.0868067 | I130: 25435714 | J130: 26045119 | K130: 137.812076 | L130: 31168900 | M130: 32266771 | N130: 1097871 | O130: 248.2747626 | P130: 0.04
A131: 186 | B131: Millbury | C131: 1743 | D131: 1633 | E131: -110 | F131: 19675592.06 | G131: 19068853.89 | H131: -371.5481751 | I131: 11797270 | J131: 12048397 | K131: 153.7826087 | L131: 7878322 | M131: 7927312 | N131: 48990 | O131: 30 | P131: 0.01
A132: 187 | B132: Millis | C132: 1088 | D132: 1051 | E132: -37 | F132: 11739340.25 | G132: 11827839.33 | H132: 84.20464805 | I132: 8676571 | J132: 9094951 | K132: 398.0780209 | L132: 4831312 | M132: 4862842 | N132: 31530 | O132: 30 | P132: 0.01
A133: 189 | B133: Milton | C133: 4374 | D133: 4340 | E133: -34 | F133: 46912230.01 | G133: 48026381.27 | H133: 256.7168799 | I133: 37346878 | J133: 38723621 | K133: 317.2218894 | L133: 9567275 | M133: 9697475 | N133: 130200 | O133: 30 | P133: 0.01
A134: 191 | B134: Monson | C134: 934 | D134: 883 | E134: -51 | F134: 10603017.18 | G134: 10383546.39 | H134: -248.5512911 | I134: 5893568 | J134: 5980205 | K134: 98.11664779 | L134: 7541075 | M134: 7567565 | N134: 26490 | O134: 30 | P134: 0
A135: 196 | B135: Nahant | C135: 266 | D135: 263 | E135: -3 | F135: 2739284.95 | G135: 2840964.3 | H135: 386.6134981 | I135: 2259910 | J135: 2343796 | K135: 318.9581749 | L135: 523513 | M135: 531403 | N135: 7890 | O135: 30 | P135: 0.02
A136: 197 | B136: Nantucket | C136: 1664 | D136: 1663 | E136: -1 | F136: 19472349.76 | G136: 20062013.99 | H136: 354.5786109 | I136: 16064689 | J136: 16551162 | K136: 292.5273602 | L136: 3600249 | M136: 3650139 | N136: 49890 | O136: 30 | P136: 0.01
A137: 198 | B137: Natick | C137: 5484 | D137: 5270 | E137: -214 | F137: 58312471.33 | G137: 57416261.71 | H137: -170.0587502 | I137: 48107789 | J137: 47368416 | K137: -140.298482 | L137: 10204682 | M137: 10362782 | N137: 158100 | O137: 30 | P137: 0.02
A138: 199 | B138: Needham | C138: =VLOOKUP(A138,aidcalc,14,FALSE) -> 5754 | D138: =VLOOKUP(A138,aidcalc,15,FALSE) -> 5561 | E138: -193 | F138: =VLOOKUP(A138,aidcalc,4,FALSE) -> 63004475.7 | G138: =VLOOKUP(A138,aidcalc,9,FALSE) -> 62670272.53 | H138: =(G138-F138)/$D138 -> -60.09767452 | I138: =VLOOKUP(A138,aidcalc,5,FALSE) -> 51978693 | J138: =VLOOKUP(A138,aidcalc,10,FALSE) -> 51702975 | K138: -49.58065096 | L138: =VLOOKUP(A138,aidcalc,6,FALSE) -> 11025783 | M138: =VLOOKUP(A138,aidcalc,39,FALSE) -> 11192613 | N138: 166830 | O138: 30 | P138: =ROUND(IF(F138>0,(M138-L138)/L138,100),2) -> 0.02
A139: 201 | B139: New Bedford | C139: 14257 | D139: 14010 | E139: =D139-C139 -> -247 | F139: 197388756 | G139: 205027128.5 | H139: 545.2085996 | I139: 31307615 | J139: 32430617 | K139: 80.15717345 | L139: 166091904 | M139: 172596512 | N139: 6504608 | O139: 464.2832263 | P139: 0.04
A140: 204 | B140: Newburyport | C140: 2308 | D140: 2211 | E140: -97 | F140: 24204978.57 | G140: 23983861.74 | H140: -100.0076119 | I140: 19969107 | J140: 19786686 | K140: -82.50610583 | L140: 4235872 | M140: 4302202 | N140: 66330 | O140: 30 | P140: 0.02
A141: 207 | B141: Newton | C141: 12831 | D141: 12113 | E141: -718 | F141: 143592665.2 | G141: 140564444.8 | H141: -249.9975576 | I141: 118463949 | J141: 115965667 | K141: -206.247998 | L141: 25128716 | M141: 25492106 | N141: 363390 | O141: 30 | P141: 0.01
A142: 208 | B142: Norfolk | C142: 944 | D142: 968 | E142: 24 | F142: 9555961.115 | G142: 10145341.34 | H142: 608.8638641 | I142: 7883668 | J142: 8327281 | K142: 458.2778926 | L142: 3461385 | M142: 3490425 | N142: 29040 | O142: 30 | P142: 0.01
A143: 209 | B143: North Adams | C143: 1424 | D143: 1308 | E143: -116 | F143: 18178355.15 | G143: 17776815.73 | H143: -306.9873242 | I143: 5057245 | J143: 5014917 | K143: -32.36085627 | L143: 13809703 | M143: 13848943 | N143: 39240 | O143: 30 | P143: 0
A144: 210 | B144: Northampton | C144: 2745 | D144: 2656 | E144: -89 | F144: 31063338.95 | G144: 30598896.71 | H144: -174.8653012 | I144: 25627255 | J144: 25244090 | K144: -144.2639307 | L144: 7558369 | M144: 7638049 | N144: 79680 | O144: 30 | P144: 0.01
A145: 211 | B145: North Andover | C145: 4704 | D145: 4600 | E145: -104 | F145: 50577443.99 | G145: 51150448.17 | H145: 124.5661261 | I145: 41726391 | J145: 42199120 | K145: 102.7671739 | L145: 9160097 | M145: 9298097 | N145: 138000 | O145: 30 | P145: 0.02
A146: 212 | B146: North Attleborough | C146: 4170 | D146: 4093 | E146: -77 | F146: 45073173.74 | G146: 45611148.41 | H146: 131.43774 | I146: 28270188 | J146: 28869699 | K146: 146.4722697 | L146: 20682041 | M146: 20804831 | N146: 122790 | O146: 30 | P146: 0.01
A147: 213 | B147: Northborough | C147: 1540 | D147: 1567 | E147: 27 | F147: 15653167.56 | G147: 16495720.15 | H147: 537.6851244 | I147: 12913864 | J147: 13436400 | K147: 333.4626675 | L147: 3993500 | M147: 4040510 | N147: 47010 | O147: 30 | P147: 0.01
A148: 214 | B148: Northbridge | C148: 2074 | D148: 2023 | E148: -51 | F148: 23651358.31 | G148: 24014322.35 | H148: 179.4187049 | I148: 12499433 | J148: 12896464 | K148: 196.2585269 | L148: 15603931 | M148: 15664621 | N148: 60690 | O148: 30 | P148: 0
A149: 215 | B149: North Brookfield | C149: 609 | D149: 573 | E149: -36 | F149: 6921441.02 | G149: 6846232.94 | H149: -131.2531937 | I149: 2970928 | J149: 3100851 | K149: 226.7417103 | L149: 4290838 | M149: 4308028 | N149: 17190 | O149: 30 | P149: 0
A150: 217 | B150: North Reading | C150: 2320 | D150: 2243 | E150: -77 | F150: 25345400.25 | G150: 25088126.48 | H150: -114.7007436 | I150: 20909956 | J150: 20697704 | K150: -94.62862238 | L150: 7153937 | M150: 7221227 | N150: 67290 | O150: 30 | P150: 0.01
A151: 218 | B151: Norton | C151: 2400 | D151: 2301 | E151: -99 | F151: 26443914.05 | G151: 26287595.52 | H151: -67.93504129 | I151: 18367335 | J151: 18880577 | K151: 223.0517166 | L151: 12827390 | M151: 12896420 | N151: 69030 | O151: 30 | P151: 0.01
A152: 219 | B152: Norwell | C152: 2153 | D152: 2138 | E152: -15 | F152: 22887277.59 | G152: 23314847.06 | H152: 199.9857202 | I152: 18882004 | J152: 19234749 | K152: 164.9883068 | L152: 4011711 | M152: 4092385 | N152: 80674 | O152: 37.7333957 | P152: 0.02
A153: 220 | B153: Norwood | C153: 3531 | D153: 3494 | E153: -37 | F153: 42697305.22 | G153: 43568844.49 | H153: 249.4388309 | I153: 33534173 | J153: 34544883 | K153: 289.2701774 | L153: 9166992 | M153: 9271812 | N153: 104820 | O153: 30 | P153: 0.01
A154: 221 | B154: Oak Bluffs | C154: 447 | D154: 438 | E154: -9 | F154: 5068644.35 | G154: 5237854.14 | H154: 386.3237215 | I154: 3984819 | J154: 4059261 | K154: 169.9589041 | L154: 1083825 | M154: 1178593 | N154: 94768 | O154: 216.3652968 | P154: 0.09
A155: 223 | B155: Orange | C155: 595 | D155: 532 | E155: -63 | F155: 7238630.15 | G155: 6779224.38 | H155: -863.5446805 | I155: 2020501 | J155: 1979869 | K155: -76.37593985 | L155: 5432046 | M155: 5448006 | N155: 15960 | O155: 30 | P155: 0
A156: 224 | B156: Orleans | C156: 204 | D156: 183 | E156: -21 | F156: 2333514.66 | G156: 2117003.94 | H156: -1183.118689 | I156: 1925150 | J156: 1746528 | K156: -976.0765027 | L156: 429984 | M156: 435474 | N156: 5490 | O156: 30 | P156: 0.01
A157: 226 | B157: Oxford | C157: 1655 | D157: 1563 | E157: -92 | F157: 19171590.48 | G157: 18610886.67 | H157: -358.735643 | I157: 9891135 | J157: 10077227 | K157: 119.0607806 | L157: 10566894 | M157: 10613784 | N157: 46890 | O157: 30 | P157: 0
A158: 227 | B158: Palmer | C158: 1413 | D158: 1318 | E158: -95 | F158: 17071234.92 | G158: 16656382.35 | H158: -314.7591578 | I158: 6857027 | J158: 6788607 | K158: -51.91198786 | L158: 10915640 | M158: 10955180 | N158: 39540 | O158: 30 | P158: 0
A159: 229 | B159: Peabody | C159: 5983 | D159: 5877 | E159: -106 | F159: 72290192.48 | G159: 73868646.39 | H159: 268.5815739 | I159: 50135481 | J159: 50926003 | K159: 134.5111451 | L159: 22171771 | M159: 22942643 | N159: 770872 | O159: 131.1676025 | P159: 0.03
A160: 230 | B160: Pelham | C160: 84 | D160: 70 | E160: -14 | F160: 928975.21 | G160: 781365.3 | H160: -2108.713 | I160: 690492 | J160: 644626 | K160: -655.2285714 | L160: 238483 | M160: 240583 | N160: 2100 | O160: 30 | P160: 0.01
A161: 231 | B161: Pembroke | C161: 2854 | D161: 2740 | E161: -114 | F161: 31797805.65 | G161: 31524469.69 | H161: -99.75764741 | I161: 21249366 | J161: 21759351 | K161: 186.1259124 | L161: 13608752 | M161: 13690952 | N161: 82200 | O161: 30 | P161: 0.01
A162: 234 | B162: Petersham | C162: 79 | D162: 67 | E162: -12 | F162: 932984.68 | G162: 857437.59 | H162: -1127.568507 | I162: 640821 | J162: 585991 | K162: -818.358209 | L162: 435523 | M162: 437533 | N162: 2010 | O162: 30 | P162: 0
A163: 236 | B163: Pittsfield | C163: 5920 | D163: 5707 | E163: -213 | F163: 76463876.15 | G163: 78783436.9 | H163: 406.441344 | I163: 28300807 | J163: 29449820 | K163: 201.3339758 | L163: 48163069 | M163: 49333617 | N163: 1170548 | O163: 205.107412 | P163: 0.02
A164: 238 | B164: Plainville | C164: 716 | D164: 658 | E164: -58 | F164: 7517996.15 | G164: 7115696.55 | H164: -611.3975684 | I164: 5427402 | J164: 5274713 | K164: -232.050152 | L164: 2927801 | M164: 2947541 | N164: 19740 | O164: 30 | P164: 0.01
A165: 239 | B165: Plymouth | C165: 7951 | D165: 7708 | E165: -243 | F165: 94027629.56 | G165: 96574184.65 | H165: 330.3781903 | I165: 71603127 | J165: 74135866 | K165: 328.5857551 | L165: 26369547 | M165: 26600787 | N165: 231240 | O165: 30 | P165: 0.01
A166: 240 | B166: Plympton | C166: 227 | D166: 214 | E166: -13 | F166: 2429975.092 | G166: 2362382.949 | H166: -315.851136 | I166: 1772432 | J166: 1775650 | K166: 15.03738318 | L166: 740470 | M166: 746890 | N166: 6420 | O166: 30 | P166: 0.01
A167: 242 | B167: Provincetown | C167: 97 | D167: 99 | E167: 2 | F167: 1297760.28 | G167: 1352973.22 | H167: 557.7064646 | I167: 1070652 | J167: 1116203 | K167: 460.1111111 | L167: 290781 | M167: 293751 | N167: 2970 | O167: 30 | P167: 0.01
A168: 243 | B168: Quincy | C168: 9657 | D168: 9549 | E168: -108 | F168: 129336079.2 | G168: 137993048.9 | H168: 906.5838975 | I168: 101589945 | J168: 106574604 | K168: 522.0084826 | L168: 28647763 | M168: 31418445 | N168: 2770682 | O168: 290.1541523 | P168: 0.1
A169: 244 | B169: Randolph | C169: 3286 | D169: 3265 | E169: -21 | F169: 42468258.92 | G169: 44604827.45 | H169: 654.3854613 | I169: 23490641 | J169: 24097300 | K169: 185.8067381 | L169: 18986721 | M169: 20507527 | N169: 1520806 | O169: 465.7905054 | P169: 0.08
A170: 246 | B170: Reading | C170: 3975 | D170: 3835 | E170: -140 | F170: 42488891.06 | G170: 42185788.9 | H170: -79.03576537 | I170: 35053335 | J170: 34803276 | K170: -65.20443286 | L170: 10834809 | M170: 10949859 | N170: 115050 | O170: 30 | P170: 0.01
A171: 248 | B171: Revere | C171: 7979 | D171: 7766 | E171: -213 | F171: 107222329.5 | G171: 118591270.7 | H171: 1463.93783 | I171: 36927909 | J171: 38450529 | K171: 196.0623229 | L171: 70298333 | M171: 80140742 | N171: 9842409 | O171: 1267.371749 | P171: 0.14
A172: 249 | B172: Richmond | C172: 125 | D172: 112 | E172: -13 | F172: 1449827.3 | G172: 1292054.59 | H172: -1408.684911 | I172: 1196108 | J172: 1065945 | K172: -1162.169643 | L172: 364649 | M172: 368009 | N172: 3360 | O172: 30 | P172: 0.01
A173: 250 | B173: Rochester | C173: 514 | D173: 483 | E173: -31 | F173: 5386708.88 | G173: 5238927.03 | H173: -305.9665631 | I173: 3382851 | J173: 3515179 | K173: 273.9710145 | L173: 2057549 | M173: 2072039 | N173: 14490 | O173: 30 | P173: 0.01
A174: 251 | B174: Rockland | C174: 2326 | D174: 2251 | E174: -75 | F174: 29202100.01 | G174: 29557229 | H174: 157.7649907 | I174: 14473503 | J174: 14834627 | K174: 160.4282541 | L174: 14728597 | M174: 14796127 | N174: 67530 | O174: 30 | P174: 0
A175: 252 | B175: Rockport | C175: 665 | D175: 594 | E175: -71 | F175: 7619056.399 | G175: 6987694.101 | H175: -1062.899492 | I175: 6285722 | J175: 5764848 | K175: -876.8922559 | L175: 1502126 | M175: 1519946 | N175: 17820 | O175: 30 | P175: 0.01
A176: 253 | B176: Rowe | C176: 50 | D176: 43 | E176: -7 | F176: 643874.47 | G176: 578883.11 | H176: -1511.426977 | I176: 531196 | J176: 477579 | K176: -1246.906977 | L176: 139775 | M176: 141065 | N176: 1290 | O176: 30 | P176: 0.01
A177: 258 | B177: Salem | C177: 4536 | D177: 4315 | E177: -221 | F177: 59442159.62 | G177: 59722480.57 | H177: 64.96429896 | I177: 35764101 | J177: 36933427 | K177: 270.9909618 | L177: 25807152 | M177: 25936602 | N177: 129450 | O177: 30 | P177: 0.01
A178: 261 | B178: Sandwich | C178: 2644 | D178: 2480 | E178: -164 | F178: 28550950.06 | G178: 27596949.41 | H178: -384.6776815 | I178: 23554534 | J178: 22767483 | K178: -317.3592742 | L178: 7151788 | M178: 7226188 | N178: 74400 | O178: 30 | P178: 0.01
A179: 262 | B179: Saugus | C179: 2798 | D179: 2612 | E179: -186 | F179: 33051187.88 | G179: 31765464.37 | H179: -492.2371784 | I179: 26786282 | J179: 26206508 | K179: -221.9655436 | L179: 6270812 | M179: 6349172 | N179: 78360 | O179: 30 | P179: 0.01
A180: 263 | B180: Savoy | C180: 50 | D180: 45 | E180: -5 | F180: 635304.58 | G180: 540914.55 | H180: -2097.556222 | I180: 372887 | J180: 446255 | K180: 1630.4 | L180: 515849 | M180: 517199 | N180: 1350 | O180: 30 | P180: 0
A181: 264 | B181: Scituate | C181: 2991 | D181: 2790 | E181: -201 | F181: 32099035.58 | G181: 30821136.84 | H181: -458.0282237 | I181: 26068183 | J181: 25427438 | K181: -229.6577061 | L181: 6030853 | M181: 6114553 | N181: 83700 | O181: 30 | P181: 0.01
A182: 265 | B182: Seekonk | C182: 2077 | D182: 2048 | E182: -29 | F182: 22173871.39 | G182: 22823463.87 | H182: 317.1838281 | I182: 15952238 | J182: 16439482 | K182: 237.9121094 | L182: 6705263 | M182: 6766703 | N182: 61440 | O182: 30 | P182: 0.01
A183: 266 | B183: Sharon | C183: 3535 | D183: 3471 | E183: -64 | F183: 38206192.1 | G183: 38555018.65 | H183: 100.4974212 | I183: 30736571 | J183: 30922251 | K183: 53.49467012 | L183: 7469972 | M183: 8528536 | N183: 1058564 | O183: 304.9737828 | P183: 0.14
A184: 269 | B184: Sherborn | C184: 400 | D184: 387 | E184: -13 | F184: 4086891.646 | G184: 4085765.839 | H184: -2.909063075 | I184: 3371686 | J184: 3370757 | K184: -2.400516796 | L184: 715207 | M184: 726817 | N184: 11610 | O184: 30 | P184: 0.02
A185: 271 | B185: Shrewsbury | C185: 6207 | D185: 6144 | E185: -63 | F185: 66373147.32 | G185: 67755147.82 | H185: 224.9349772 | I185: 50487975 | J185: 52467104 | K185: 322.1238607 | L185: 20068648 | M185: 20252968 | N185: 184320 | O185: 30 | P185: 0.01
A186: 272 | B186: Shutesbury | C186: 105 | D186: 98 | E186: -7 | F186: 1221694.11 | G186: 1164808.83 | H186: -580.4620408 | I186: 712492 | J186: 709939 | K186: -26.05102041 | L186: 630386 | M186: 633326 | N186: 2940 | O186: 30 | P186: 0
A187: 273 | B187: Somerset | C187: 1758 | D187: 1642 | E187: -116 | F187: 18501842.41 | G187: 17890453.66 | H187: -372.3439403 | I187: 9406646 | J187: 9346663 | K187: -36.53045067 | L187: 9096902 | M187: 9146162 | N187: 49260 | O187: 30 | P187: 0.01
A188: 274 | B188: Somerville | C188: 5282 | D188: 5049 | E188: -233 | F188: 72325602.75 | G188: 76723652.08 | H188: 871.0733465 | I188: 59668622 | J188: 62371611 | K188: 535.3513567 | L188: 20486918 | M188: 20638388 | N188: 151470 | O188: 30 | P188: 0.01
A189: 275 | B189: Southampton | C189: 462 | D189: 448 | E189: -14 | F189: 4972548.33 | G189: 5087907.08 | H189: 257.4972098 | I189: 3367625 | J189: 3512669 | K189: 323.7589286 | L189: 2551486 | M189: 2564926 | N189: 13440 | O189: 30 | P189: 0.01
A190: 276 | B190: Southborough | C190: 1225 | D190: 1156 | E190: -69 | F190: 12497359.94 | G190: 12207265.05 | H190: -250.9471373 | I190: 10310322 | J190: 10070994 | K190: -207.0311419 | L190: 2986051 | M190: 3020731 | N190: 34680 | O190: 30 | P190: 0.01
A191: 277 | B191: Southbridge | C191: 2231 | D191: 2210 | E191: -21 | F191: 29979243.07 | G191: 31747452.57 | H191: 800.0947964 | I191: 8016911 | J191: 8237019 | K191: =(J191-I191)/$D191 -> 99.59638009 | L191: 22989832 | M191: 23510434 | N191: =M191-L191 -> 520602 | O191: =(M191-L191)/$D191 -> 235.5665158 | P191: 0.02
A192: 278 | B192: South Hadley | C192: 1941 | D192: 1837 | E192: -104 | F192: 22558199.09 | G192: 22241637.69 | H192: -172.3252041 | I192: 14027360 | J192: 14021018 | K192: -3.452367991 | L192: 8530839 | M192: 8585949 | N192: 55110 | O192: 30 | P192: 0.01
A193: 281 | B193: Springfield | C193: 29551 | D193: 29144 | E193: -407 | F193: 419043165.7 | G193: 443439917.5 | H193: 837.1106169 | I193: 41873391 | J193: 43175654 | K193: 44.68374279 | L193: 377169775 | M193: 400264264 | N193: 23094489 | O193: 792.4268803 | P193: 0.06
A194: 284 | B194: Stoneham | C194: 2450 | D194: 2376 | E194: -74 | F194: 27298622.59 | G194: 27675773.21 | H194: 158.7334258 | I194: 22148293 | J194: 22660692 | K194: 215.6561448 | L194: 5266351 | M194: 5337631 | N194: 71280 | O194: 30 | P194: 0.01
A195: 285 | B195: Stoughton | C195: 3644 | D195: 3540 | E195: -104 | F195: 44058289.5 | G195: 44797790.67 | H195: 208.8986347 | I195: 27084504 | J195: 27844812 | K195: 214.7762712 | L195: 16973793 | M195: 17235177 | N195: 261384 | O195: 73.83728814 | P195: 0.02
A196: 287 | B196: Sturbridge | C196: 870 | D196: 804 | E196: -66 | F196: 8866569.39 | G196: 8593995.64 | H196: -339.0220771 | I196: 5185477 | J196: 5067895 | K196: -146.2462687 | L196: 3846634 | M196: 3870754 | N196: 24120 | O196: 30 | P196: 0.01
A197: 288 | B197: Sudbury | C197: 2690 | D197: 2524 | E197: -166 | F197: 26639866.14 | G197: 25511367.01 | H197: -447.1074182 | I197: 21977890 | J197: 21046878 | K197: -368.8637084 | L197: 4990518 | M197: 5066238 | N197: 75720 | O197: 30 | P197: 0.02
A198: 289 | B198: Sunderland | C198: 171 | D198: 141 | E198: -30 | F198: 2034470.88 | G198: 1716998.62 | H198: -2251.576312 | I198: 1662285 | J198: 1416524 | K198: -1742.985816 | L198: 872838 | M198: 877068 | N198: 4230 | O198: 30 | P198: 0
A199: 290 | B199: Sutton | C199: 1321 | D199: 1257 | E199: -64 | F199: 13916186.88 | G199: 13669932.57 | H199: -195.9063723 | I199: 10856059 | J199: 11084974 | K199: 182.1121718 | L199: 5479815 | M199: 5517525 | N199: 37710 | O199: 30 | P199: 0.01
A200: 291 | B200: Swampscott | C200: 2155 | D200: 2086 | E200: -69 | F200: 23409223.78 | G200: 23465483.94 | H200: 26.97035475 | I200: 18964138 | J200: 19359024 | K200: 189.3029722 | L200: 4447386 | M200: 4509966 | N200: 62580 | O200: 30 | P200: 0.01
A201: 292 | B201: Swansea | C201: 2115 | D201: 2044 | E201: -71 | F201: 22877752.37 | G201: 23868174.95 | H201: 484.5511644 | I201: 14533757 | J201: 14677628 | K201: 70.3869863 | L201: 8449049 | M201: 9190547 | N201: 741498 | O201: 362.7681018 | P201: 0.09
A202: 293 | B202: Taunton | C202: =VLOOKUP(A202,aidcalc,14,FALSE) -> 8113 | D202: =VLOOKUP(A202,aidcalc,15,FALSE) -> 7953 | E202: -160 | F202: =VLOOKUP(A202,aidcalc,4,FALSE) -> 103523189.7 | G202: =VLOOKUP(A202,aidcalc,9,FALSE) -> 106634338.9 | H202: =(G202-F202)/$D202 -> 391.1918987 | I202: =VLOOKUP(A202,aidcalc,5,FALSE) -> 36893138 | J202: =VLOOKUP(A202,aidcalc,10,FALSE) -> 38137066 | K202: 156.4099082 | L202: =VLOOKUP(A202,aidcalc,6,FALSE) -> 66638377 | M202: =VLOOKUP(A202,aidcalc,39,FALSE) -> 68497273 | N202: 1858896 | O202: 233.7351943 | P202: =ROUND(IF(F202>0,(M202-L202)/L202,100),2) -> 0.03
A203: 295 | B203: Tewksbury | C203: 3364 | D203: 3256 | E203: =D203-C203 -> -108 | F203: 35851430.13 | G203: 35898780.92 | H203: 14.54262592 | I203: 29577430 | J203: 29616494 | K203: 11.997543 | L203: 13326215 | M203: 13423895 | N203: 97680 | O203: 30 | P203: 0.01
... 128 more rows

Sheet Rates
A3: Massachusetts Department of Elementary and Secondary Education
A4: Office of School Finance
A6: ="Foundation Budget Rates Per Pupil, "& CYr &" Chapter 70" -> Foundation Budget Rates Per Pupil, FY22 Chapter 70
C8: Administration | D8: Instructional Leadership | E8: Classroom & Specialist Teachers | F8: Other Teaching Services | G8: Professional Development | H8: Instructional Materials, Equipment & Technology | I8: Guidance & Psychological Services | J8: Pupil Services | K8: Operations & Maintenance | L8: Employee Benefits/Fixed Charges | M8: Special Education Tuition | N8: Total, All Categories
A10: 1 | B10: Pre-school | C10: 202.69 | D10: 366.06 | E10: 1678.52 | F10: 430.49 | G10: 66.38 | H10: 242.94 | I10: 132.6 | J10: 48.57 | K10: 466.11 | L10: 578.31 | M10: 0 | N10: 4212.67
A11: 2 | B11: Kindergarten half-day | C11: 202.69 | D11: 366.06 | E11: 1678.52 | F11: 430.49 | G11: 66.38 | H11: 242.94 | I11: 132.6 | J11: 48.57 | K11: 466.11 | L11: 578.31 | M11: 0 | N11: 4212.67
A12: 3 | B12: Kindergarten full-day | C12: 405.37 | D12: 732.13 | E12: 3357.03 | F12: 861.01 | G12: 132.83 | H12: 485.89 | I12: 265.23 | J12: 97.19 | K12: 932.2 | L12: 1156.61 | M12: 0 | N12: 8425.49
A13: 4 | B13: Elementary | C13: 405.37 | D13: 732.13 | E13: 3356.99 | F13: 861.01 | G13: 132.85 | H13: 485.89 | I13: 265.23 | J13: 145.76 | K13: 932.2 | L13: 1156.65 | M13: 0 | N13: 8474.08
A14: 5 | B14: Junior/Middle | C14: 405.37 | D14: 732.13 | E14: 2954.16 | F14: 619.8 | G14: 144.01 | H14: 485.89 | I14: 334.55 | J14: 238.1 | K14: 1010.62 | L14: 1202.41 | M14: 0 | N14: 8127.04
A15: 6 | B15: High School | C15: 405.37 | D15: 732.13 | E15: 4344.33 | F15: 515.98 | G15: 139.64 | H15: 777.42 | I15: 407.6 | J15: 549.04 | K15: 979.9 | L15: 1082.56 | M15: 0 | N15: 9933.97
A16: 7 | B16: Vocational | C16: 405.37 | D16: 732.13 | E16: 7385.41 | F16: 515.98 | G16: 230.86 | H16: 1360.47 | I16: 407.6 | J16: 549.04 | K16: 1833.94 | L16: 1522.15 | M16: 0 | N16: 14942.95
A17: 8 | B17: Special Ed-in district | C17: 2797.71 | D17: 0 | E17: 9231.73 | F17: 8619.54 | G17: 445.33 | H17: 388.7 | I17: 0 | J17: 0 | K17: 3125.17 | L17: 3540.37 | M17: 0 | N17: 28148.55
A18: 9 | B18: Special Ed-tuitioned out | C18: 2994.69 | D18: 0 | E18: 0 | F18: 45.75 | G18: 0 | H18: 0 | I18: 0 | J18: 0 | K18: 0 | L18: 0 | M18: 28432.97 | N18: 31473.41
A19: 10 | B19: English learners PK-5 | C19: 94.76 | D19: 165.82 | E19: 1160.73 | F19: 165.82 | G19: 47.37 | H19: 118.43 | I19: 71.06 | J19: 23.69 | K19: 284.26 | L19: 260.57 | M19: 0 | N19: 2392.51
A20: 11 | B20: English learners 6-8 | C20: 99.51 | D20: 174.14 | E20: 1218.92 | F20: 174.14 | G20: 49.75 | H20: 124.38 | I20: 74.63 | J20: 24.88 | K20: 298.51 | L20: 273.63 | M20: 0 | N20: 2512.49
A21: 12 | B21: English learners high school/voc | C21: 84.35 | D21: 147.62 | E21: 1033.27 | F21: 147.62 | G21: 42.17 | H21: 105.43 | I21: 63.26 | J21: 21.09 | K21: 253.05 | L21: 231.96 | M21: 0 | N21: 2129.82
A22: 13 | B22: Low income group 1 | C22: 52.25 | D22: 247.57 | E22: 2416.78 | F22: 0 | G22: 117.25 | H22: 17.97 | I22: 97.86 | J22: 508.52 | K22: 0 | L22: 390.93 | M22: 0 | N22: 3849.13
A23: 14 | B23: Low income group 2 | C23: 53.2 | D23: 252.03 | E23: 2460.28 | F23: 0 | G23: 119.36 | H23: 18.3 | I23: 99.62 | J23: 517.68 | K23: 0 | L23: 397.97 | M23: 0 | N23: 3918.44
A24: 15 | B24: Low income group 3 | C24: 54.13 | D24: 256.49 | E24: 2503.78 | F24: 0 | G24: 121.47 | H24: 18.62 | I24: 101.39 | J24: 526.83 | K24: 0 | L24: 405.01 | M24: 0 | N24: 3987.72
A25: 16 | B25: Low income group 4 | C25: 55.07 | D25: 260.94 | E25: 2547.29 | F25: 0 | G25: 123.59 | H25: 18.94 | I25: 103.15 | J25: 535.98 | K25: 0 | L25: 412.05 | M25: 0 | N25: 4057.01
A26: 17 | B26: Low income group 5 | C26: 56.01 | D26: 265.4 | E26: 2590.79 | F26: 0 | G26: 125.7 | H26: 19.27 | I26: 104.91 | J26: 545.14 | K26: 0 | L26: 419.08 | M26: 0 | N26: 4126.3
A27: 18 | B27: Low income group 6 | C27: 60.31 | D27: 285.76 | E27: 2789.59 | F27: 0 | G27: 135.33 | H27: 20.75 | I27: 112.96 | J27: 586.97 | K27: 0 | L27: 451.24 | M27: 0 | N27: 4442.91
A28: 19 | B28: Low income group 7 | C28: 62.57 | D28: 296.46 | E28: 2894.09 | F28: 0 | G28: 140.4 | H28: 21.52 | I28: 117.19 | J28: 608.96 | K28: 0 | L28: 468.14 | M28: 0 | N28: 4609.33
A29: 20 | B29: Low income group 8 | C29: 64.83 | D29: 307.17 | E29: 2998.56 | F29: 0 | G29: 145.47 | H29: 22.3 | I29: 121.42 | J29: 630.94 | K29: 0 | L29: 485.04 | M29: 0 | N29: 4775.73
A30: 21 | B30: Low income group 9 | C30: 67.09 | D30: 317.88 | E30: 3103.08 | F30: 0 | G30: 150.54 | H30: 23.08 | I30: 125.65 | J30: 652.93 | K30: 0 | L30: 501.94 | M30: 0 | N30: 4942.19
A31: 22 | B31: Low income group 10 | C31: 69.35 | D31: 328.58 | E31: 3207.58 | F31: 0 | G31: 155.61 | H31: 23.86 | I31: 129.88 | J31: 674.92 | K31: 0 | L31: 518.85 | M31: 0 | N31: 5108.63
A32: 23 | B32: Low income group 11 | C32: 71.12 | D32: 336.94 | E32: 3289.2 | F32: 0 | G32: 159.57 | H32: 24.46 | I32: 133.19 | J32: 692.09 | K32: 0 | L32: 532.05 | M32: 0 | N32: 5238.62
A33: 24 | B33: Low income group 12 | C33: 72.88 | D33: 345.3 | E33: 3370.82 | F33: 0 | G33: 163.53 | H33: 25.07 | I33: 136.5 | J33: 709.27 | K33: 0 | L33: 545.25 | M33: 0 | N33: 5368.62

Sheet Townwide Contributions
A1: 1 | C1: From DOR 3 | D1: 4 | E1: From DOR 5 | F1: 6 | G1: 7 | H1: 8 | I1: =H1+1 -> 9 | J1: =I1+1 -> 10 | K1: 11 | L1: 12 | M1: 13 | N1: c70fy21 14 | O1: From DOR 15 | P1: 16 | Q1: 17 | R1: 18 | S1: 19 | T1: 20 | U1: 21 | V1: 22 | W1: 23 | X1: 24 | Y1: 25 | Z1: 26 | AA1: 27 | AB1: 28 | AC1: 29 | AD1: 30 | AE1: 29 | AF1: 30 | AG1: 31 | AH1: 32
B2: Return to Index | C2: 1. Calculation of effort goal (target local share) | N2: 2. Calculation of annual increments toward goal (required local contribution) | AA2: Analysis of Gap Closing
B3: More about the data | S3: Increments | T3: Thresholds
D4: uniform property percentage | F4: uniform income percentage | N4: Updated 12/17/20 | O4: Updated 1/15/21 | S4: =parameters!C18 -> 0.01 | T4: =parameters!C16 -> 2.5 | V4: Effort Reduction | W4: OPTION TO ACTIVATE THIS INCREMENT | AH4: -0.05
D5: =parameters!C29 -> 0.003310857094 | F5: =parameters!C30 -> 0.01413479509 | S5: =parameters!C19 -> 0.02 | T5: =parameters!C17 -> 7.5 | V5: =effortred -> 1 | W5: 1 | AH5: -0.1 | AM5: SUMMARY FOR EXPORT (reads from columns to the left)
C6: Updated 12/17/20 | E6: Updated 12/17/20 | J6: maximum | K6: target local | N6: required | Q6: preliminary | S6: percentage | T6: dollar | AH6: 0.02
D7: local effort | E7: DOR total | F7: local effort | G7: combined | J7: local contribution | K7: contribution | L7: target | N7: local | P7: preliminary | Q7: contribution | R7: shortfall | S7: increment | T7: increment | V7: excess effort | X7: required | AA7: Before | AB7: After implementation | AH7: 0.01 | AO7: CEY% | AP7: target
C8: total | D8: from property | E8: income | F8: from income | G8: effort | H8: =CYr -> FY22 | I8: CEY % | J8: foundation pct= | K8: (lesser of max local | L8: local | N8: contribution | O8: mrgf | P8: contribution | Q8: percentage of | R8: from target | S8: toward | T8: toward | U8: excess | V8: times effort | W8: CEY% > 175% | X8: contribution | Y8: percentage | AA8: below effort | AB8: below effort | AC8: above effort | AD8: distance from | AF8: % distance | AG8: Points | AH8: x% of | AM8: 3 digit town code | AO8: found | AP8: local share | AQ8: RLC | AR8: distance from
A9: LEA | B9: Town | C9: EQV 2020 | D9: wealth | E9: 2018 | F9: wealth | G9: yield | H9: foundation | I9: Found | J9: =maxloc -> 0.825 | K9: or effort yield) | L9: share | N9: FY21 | O9: FY21 | P9: =CYr -> FY22 | Q9: foundation | R9: local share | S9: target | T9: target | U9: effort | V9: reduction % | W9: increment | X9: =CYr -> FY22 | Y9: of foundation | AA9: shortfall | AB9: shortfall | AC9: excess | AD9: target | AF9: from target | AG9: from target | AH9: the gap | AM9: =CYr -> FY22 | AN9: Town | AO9: =CYr -> FY22 | AP9: =CYr -> FY22 | AQ9: =CYr -> FY22 | AR9: target
A10: 1 | B10: Abington | C10: 2379458500 | D10: =D$5*C10 -> 7878047.054 | E10: 640153000 | F10: =E10*F$5 -> 9048431.482 | G10: =ROUND(D10+F10,0) -> 16926479 | H10: =(SUMIF(town1755,A10,found1755)/2) -> 28071783.47 | I10: =G10/H10 -> 0.6029712724 | J10: =ROUND(H10*maxloc,0) -> 23159221 | K10: =MIN(G10,J10) -> 16926479 | L10: =IF(H10>0, ROUND((K10*100/H10), 2), 0) -> 60.3 | N10: 16195587 | O10: 0.033 | P10: =ROUND(N10*(1+O10),0) -> 16730041 | Q10: =P10*100/H10 -> 59.59735695 | R10: =IF(L10>Q10,L10-Q10,0) -> 0.7026430466 | S10: =IF(AND(R10>$T$4,R10<=$T$5),$S$4,IF(R10>$T$5,$S$5,0)) -> 0 | T10: =ROUND(S10*N10,0) -> 0 | U10: =MAX(P10-K10,0) -> 0 | V10: =MAX(U10*(V$5),0) -> 0 | W10: =IF(AND(I10>1.75,$W$5=1),MAX(K10-(P10+T10),0),0) -> 0 | X10: =MIN(H10*parameters!C$22,ROUND(P10+T10-V10+W10,0)) -> 16730041 | Y10: =X10*100/H10 -> 59.59735695 | AA10: =IF(Q10<L10, P10-K10, 0) -> -196438 | AB10: =-1*MAX(K10-(P10+T10+W10),0) -> -196438 | AC10: =IF(Q10>L10, X10-K10,0) -> 0 | AD10: =Y10-L10 -> -0.7026430466 | AF10: =(P10-K10)/K10 -> -0.01160536695 | AG10: =Q10-L10 -> -0.7026430466 | AH10: =IF(AF10<$AH$5, $AH$6*(N10), IF(AND(AF10<$AH$4, AF10>$AH$5), $AH$7*(N10), 0)) -> 0 | AM10: =TEXT(A10,"000") -> 001 | AN10: =B10 -> Abington | AO10: =I10 -> 0.6029712724 | AP10: =L10 -> 60.3 | AQ10: =X10 -> 16730041 | AR10: =AD10 -> -0.7026430466
A11: 2 | B11: Acton | C11: 4940912200 | D11: 16358654.21 | E11: 1656423000 | F11: =E11*F$5 -> 23413199.69 | G11: 39771854 | H11: =(SUMIF(town1755,A11,found1755)/2) -> 49576478 | I11: =G11/H11 -> 0.8022323409 | J11: 40900594 | K11: =MIN(G11,J11) -> 39771854 | L11: =IF(H11>0, ROUND((K11*100/H11), 2), 0) -> 80.22 | N11: 39168665 | O11: 0.0329 | P11: =ROUND(N11*(1+O11),0) -> 40457314 | Q11: =P11*100/H11 -> 81.60586558 | R11: =IF(L11>Q11,L11-Q11,0) -> 0 | S11: =IF(AND(R11>$T$4,R11<=$T$5),$S$4,IF(R11>$T$5,$S$5,0)) -> 0 | T11: =ROUND(S11*N11,0) -> 0 | U11: =MAX(P11-K11,0) -> 685460 | V11: 685460 | W11: =IF(AND(I11>1.75,$W$5=1),MAX(K11-(P11+T11),0),0) -> 0 | X11: =MIN(H11*parameters!C$22,ROUND(P11+T11-V11+W11,0)) -> 39771854 | Y11: =X11*100/H11 -> 80.22323409 | AA11: =IF(Q11<L11, P11-K11, 0) -> 0 | AB11: =-1*MAX(K11-(P11+T11+W11),0) -> 0 | AC11: =IF(Q11>L11, X11-K11,0) -> 0 | AD11: =Y11-L11 -> 0.003234087824 | AF11: 0.01723480127 | AG11: =Q11-L11 -> 1.385865585 | AH11: 0 | AM11: =TEXT(A11,"000") -> 002 | AN11: =B11 -> Acton | AO11: =I11 -> 0.8022323409 | AP11: 80.22 | AQ11: 39771854 | AR11: =AD11 -> 0.003234087824
A12: 3 | B12: Acushnet | C12: 1346443900 | D12: 4457883.338 | E12: 351419000 | F12: =E12*F$5 -> 4967235.556 | G12: 9425119 | H12: 16176565.53 | I12: 0.5826403003 | J12: 13345667 | K12: 9425119 | L12: 58.26 | N12: 9217585 | O12: 0.0319 | P12: 9511626 | Q12: 58.79879744 | R12: 0 | S12: 0 | T12: 0 | U12: 86507 | V12: 86507 | W12: 0 | X12: =MIN(H12*parameters!C$22,ROUND(P12+T12-V12+W12,0)) -> 9425119 | Y12: 58.26403003 | AA12: 0 | AB12: 0 | AC12: 0 | AD12: 0.004030029523 | AF12: 0.009178345653 | AG12: 0.5387974363 | AH12: 0 | AM12: 003 | AN12: Acushnet | AO12: 0.5826403003 | AP12: 58.26 | AQ12: 9425119 | AR12: 0.004030029523
A13: 4 | B13: Adams | C13: 549332800 | D13: 1818762.398 | E13: 189808000 | F13: 2682897.187 | G13: 4501660 | H13: 13633152.58 | I13: 0.330199488 | J13: 11247351 | K13: 4501660 | L13: 33.02 | N13: 4656528 | O13: 0.0294 | P13: 4793430 | Q13: 35.16009942 | R13: 0 | S13: 0 | T13: 0 | U13: 291770 | V13: 291770 | W13: 0 | X13: =MIN(H13*parameters!C$22,ROUND(P13+T13-V13+W13,0)) -> 4501660 | Y13: 33.0199488 | AA13: 0 | AB13: 0 | AC13: 0 | AD13: -5.120356902e-05 | AF13: 0.06481386866 | AG13: 2.140099421 | AH13: 0 | AM13: 004 | AN13: Adams | AO13: 0.330199488 | AP13: 33.02 | AQ13: 4501660 | AR13: -5.120356902e-05
A14: 5 | B14: Agawam | C14: 3286756800 | D14: 10881982.07 | E14: 879657000 | F14: 12433771.45 | G14: 23315754 | H14: 42757064.97 | I14: 0.5453076355 | J14: 35274579 | K14: 23315754 | L14: 54.53 | N14: 23256462 | O14: 0.013 | P14: 23558796 | Q14: 55.09918891 | R14: 0 | S14: 0 | T14: 0 | U14: 243042 | V14: 243042 | W14: 0 | X14: =MIN(H14*parameters!C$22,ROUND(P14+T14-V14+W14,0)) -> 23315754 | Y14: 54.53076355 | AA14: 0 | AB14: 0 | AC14: 0 | AD14: 0.0007635506769 | AF14: 0.01042393911 | AG14: 0.5691889096 | AH14: 0 | AM14: 005 | AN14: Agawam | AO14: 0.5453076355 | AP14: 54.53 | AQ14: 23315754 | AR14: 0.0007635506769
A15: 6 | B15: Alford | C15: 279886100 | D15: 926662.8796 | E15: 18905000 | F15: 267218.3012 | G15: 1193881 | H15: 242763.6847 | I15: 4.917873121 | J15: 200280 | K15: 200280 | L15: 82.5 | N15: 205780 | O15: 0.0269 | P15: 211315 | Q15: 87.04555635 | R15: 0 | S15: 0 | T15: 0 | U15: 11035 | V15: 11035 | W15: 0 | X15: =MIN(H15*parameters!C$22,ROUND(P15+T15-V15+W15,0)) -> 200280 | Y15: 82.49998356 | AA15: 0 | AB15: 0 | AC15: 0 | AD15: -1.643870192e-05 | AF15: 0.05509786299 | AG15: 4.545556352 | AH15: 0 | AM15: 006 | AN15: Alford | AO15: 4.917873121 | AP15: 82.5 | AQ15: 200280 | AR15: -1.643870192e-05
A16: 7 | B16: Amesbury | C16: 2652855600 | D16: 8783225.782 | E16: 724019000 | F16: 10233860.21 | G16: 19017086 | H16: 24388872.71 | I16: 0.7797443623 | J16: 20120820 | K16: 19017086 | L16: 77.97 | N16: 17319889 | O16: 0.0265 | P16: 17778866 | Q16: 72.89744881 | R16: 5.072551194 | S16: 0.01 | T16: 173199 | U16: 0 | V16: 0 | W16: 0 | X16: =MIN(H16*parameters!C$22,ROUND(P16+T16-V16+W16,0)) -> 17952065 | Y16: 73.60760463 | AA16: -1238220 | AB16: -1065021 | AC16: 0 | AD16: -4.36239537 | AF16: -0.06511092183 | AG16: -5.072551194 | AH16: 173198.89 | AM16: 007 | AN16: Amesbury | AO16: 0.7797443623 | AP16: 77.97 | AQ16: 17952065 | AR16: -4.36239537
A17: 8 | B17: Amherst | C17: 2727618700 | D17: 9030755.722 | E17: 795343000 | F17: 11242010.33 | G17: 20272766 | H17: 26226022.75 | I17: 0.7730019224 | J17: 21636469 | K17: 20272766 | L17: 77.3 | N17: 20191326 | O17: 0.0095 | P17: 20383144 | Q17: 77.72106429 | R17: 0 | S17: 0 | T17: 0 | U17: 110378 | V17: 110378 | W17: 0 | X17: =MIN(H17*parameters!C$22,ROUND(P17+T17-V17+W17,0)) -> 20272766 | Y17: 77.30019224 | AA17: 0 | AB17: 0 | AC17: 0 | AD17: 0.0001922376396 | AF17: 0.005444644308 | AG17: 0.4210642893 | AH17: 0 | AM17: 008 | AN17: Amherst | AO17: 0.7730019224 | AP17: 77.3 | AQ17: 20272766 | AR17: 0.0001922376396
A18: 9 | B18: Andover | C18: 9328654100 | D18: 30885840.6 | E18: 3175310000 | F18: 44882356.2 | G18: 75768197 | H18: 65650568.71 | I18: 1.154113338 | J18: 54161719 | K18: 54161719 | L18: 82.5 | N18: 53540138 | O18: 0.0338 | P18: 55349795 | Q18: 84.30969615 | R18: 0 | S18: 0 | T18: 0 | U18: 1188076 | V18: 1188076 | W18: 0 | X18: =MIN(H18*parameters!C$22,ROUND(P18+T18-V18+W18,0)) -> 54161719 | Y18: 82.49999971 | AA18: 0 | AB18: 0 | AC18: 0 | AD18: -2.859414394e-07 | AF18: 0.02193571441 | AG18: 1.809696147 | AH18: 0 | AM18: 009 | AN18: Andover | AO18: 1.154113338 | AP18: 82.5 | AQ18: 54161719 | AR18: -2.859414394e-07
A19: 10 | B19: Arlington | C19: 12795048700 | D19: 42362577.75 | E19: 2994953000 | F19: 42333046.96 | G19: 84695625 | H19: 67791445.97 | I19: 1.249355635 | J19: 55927943 | K19: 55927943 | L19: 82.5 | N19: 52434811 | O19: 0.02 | P19: 53483507 | Q19: 78.89418235 | R19: 3.605817648 | S19: 0.01 | T19: 524348 | U19: 0 | V19: 0 | W19: 0 | X19: =MIN(H19*parameters!C$22,ROUND(P19+T19-V19+W19,0)) -> 54007855 | Y19: 79.66765457 | AA19: -2444436 | AB19: -1920088 | AC19: 0 | AD19: -2.832345432 | AF19: -0.04370688191 | AG19: -3.605817648 | AH19: 0 | AM19: 010 | AN19: Arlington | AO19: 1.249355635 | AP19: 82.5 | AQ19: 54007855 | AR19: -2.832345432
A20: 11 | B20: Ashburnham | C20: 795346900 | D20: 2633279.926 | E20: 231628000 | F20: 3274014.317 | G20: 5907294 | H20: 12452630.68 | I20: 0.4743812093 | J20: 10273420 | K20: 5907294 | L20: 47.44 | N20: 5587688 | O20: 0.0136 | P20: 5663681 | Q20: 45.48180338 | R20: 1.958196624 | S20: 0 | T20: 0 | U20: 0 | V20: 0 | W20: 0 | X20: =MIN(H20*parameters!C$22,ROUND(P20+T20-V20+W20,0)) -> 5663681 | Y20: 45.48180338 | AA20: -243613 | AB20: -243613 | AC20: 0 | AD20: -1.958196624 | AF20: -0.04123935596 | AG20: -1.958196624 | AH20: 0 | AM20: 011 | AN20: Ashburnham | AO20: 0.4743812093 | AP20: 47.44 | AQ20: 5663681 | AR20: -1.958196624
A21: 12 | B21: Ashby | C21: 366133300 | D21: 1212215.034 | E21: 106452000 | F21: 1504677.207 | G21: 2716892 | H21: 4554529.833 | I21: 0.5965252396 | J21: 3757487 | K21: 2716892 | L21: 59.65 | N21: 2598778 | O21: 0.0383 | P21: 2698311 | Q21: 59.24455649 | R21: 0.4054435066 | S21: 0 | T21: 0 | U21: 0 | V21: 0 | W21: 0 | X21: =MIN(H21*parameters!C$22,ROUND(P21+T21-V21+W21,0)) -> 2698311 | Y21: 59.24455649 | AA21: -18581 | AB21: -18581 | AC21: 0 | AD21: -0.4054435066 | AF21: -0.006839064637 | AG21: -0.4054435066 | AH21: 0 | AM21: 012 | AN21: Ashby | AO21: 0.5965252396 | AP21: 59.65 | AQ21: 2698311 | AR21: -0.4054435066
A22: 13 | B22: Ashfield | C22: 271206700 | D22: 897926.6266 | E22: 47427000 | F22: 670370.9268 | G22: 1568298 | H22: 1752958.239 | I22: 0.8946579361 | J22: 1446191 | K22: 1446191 | L22: 82.5 | N22: 1530546 | O22: 0.0328 | P22: 1580748 | Q22: 90.17602159 | R22: 0 | S22: 0 | T22: 0 | U22: 134557 | V22: 134557 | W22: 0 | X22: =MIN(H22*parameters!C$22,ROUND(P22+T22-V22+W22,0)) -> 1446191 | Y22: 82.50002584 | AA22: 0 | AB22: 0 | AC22: 0 | AD22: 2.583702968e-05 | AF22: 0.09304234365 | AG22: 7.676021592 | AH22: 0 | AM22: 013 | AN22: Ashfield | AO22: 0.8946579361 | AP22: 82.5 | AQ22: 1446191 | AR22: 2.583702968e-05
A23: 14 | B23: Ashland | C23: 3214888000 | D23: 10644034.74 | E23: 977144000 | F23: 13811730.21 | G23: 24455765 | H23: 31345655.02 | I23: 0.7801963297 | J23: 25860165 | K23: 24455765 | L23: 78.02 | N23: 23048494 | O23: 0.0327 | P23: 23802180 | Q23: 75.93454334 | R23: 2.085456656 | S23: 0 | T23: 0 | U23: 0 | V23: 0 | W23: 0 | X23: =MIN(H23*parameters!C$22,ROUND(P23+T23-V23+W23,0)) -> 23802180 | Y23: 75.93454334 | AA23: -653585 | AB23: -653585 | AC23: 0 | AD23: -2.085456656 | AF23: -0.02672519138 | AG23: -2.085456656 | AH23: 0 | AM23: 014 | AN23: Ashland | AO23: 0.7801963297 | AP23: 78.02 | AQ23: 23802180 | AR23: -2.085456656
A24: 15 | B24: Athol | C24: 880913600 | D24: 2916579.042 | E24: 252764000 | F24: 3572767.346 | G24: 6489346 | H24: 21912080.82 | I24: 0.2961537999 | J24: 18077467 | K24: 6489346 | L24: 29.62 | N24: 3370898 | O24: 0.0434 | P24: 3517195 | Q24: 16.05139662 | R24: 13.56860338 | S24: 0.02 | T24: 67418 | U24: 0 | V24: 0 | W24: 0 | X24: =MIN(H24*parameters!C$22,ROUND(P24+T24-V24+W24,0)) -> 3584613 | Y24: 16.35907164 | AA24: -2972151 | AB24: -2904733 | AC24: 0 | AD24: -13.26092836 | AF24: -0.4580047049 | AG24: -13.56860338 | AH24: 67417.96 | AM24: 015 | AN24: Athol | AO24: 0.2961537999 | AP24: 29.62 | AQ24: 3584613 | AR24: -13.26092836
A25: 16 | B25: Attleboro | C25: 5286614900 | D25: 17503226.44 | E25: 1548600000 | F25: 21889143.68 | G25: 39392370 | H25: 80906025.88 | I25: 0.4868904333 | J25: 66747471 | K25: 39392370 | L25: 48.69 | N25: 38238615 | O25: 0.0301 | P25: 39389597 | Q25: 48.6856159 | R25: 0.004384102061 | S25: 0 | T25: 0 | U25: 0 | V25: 0 | W25: 0 | X25: =MIN(H25*parameters!C$22,ROUND(P25+T25-V25+W25,0)) -> 39389597 | Y25: 48.6856159 | AA25: -2773 | AB25: -2773 | AC25: 0 | AD25: -0.004384102061 | AF25: -7.039434286e-05 | AG25: -0.004384102061 | AH25: 0 | AM25: 016 | AN25: Attleboro | AO25: 0.4868904333 | AP25: 48.69 | AQ25: 39389597 | AR25: -0.004384102061
A26: 17 | B26: Auburn | C26: 2423368200 | D26: 8023425.796 | E26: 599612000 | F26: 8475392.754 | G26: 16498819 | H26: 29087203.89 | I26: 0.5672191476 | J26: 23996943 | K26: 16498819 | L26: 56.72 | N26: 16167017 | O26: 0.0295 | P26: 16643944 | Q26: 57.2208455 | R26: 0 | S26: 0 | T26: 0 | U26: 145125 | V26: 145125 | W26: 0 | X26: =MIN(H26*parameters!C$22,ROUND(P26+T26-V26+W26,0)) -> 16498819 | Y26: 56.72191476 | AA26: 0 | AB26: 0 | AC26: 0 | AD26: 0.001914764342 | AF26: 0.008796084132 | AG26: 0.5008454987 | AH26: 0 | AM26: 017 | AN26: Auburn | AO26: 0.5672191476 | AP26: 56.72 | AQ26: 16498819 | AR26: 0.001914764342
A27: 18 | B27: Avon | C27: 912879000 | D27: 3022411.913 | E27: 173502000 | F27: 2452415.218 | G27: 5474827 | H27: 8209062.916 | I27: 0.6669247216 | J27: 6772477 | K27: 5474827 | L27: 66.69 | N27: 5396077 | O27: 0.0384 | P27: 5603286 | Q27: 68.25731581 | R27: 0 | S27: 0 | T27: 0 | U27: 128459 | V27: 128459 | W27: 0 | X27: =MIN(H27*parameters!C$22,ROUND(P27+T27-V27+W27,0)) -> 5474827 | Y27: 66.69247216 | AA27: 0 | AB27: 0 | AC27: 0 | AD27: 0.002472161401 | AF27: 0.02346357246 | AG27: 1.567315814 | AH27: 0 | AM27: 018 | AN27: Avon | AO27: 0.6669247216 | AP27: 66.69 | AQ27: 5474827 | AR27: 0.002472161401
A28: 19 | B28: Ayer | C28: 1414841800 | D28: 4684339.01 | E28: 300571000 | F28: 4248509.495 | G28: 8932849 | H28: 11956294.25 | I28: 0.7471252224 | J28: 9863943 | K28: 8932849 | L28: 74.71 | N28: 8451074 | O28: 0.0577 | P28: 8938701 | Q28: 74.76146718 | R28: 0 | S28: 0 | T28: 0 | U28: 5852 | V28: 5852 | W28: 0 | X28: =MIN(H28*parameters!C$22,ROUND(P28+T28-V28+W28,0)) -> 8932849 | Y28: 74.71252224 | AA28: 0 | AB28: 0 | AC28: 0 | AD28: 0.002522244646 | AF28: 0.0006551101446 | AG28: 0.0514671759 | AH28: 0 | AM28: 019 | AN28: Ayer | AO28: 0.7471252224 | AP28: 74.71 | AQ28: 8932849 | AR28: 0.002522244646
A29: 20 | B29: Barnstable | C29: 16031008100 | D29: 53076376.89 | E29: 1909202000 | F29: 26986179.06 | G29: 80062556 | H29: 68229841.73 | I29: 1.173424325 | J29: 56289619 | K29: 56289619 | L29: 82.5 | N29: 55634192 | O29: 0.024 | P29: 56969413 | Q29: 83.49632881 | R29: 0 | S29: 0 | T29: 0 | U29: 679794 | V29: 679794 | W29: 0 | X29: =MIN(H29*parameters!C$22,ROUND(P29+T29-V29+W29,0)) -> 56289619 | Y29: 82.49999937 | AA29: 0 | AB29: 0 | AC29: 0 | AD29: -6.281430132e-07 | AF29: 0.01207672058 | AG29: 0.9963288118 | AH29: 0 | AM29: 020 | AN29: Barnstable | AO29: 1.173424325 | AP29: 82.5 | AQ29: 56289619 | AR29: -6.281430132e-07
A30: 21 | B30: Barre | C30: 507030500 | D30: 1678705.528 | E30: 150607000 | F30: 2128799.084 | G30: 3807505 | H30: 9314084.064 | I30: 0.4087900618 | J30: 7684119 | K30: 3807505 | L30: 40.88 | N30: 3685412 | O30: 0.0251 | P30: 3777916 | Q30: 40.56132599 | R30: 0.3186740119 | S30: 0 | T30: 0 | U30: 0 | V30: 0 | W30: 0 | X30: =MIN(H30*parameters!C$22,ROUND(P30+T30-V30+W30,0)) -> 3777916 | Y30: 40.56132599 | AA30: -29589 | AB30: -29589 | AC30: 0 | AD30: -0.3186740119 | AF30: -0.007771230767 | AG30: -0.3186740119 | AH30: 0 | AM30: 021 | AN30: Barre | AO30: 0.4087900618 | AP30: 40.88 | AQ30: 3777916 | AR30: -0.3186740119
A31: 22 | B31: Becket | C31: 558339300 | D31: 1848581.632 | E31: 53841000 | F31: 761031.5025 | G31: 2609613 | H31: 2562594.493 | I31: 1.018348009 | J31: 2114140 | K31: 2114140 | L31: 82.5 | N31: 1945706 | O31: 0.0317 | P31: 2007385 | Q31: 78.33408701 | R31: 4.165912987 | S31: 0.01 | T31: 19457 | U31: 0 | V31: 0 | W31: 0 | X31: =MIN(H31*parameters!C$22,ROUND(P31+T31-V31+W31,0)) -> 2026842 | Y31: 79.09335658 | AA31: -106755 | AB31: -87298 | AC31: 0 | AD31: -3.406643424 | AF31: -0.05049570984 | AG31: -4.165912987 | AH31: 19457.06 | AM31: 022 | AN31: Becket | AO31: 1.018348009 | AP31: 82.5 | AQ31: 2026842 | AR31: -3.406643424
A32: 23 | B32: Bedford | C32: 4399434500 | D32: 14565898.92 | E32: 1096519000 | F32: 15499071.38 | G32: 30064970 | H32: 31386379.88 | I32: 0.9578986207 | J32: 25893763 | K32: 25893763 | L32: 82.5 | N32: 25567990 | O32: 0.0354 | P32: 26473097 | Q32: 84.3458121 | R32: 0 | S32: 0 | T32: 0 | U32: 579334 | V32: 579334 | W32: 0 | X32: =MIN(H32*parameters!C$22,ROUND(P32+T32-V32+W32,0)) -> 25893763 | Y32: 82.49999871 | AA32: 0 | AB32: 0 | AC32: 0 | AD32: -1.286640213e-06 | AF32: 0.02237349589 | AG32: 1.845812095 | AH32: 0 | AM32: 023 | AN32: Bedford | AO32: 0.9578986207 | AP32: 82.5 | AQ32: 25893763 | AR32: -1.286640213e-06
A33: 24 | B33: Belchertown | C33: 1706796100 | D33: 5650957.975 | E33: 564318000 | F33: 7976519.296 | G33: 13627477 | H33: 26334941.77 | I33: 0.5174675198 | J33: 21726327 | K33: 13627477 | L33: 51.75 | N33: 13183350 | O33: 0.0369 | P33: 13669816 | Q33: 51.90752318 | R33: 0 | S33: 0 | T33: 0 | U33: 42339 | V33: 42339 | W33: 0 | X33: =MIN(H33*parameters!C$22,ROUND(P33+T33-V33+W33,0)) -> 13627477 | Y33: 51.74675198 | AA33: 0 | AB33: 0 | AC33: 0 | AD33: -0.003248017358 | AF33: 0.003106884715 | AG33: 0.1575231754 | AH33: 0 | AM33: 024 | AN33: Belchertown | AO33: 0.5174675198 | AP33: 51.75 | AQ33: 13627477 | AR33: -0.003248017358
A34: 25 | B34: Bellingham | C34: 2853759500 | D34: 9448389.884 | E34: 636231000 | F34: 8992994.815 | G34: 18441385 | H34: 26371602.79 | I34: 0.6992895027 | J34: 21756572 | K34: 18441385 | L34: 69.93 | N34: 17850402 | O34: 0.0405 | P34: 18573343 | Q34: 70.42932941 | R34: 0 | S34: 0 | T34: 0 | U34: 131958 | V34: 131958 | W34: 0 | X34: =MIN(H34*parameters!C$22,ROUND(P34+T34-V34+W34,0)) -> 18441385 | Y34: 69.92895027 | AA34: 0 | AB34: 0 | AC34: 0 | AD34: -0.001049729792 | AF34: 0.007155536311 | AG34: 0.4993294131 | AH34: 0 | AM34: 025 | AN34: Bellingham | AO34: 0.6992895027 | AP34: 69.93 | AQ34: 18441385 | AR34: -0.001049729792
A35: 26 | B35: Belmont | C35: 9840875900 | D35: 32581733.78 | E35: 2583978000 | F35: 36523999.55 | G35: =ROUND(D35+F35,0) -> 69105733 | H35: =(SUMIF(town1755,A35,found1755)/2) -> 50621827.42 | I35: 1.365137067 | J35: 41763008 | K35: 41763008 | L35: 82.5 | N35: 40662179 | O35: 0.004 | P35: 40824828 | Q35: 80.64668954 | R35: =IF(L35>Q35,L35-Q35,0) -> 1.85331046 | S35: =IF(AND(R35>$T$4,R35<=$T$5),$S$4,IF(R35>$T$5,$S$5,0)) -> 0 | T35: =ROUND(S35*N35,0) -> 0 | U35: 0 | V35: 0 | W35: 0 | X35: =MIN(H35*parameters!C$22,ROUND(P35+T35-V35+W35,0)) -> 40824828 | Y35: 80.64668954 | AA35: -938180 | AB35: -938180 | AC35: 0 | AD35: -1.85331046 | AF35: -0.02246437804 | AG35: -1.85331046 | AH35: 0 | AM35: 026 | AN35: Belmont | AO35: 1.365137067 | AP35: 82.5 | AQ35: 40824828 | AR35: -1.85331046
A36: 27 | B36: Berkley | C36: 971888500 | D36: 3217783.935 | E36: 270345000 | F36: 3821271.179 | G36: 7039055 | H36: 13195157.1 | I36: 0.5334574606 | J36: 10886005 | K36: 7039055 | L36: 53.35 | N36: 6781390 | O36: 0.0414 | P36: 7062140 | Q36: 53.52069661 | R36: 0 | S36: 0 | T36: 0 | U36: 23085 | V36: 23085 | W36: 0 | X36: =MIN(H36*parameters!C$22,ROUND(P36+T36-V36+W36,0)) -> 7039055 | Y36: 53.34574606 | AA36: 0 | AB36: 0 | AC36: 0 | AD36: -0.004253936658 | AF36: 0.003279559543 | AG36: 0.1706966139 | AH36: 0 | AM36: 027 | AN36: Berkley | AO36: 0.5334574606 | AP36: 53.35 | AQ36: 7039055 | AR36: -0.004253936658
A37: 28 | B37: Berlin | C37: 710453400 | D37: 2352209.679 | E37: 169836000 | F37: 2400597.059 | G37: 4752807 | H37: 4384916.064 | I37: 1.083899197 | J37: 3617556 | K37: 3617556 | L37: 82.5 | N37: 3314664 | O37: 0.04 | P37: 3447251 | Q37: 78.61612285 | R37: 3.883877152 | S37: 0.01 | T37: 33147 | U37: 0 | V37: 0 | W37: 0 | X37: =MIN(H37*parameters!C$22,ROUND(P37+T37-V37+W37,0)) -> 3480398 | Y37: 79.37205522 | AA37: -170305 | AB37: -137158 | AC37: 0 | AD37: -3.127944781 | AF37: -0.04707736383 | AG37: -3.883877152 | AH37: 0 | AM37: 028 | AN37: Berlin | AO37: 1.083899197 | AP37: 82.5 | AQ37: 3480398 | AR37: -3.127944781
A38: 29 | B38: Bernardston | C38: 248325200 | D38: 822169.25 | E38: 65708000 | F38: 928769.1158 | G38: 1750938 | H38: 3335424.462 | I38: 0.5249520773 | J38: 2751725 | K38: 1750938 | L38: 52.5 | N38: 1699234 | O38: 0.0269 | P38: 1744943 | Q38: 52.31547049 | R38: 0.1845295116 | S38: 0 | T38: 0 | U38: 0 | V38: 0 | W38: 0 | X38: =MIN(H38*parameters!C$22,ROUND(P38+T38-V38+W38,0)) -> 1744943 | Y38: 52.31547049 | AA38: -5995 | AB38: -5995 | AC38: 0 | AD38: -0.1845295116 | AF38: -0.003423879087 | AG38: -0.1845295116 | AH38: 0 | AM38: 029 | AN38: Bernardston | AO38: 0.5249520773 | AP38: 52.5 | AQ38: 1744943 | AR38: -0.1845295116
A39: 30 | B39: Beverly | C39: 7994706700 | D39: 26469331.39 | E39: 2115626000 | F39: 29903940 | G39: 56373271 | H39: 55927248.08 | I39: 1.007975056 | J39: 46139980 | K39: 46139980 | L39: 82.5 | N39: 43414266 | O39: 0.0271 | P39: 44590793 | Q39: 79.72999662 | R39: 2.77000338 | S39: 0.01 | T39: 434143 | U39: 0 | V39: 0 | W39: 0 | X39: =MIN(H39*parameters!C$22,ROUND(P39+T39-V39+W39,0)) -> 45024936 | Y39: 80.50626045 | AA39: -1549187 | AB39: -1115044 | AC39: 0 | AD39: -1.993739546 | AF39: -0.03357580562 | AG39: -2.77000338 | AH39: 0 | AM39: 030 | AN39: Beverly | AO39: 1.007975056 | AP39: 82.5 | AQ39: 45024936 | AR39: -1.993739546
A40: 31 | B40: Billerica | C40: 7998669600 | D40: 26482451.99 | E40: 1728420000 | F40: 24430862.53 | G40: 50913315 | H40: 60824077 | I40: 0.8370585714 | J40: 50179864 | K40: 50179864 | L40: 82.5 | N40: 48257512 | O40: 0.0418 | P40: 50274676 | Q40: 82.65587984 | R40: 0 | S40: 0 | T40: 0 | U40: 94812 | V40: 94812 | W40: 0 | X40: =MIN(H40*parameters!C$22,ROUND(P40+T40-V40+W40,0)) -> 50179864 | Y40: 82.50000078 | AA40: 0 | AB40: 0 | AC40: 0 | AD40: 7.827339488e-07 | AF40: 0.001889443144 | AG40: 0.1558798436 | AH40: 0 | AM40: 031 | AN40: Billerica | AO40: 0.8370585714 | AP40: 82.5 | AQ40: 50179864 | AR40: 7.827339488e-07
A41: 32 | B41: Blackstone | C41: 1075325500 | D41: 3560249.06 | E41: 306167000 | F41: 4327607.809 | G41: 7887857 | H41: 16169172.29 | I41: 0.4878330725 | J41: 13339567 | K41: 7887857 | L41: 48.78 | N41: 7758120 | O41: 0.0303 | P41: 7993191 | Q41: 49.4347568 | R41: 0 | S41: 0 | T41: 0 | U41: 105334 | V41: 105334 | W41: 0 | X41: =MIN(H41*parameters!C$22,ROUND(P41+T41-V41+W41,0)) -> 7887857 | Y41: 48.78330725 | AA41: 0 | AB41: 0 | AC41: 0 | AD41: 0.00330725157 | AF41: 0.01335394392 | AG41: 0.6547568007 | AH41: 0 | AM41: 032 | AN41: Blackstone | AO41: 0.4878330725 | AP41: 48.78 | AQ41: 7887857 | AR41: 0.00330725157
A42: 33 | B42: Blandford | C42: 180760100 | D42: 598470.8594 | E42: 40004000 | F42: 565448.3428 | G42: 1163919 | H42: 1320256.966 | I42: 0.8815851993 | J42: 1089212 | K42: 1089212 | L42: 82.5 | N42: 1160289 | O42: 0.0416 | P42: 1208557 | Q42: 91.53952841 | R42: 0 | S42: 0 | T42: 0 | U42: 119345 | V42: 119345 | W42: 0 | X42: =MIN(H42*parameters!C$22,ROUND(P42+T42-V42+W42,0)) -> 1089212 | Y42: 82.50000026 | AA42: 0 | AB42: 0 | AC42: 0 | AD42: 2.620720778e-07 | AF42: 0.1095700378 | AG42: 9.039528408 | AH42: 0 | AM42: 033 | AN42: Blandford | AO42: 0.8815851993 | AP42: 82.5 | AQ42: 1089212 | AR42: 2.620720778e-07
A43: 34 | B43: Bolton | C43: 1191544800 | D43: 3945034.554 | E43: 447908000 | F43: 6331087.8 | G43: 10276122 | H43: 12023700.24 | I43: 0.8546555383 | J43: 9919553 | K43: 9919553 | L43: 82.5 | N43: 9163325 | O43: 0.0414 | P43: 9542687 | Q43: 79.36564295 | R43: 3.134357054 | S43: 0.01 | T43: 91633 | U43: 0 | V43: 0 | W43: 0 | X43: =MIN(H43*parameters!C$22,ROUND(P43+T43-V43+W43,0)) -> 9634320 | Y43: 80.12774611 | AA43: -376866 | AB43: -285233 | AC43: 0 | AD43: -2.37225389 | AF43: -0.03799223614 | AG43: -3.134357054 | AH43: 0 | AM43: 034 | AN43: Bolton | AO43: 0.8546555383 | AP43: 82.5 | AQ43: 9634320 | AR43: -2.37225389
A44: 35 | B44: Boston | C44: 203894526100 | D44: 675065638.1 | E44: 37097269000 | F44: 524362295.7 | G44: 1199427934 | H44: 973396859.4 | I44: 1.232208551 | J44: 803052409 | K44: 803052409 | L44: 82.5 | N44: 762717504 | O44: 0.0238 | P44: 780870181 | Q44: 80.2211527 | R44: 2.278847297 | S44: 0 | T44: 0 | U44: 0 | V44: 0 | W44: 0 | X44: =MIN(H44*parameters!C$22,ROUND(P44+T44-V44+W44,0)) -> 780870181 | Y44: 80.2211527 | AA44: -22182228 | AB44: -22182228 | AC44: 0 | AD44: -2.278847297 | AF44: -0.02762239145 | AG44: -2.278847297 | AH44: 0 | AM44: 035 | AN44: Boston | AO44: 1.232208551 | AP44: 82.5 | AQ44: 780870181 | AR44: -2.278847297
A45: 36 | B45: Bourne | C45: 5178654100 | D45: 17145783.66 | E45: 778353000 | F45: 11001860.16 | G45: 28147644 | H45: 24115183.27 | I45: 1.167216673 | J45: 19895026 | K45: 19895026 | L45: 82.5 | N45: 21342321 | O45: 0.0291 | P45: 21963383 | Q45: 91.07698976 | R45: 0 | S45: 0 | T45: 0 | U45: 2068357 | V45: 2068357 | W45: 0 | X45: =MIN(H45*parameters!C$22,ROUND(P45+T45-V45+W45,0)) -> 19895026 | Y45: 82.49999917 | AA45: 0 | AB45: 0 | AC45: 0 | AD45: -8.323069238e-07 | AF45: 0.1039635233 | AG45: 8.576989757 | AH45: 0 | AM45: 036 | AN45: Bourne | AO45: 1.167216673 | AP45: 82.5 | AQ45: 19895026 | AR45: -8.323069238e-07
A46: 37 | B46: Boxborough | C46: 1245735100 | D46: 4124450.893 | E46: 358888000 | F46: 5072808.341 | G46: 9197259 | H46: 9538134.11 | I46: 0.9642618665 | J46: 7868961 | K46: 7868961 | L46: 82.5 | N46: 7786669 | O46: 0.0351 | P46: 8059981 | Q46: 84.50270155 | R46: =IF(L46>Q46,L46-Q46,0) -> 0 | S46: 0 | T46: 0 | U46: 191020 | V46: 191020 | W46: 0 | X46: =MIN(H46*parameters!C$22,ROUND(P46+T46-V46+W46,0)) -> 7868961 | Y46: 82.50000377 | AA46: 0 | AB46: 0 | AC46: 0 | AD46: 3.768069263e-06 | AF46: 0.02427512349 | AG46: 2.002701547 | AH46: 0 | AM46: 037 | AN46: Boxborough | AO46: 0.9642618665 | AP46: 82.5 | AQ46: 7868961 | AR46: 3.768069263e-06
A47: 38 | B47: Boxford | C47: 2027205500 | D47: 6711787.71 | E47: 844353000 | F47: 11934756.64 | G47: 18646544 | H47: 14742922.17 | I47: 1.264779383 | J47: 12162911 | K47: 12162911 | L47: 82.5 | N47: 12479356 | O47: 0.0258 | P47: 12801323 | Q47: 86.8302963 | R47: 0 | S47: 0 | T47: 0 | U47: 638412 | V47: 638412 | W47: 0 | X47: =MIN(H47*parameters!C$22,ROUND(P47+T47-V47+W47,0)) -> 12162911 | Y47: 82.50000144 | AA47: 0 | AB47: 0 | AC47: 0 | AD47: 1.441231674e-06 | AF47: 0.05248842156 | AG47: 4.330296296 | AH47: 0 | AM47: 038 | AN47: Boxford | AO47: 1.264779383 | AP47: 82.5 | AQ47: 12162911 | AR47: 1.441231674e-06
A48: 39 | B48: Boylston | C48: 894665100 | D48: 2962108.293 | E48: 311214000 | F48: 4398946.119 | G48: 7361054 | H48: 7457236.78 | I48: 0.9871020885 | J48: 6152220 | K48: 6152220 | L48: 82.5 | N48: 5696095 | O48: 0.0444 | P48: 5949002 | Q48: 79.77488413 | R48: 2.725115874 | S48: 0.01 | T48: 56961 | U48: 0 | V48: 0 | W48: 0 | X48: =MIN(H48*parameters!C$22,ROUND(P48+T48-V48+W48,0)) -> 6005963 | Y48: 80.53871933 | AA48: -203218 | AB48: -146257 | AC48: 0 | AD48: -1.961280667 | AF48: -0.03303165361 | AG48: -2.725115874 | AH48: 0 | AM48: 039 | AN48: Boylston | AO48: 0.9871020885 | AP48: 82.5 | AQ48: 6005963 | AR48: -1.961280667
A49: 40 | B49: Braintree | C49: 8213296300 | D49: 27193050.32 | E49: 1720700000 | F49: 24321741.91 | G49: 51514792 | H49: 66052543.82 | I49: 0.7799062537 | J49: 54493349 | K49: 51514792 | L49: 77.99 | N49: 48075109 | O49: 0.0121 | P49: 48656818 | Q49: 73.6638064 | R49: 4.326193603 | S49: 0.01 | T49: 480751 | U49: 0 | V49: 0 | W49: 0 | X49: =MIN(H49*parameters!C$22,ROUND(P49+T49-V49+W49,0)) -> 49137569 | Y49: 74.39163756 | AA49: -2857974 | AB49: -2377223 | AC49: 0 | AD49: -3.598362437 | AF49: -0.055478706 | AG49: -4.326193603 | AH49: 480751.09 | AM49: 040 | AN49: Braintree | AO49: 0.7799062537 | AP49: 77.99 | AQ49: 49137569 | AR49: -3.598362437
A50: 41 | B50: Brewster | C50: 4380442300 | D50: 14503018.46 | E50: 383285000 | F50: 5417654.936 | G50: 19920673 | H50: 12519160.05 | I50: 1.59121482 | J50: 10328307 | K50: 10328307 | L50: 82.5 | N50: 10089445 | O50: 0.0311 | P50: 10403227 | Q50: 83.09844239 | R50: 0 | S50: 0 | T50: 0 | U50: 74920 | V50: 74920 | W50: 0 | X50: =MIN(H50*parameters!C$22,ROUND(P50+T50-V50+W50,0)) -> 10328307 | Y50: 82.49999968 | AA50: 0 | AB50: 0 | AC50: 0 | AD50: -3.168543969e-07 | AF50: 0.007253850994 | AG50: 0.5984423879 | AH50: 0 | AM50: 041 | AN50: Brewster | AO50: 1.59121482 | AP50: 82.5 | AQ50: 10328307 | AR50: -3.168543969e-07
A51: 42 | B51: Bridgewater | C51: 3400108700 | D51: 11257274.01 | E51: 976278000 | F51: 13799489.48 | G51: 25056763 | H51: 39023431.15 | I51: 0.6420953325 | J51: 32194331 | K51: 25056763 | L51: 64.21 | N51: 23804915 | O51: 0.0217 | P51: 24321482 | Q51: 62.32532938 | R51: 1.884670621 | S51: 0 | T51: 0 | U51: 0 | V51: 0 | W51: 0 | X51: =MIN(H51*parameters!C$22,ROUND(P51+T51-V51+W51,0)) -> 24321482 | Y51: 62.32532938 | AA51: -735281 | AB51: -735281 | AC51: 0 | AD51: -1.884670621 | AF51: -0.02934461247 | AG51: -1.884670621 | AH51: 0 | AM51: 042 | AN51: Bridgewater | AO51: 0.6420953325 | AP51: 64.21 | AQ51: 24321482 | AR51: -1.884670621
A52: 43 | B52: Brimfield | C52: 466597600 | D52: 1544837.974 | E52: 145657000 | F52: 2058831.849 | G52: 3603670 | H52: 6048297.775 | I52: 0.5958155723 | J52: 4989846 | K52: 3603670 | L52: 59.58 | N52: 3503607 | O52: 0.0256 | P52: 3593299 | Q52: 59.4100875 | R52: 0.1699125028 | S52: 0 | T52: 0 | U52: 0 | V52: 0 | W52: 0 | X52: =MIN(H52*parameters!C$22,ROUND(P52+T52-V52+W52,0)) -> 3593299 | Y52: 59.4100875 | AA52: -10371 | AB52: -10371 | AC52: 0 | AD52: -0.1699125028 | AF52: -0.002877899475 | AG52: -0.1699125028 | AH52: 0 | AM52: 043 | AN52: Brimfield | AO52: 0.5958155723 | AP52: 59.58 | AQ52: 3593299 | AR52: -0.1699125028
A53: 44 | B53: Brockton | C53: 8886561300 | D53: 29422134.52 | E53: 2189454000 | F53: 30947483.65 | G53: 60369618 | H53: 279541741.4 | I53: 0.2159592256 | J53: 230621937 | K53: 60369618 | L53: 21.6 | N53: 51480348 | O53: 0.0242 | P53: 52726172 | Q53: 18.8616454 | R53: 2.738354601 | S53: 0.01 | T53: 514803 | U53: 0 | V53: 0 | W53: 0 | X53: =MIN(H53*parameters!C$22,ROUND(P53+T53-V53+W53,0)) -> 53240975 | Y53: 19.04580502 | AA53: -7643446 | AB53: -7128643 | AC53: 0 | AD53: -2.554194984 | AF53: -0.1266108061 | AG53: -2.738354601 | AH53: 1029606.96 | AM53: 044 | AN53: Brockton | AO53: 0.2159592256 | AP53: 21.6 | AQ53: 53240975 | AR53: -2.554194984
A54: 45 | B54: Brookfield | C54: 312533400 | D54: 1034753.424 | E54: 99385000 | F54: 1404786.61 | G54: 2439540 | H54: 5803412.794 | I54: 0.4203629979 | J54: 4787816 | K54: 2439540 | L54: 42.04 | N54: 2395082 | O54: 0.0472 | P54: 2508130 | Q54: 43.21819055 | R54: 0 | S54: 0 | T54: 0 | U54: 68590 | V54: 68590 | W54: 0 | X54: =MIN(H54*parameters!C$22,ROUND(P54+T54-V54+W54,0)) -> 2439540 | Y54: 42.03629979 | AA54: 0 | AB54: 0 | AC54: 0 | AD54: -0.003700212734 | AF54: 0.02811595629 | AG54: 1.178190555 | AH54: 0 | AM54: 045 | AN54: Brookfield | AO54: 0.4203629979 | AP54: 42.04 | AQ54: 2439540 | AR54: -0.003700212734
A55: 46 | B55: Brookline | C55: 28147948700 | D55: 93193835.63 | E55: 5644070000 | F55: 79777772.93 | G55: 172971609 | H55: 77301091.21 | I55: 2.237634764 | J55: 63773400 | K55: 63773400 | L55: 82.5 | N55: 69211255 | O55: 0.0172 | P55: 70401689 | Q55: 91.07463802 | R55: 0 | S55: 0 | T55: 0 | U55: 6628289 | V55: 6628289 | W55: 0 | X55: =MIN(H55*parameters!C$22,ROUND(P55+T55-V55+W55,0)) -> 63773400 | Y55: 82.49999968 | AA55: 0 | AB55: 0 | AC55: 0 | AD55: -3.193955962e-07 | AF55: 0.1039350105 | AG55: 8.574638015 | AH55: 0 | AM55: 046 | AN55: Brookline | AO55: 2.237634764 | AP55: 82.5 | AQ55: 63773400 | AR55: -3.193955962e-07
A56: 47 | B56: Buckland | C56: 236099700 | D56: 781692.3666 | E56: 42927187.5 | F56: 606766.9991 | G56: 1388459 | H56: 2245582.295 | I56: 0.6183068878 | J56: 1852605 | K56: 1388459 | L56: 61.83 | N56: 1364402 | O56: 0.0291 | P56: 1404106 | Q56: 62.5274791 | R56: 0 | S56: 0 | T56: 0 | U56: 15647 | V56: 15647 | W56: 0 | X56: =MIN(H56*parameters!C$22,ROUND(P56+T56-V56+W56,0)) -> 1388459 | Y56: 61.83068878 | AA56: 0 | AB56: 0 | AC56: 0 | AD56: 0.0006887800571 | AF56: 0.01126932808 | AG56: 0.6974790975 | AH56: 0 | AM56: 047 | AN56: Buckland | AO56: 0.6183068878 | AP56: 61.83 | AQ56: 1388459 | AR56: 0.0006887800571
A57: 48 | B57: Burlington | C57: 8100649200 | D57: 26820091.87 | E57: 1382790000 | F57: 19545453.3 | G57: 46365545 | H57: 42341793.02 | I57: 1.095030269 | J57: 34931979 | K57: 34931979 | L57: 82.5 | N57: 34772202 | O57: 0.0338 | P57: 35947502 | Q57: 84.89839338 | R57: 0 | S57: 0 | T57: 0 | U57: 1015523 | V57: 1015523 | W57: 0 | X57: =MIN(H57*parameters!C$22,ROUND(P57+T57-V57+W57,0)) -> 34931979 | Y57: 82.49999944 | AA57: 0 | AB57: 0 | AC57: 0 | AD57: -5.648154655e-07 | AF57: 0.02907144196 | AG57: 2.39839338 | AH57: 0 | AM57: 048 | AN57: Burlington | AO57: 1.095030269 | AP57: 82.5 | AQ57: 34931979 | AR57: -5.648154655e-07
A58: 49 | B58: Cambridge | C58: 63505735500 | D58: 210258414.9 | E58: 8087170000 | F58: 114310490.8 | G58: 324568906 | H58: 100589415.8 | I58: 3.226670554 | J58: 82986268 | K58: 82986268 | L58: 82.5 | N58: 80716157 | O58: 0.026 | P58: 82814777 | Q58: 82.32951384 | R58: 0.1704861584 | S58: 0 | T58: 0 | U58: 0 | V58: 0 | W58: 171491 | X58: =MIN(H58*parameters!C$22,ROUND(P58+T58-V58+W58,0)) -> 82986268 | Y58: 82.49999997 | AA58: -171491 | AB58: 0 | AC58: 0 | AD58: -3.056285891e-08 | AF58: -0.00206649852 | AG58: -0.1704861584 | AH58: 0 | AM58: 049 | AN58: Cambridge | AO58: 3.226670554 | AP58: 82.5 | AQ58: 82986268 | AR58: -3.056285891e-08
A59: 50 | B59: Canton | C59: 5664784600 | D59: 18755292.28 | E59: 1475836000 | F59: 20860639.45 | G59: 39615932 | H59: 38793357.11 | I59: 1.021204014 | J59: 32004520 | K59: 32004520 | L59: 82.5 | N59: 31875439 | O59: 0.0343 | P59: 32968767 | Q59: 84.98559923 | R59: 0 | S59: 0 | T59: 0 | U59: 964247 | V59: 964247 | W59: 0 | X59: =MIN(H59*parameters!C$22,ROUND(P59+T59-V59+W59,0)) -> 32004520 | Y59: 82.50000099 | AA59: 0 | AB59: 0 | AC59: 0 | AD59: 9.894410198e-07 | AF59: 0.0301284631 | AG59: 2.485599225 | AH59: 0 | AM59: 050 | AN59: Canton | AO59: 1.021204014 | AP59: 82.5 | AQ59: 32004520 | AR59: 9.894410198e-07
A60: 51 | B60: Carlisle | C60: 1657167300 | D60: 5486644.111 | E60: 815711000 | F60: 11529907.84 | G60: 17016552 | H60: 9516827.153 | I60: 1.788048866 | J60: 7851382 | K60: 7851382 | L60: 82.5 | N60: 7887677 | O60: 0.0343 | P60: 8158224 | Q60: 85.7242006 | R60: 0 | S60: 0 | T60: 0 | U60: 306842 | V60: 306842 | W60: 0 | X60: =MIN(H60*parameters!C$22,ROUND(P60+T60-V60+W60,0)) -> 7851382 | Y60: 82.49999578 | AA60: 0 | AB60: 0 | AC60: 0 | AD60: -4.219985385e-06 | AF60: 0.03908127257 | AG60: 3.224200602 | AH60: 0 | AM60: 051 | AN60: Carlisle | AO60: 1.788048866 | AP60: 82.5 | AQ60: 7851382 | AR60: -4.219985385e-06
A61: 52 | B61: Carver | C61: 1542843600 | D61: 5108134.678 | E61: 383236000 | F61: 5416962.331 | G61: 10525097 | H61: 19232559.13 | I61: 0.5472541085 | J61: 15866861 | K61: 10525097 | L61: 54.73 | N61: 10245767 | O61: 0.0261 | P61: 10513182 | Q61: 54.66345862 | R61: 0.06654138056 | S61: 0 | T61: 0 | U61: 0 | V61: 0 | W61: 0 | X61: =MIN(H61*parameters!C$22,ROUND(P61+T61-V61+W61,0)) -> 10513182 | Y61: 54.66345862 | AA61: -11915 | AB61: -11915 | AC61: 0 | AD61: -0.06654138056 | AF61: -0.001132056075 | AG61: -0.06654138056 | AH61: 0 | AM61: 052 | AN61: Carver | AO61: 0.5472541085 | AP61: 54.73 | AQ61: 10513182 | AR61: -0.06654138056
A62: 53 | B62: Charlemont | C62: 147289000 | D62: 487652.8305 | E62: 27710000 | F62: 391675.172 | G62: 879328 | H62: 1685057.287 | I62: 0.5218386384 | J62: 1390172 | K62: 879328 | L62: 52.18 | N62: 898461 | O62: 0.0327 | P62: 927841 | Q62: 55.06287575 | R62: 0 | S62: 0 | T62: 0 | U62: 48513 | V62: 48513 | W62: 0 | X62: =MIN(H62*parameters!C$22,ROUND(P62+T62-V62+W62,0)) -> 879328 | Y62: 52.18386384 | AA62: 0 | AB62: 0 | AC62: 0 | AD62: 0.003863838554 | AF62: 0.05517053932 | AG62: 2.88287575 | AH62: 0 | AM62: 053 | AN62: Charlemont | AO62: 0.5218386384 | AP62: 52.18 | AQ62: 879328 | AR62: 0.003863838554
A63: 54 | B63: Charlton | C63: 1794497600 | D63: 5941325.109 | E63: 534595000 | F63: 7556390.782 | G63: 13497716 | H63: 24094044.81 | I63: 0.560209633 | J63: 19877587 | K63: 13497716 | L63: 56.02 | N63: 13080033 | O63: 0.0371 | P63: 13565302 | Q63: 56.30147245 | R63: 0 | S63: 0 | T63: 0 | U63: 67586 | V63: 67586 | W63: 0 | X63: =MIN(H63*parameters!C$22,ROUND(P63+T63-V63+W63,0)) -> 13497716 | Y63: 56.0209633 | AA63: 0 | AB63: 0 | AC63: 0 | AD63: 0.0009633011737 | AF63: 0.005007217517 | AG63: 0.28147245 | AH63: 0 | AM63: 054 | AN63: Charlton | AO63: 0.560209633 | AP63: 56.02 | AQ63: 13497716 | AR63: 0.0009633011737
A64: 55 | B64: Chatham | C64: 7904158600 | D64: 26169539.57 | E64: 475325000 | F64: 6718621.477 | G64: 32888161 | H64: 4955883.013 | I64: 6.636185906 | J64: 4088603 | K64: 4088603 | L64: 82.5 | N64: 4342030 | O64: -0.0008 | P64: 4338556 | Q64: 87.54355155 | R64: 0 | S64: 0 | T64: 0 | U64: 249953 | V64: 249953 | W64: 0 | X64: =MIN(H64*parameters!C$22,ROUND(P64+T64-V64+W64,0)) -> 4088603 | Y64: 82.49999021 | AA64: 0 | AB64: 0 | AC64: 0 | AD64: -9.79271735e-06 | AF64: 0.06113408418 | AG64: 5.043551554 | AH64: 0 | AM64: 055 | AN64: Chatham | AO64: 6.636185906 | AP64: 82.5 | AQ64: 4088603 | AR64: -9.79271735e-06
A65: 56 | B65: Chelmsford | C65: 6551073600 | D65: 21689668.5 | E65: 2003049000 | F65: 28312687.17 | G65: 50002356 | H65: 58045259.66 | I65: 0.861437373 | J65: 47887339 | K65: 47887339 | L65: 82.5 | N65: 46684327 | O65: 0.0297 | P65: 48070852 | Q65: 82.81615463 | R65: 0 | S65: 0 | T65: 0 | U65: 183513 | V65: 183513 | W65: 0 | X65: =MIN(H65*parameters!C$22,ROUND(P65+T65-V65+W65,0)) -> 47887339 | Y65: 82.49999962 | AA65: 0 | AB65: 0 | AC65: 0 | AD65: -3.82278472e-07 | AF65: 0.00383218203 | AG65: 0.3161546338 | AH65: 0 | AM65: 056 | AN65: Chelmsford | AO65: 0.861437373 | AP65: 82.5 | AQ65: 47887339 | AR65: -3.82278472e-07
A66: 57 | B66: Chelsea | C66: 4225152600 | D66: 13988876.46 | E66: 821843000 | F66: 11616582.4 | G66: 25605459 | H66: 118068851.7 | I66: 0.2168688746 | J66: 97406803 | K66: 25605459 | L66: 21.69 | N66: 20807621 | O66: -0.0581 | P66: 19598698 | Q66: 16.59938054 | R66: 5.090619458 | S66: 0.01 | T66: 208076 | U66: 0 | V66: 0 | W66: 0 | X66: =MIN(H66*parameters!C$22,ROUND(P66+T66-V66+W66,0)) -> 19806774 | Y66: 16.7756133 | AA66: -6006761 | AB66: -5798685 | AC66: 0 | AD66: -4.914386695 | AF66: -0.2345890773 | AG66: -5.090619458 | AH66: 416152.42 | AM66: 057 | AN66: Chelsea | AO66: 0.2168688746 | AP66: 21.69 | AQ66: 19806774 | AR66: -4.914386695
A67: 58 | B67: Cheshire | C67: 327182900 | D67: 1083255.825 | E67: 98301000 | F67: 1389464.492 | G67: 2472720 | H67: 4919309.508 | I67: 0.5026559106 | J67: 4058430 | K67: 2472720 | L67: 50.27 | N67: 2495473 | O67: 0.0245 | P67: 2556612 | Q67: 51.97095235 | R67: 0 | S67: 0 | T67: 0 | U67: 83892 | V67: 83892 | W67: 0 | X67: =MIN(H67*parameters!C$22,ROUND(P67+T67-V67+W67,0)) -> 2472720 | Y67: 50.26559106 | AA67: 0 | AB67: 0 | AC67: 0 | AD67: -0.004408942609 | AF67: 0.03392701155 | AG67: 1.700952346 | AH67: 0 | AM67: 058 | AN67: Cheshire | AO67: 0.5026559106 | AP67: 50.27 | AQ67: 2472720 | AR67: -0.004408942609
A68: 59 | B68: Chester | C68: 129904800 | D68: 430096.2286 | E68: 32818000 | F68: 463875.7053 | G68: 893972 | H68: 1872622.169 | I68: 0.4773904821 | J68: 1544913 | K68: 893972 | L68: 47.74 | N68: 913983 | O68: 0.0308 | P68: 942134 | Q68: 50.31094984 | R68: 0 | S68: 0 | T68: 0 | U68: 48162 | V68: 48162 | W68: 0 | X68: =MIN(H68*parameters!C$22,ROUND(P68+T68-V68+W68,0)) -> 893972 | Y68: 47.73904821 | AA68: 0 | AB68: 0 | AC68: 0 | AD68: -0.000951789141 | AF68: 0.05387417056 | AG68: 2.570949836 | AH68: 0 | AM68: 059 | AN68: Chester | AO68: 0.4773904821 | AP68: 47.74 | AQ68: 893972 | AR68: -0.000951789141
A69: 60 | B69: Chesterfield | C69: 165075500 | D69: 546541.3902 | E69: 27782000 | F69: 392692.8772 | G69: 939234 | H69: 1201892.027 | I69: 0.7814628761 | J69: 991561 | K69: 939234 | L69: 78.15 | N69: 956565 | O69: 0.0373 | P69: 992245 | Q69: 82.55691675 | R69: 0 | S69: 0 | T69: 0 | U69: 53011 | V69: 53011 | W69: 0 | X69: =MIN(H69*parameters!C$22,ROUND(P69+T69-V69+W69,0)) -> 939234 | Y69: 78.14628761 | AA69: 0 | AB69: 0 | AC69: 0 | AD69: -0.003712391103 | AF69: 0.056440674 | AG69: 4.406916752 | AH69: 0 | AM69: 060 | AN69: Chesterfield | AO69: 0.7814628761 | AP69: 78.15 | AQ69: 939234 | AR69: -0.003712391103
A70: 61 | B70: Chicopee | C70: 4282298400 | D70: 14178078.04 | E70: 1201917000 | F70: 16988850.51 | G70: 31166929 | H70: 103392554 | I70: 0.3014426843 | J70: 85298857 | K70: 31166929 | L70: 30.14 | N70: 30903112 | O70: 0.0297 | P70: 31820934 | Q70: 30.77681398 | R70: 0 | S70: 0 | T70: 0 | U70: 654005 | V70: 654005 | W70: 0 | X70: =MIN(H70*parameters!C$22,ROUND(P70+T70-V70+W70,0)) -> 31166929 | Y70: 30.14426843 | AA70: 0 | AB70: 0 | AC70: 0 | AD70: 0.004268430657 | AF70: 0.02098394102 | AG70: 0.6368139816 | AH70: 0 | AM70: 061 | AN70: Chicopee | AO70: 0.3014426843 | AP70: 30.14 | AQ70: 31166929 | AR70: 0.004268430657
A71: 62 | B71: Chilmark | C71: 3657005200 | D71: 12107821.61 | E71: 69962000 | F71: 988898.5341 | G71: 13096720 | H71: 1484813.258 | I71: 8.820449261 | J71: 1224971 | K71: 1224971 | L71: 82.5 | N71: 1154430 | O71: 0.0552 | P71: 1218155 | Q71: 82.04095659 | R71: 0.4590434136 | S71: 0 | T71: 0 | U71: 0 | V71: 0 | W71: 6816 | X71: =MIN(H71*parameters!C$22,ROUND(P71+T71-V71+W71,0)) -> 1224971 | Y71: 82.50000421 | AA71: -6816 | AB71: 0 | AC71: 0 | AD71: 4.21182169e-06 | AF71: -0.005564213357 | AG71: -0.4590434136 | AH71: 0 | AM71: 062 | AN71: Chilmark | AO71: 8.820449261 | AP71: 82.5 | AQ71: 1224971 | AR71: 4.21182169e-06
A72: 63 | B72: Clarksburg | C72: 133566700 | D72: 442220.2562 | E72: 41976000 | F72: 593322.1587 | G72: 1035542 | H72: 2948639.082 | I72: 0.3511932018 | J72: 2432627 | K72: 1035542 | L72: 35.12 | N72: 988224 | O72: 0.0286 | P72: 1016487 | Q72: 34.47308985 | R72: 0.6469101483 | S72: 0 | T72: 0 | U72: 0 | V72: 0 | W72: 0 | X72: =MIN(H72*parameters!C$22,ROUND(P72+T72-V72+W72,0)) -> 1016487 | Y72: 34.47308985 | AA72: -19055 | AB72: -19055 | AC72: 0 | AD72: -0.6469101483 | AF72: -0.01840099194 | AG72: -0.6469101483 | AH72: 0 | AM72: 063 | AN72: Clarksburg | AO72: 0.3511932018 | AP72: 35.12 | AQ72: 1016487 | AR72: -0.6469101483
A73: 64 | B73: Clinton | C73: 1653168200 | D73: 5473403.662 | E73: 456680000 | F73: 6455078.222 | G73: 11928482 | H73: 26782472.62 | I73: 0.445383896 | J73: 22095540 | K73: 11928482 | L73: 44.54 | N73: 11372125 | O73: 0.0487 | P73: 11925947 | Q73: 44.52892445 | R73: 0.01107554553 | S73: 0 | T73: 0 | U73: 0 | V73: 0 | W73: 0 | X73: =MIN(H73*parameters!C$22,ROUND(P73+T73-V73+W73,0)) -> 11925947 | Y73: 44.52892445 | AA73: -2535 | AB73: -2535 | AC73: 0 | AD73: -0.01107554553 | AF73: -0.0002125165633 | AG73: -0.01107554553 | AH73: 0 | AM73: 064 | AN73: Clinton | AO73: 0.445383896 | AP73: 44.54 | AQ73: 11925947 | AR73: -0.01107554553
A74: 65 | B74: Cohasset | C74: 3240448100 | D74: 10728660.58 | E74: 1097162000 | F74: 15508160.05 | G74: 26236821 | H74: 15492273.48 | I74: 1.693542335 | J74: =ROUND(H74*maxloc,0) -> 12781126 | K74: 12781126 | L74: 82.5 | N74: 12917527 | O74: 0.0332 | P74: 13346389 | Q74: 86.14867934 | R74: 0 | S74: 0 | T74: 0 | U74: 565263 | V74: =MAX(U74*(V$5),0) -> 565263 | W74: 0 | X74: =MIN(H74*parameters!C$22,ROUND(P74+T74-V74+W74,0)) -> 12781126 | Y74: 82.50000247 | AA74: 0 | AB74: 0 | AC74: 0 | AD74: 2.467299311e-06 | AF74: =(P74-K74)/K74 -> 0.04422638506 | AG74: 3.648679344 | AH74: =IF(AF74<$AH$5, $AH$6*(N74), IF(AND(AF74<$AH$4, AF74>$AH$5), $AH$7*(N74), 0)) -> 0 | AM74: 065 | AN74: Cohasset | AO74: 1.693542335 | AP74: =L74 -> 82.5 | AQ74: =X74 -> 12781126 | AR74: 2.467299311e-06
A75: 66 | B75: Colrain | C75: 182644300 | D75: =D$5*C75 -> 604709.1763 | E75: 54839000 | F75: 775138.028 | G75: =ROUND(D75+F75,0) -> 1379847 | H75: =(SUMIF(town1755,A75,found1755)/2) -> 2113072.751 | I75: =G75/H75 -> 0.653004966 | J75: 1743285 | K75: =MIN(G75,J75) -> 1379847 | L75: =IF(H75>0, ROUND((K75*100/H75), 2), 0) -> 65.3 | N75: 1285699 | O75: 0.0344 | P75: =ROUND(N75*(1+O75),0) -> 1329927 | Q75: =P75*100/H75 -> 62.93806019 | R75: =IF(L75>Q75,L75-Q75,0) -> 2.36193981 | S75: =IF(AND(R75>$T$4,R75<=$T$5),$S$4,IF(R75>$T$5,$S$5,0)) -> 0 | T75: =ROUND(S75*N75,0) -> 0 | U75: =MAX(P75-K75,0) -> 0 | V75: 0 | W75: =IF(AND(I75>1.75,$W$5=1),MAX(K75-(P75+T75),0),0) -> 0 | X75: =MIN(H75*parameters!C$22,ROUND(P75+T75-V75+W75,0)) -> 1329927 | Y75: =X75*100/H75 -> 62.93806019 | AA75: =IF(Q75<L75, P75-K75, 0) -> -49920 | AB75: =-1*MAX(K75-(P75+T75+W75),0) -> -49920 | AC75: =IF(Q75>L75, X75-K75,0) -> 0 | AD75: =Y75-L75 -> -2.36193981 | AF75: -0.03617792407 | AG75: =Q75-L75 -> -2.36193981 | AH75: 0 | AM75: =TEXT(A75,"000") -> 066 | AN75: =B75 -> Colrain | AO75: =I75 -> 0.653004966 | AP75: 65.3 | AQ75: 1329927 | AR75: =AD75 -> -2.36193981
A76: 67 | B76: Concord | C76: 7134203400 | D76: 23620327.94 | E76: 2921432000 | F76: =E76*F$5 -> 41293842.69 | G76: 64914171 | H76: 34428619.67 | I76: 1.885471205 | J76: 28403611 | K76: 28403611 | L76: 82.5 | N76: 27870369 | O76: 0.0248 | P76: 28561554 | Q76: 82.95875431 | R76: 0 | S76: 0 | T76: 0 | U76: 157943 | V76: 157943 | W76: 0 | X76: =MIN(H76*parameters!C$22,ROUND(P76+T76-V76+W76,0)) -> 28403611 | Y76: 82.49999935 | AA76: 0 | AB76: 0 | AC76: 0 | AD76: -6.504274239e-07 | AF76: 0.005560666212 | AG76: 0.4587543085 | AH76: 0 | AM76: 067 | AN76: Concord | AO76: 1.885471205 | AP76: 82.5 | AQ76: 28403611 | AR76: -6.504274239e-07
A77: 68 | B77: Conway | C77: 272849200 | D77: 903364.7093 | E77: 69800000 | F77: 986608.6973 | G77: 1889973 | H77: 2213197.714 | I77: 0.8539557888 | J77: 1825888 | K77: 1825888 | L77: 82.5 | N77: 1861596 | O77: 0.029 | P77: 1915582 | Q77: 86.55268291 | R77: 0 | S77: 0 | T77: 0 | U77: 89694 | V77: 89694 | W77: 0 | X77: =MIN(H77*parameters!C$22,ROUND(P77+T77-V77+W77,0)) -> 1825888 | Y77: 82.49999483 | AA77: 0 | AB77: 0 | AC77: 0 | AD77: -5.168586625e-06 | AF77: 0.04912349498 | AG77: 4.052682913 | AH77: 0 | AM77: 068 | AN77: Conway | AO77: 0.8539557888 | AP77: 82.5 | AQ77: 1825888 | AR77: -5.168586625e-06
A78: 69 | B78: Cummington | C78: 136764000 | D78: 452806.0596 | E78: 27624000 | F78: 390459.5796 | G78: 843266 | H78: 729250.533 | I78: 1.156346087 | J78: 601632 | K78: 601632 | L78: 82.5 | N78: 640755 | O78: 0.0334 | P78: 662156 | Q78: 90.79952225 | R78: 0 | S78: 0 | T78: 0 | U78: 60524 | V78: 60524 | W78: 0 | X78: =MIN(H78*parameters!C$22,ROUND(P78+T78-V78+W78,0)) -> 601632 | Y78: 82.50004255 | AA78: 0 | AB78: 0 | AC78: 0 | AD78: 4.254578192e-05 | AF78: 0.1005997021 | AG78: 8.299522253 | AH78: 0 | AM78: 069 | AN78: Cummington | AO78: 1.156346087 | AP78: 82.5 | AQ78: 601632 | AR78: 4.254578192e-05
A79: 70 | B79: Dalton | C79: 659304000 | D79: 2182861.325 | E79: 231336000 | F79: 3269886.957 | G79: 5452748 | H79: 10975904.42 | I79: 0.4967925914 | J79: 9055121 | K79: 5452748 | L79: 49.68 | N79: 5300714 | O79: 0.0341 | P79: 5481468 | Q79: 49.94092323 | R79: 0 | S79: 0 | T79: 0 | U79: 28720 | V79: 28720 | W79: 0 | X79: =MIN(H79*parameters!C$22,ROUND(P79+T79-V79+W79,0)) -> 5452748 | Y79: 49.67925914 | AA79: 0 | AB79: 0 | AC79: 0 | AD79: -0.0007408566539 | AF79: 0.005267069008 | AG79: 0.2609232295 | AH79: 0 | AM79: 070 | AN79: Dalton | AO79: 0.4967925914 | AP79: 49.68 | AQ79: 5452748 | AR79: -0.0007408566539
A80: 71 | B80: Danvers | C80: 5748464900 | D80: 19032345.79 | E80: 1428486000 | F80: 20191356.9 | G80: 39223703 | H80: 41175280.21 | I80: 0.9526031832 | J80: 33969606 | K80: 33969606 | L80: 82.5 | N80: 33168062 | O80: 0.0233 | P80: 33940878 | Q80: 82.43022955 | R80: 0.06977044523 | S80: 0 | T80: 0 | U80: 0 | V80: 0 | W80: 0 | X80: =MIN(H80*parameters!C$22,ROUND(P80+T80-V80+W80,0)) -> 33940878 | Y80: 82.43022955 | AA80: -28728 | AB80: -28728 | AC80: 0 | AD80: -0.06977044523 | AF80: -0.00084569718 | AG80: -0.06977044523 | AH80: 0 | AM80: 071 | AN80: Danvers | AO80: 0.9526031832 | AP80: 82.5 | AQ80: 33940878 | AR80: -0.06977044523
A81: 72 | B81: Dartmouth | C81: 6198070600 | D81: 20520926.01 | E81: 1269313000 | F81: 17941479.16 | G81: 38462405 | H81: 44906329.35 | I81: 0.856502982 | J81: 37047722 | K81: 37047722 | L81: 82.5 | N81: 37246993 | O81: 0.0362 | P81: 38595334 | Q81: 85.94631215 | R81: 0 | S81: 0 | T81: 0 | U81: 1547612 | V81: 1547612 | W81: 0 | X81: =MIN(H81*parameters!C$22,ROUND(P81+T81-V81+W81,0)) -> 37047722 | Y81: 82.50000063 | AA81: 0 | AB81: 0 | AC81: 0 | AD81: 6.337660921e-07 | AF81: 0.0417734726 | AG81: 3.44631215 | AH81: 0 | AM81: 072 | AN81: Dartmouth | AO81: 0.856502982 | AP81: 82.5 | AQ81: 37047722 | AR81: 6.337660921e-07
A82: 73 | B82: Dedham | C82: 5863555800 | D82: 19413395.32 | E82: 1532426000 | F82: 21660527.5 | G82: 41073923 | H82: 32570294.69 | I82: 1.261085397 | J82: 26870493 | K82: 26870493 | L82: 82.5 | N82: 26785616 | O82: 0.0323 | P82: 27650791 | Q82: 84.89573479 | R82: 0 | S82: 0 | T82: 0 | U82: 780298 | V82: 780298 | W82: 0 | X82: =MIN(H82*parameters!C$22,ROUND(P82+T82-V82+W82,0)) -> 26870493 | Y82: 82.49999964 | AA82: 0 | AB82: 0 | AC82: 0 | AD82: -3.612476149e-07 | AF82: 0.02903921413 | AG82: 2.395734794 | AH82: 0 | AM82: 073 | AN82: Dedham | AO82: 1.261085397 | AP82: 82.5 | AQ82: 26870493 | AR82: -3.612476149e-07
A83: 74 | B83: Deerfield | C83: 808941100 | D83: 2678288.379 | E83: 215554000 | F83: 3046811.621 | G83: 5725100 | H83: 6662755.722 | I83: 0.8592690831 | J83: 5496773 | K83: 5496773 | L83: 82.5 | N83: 5606753 | O83: 0.0243 | P83: 5742997 | Q83: 86.19552089 | R83: 0 | S83: 0 | T83: 0 | U83: 246224 | V83: 246224 | W83: 0 | X83: =MIN(H83*parameters!C$22,ROUND(P83+T83-V83+W83,0)) -> 5496773 | Y83: 82.49999294 | AA83: 0 | AB83: 0 | AC83: 0 | AD83: -7.062144974e-06 | AF83: 0.04479428203 | AG83: 3.695520889 | AH83: 0 | AM83: 074 | AN83: Deerfield | AO83: 0.8592690831 | AP83: 82.5 | AQ83: 5496773 | AR83: -7.062144974e-06
A84: 75 | B84: Dennis | C84: 7955584100 | D84: 26339802.05 | E84: 537187000 | F84: 7593028.17 | G84: 33932830 | H84: 13607577.04 | I84: 2.493671717 | J84: 11226251 | K84: 11226251 | L84: 82.5 | N84: 11656730 | O84: 0.0356 | P84: 12071710 | Q84: 88.71314829 | R84: 0 | S84: 0 | T84: 0 | U84: 845459 | V84: 845459 | W84: 0 | X84: =MIN(H84*parameters!C$22,ROUND(P84+T84-V84+W84,0)) -> 11226251 | Y84: 82.49999956 | AA84: 0 | AB84: 0 | AC84: 0 | AD84: -4.389432462e-07 | AF84: 0.07531089408 | AG84: 6.21314829 | AH84: 0 | AM84: 075 | AN84: Dennis | AO84: 2.493671717 | AP84: 82.5 | AQ84: 11226251 | AR84: -4.389432462e-07
A85: 76 | B85: Dighton | C85: 1162938400 | D85: 3850322.851 | E85: 289109000 | F85: 4086496.474 | G85: 7936819 | H85: 15418423.61 | I85: 0.5147620277 | J85: 12720199 | K85: 7936819 | L85: 51.48 | N85: 7624404 | O85: 0.0419 | P85: 7943867 | Q85: 51.52191431 | R85: 0 | S85: 0 | T85: 0 | U85: 7048 | V85: 7048 | W85: 0 | X85: =MIN(H85*parameters!C$22,ROUND(P85+T85-V85+W85,0)) -> 7936819 | Y85: 51.47620277 | AA85: 0 | AB85: 0 | AC85: 0 | AD85: -0.003797234949 | AF85: 0.0008880131952 | AG85: 0.04191431235 | AH85: 0 | AM85: 076 | AN85: Dighton | AO85: 0.5147620277 | AP85: 51.48 | AQ85: 7936819 | AR85: -0.003797234949
A86: 77 | B86: Douglas | C86: 1154562000 | D86: 3822589.788 | E86: 345379000 | F86: 4881861.394 | G86: 8704451 | H86: 14357692.14 | I86: 0.6062569748 | J86: 11845096 | K86: 8704451 | L86: 60.63 | N86: 8465026 | O86: 0.0485 | P86: 8875580 | Q86: 61.81759516 | R86: 0 | S86: 0 | T86: 0 | U86: 171129 | V86: 171129 | W86: 0 | X86: =MIN(H86*parameters!C$22,ROUND(P86+T86-V86+W86,0)) -> 8704451 | Y86: 60.62569748 | AA86: 0 | AB86: 0 | AC86: 0 | AD86: -0.004302524651 | AF86: 0.01965994179 | AG86: 1.187595159 | AH86: 0 | AM86: 077 | AN86: Douglas | AO86: 0.6062569748 | AP86: 60.63 | AQ86: 8704451 | AR86: -0.004302524651
A87: 78 | B87: Dover | C87: 2831290600 | D87: 9373998.568 | E87: 1475249000 | F87: 20852342.32 | G87: 30226341 | H87: 12721710.28 | I87: 2.375965208 | J87: 10495411 | K87: 10495411 | L87: 82.5 | N87: 10420506 | O87: 0.0236 | P87: 10666430 | Q87: 83.84430842 | R87: 0 | S87: 0 | T87: 0 | U87: 171019 | V87: 171019 | W87: 0 | X87: =MIN(H87*parameters!C$22,ROUND(P87+T87-V87+W87,0)) -> 10495411 | Y87: 82.50000018 | AA87: 0 | AB87: 0 | AC87: 0 | AD87: 1.787732486e-07 | AF87: 0.01629464535 | AG87: 1.344308423 | AH87: 0 | AM87: 078 | AN87: Dover | AO87: 2.375965208 | AP87: 82.5 | AQ87: 10495411 | AR87: 1.787732486e-07
A88: 79 | B88: Dracut | C88: 4153988500 | D88: 13753262.29 | E88: 1156106000 | F88: 16341321.41 | G88: 30094584 | H88: 54404284.39 | I88: 0.5531656989 | J88: 44883535 | K88: 30094584 | L88: 55.32 | N88: 28650804 | O88: 0.036 | P88: 29682233 | Q88: 54.55863142 | R88: 0.7613685794 | S88: 0 | T88: 0 | U88: 0 | V88: 0 | W88: 0 | X88: =MIN(H88*parameters!C$22,ROUND(P88+T88-V88+W88,0)) -> 29682233 | Y88: 54.55863142 | AA88: -412351 | AB88: -412351 | AC88: 0 | AD88: -0.7613685794 | AF88: -0.01370183419 | AG88: -0.7613685794 | AH88: 0 | AM88: 079 | AN88: Dracut | AO88: 0.5531656989 | AP88: 55.32 | AQ88: 29682233 | AR88: -0.7613685794
A89: 80 | B89: Dudley | C89: 1146095200 | D89: 3794557.423 | E89: 343087000 | F89: 4849464.443 | G89: 8644022 | H89: 20218048.84 | I89: 0.4275398714 | J89: 16679890 | K89: 8644022 | L89: 42.75 | N89: 7521654 | O89: 0.0166 | P89: 7646513 | Q89: 37.82023211 | R89: 4.929767886 | S89: 0.01 | T89: 75217 | U89: 0 | V89: 0 | W89: 0 | X89: =MIN(H89*parameters!C$22,ROUND(P89+T89-V89+W89,0)) -> 7721730 | Y89: 38.19226109 | AA89: -997509 | AB89: -922292 | AC89: 0 | AD89: -4.55773891 | AF89: -0.1153987114 | AG89: -4.929767886 | AH89: 150433.08 | AM89: 080 | AN89: Dudley | AO89: 0.4275398714 | AP89: 42.75 | AQ89: 7721730 | AR89: -4.55773891
A90: 81 | B90: Dunstable | C90: 606991900 | D90: 2009663.438 | E90: 208516000 | F90: 2947330.933 | G90: 4956994 | H90: 5812892.044 | I90: 0.8527586548 | J90: 4795636 | K90: 4795636 | L90: 82.5 | N90: 4814706 | O90: 0.0541 | P90: 5075182 | Q90: 87.30907027 | R90: 0 | S90: 0 | T90: 0 | U90: 279546 | V90: 279546 | W90: 0 | X90: =MIN(H90*parameters!C$22,ROUND(P90+T90-V90+W90,0)) -> 4795636 | Y90: 82.50000109 | AA90: 0 | AB90: 0 | AC90: 0 | AD90: 1.090396921e-06 | AF90: 0.05829174691 | AG90: 4.809070274 | AH90: 0 | AM90: 081 | AN90: Dunstable | AO90: 0.8527586548 | AP90: 82.5 | AQ90: 4795636 | AR90: 1.090396921e-06
A91: 82 | B91: Duxbury | C91: 4654728300 | D91: 15411140.21 | E91: 1401567000 | F91: 19810862.35 | G91: 35222003 | H91: 29831320.22 | I91: 1.180705471 | J91: 24610839 | K91: 24610839 | L91: 82.5 | N91: 25372508 | O91: 0.0265 | P91: 26044879 | Q91: 87.30716178 | R91: 0 | S91: 0 | T91: 0 | U91: 1434040 | V91: 1434040 | W91: 0 | X91: =MIN(H91*parameters!C$22,ROUND(P91+T91-V91+W91,0)) -> 24610839 | Y91: 82.4999994 | AA91: 0 | AB91: 0 | AC91: 0 | AD91: -5.952569353e-07 | AF91: 0.05826863521 | AG91: 4.807161775 | AH91: 0 | AM91: 082 | AN91: Duxbury | AO91: 1.180705471 | AP91: 82.5 | AQ91: 24610839 | AR91: -5.952569353e-07
A92: 83 | B92: East Bridgewater | C92: 1926835300 | D92: 6379476.322 | E92: 535363000 | F92: 7567246.304 | G92: 13946723 | H92: 25056628.55 | I92: 0.5566081237 | J92: 20671719 | K92: 13946723 | L92: 55.66 | N92: 13378858 | O92: 0.0355 | P92: 13853807 | Q92: 55.28998833 | R92: 0.3700116656 | S92: 0 | T92: 0 | U92: 0 | V92: 0 | W92: 0 | X92: =MIN(H92*parameters!C$22,ROUND(P92+T92-V92+W92,0)) -> 13853807 | Y92: 55.28998833 | AA92: -92916 | AB92: -92916 | AC92: 0 | AD92: -0.3700116656 | AF92: -0.006662210184 | AG92: -0.3700116656 | AH92: 0 | AM92: 083 | AN92: East Bridgewater | AO92: 0.5566081237 | AP92: 55.66 | AQ92: 13853807 | AR92: -0.3700116656
A93: 84 | B93: East Brookfield | C93: 278867500 | D93: 923290.4406 | E93: 74695000 | F93: 1055798.519 | G93: 1979089 | H93: 3874238.73 | I93: 0.5108330018 | J93: 3196247 | K93: 1979089 | L93: 51.08 | N93: 1841750 | O93: 0.0357 | P93: 1907500 | Q93: 49.2354791 | R93: 1.844520903 | S93: 0 | T93: 0 | U93: 0 | V93: 0 | W93: 0 | X93: =MIN(H93*parameters!C$22,ROUND(P93+T93-V93+W93,0)) -> 1907500 | Y93: 49.2354791 | AA93: -71589 | AB93: -71589 | AC93: 0 | AD93: -1.844520903 | AF93: -0.0361727037 | AG93: -1.844520903 | AH93: 0 | AM93: 084 | AN93: East Brookfield | AO93: 0.5108330018 | AP93: 51.08 | AQ93: 1907500 | AR93: -1.844520903
A94: 85 | B94: Eastham | C94: 3250149400 | D94: 10760780.2 | E94: 189533000 | F94: 2679010.118 | G94: 13439790 | H94: 5575073.496 | I94: 2.410692883 | J94: 4599436 | K94: 4599436 | L94: 82.5 | N94: 4337460 | O94: 0.0122 | P94: 4390377 | Q94: 78.75011878 | R94: 3.749881223 | S94: 0.01 | T94: 43375 | U94: 0 | V94: 0 | W94: 165684 | X94: =MIN(H94*parameters!C$22,ROUND(P94+T94-V94+W94,0)) -> 4599436 | Y94: 82.50000656 | AA94: -209059 | AB94: 0 | AC94: 0 | AD94: 6.561575958e-06 | AF94: -0.04545318165 | AG94: -3.749881223 | AH94: 0 | AM94: 085 | AN94: Eastham | AO94: 2.410692883 | AP94: 82.5 | AQ94: 4599436 | AR94: 6.561575958e-06
A95: 86 | B95: Easthampton | C95: 1773024900 | D95: 5870232.068 | E95: 498580000 | F95: 7047326.136 | G95: 12917558 | H95: 19775625.25 | I95: 0.6532060472 | J95: 16314891 | K95: 12917558 | L95: 65.32 | N95: 12651233 | O95: 0.0361 | P95: 13107943 | Q95: 66.28333028 | R95: 0 | S95: 0 | T95: 0 | U95: 190385 | V95: 190385 | W95: 0 | X95: =MIN(H95*parameters!C$22,ROUND(P95+T95-V95+W95,0)) -> 12917558 | Y95: 65.32060472 | AA95: 0 | AB95: 0 | AC95: 0 | AD95: 0.0006047176688 | AF95: 0.01473846682 | AG95: 0.9633302831 | AH95: 0 | AM95: 086 | AN95: Easthampton | AO95: 0.6532060472 | AP95: 65.32 | AQ95: 12917558 | AR95: 0.0006047176688
A96: 87 | B96: East Longmeadow | C96: 2143969100 | D96: 7098375.304 | E96: 708484000 | F96: 10014276.17 | G96: 17112651 | H96: 27947960.88 | I96: 0.6123040988 | J96: 23057068 | K96: 17112651 | L96: 61.23 | N96: 17494208 | O96: 0.0312 | P96: 18040027 | Q96: 64.54863408 | R96: 0 | S96: 0 | T96: 0 | U96: 927376 | V96: 927376 | W96: 0 | X96: =MIN(H96*parameters!C$22,ROUND(P96+T96-V96+W96,0)) -> 17112651 | Y96: 61.23040988 | AA96: 0 | AB96: 0 | AC96: 0 | AD96: 0.0004098802646 | AF96: 0.05419242174 | AG96: 3.318634076 | AH96: 0 | AM96: 087 | AN96: East Longmeadow | AO96: 0.6123040988 | AP96: 61.23 | AQ96: 17112651 | AR96: 0.0004098802646
A97: 88 | B97: Easton | C97: 4091504700 | D97: 13546387.36 | E97: 1319292000 | F97: 18647922.09 | G97: 32194309 | H97: 39026864.38 | I97: 0.824926868 | J97: 32197163 | K97: 32194309 | L97: 82.49 | N97: 30622659 | O97: 0.0317 | P97: 31593397 | Q97: 80.95294742 | R97: 1.537052584 | S97: 0 | T97: 0 | U97: 0 | V97: 0 | W97: 0 | X97: =MIN(H97*parameters!C$22,ROUND(P97+T97-V97+W97,0)) -> 31593397 | Y97: 80.95294742 | AA97: -600912 | AB97: -600912 | AC97: 0 | AD97: -1.537052584 | AF97: -0.01866516222 | AG97: -1.537052584 | AH97: 0 | AM97: 088 | AN97: Easton | AO97: 0.824926868 | AP97: 82.49 | AQ97: 31593397 | AR97: -1.537052584
A98: 89 | B98: Edgartown | C98: 10127877000 | D98: 33531953.41 | E98: 290012000 | F98: 4099260.194 | G98: 37631214 | H98: 8249256.418 | I98: 4.56177043 | J98: 6805637 | K98: 6805637 | L98: 82.5 | N98: 6533734 | O98: 0.0497 | P98: 6858461 | Q98: 83.14035414 | R98: 0 | S98: 0 | T98: 0 | U98: 52824 | V98: 52824 | W98: 0 | X98: =MIN(H98*parameters!C$22,ROUND(P98+T98-V98+W98,0)) -> 6805637 | Y98: 82.50000552 | AA98: 0 | AB98: 0 | AC98: 0 | AD98: 5.519909124e-06 | AF98: 0.007761800989 | AG98: 0.6403541444 | AH98: 0 | AM98: 089 | AN98: Edgartown | AO98: 4.56177043 | AP98: 82.5 | AQ98: 6805637 | AR98: 5.519909124e-06
A99: 90 | B99: Egremont | C99: 461457900 | D99: 1527821.162 | E99: 38278000 | F99: 541051.6865 | G99: 2068873 | H99: 982614.9146 | I99: 2.105476896 | J99: 810657 | K99: 810657 | L99: 82.5 | N99: 729584 | O99: 0.0374 | P99: 756870 | Q99: 77.02610542 | R99: 5.473894575 | S99: 0.01 | T99: 7296 | U99: 0 | V99: 0 | W99: 46491 | X99: =MIN(H99*parameters!C$22,ROUND(P99+T99-V99+W99,0)) -> 810657 | Y99: 82.49996901 | AA99: -53787 | AB99: 0 | AC99: 0 | AD99: -3.098925204e-05 | AF99: -0.06634988657 | AG99: -5.473894575 | AH99: 7295.84 | AM99: 090 | AN99: Egremont | AO99: 2.105476896 | AP99: 82.5 | AQ99: 810657 | AR99: -3.098925204e-05
A100: 91 | B100: Erving | C100: 956478200 | D100: 3166762.633 | E100: 40698000 | F100: 575257.8906 | G100: 3742021 | H100: 2816536.38 | I100: 1.328589621 | J100: 2323643 | K100: 2323643 | L100: 82.5 | N100: 2307875 | O100: 0.0298 | P100: 2376650 | Q100: 84.38200966 | R100: 0 | S100: 0 | T100: 0 | U100: 53007 | V100: 53007 | W100: 0 | X100: =MIN(H100*parameters!C$22,ROUND(P100+T100-V100+W100,0)) -> 2323643 | Y100: 82.50001729 | AA100: 0 | AB100: 0 | AC100: 0 | AD100: 1.728544962e-05 | AF100: 0.02281202405 | AG100: 1.882009664 | AH100: 0 | AM100: 091 | AN100: Erving | AO100: 1.328589621 | AP100: 82.5 | AQ100: 2323643 | AR100: 1.728544962e-05
A101: 92 | B101: Essex | C101: 944642600 | D101: 3127576.653 | E101: 267540000 | F101: 3781623.079 | G101: 6909200 | H101: 5755692.98 | I101: 1.200411492 | J101: 4748447 | K101: 4748447 | L101: 82.5 | N101: 4828458 | O101: 0.0216 | P101: 4932753 | Q101: 85.70215641 | R101: 0 | S101: 0 | T101: 0 | U101: 184306 | V101: 184306 | W101: 0 | X101: =MIN(H101*parameters!C$22,ROUND(P101+T101-V101+W101,0)) -> 4748447 | Y101: 82.50000507 | AA101: 0 | AB101: 0 | AC101: 0 | AD101: 5.065431736e-06 | AF101: 0.03881395328 | AG101: 3.202156407 | AH101: 0 | AM101: 092 | AN101: Essex | AO101: 1.200411492 | AP101: 82.5 | AQ101: 4748447 | AR101: 5.065431736e-06
A102: 93 | B102: Everett | C102: 7029819300 | D102: 23274727.1 | E102: 1048306000 | F102: 14817590.5 | G102: 38092318 | H102: 120182572.7 | I102: 0.3169537574 | J102: 99150622 | K102: 38092318 | L102: 31.7 | N102: 35431511 | O102: 0.0297 | P102: 36483827 | Q102: 30.35700283 | R102: 1.342997172 | S102: 0 | T102: 0 | U102: 0 | V102: 0 | W102: 0 | X102: =MIN(H102*parameters!C$22,ROUND(P102+T102-V102+W102,0)) -> 36483827 | Y102: 30.35700283 | AA102: -1608491 | AB102: -1608491 | AC102: 0 | AD102: -1.342997172 | AF102: -0.04222612549 | AG102: -1.342997172 | AH102: 0 | AM102: 093 | AN102: Everett | AO102: 0.3169537574 | AP102: 31.7 | AQ102: 36483827 | AR102: -1.342997172
A103: 94 | B103: Fairhaven | C103: 2482405500 | D103: 8218889.859 | E103: 504096000 | F103: 7125293.666 | G103: 15344184 | H103: 24385377.5 | I103: 0.629237091 | J103: 20117936 | K103: 15344184 | L103: 62.92 | N103: 14691748 | O103: 0.014 | P103: 14897432 | Q103: 61.09166036 | R103: 1.82833964 | S103: 0 | T103: 0 | U103: 0 | V103: 0 | W103: 0 | X103: =MIN(H103*parameters!C$22,ROUND(P103+T103-V103+W103,0)) -> 14897432 | Y103: 61.09166036 | AA103: -446752 | AB103: -446752 | AC103: 0 | AD103: -1.82833964 | AF103: -0.02911539643 | AG103: -1.82833964 | AH103: 0 | AM103: 094 | AN103: Fairhaven | AO103: 0.629237091 | AP103: 62.92 | AQ103: 14897432 | AR103: -1.82833964
A104: 95 | B104: Fall River | C104: 6253556700 | D104: 20704632.56 | E104: 1696635000 | F104: 23981588.07 | G104: 44686221 | H104: 200326303.5 | I104: 0.223067167 | J104: 165269200 | K104: 44686221 | L104: 22.31 | N104: 36806161 | O104: 0.0351 | P104: 38098057 | Q104: 19.0180003 | R104: 3.291999698 | S104: 0.01 | T104: 368062 | U104: 0 | V104: 0 | W104: 0 | X104: =MIN(H104*parameters!C$22,ROUND(P104+T104-V104+W104,0)) -> 38466119 | Y104: 19.20173154 | AA104: -6588164 | AB104: -6220102 | AC104: 0 | AD104: -3.108268459 | AF104: -0.1474316658 | AG104: -3.291999698 | AH104: 736123.22 | AM104: 095 | AN104: Fall River | AO104: 0.223067167 | AP104: 22.31 | AQ104: 38466119 | AR104: -3.108268459
A105: 96 | B105: Falmouth | C105: 13186717700 | D105: 43659337.84 | E105: 1469734000 | F105: 20774388.93 | G105: 64433727 | H105: 40183132.63 | I105: 1.603501837 | J105: 33151084 | K105: 33151084 | L105: 82.5 | N105: 33892532 | O105: 0.0212 | P105: 34611054 | Q105: 86.13328961 | R105: 0 | S105: 0 | T105: 0 | U105: 1459970 | V105: 1459970 | W105: 0 | X105: =MIN(H105*parameters!C$22,ROUND(P105+T105-V105+W105,0)) -> 33151084 | Y105: 82.49999896 | AA105: 0 | AB105: 0 | AC105: 0 | AD105: -1.035193321e-06 | AF105: 0.0440398872 | AG105: 3.633289613 | AH105: 0 | AM105: 096 | AN105: Falmouth | AO105: 1.603501837 | AP105: 82.5 | AQ105: 33151084 | AR105: -1.035193321e-06
